Workbook

Sheet Utility Group Criteria
A1: VALUE LINE ELECTRIC UTILITIES
F4: (a) | I4: (b) | L4: (e) | R4: (d)
F5: S&P | I5: Moody's | L5: Value Line | T5: Override:
F6: Credit | I6: Issuer | L6: Safety | N6: Finaneial | R6: Market | T6: "Y" for Incl.
B7: Included | C7: SYM | D7: Company | F7: Rating | I7: Rating | L7: Rank | N7: Strength | P7: Beta | R7: Cap | T7: "X" for Excl. | U7: Comments
A8: =A7+1 -> 1 | B8: =IF(AND(G8<=$G$62,G8>=$G$63,J8<=$J$62,J8>=$J$63,L8>=$L$62,L8<=$L$63,T8<>"X"),"Y",IF(T8="Y","Y","")) -> Y | C8: ='Electric Utility Data'!B8 -> AQN | D8: ='Electric Utility Data'!C8 -> Algonquin Pwr & Util | F8: ='Electric Utility Data'!AA8 -> BBB | G8: =IF(F8="NR",0,VLOOKUP(F8,'Ordinal Ratings'!A$8:B$30,2,FALSE)) -> 9 | I8: ='Electric Utility Data'!AB8 -> NR | J8: =IF(I8="NR",0,VLOOKUP(I8,'Ordinal Ratings'!I$8:J$26,2,FALSE)) -> 0 | L8: ='Electric Utility Data'!W8 -> n/a | N8: ='Electric Utility Data'!Y8 -> n/a | P8: ='Electric Utility Data'!X8 -> 0.9 | R8: ='Electric Utility Data'!AC8 -> 9094.340522 | T8: Y | U8: S&P rating meets criteria
A9: =A8+1 -> 2 | B9: Y | C9: ='Electric Utility Data'!B9 -> ALE | D9: ='Electric Utility Data'!C9 -> ALLETE | F9: ='Electric Utility Data'!AA9 -> BBB | G9: =IF(F9="NR",0,VLOOKUP(F9,'Ordinal Ratings'!A$8:B$30,2,FALSE)) -> 9 | I9: ='Electric Utility Data'!AB9 -> Baa1 | J9: =IF(I9="NR",0,VLOOKUP(I9,'Ordinal Ratings'!I$8:J$26,2,FALSE)) -> 8 | L9: ='Electric Utility Data'!W9 -> 2 | N9: ='Electric Utility Data'!Y9 -> A | P9: ='Electric Utility Data'!X9 -> 0.85 | R9: ='Electric Utility Data'!AC9 -> 2800
A10: 3 | C10: ='Electric Utility Data'!B10 -> LNT | D10: ='Electric Utility Data'!C10 -> Alliant Energy | F10: ='Electric Utility Data'!AA10 -> A- | G10: =IF(F10="NR",0,VLOOKUP(F10,'Ordinal Ratings'!A$8:B$30,2,FALSE)) -> 7 | I10: ='Electric Utility Data'!AB10 -> Baa2 | J10: =IF(I10="NR",0,VLOOKUP(I10,'Ordinal Ratings'!I$8:J$26,2,FALSE)) -> 9 | L10: ='Electric Utility Data'!W10 -> 2 | N10: ='Electric Utility Data'!Y10 -> A | P10: ='Electric Utility Data'!X10 -> 0.85 | R10: ='Electric Utility Data'!AC10 -> 13500
A11: 4 | B11: Y | C11: ='Electric Utility Data'!B11 -> AEE | D11: ='Electric Utility Data'!C11 -> Ameren Corp. | F11: ='Electric Utility Data'!AA11 -> BBB+ | G11: =IF(F11="NR",0,VLOOKUP(F11,'Ordinal Ratings'!A$8:B$30,2,FALSE)) -> 8 | I11: ='Electric Utility Data'!AB11 -> Baa1 | J11: =IF(I11="NR",0,VLOOKUP(I11,'Ordinal Ratings'!I$8:J$26,2,FALSE)) -> 8 | L11: ='Electric Utility Data'!W11 -> 2 | N11: ='Electric Utility Data'!Y11 -> A | P11: ='Electric Utility Data'!X11 -> 0.8 | R11: ='Electric Utility Data'!AC11 -> 20000
A12: 5 | C12: ='Electric Utility Data'!B12 -> AEP | D12: ='Electric Utility Data'!C12 -> American Elec Pwr | F12: ='Electric Utility Data'!AA12 -> A- | G12: =IF(F12="NR",0,VLOOKUP(F12,'Ordinal Ratings'!A$8:B$30,2,FALSE)) -> 7 | I12: ='Electric Utility Data'!AB12 -> Baa2 | J12: =IF(I12="NR",0,VLOOKUP(I12,'Ordinal Ratings'!I$8:J$26,2,FALSE)) -> 9 | L12: ='Electric Utility Data'!W12 -> 1 | N12: ='Electric Utility Data'!Y12 -> A+ | P12: ='Electric Utility Data'!X12 -> 0.75 | R12: ='Electric Utility Data'!AC12 -> 39000
A13: 6 | B13: Y | C13: ='Electric Utility Data'!B13 -> AGR | D13: ='Electric Utility Data'!C13 -> Avangrid, Inc. | F13: ='Electric Utility Data'!AA13 -> BBB+ | G13: =IF(F13="NR",0,VLOOKUP(F13,'Ordinal Ratings'!A$8:B$30,2,FALSE)) -> 8 | I13: ='Electric Utility Data'!AB13 -> Baa1 | J13: =IF(I13="NR",0,VLOOKUP(I13,'Ordinal Ratings'!I$8:J$26,2,FALSE)) -> 8 | L13: ='Electric Utility Data'!W13 -> 2 | N13: ='Electric Utility Data'!Y13 -> B++ | P13: ='Electric Utility Data'!X13 -> 0.8 | R13: ='Electric Utility Data'!AC13 -> 15000
A14: 7 | B14: Y | C14: ='Electric Utility Data'!B14 -> AVA | D14: ='Electric Utility Data'!C14 -> Avista Corp. | F14: ='Electric Utility Data'!AA14 -> BBB | G14: =IF(F14="NR",0,VLOOKUP(F14,'Ordinal Ratings'!A$8:B$30,2,FALSE)) -> 9 | I14: ='Electric Utility Data'!AB14 -> Baa2 | J14: =IF(I14="NR",0,VLOOKUP(I14,'Ordinal Ratings'!I$8:J$26,2,FALSE)) -> 9 | L14: ='Electric Utility Data'!W14 -> 2 | N14: ='Electric Utility Data'!Y14 -> B++ | P14: ='Electric Utility Data'!X14 -> 0.9 | R14: ='Electric Utility Data'!AC14 -> 2400
A15: 8 | B15: Y | C15: ='Electric Utility Data'!B15 -> BKH | D15: ='Electric Utility Data'!C15 -> Black Hills Corp. | F15: ='Electric Utility Data'!AA15 -> BBB+ | G15: =IF(F15="NR",0,VLOOKUP(F15,'Ordinal Ratings'!A$8:B$30,2,FALSE)) -> 8 | I15: ='Electric Utility Data'!AB15 -> Baa2 | J15: =IF(I15="NR",0,VLOOKUP(I15,'Ordinal Ratings'!I$8:J$26,2,FALSE)) -> 9 | L15: ='Electric Utility Data'!W15 -> 2 | N15: ='Electric Utility Data'!Y15 -> A | P15: ='Electric Utility Data'!X15 -> 0.95 | R15: ='Electric Utility Data'!AC15 -> 3800
A16: 9 | B16: Y | C16: ='Electric Utility Data'!B16 -> CNP | D16: ='Electric Utility Data'!C16 -> CenterPoint Energy | F16: ='Electric Utility Data'!AA16 -> BBB+ | G16: =IF(F16="NR",0,VLOOKUP(F16,'Ordinal Ratings'!A$8:B$30,2,FALSE)) -> 8 | I16: ='Electric Utility Data'!AB16 -> Baa2 | J16: =IF(I16="NR",0,VLOOKUP(I16,'Ordinal Ratings'!I$8:J$26,2,FALSE)) -> 9 | L16: ='Electric Utility Data'!W16 -> 3 | N16: ='Electric Utility Data'!Y16 -> B+ | P16: ='Electric Utility Data'!X16 -> 1.1 | R16: ='Electric Utility Data'!AC16 -> 11000
A17: 10 | B17: Y | C17: ='Electric Utility Data'!B17 -> CMS | D17: ='Electric Utility Data'!C17 -> CMS Energy Corp. | F17: ='Electric Utility Data'!AA17 -> BBB+ | G17: =IF(F17="NR",0,VLOOKUP(F17,'Ordinal Ratings'!A$8:B$30,2,FALSE)) -> 8 | I17: ='Electric Utility Data'!AB17 -> Baa1 | J17: =IF(I17="NR",0,VLOOKUP(I17,'Ordinal Ratings'!I$8:J$26,2,FALSE)) -> 8 | L17: ='Electric Utility Data'!W17 -> 2 | N17: ='Electric Utility Data'!Y17 -> B++ | P17: ='Electric Utility Data'!X17 -> 0.8 | R17: ='Electric Utility Data'!AC17 -> 17000
A18: 11 | C18: ='Electric Utility Data'!B18 -> ED | D18: ='Electric Utility Data'!C18 -> Consolidated Edison | F18: ='Electric Utility Data'!AA18 -> A- | G18: =IF(F18="NR",0,VLOOKUP(F18,'Ordinal Ratings'!A$8:B$30,2,FALSE)) -> 7 | I18: ='Electric Utility Data'!AB18 -> Baa2 | J18: =IF(I18="NR",0,VLOOKUP(I18,'Ordinal Ratings'!I$8:J$26,2,FALSE)) -> 9 | L18: ='Electric Utility Data'!W18 -> 1 | N18: ='Electric Utility Data'!Y18 -> A+ | P18: ='Electric Utility Data'!X18 -> 0.75 | R18: ='Electric Utility Data'!AC18 -> 25000
A19: 12 | C19: ='Electric Utility Data'!B19 -> D | D19: ='Electric Utility Data'!C19 -> Dominion Energy | F19: ='Electric Utility Data'!AA19 -> BBB+ | G19: =IF(F19="NR",0,VLOOKUP(F19,'Ordinal Ratings'!A$8:B$30,2,FALSE)) -> 8 | I19: ='Electric Utility Data'!AB19 -> Baa2 | J19: =IF(I19="NR",0,VLOOKUP(I19,'Ordinal Ratings'!I$8:J$26,2,FALSE)) -> 9 | L19: ='Electric Utility Data'!W19 -> 2 | N19: ='Electric Utility Data'!Y19 -> B++ | P19: ='Electric Utility Data'!X19 -> 0.8 | R19: ='Electric Utility Data'!AC19 -> 67000 | T19: X | U19: Announced sale of gas transmission/storage segment ($9.5/$69.9 total capital = 13.6%); reduction in annual dividend in Q4 from $3.76 to $2.50.
A20: 13 | B20: Y | C20: ='Electric Utility Data'!B20 -> DTE | D20: ='Electric Utility Data'!C20 -> DTE Energy Co. | F20: ='Electric Utility Data'!AA20 -> BBB+ | G20: =IF(F20="NR",0,VLOOKUP(F20,'Ordinal Ratings'!A$8:B$30,2,FALSE)) -> 8 | I20: ='Electric Utility Data'!AB20 -> Baa2 | J20: =IF(I20="NR",0,VLOOKUP(I20,'Ordinal Ratings'!I$8:J$26,2,FALSE)) -> 9 | L20: ='Electric Utility Data'!W20 -> 2 | N20: ='Electric Utility Data'!Y20 -> A | P20: ='Electric Utility Data'!X20 -> 0.9 | R20: ='Electric Utility Data'!AC20 -> 23000
A21: 14 | C21: ='Electric Utility Data'!B21 -> DUK | D21: ='Electric Utility Data'!C21 -> Duke Energy Corp. | F21: ='Electric Utility Data'!AA21 -> A- | G21: =IF(F21="NR",0,VLOOKUP(F21,'Ordinal Ratings'!A$8:B$30,2,FALSE)) -> 7 | I21: ='Electric Utility Data'!AB21 -> Baa1 | J21: =IF(I21="NR",0,VLOOKUP(I21,'Ordinal Ratings'!I$8:J$26,2,FALSE)) -> 8 | L21: ='Electric Utility Data'!W21 -> 2 | N21: ='Electric Utility Data'!Y21 -> A | P21: ='Electric Utility Data'!X21 -> 0.85 | R21: ='Electric Utility Data'!AC21 -> 62000
A22: 15 | B22: Y | C22: ='Electric Utility Data'!B22 -> EIX | D22: ='Electric Utility Data'!C22 -> Edison International | F22: ='Electric Utility Data'!AA22 -> BBB | G22: =IF(F22="NR",0,VLOOKUP(F22,'Ordinal Ratings'!A$8:B$30,2,FALSE)) -> 9 | I22: ='Electric Utility Data'!AB22 -> Baa3 | J22: =IF(I22="NR",0,VLOOKUP(I22,'Ordinal Ratings'!I$8:J$26,2,FALSE)) -> 10 | L22: ='Electric Utility Data'!W22 -> 3 | N22: ='Electric Utility Data'!Y22 -> B+ | P22: ='Electric Utility Data'!X22 -> 0.9 | R22: ='Electric Utility Data'!AC22 -> 20000
A23: 16 | B23: Y | C23: ='Electric Utility Data'!B23 -> EMA | D23: ='Electric Utility Data'!C23 -> Emera Inc. | F23: ='Electric Utility Data'!AA23 -> BBB | G23: =IF(F23="NR",0,VLOOKUP(F23,'Ordinal Ratings'!A$8:B$30,2,FALSE)) -> 9 | I23: ='Electric Utility Data'!AB23 -> Baa3 | J23: =IF(I23="NR",0,VLOOKUP(I23,'Ordinal Ratings'!I$8:J$26,2,FALSE)) -> 10 | L23: ='Electric Utility Data'!W23 -> 2 | N23: ='Electric Utility Data'!Y23 -> B+ | P23: ='Electric Utility Data'!X23 -> 0.75 | R23: ='Electric Utility Data'!AC23 -> 13100
A24: 17 | B24: Y | C24: ='Electric Utility Data'!B24 -> ETR | D24: ='Electric Utility Data'!C24 -> Entergy Corp. | F24: ='Electric Utility Data'!AA24 -> BBB+ | G24: =IF(F24="NR",0,VLOOKUP(F24,'Ordinal Ratings'!A$8:B$30,2,FALSE)) -> 8 | I24: ='Electric Utility Data'!AB24 -> Baa2 | J24: =IF(I24="NR",0,VLOOKUP(I24,'Ordinal Ratings'!I$8:J$26,2,FALSE)) -> 9 | L24: ='Electric Utility Data'!W24 -> 2 | N24: ='Electric Utility Data'!Y24 -> B++ | P24: ='Electric Utility Data'!X24 -> 0.95 | R24: ='Electric Utility Data'!AC24 -> 20000
A25: 18 | C25: ='Electric Utility Data'!B25 -> EVRG | D25: ='Electric Utility Data'!C25 -> Evergy Inc. | F25: ='Electric Utility Data'!AA25 -> A- | G25: =IF(F25="NR",0,VLOOKUP(F25,'Ordinal Ratings'!A$8:B$30,2,FALSE)) -> 7 | I25: ='Electric Utility Data'!AB25 -> Baa2 | J25: =IF(I25="NR",0,VLOOKUP(I25,'Ordinal Ratings'!I$8:J$26,2,FALSE)) -> 9 | L25: ='Electric Utility Data'!W25 -> 2 | N25: ='Electric Utility Data'!Y25 -> B++ | P25: ='Electric Utility Data'!X25 -> 1 | R25: ='Electric Utility Data'!AC25 -> 12000
A26: 19 | C26: ='Electric Utility Data'!B26 -> ES | D26: ='Electric Utility Data'!C26 -> Eversource Energy | F26: ='Electric Utility Data'!AA26 -> A- | G26: =IF(F26="NR",0,VLOOKUP(F26,'Ordinal Ratings'!A$8:B$30,2,FALSE)) -> 7 | I26: ='Electric Utility Data'!AB26 -> Baa1 | J26: =IF(I26="NR",0,VLOOKUP(I26,'Ordinal Ratings'!I$8:J$26,2,FALSE)) -> 8 | L26: ='Electric Utility Data'!W26 -> 1 | N26: ='Electric Utility Data'!Y26 -> A | P26: ='Electric Utility Data'!X26 -> 0.9 | R26: ='Electric Utility Data'!AC26 -> 30000
A27: 20 | B27: Y | C27: ='Electric Utility Data'!B27 -> EXC | D27: ='Electric Utility Data'!C27 -> Exelon Corp. | F27: ='Electric Utility Data'!AA27 -> BBB+ | G27: =IF(F27="NR",0,VLOOKUP(F27,'Ordinal Ratings'!A$8:B$30,2,FALSE)) -> 8 | I27: ='Electric Utility Data'!AB27 -> Baa2 | J27: =IF(I27="NR",0,VLOOKUP(I27,'Ordinal Ratings'!I$8:J$26,2,FALSE)) -> 9 | L27: ='Electric Utility Data'!W27 -> 3 | N27: ='Electric Utility Data'!Y27 -> B+ | P27: ='Electric Utility Data'!X27 -> 0.95 | R27: ='Electric Utility Data'!AC27 -> 37000
A28: 21 | B28: Y | C28: ='Electric Utility Data'!B28 -> FE | D28: ='Electric Utility Data'!C28 -> FirstEnergy Corp. | F28: ='Electric Utility Data'!AA28 -> BBB | G28: =IF(F28="NR",0,VLOOKUP(F28,'Ordinal Ratings'!A$8:B$30,2,FALSE)) -> 9 | I28: ='Electric Utility Data'!AB28 -> Baa3 | J28: =IF(I28="NR",0,VLOOKUP(I28,'Ordinal Ratings'!I$8:J$26,2,FALSE)) -> 10 | L28: ='Electric Utility Data'!W28 -> 3 | N28: ='Electric Utility Data'!Y28 -> B+ | P28: ='Electric Utility Data'!X28 -> 0.85 | R28: ='Electric Utility Data'!AC28 -> 16000
A29: 22 | C29: ='Electric Utility Data'!B29 -> FTS | D29: ='Electric Utility Data'!C29 -> Fortis Inc. | F29: ='Electric Utility Data'!AA29 -> A- | G29: =IF(F29="NR",0,VLOOKUP(F29,'Ordinal Ratings'!A$8:B$30,2,FALSE)) -> 7 | I29: ='Electric Utility Data'!AB29 -> Baa3 | J29: =IF(I29="NR",0,VLOOKUP(I29,'Ordinal Ratings'!I$8:J$26,2,FALSE)) -> 10 | L29: ='Electric Utility Data'!W29 -> 2 | N29: ='Electric Utility Data'!Y29 -> B++ | P29: ='Electric Utility Data'!X29 -> 0.8 | R29: ='Electric Utility Data'!AC29 -> 24000
A30: 23 | B30: Y | C30: ='Electric Utility Data'!B30 -> HE | D30: ='Electric Utility Data'!C30 -> Hawaiian Elec. | F30: ='Electric Utility Data'!AA30 -> BBB- | G30: =IF(F30="NR",0,VLOOKUP(F30,'Ordinal Ratings'!A$8:B$30,2,FALSE)) -> 10 | I30: ='Electric Utility Data'!AB30 -> Baa2 | J30: =IF(I30="NR",0,VLOOKUP(I30,'Ordinal Ratings'!I$8:J$26,2,FALSE)) -> 9 | L30: ='Electric Utility Data'!W30 -> 2 | N30: ='Electric Utility Data'!Y30 -> A | P30: ='Electric Utility Data'!X30 -> 0.8 | R30: ='Electric Utility Data'!AC30 -> 4000
A31: 24 | B31: Y | C31: ='Electric Utility Data'!B31 -> IDA | D31: ='Electric Utility Data'!C31 -> IDACORP, Inc. | F31: ='Electric Utility Data'!AA31 -> BBB | G31: =IF(F31="NR",0,VLOOKUP(F31,'Ordinal Ratings'!A$8:B$30,2,FALSE)) -> 9 | I31: ='Electric Utility Data'!AB31 -> Baa1 | J31: =IF(I31="NR",0,VLOOKUP(I31,'Ordinal Ratings'!I$8:J$26,2,FALSE)) -> 8 | L31: ='Electric Utility Data'!W31 -> 2 | N31: ='Electric Utility Data'!Y31 -> A | P31: ='Electric Utility Data'!X31 -> 0.8 | R31: ='Electric Utility Data'!AC31 -> 4600
A32: 25 | C32: ='Electric Utility Data'!B32 -> MGEE | D32: ='Electric Utility Data'!C32 -> MGE Energy | F32: ='Electric Utility Data'!AA32 -> NR | G32: =IF(F32="NR",0,VLOOKUP(F32,'Ordinal Ratings'!A$8:B$30,2,FALSE)) -> 0 | I32: ='Electric Utility Data'!AB32 -> NR | J32: =IF(I32="NR",0,VLOOKUP(I32,'Ordinal Ratings'!I$8:J$26,2,FALSE)) -> 0 | L32: ='Electric Utility Data'!W32 -> 1 | N32: ='Electric Utility Data'!Y32 -> A+ | P32: ='Electric Utility Data'!X32 -> 0.7 | R32: ='Electric Utility Data'!AC32 -> 2400
A33: 26 | C33: ='Electric Utility Data'!B33 -> NEE | D33: ='Electric Utility Data'!C33 -> NextEra Energy, Inc. | F33: ='Electric Utility Data'!AA33 -> A- | G33: =IF(F33="NR",0,VLOOKUP(F33,'Ordinal Ratings'!A$8:B$30,2,FALSE)) -> 7 | I33: ='Electric Utility Data'!AB33 -> Baa1 | J33: =IF(I33="NR",0,VLOOKUP(I33,'Ordinal Ratings'!I$8:J$26,2,FALSE)) -> 8 | L33: ='Electric Utility Data'!W33 -> 1 | N33: ='Electric Utility Data'!Y33 -> A+ | P33: ='Electric Utility Data'!X33 -> 0.85 | R33: ='Electric Utility Data'!AC33 -> 136000
A34: 27 | B34: Y | C34: ='Electric Utility Data'!B34 -> NWE | D34: ='Electric Utility Data'!C34 -> NorthWestern Corp. | F34: ='Electric Utility Data'!AA34 -> BBB | G34: =IF(F34="NR",0,VLOOKUP(F34,'Ordinal Ratings'!A$8:B$30,2,FALSE)) -> 9 | I34: ='Electric Utility Data'!AB34 -> Baa2 | J34: =IF(I34="NR",0,VLOOKUP(I34,'Ordinal Ratings'!I$8:J$26,2,FALSE)) -> 9 | L34: ='Electric Utility Data'!W34 -> 2 | N34: ='Electric Utility Data'!Y34 -> B++ | P34: ='Electric Utility Data'!X34 -> 0.9 | R34: ='Electric Utility Data'!AC34 -> 2700
A35: 28 | B35: Y | C35: ='Electric Utility Data'!B35 -> OGE | D35: ='Electric Utility Data'!C35 -> OGE Energy Corp. | F35: ='Electric Utility Data'!AA35 -> BBB+ | G35: =IF(F35="NR",0,VLOOKUP(F35,'Ordinal Ratings'!A$8:B$30,2,FALSE)) -> 8 | I35: ='Electric Utility Data'!AB35 -> Baa1 | J35: =IF(I35="NR",0,VLOOKUP(I35,'Ordinal Ratings'!I$8:J$26,2,FALSE)) -> 8 | L35: ='Electric Utility Data'!W35 -> 2 | N35: ='Electric Utility Data'!Y35 -> A | P35: ='Electric Utility Data'!X35 -> 1.05 | R35: ='Electric Utility Data'!AC35 -> 6400
A36: 29 | B36: Y | C36: ='Electric Utility Data'!B36 -> OTTR | D36: ='Electric Utility Data'!C36 -> Otter Tail Corp. | F36: ='Electric Utility Data'!AA36 -> BBB | G36: =IF(F36="NR",0,VLOOKUP(F36,'Ordinal Ratings'!A$8:B$30,2,FALSE)) -> 9 | I36: ='Electric Utility Data'!AB36 -> Baa2 | J36: =IF(I36="NR",0,VLOOKUP(I36,'Ordinal Ratings'!I$8:J$26,2,FALSE)) -> 9 | L36: ='Electric Utility Data'!W36 -> 2 | N36: ='Electric Utility Data'!Y36 -> A | P36: ='Electric Utility Data'!X36 -> 0.85 | R36: ='Electric Utility Data'!AC36 -> 1600
A37: 30 | C37: ='Electric Utility Data'!B37 -> PNW | D37: ='Electric Utility Data'!C37 -> Pinnacle West Capital | F37: ='Electric Utility Data'!AA37 -> A- | G37: =IF(F37="NR",0,VLOOKUP(F37,'Ordinal Ratings'!A$8:B$30,2,FALSE)) -> 7 | I37: ='Electric Utility Data'!AB37 -> A3 | J37: =IF(I37="NR",0,VLOOKUP(I37,'Ordinal Ratings'!I$8:J$26,2,FALSE)) -> 7 | L37: ='Electric Utility Data'!W37 -> 1 | N37: ='Electric Utility Data'!Y37 -> A+ | P37: ='Electric Utility Data'!X37 -> 0.85 | R37: ='Electric Utility Data'!AC37 -> 8900
A38: 31 | B38: Y | C38: ='Electric Utility Data'!B38 -> PNM | D38: ='Electric Utility Data'!C38 -> PNM Resources | F38: ='Electric Utility Data'!AA38 -> BBB | G38: =IF(F38="NR",0,VLOOKUP(F38,'Ordinal Ratings'!A$8:B$30,2,FALSE)) -> 9 | I38: ='Electric Utility Data'!AB38 -> Baa3 | J38: =IF(I38="NR",0,VLOOKUP(I38,'Ordinal Ratings'!I$8:J$26,2,FALSE)) -> 10 | L38: ='Electric Utility Data'!W38 -> 3 | N38: ='Electric Utility Data'!Y38 -> B+ | P38: ='Electric Utility Data'!X38 -> 0.95 | R38: ='Electric Utility Data'!AC38 -> 3100
A39: 32 | C39: ='Electric Utility Data'!B39 -> POR | D39: ='Electric Utility Data'!C39 -> Portland General Elec. | F39: ='Electric Utility Data'!AA39 -> BBB+ | G39: =IF(F39="NR",0,VLOOKUP(F39,'Ordinal Ratings'!A$8:B$30,2,FALSE)) -> 8 | I39: ='Electric Utility Data'!AB39 -> A3 | J39: =IF(I39="NR",0,VLOOKUP(I39,'Ordinal Ratings'!I$8:J$26,2,FALSE)) -> 7 | L39: ='Electric Utility Data'!W39 -> 2 | N39: ='Electric Utility Data'!Y39 -> B++ | P39: ='Electric Utility Data'!X39 -> 0.85 | R39: ='Electric Utility Data'!AC39 -> 3800
A40: 33 | C40: ='Electric Utility Data'!B40 -> PPL | D40: ='Electric Utility Data'!C40 -> PPL Corp. | F40: ='Electric Utility Data'!AA40 -> A- | G40: =IF(F40="NR",0,VLOOKUP(F40,'Ordinal Ratings'!A$8:B$30,2,FALSE)) -> 7 | I40: ='Electric Utility Data'!AB40 -> Baa2 | J40: =IF(I40="NR",0,VLOOKUP(I40,'Ordinal Ratings'!I$8:J$26,2,FALSE)) -> 9 | L40: ='Electric Utility Data'!W40 -> 2 | N40: ='Electric Utility Data'!Y40 -> B++ | P40: ='Electric Utility Data'!X40 -> 1.1 | R40: ='Electric Utility Data'!AC40 -> 20000
A41: 34 | C41: ='Electric Utility Data'!B41 -> PEG | D41: ='Electric Utility Data'!C41 -> Pub Sv Enterprise Grp. | F41: ='Electric Utility Data'!AA41 -> BBB+ | G41: =IF(F41="NR",0,VLOOKUP(F41,'Ordinal Ratings'!A$8:B$30,2,FALSE)) -> 8 | I41: ='Electric Utility Data'!AB41 -> Baa1 | J41: =IF(I41="NR",0,VLOOKUP(I41,'Ordinal Ratings'!I$8:J$26,2,FALSE)) -> 8 | L41: ='Electric Utility Data'!W41 -> 1 | N41: ='Electric Utility Data'!Y41 -> A++ | P41: ='Electric Utility Data'!X41 -> 0.9 | R41: ='Electric Utility Data'!AC41 -> 28000
A42: 35 | B42: Y | C42: ='Electric Utility Data'!B42 -> SRE | D42: ='Electric Utility Data'!C42 -> Sempra Energy | F42: ='Electric Utility Data'!AA42 -> BBB+ | G42: =IF(F42="NR",0,VLOOKUP(F42,'Ordinal Ratings'!A$8:B$30,2,FALSE)) -> 8 | I42: ='Electric Utility Data'!AB42 -> Baa2 | J42: =IF(I42="NR",0,VLOOKUP(I42,'Ordinal Ratings'!I$8:J$26,2,FALSE)) -> 9 | L42: ='Electric Utility Data'!W42 -> 2 | N42: ='Electric Utility Data'!Y42 -> A | P42: ='Electric Utility Data'!X42 -> 0.95 | R42: ='Electric Utility Data'!AC42 -> 35000
A43: 36 | C43: ='Electric Utility Data'!B43 -> SO | D43: ='Electric Utility Data'!C43 -> Southern Company | F43: ='Electric Utility Data'!AA43 -> A- | G43: =IF(F43="NR",0,VLOOKUP(F43,'Ordinal Ratings'!A$8:B$30,2,FALSE)) -> 7 | I43: ='Electric Utility Data'!AB43 -> Baa2 | J43: =IF(I43="NR",0,VLOOKUP(I43,'Ordinal Ratings'!I$8:J$26,2,FALSE)) -> 9 | L43: ='Electric Utility Data'!W43 -> 2 | N43: ='Electric Utility Data'!Y43 -> A | P43: ='Electric Utility Data'!X43 -> 0.9 | R43: ='Electric Utility Data'!AC43 -> 57000
A44: 37 | C44: ='Electric Utility Data'!B44 -> WEC | D44: ='Electric Utility Data'!C44 -> WEC Energy Group | F44: ='Electric Utility Data'!AA44 -> A- | G44: =IF(F44="NR",0,VLOOKUP(F44,'Ordinal Ratings'!A$8:B$30,2,FALSE)) -> 7 | I44: ='Electric Utility Data'!AB44 -> Baa1 | J44: =IF(I44="NR",0,VLOOKUP(I44,'Ordinal Ratings'!I$8:J$26,2,FALSE)) -> 8 | L44: ='Electric Utility Data'!W44 -> 1 | N44: ='Electric Utility Data'!Y44 -> A+ | P44: ='Electric Utility Data'!X44 -> 0.8 | R44: ='Electric Utility Data'!AC44 -> 30000
A45: 38 | C45: ='Electric Utility Data'!B45 -> XEL | D45: ='Electric Utility Data'!C45 -> Xcel Energy Inc. | F45: ='Electric Utility Data'!AA45 -> A- | G45: =IF(F45="NR",0,VLOOKUP(F45,'Ordinal Ratings'!A$8:B$30,2,FALSE)) -> 7 | I45: ='Electric Utility Data'!AB45 -> Baa1 | J45: =IF(I45="NR",0,VLOOKUP(I45,'Ordinal Ratings'!I$8:J$26,2,FALSE)) -> 8 | L45: ='Electric Utility Data'!W45 -> 1 | N45: ='Electric Utility Data'!Y45 -> A+ | P45: ='Electric Utility Data'!X45 -> 0.8 | R45: ='Electric Utility Data'!AC45 -> 34000
A48: (a) | B48: ='Electric Utility Data'!B51 -> Issuer credit rating from www.standardandpoors.com (retrieved Oct. 5, 2020).
A49: (b) | B49: ='Electric Utility Data'!B52 -> Long-term rating from www.moodys.com (retrieved Oct. 5, 2020).
A50: (c) | B50: ='Electric Utility Data'!B50 -> The Value Line Investment Survey (Jul. 24, Aug. 14 and Sep. 11, 2020).
A51: (d) | B51: ='Electric Utility Data'!B53 -> www.finance.yahoo.com (retreived Oct. 5, 2020).
B53: =COUNTIF(B8:B45,"Y") -> 21 | D53: ="S&P corporate credit rating of "&VLOOKUP(G62,'Ordinal Ratings'!B$8:C$30,2,FALSE)&", "&F61&", or "&VLOOKUP(G63,'Ordinal Ratings'!B$8:C$30,2,FALSE) -> S&P corporate credit rating of BBB-, BBB, or BBB+
D54: ="Moody's issure rating of "&VLOOKUP(J62,'Ordinal Ratings'!J$8:K$30,2,FALSE)&", "&I61&", or "&VLOOKUP(J63,'Ordinal Ratings'!J$8:K$30,2,FALSE) -> Moody's issure rating of Baa3, Baa2, or Baa1
D55: Safety Rank of "2" or "3"
D60: Proxy Group Criteria | F60: S&P | I60: Moodys | L60: Safety
D61: Avista Corp. | F61: BBB | G61: =IF(F61="NR",0,VLOOKUP(F61,'Ordinal Ratings'!A$8:B$30,2,FALSE)) -> 9 | I61: Baa2 | J61: =IF(I61="NR",0,VLOOKUP(I61,'Ordinal Ratings'!I$8:J$26,2,FALSE)) -> 9 | L61: 2
D62: Low Rating | F62: =VLOOKUP(G62,'Ordinal Ratings'!$B$8:$C$28,2,FALSE) -> BBB- | G62: =VLOOKUP(F$61,'Ordinal Ratings'!A$8:B$30,2,FALSE)+1 -> 10 | I62: =VLOOKUP(J62,'Ordinal Ratings'!$J$8:$K$28,2,FALSE) -> Baa3 | J62: =VLOOKUP(I$61,'Ordinal Ratings'!I$8:J$26,2,FALSE)+1 -> 10 | L62: =L61 -> 2
D63: High Rating | F63: =VLOOKUP(G63,'Ordinal Ratings'!$B$8:$C$28,2,FALSE) -> BBB+ | G63: =VLOOKUP(F$61,'Ordinal Ratings'!A$8:B$30,2,FALSE)-1 -> 8 | I63: =VLOOKUP(J63,'Ordinal Ratings'!$J$8:$K$28,2,FALSE) -> Baa1 | J63: =VLOOKUP(I$61,'Ordinal Ratings'!I$8:J$26,2,FALSE)-1 -> 8 | L63: =L61+1 -> 3
C69: =IF($B8="Y",C8,"zzz") -> AQN | D69: Algonquin Pwr & Util
C70: ALE | D70: ALLETE
C71: zzz | D71: zzz
C72: AEE | D72: Ameren Corp.
C73: zzz | D73: zzz
C74: AGR | D74: Avangrid, Inc.
C75: AVA | D75: Avista Corp.
C76: BKH | D76: Black Hills Corp.
C77: CNP | D77: CenterPoint Energy
C78: CMS | D78: CMS Energy Corp.
C79: zzz | D79: zzz
C80: zzz | D80: zzz
C81: DTE | D81: DTE Energy Co.
C82: zzz | D82: zzz
C83: EIX | D83: Edison International
C84: EMA | D84: Emera Inc.
C85: ETR | D85: Entergy Corp.
C86: zzz | D86: zzz
C87: zzz | D87: zzz
C88: EXC | D88: Exelon Corp.
C89: FE | D89: FirstEnergy Corp.
C90: zzz | D90: zzz
C91: HE | D91: Hawaiian Elec.
C92: IDA | D92: IDACORP, Inc.
C93: zzz | D93: zzz
C94: zzz | D94: zzz
C95: NWE | D95: NorthWestern Corp.
C96: OGE | D96: OGE Energy Corp.
C97: OTTR | D97: Otter Tail Corp.
C98: zzz | D98: zzz
C99: =IF(#REF!="Y",#REF!,"zzz") ->  | D99: =IF(#REF!="Y",#REF!,"zzz") -> 
C100: =IF($B38="Y",C38,"zzz") -> PNM | D100: PNM Resources
C101: zzz | D101: zzz
C102: zzz | D102: zzz
C103: zzz | D103: zzz
C104: SRE | D104: Sempra Energy
C105: =IF(#REF!="Y",#REF!,"zzz") ->  | D105: =IF(#REF!="Y",#REF!,"zzz") -> 
C106: =IF($B43="Y",C43,"zzz") -> zzz | D106: =IF($B43="Y",D43,"zzz") -> zzz
C107: =IF(#REF!="Y",#REF!,"zzz") ->  | D107: =IF(#REF!="Y",#REF!,"zzz") -> 
C108: =IF($B44="Y",C44,"zzz") -> zzz | D108: =IF($B44="Y",D44,"zzz") -> zzz
C109: =IF(#REF!="Y",#REF!,"zzz") ->  | D109: =IF(#REF!="Y",#REF!,"zzz") -> 
C110: =IF($B45="Y",C45,"zzz") -> zzz | D110: =IF($B45="Y",D45,"zzz") -> zzz
C111: =IF(#REF!="Y",#REF!,"zzz") ->  | D111: =IF(#REF!="Y",#REF!,"zzz") -> 

Sheet Utility Group
B2: SYM | C2: Company
A3: =A2+1 -> 1 | B3: ='Utility Group Criteria'!C69 -> AQN | C3: ='Utility Group Criteria'!D69 -> Algonquin Pwr & Util
A4: =A3+1 -> 2 | B4: ='Utility Group Criteria'!C70 -> ALE | C4: ='Utility Group Criteria'!D70 -> ALLETE
A5: 3 | B5: ='Utility Group Criteria'!C72 -> AEE | C5: ='Utility Group Criteria'!D72 -> Ameren Corp.
A6: 4 | B6: ='Utility Group Criteria'!C74 -> AGR | C6: ='Utility Group Criteria'!D74 -> Avangrid, Inc.
A7: 5 | B7: ='Utility Group Criteria'!C75 -> AVA | C7: ='Utility Group Criteria'!D75 -> Avista Corp.
A8: 6 | B8: ='Utility Group Criteria'!C76 -> BKH | C8: ='Utility Group Criteria'!D76 -> Black Hills Corp.
A9: 7 | B9: ='Utility Group Criteria'!C77 -> CNP | C9: ='Utility Group Criteria'!D77 -> CenterPoint Energy
A10: 8 | B10: ='Utility Group Criteria'!C78 -> CMS | C10: ='Utility Group Criteria'!D78 -> CMS Energy Corp.
A11: 9 | B11: ='Utility Group Criteria'!C81 -> DTE | C11: ='Utility Group Criteria'!D81 -> DTE Energy Co.
A12: 10 | B12: ='Utility Group Criteria'!C83 -> EIX | C12: ='Utility Group Criteria'!D83 -> Edison International
A13: 11 | B13: ='Utility Group Criteria'!C84 -> EMA | C13: ='Utility Group Criteria'!D84 -> Emera Inc.
A14: 12 | B14: ='Utility Group Criteria'!C85 -> ETR | C14: ='Utility Group Criteria'!D85 -> Entergy Corp.
A15: 13 | B15: ='Utility Group Criteria'!C88 -> EXC | C15: ='Utility Group Criteria'!D88 -> Exelon Corp.
A16: 14 | B16: ='Utility Group Criteria'!C89 -> FE | C16: ='Utility Group Criteria'!D89 -> FirstEnergy Corp.
A17: 15 | B17: ='Utility Group Criteria'!C91 -> HE | C17: ='Utility Group Criteria'!D91 -> Hawaiian Elec.
A18: 16 | B18: ='Utility Group Criteria'!C92 -> IDA | C18: ='Utility Group Criteria'!D92 -> IDACORP, Inc.
A19: 17 | B19: ='Utility Group Criteria'!C95 -> NWE | C19: ='Utility Group Criteria'!D95 -> NorthWestern Corp.
A20: 18 | B20: ='Utility Group Criteria'!C96 -> OGE | C20: ='Utility Group Criteria'!D96 -> OGE Energy Corp.
A21: 19 | B21: ='Utility Group Criteria'!C97 -> OTTR | C21: ='Utility Group Criteria'!D97 -> Otter Tail Corp.
A22: 20 | B22: ='Utility Group Criteria'!C100 -> PNM | C22: ='Utility Group Criteria'!D100 -> PNM Resources
A23: 21 | B23: ='Utility Group Criteria'!C104 -> SRE | C23: ='Utility Group Criteria'!D104 -> Sempra Energy
A24: 22 | B24: ='Utility Group Criteria'!C80 -> zzz | C24: ='Utility Group Criteria'!D80 -> zzz
A25: 23 | B25: ='Utility Group Criteria'!C86 -> zzz | C25: ='Utility Group Criteria'!D86 -> zzz
A26: 24 | B26: ='Utility Group Criteria'!C90 -> zzz | C26: ='Utility Group Criteria'!D90 -> zzz
A27: 25 | B27: ='Utility Group Criteria'!C93 -> zzz | C27: ='Utility Group Criteria'!D93 -> zzz
A28: 26 | B28: ='Utility Group Criteria'!C98 -> zzz | C28: ='Utility Group Criteria'!D98 -> zzz
A29: 27 | B29: ='Utility Group Criteria'!C101 -> zzz | C29: ='Utility Group Criteria'!D101 -> zzz
A30: 28 | B30: ='Utility Group Criteria'!C106 -> zzz | C30: ='Utility Group Criteria'!D106 -> zzz
A31: 29 | B31: ='Utility Group Criteria'!C71 -> zzz | C31: ='Utility Group Criteria'!D71 -> zzz
A32: 30 | B32: ='Utility Group Criteria'!C73 -> zzz | C32: ='Utility Group Criteria'!D73 -> zzz
A33: 31 | B33: ='Utility Group Criteria'!C79 -> zzz | C33: ='Utility Group Criteria'!D79 -> zzz
A34: 32 | B34: ='Utility Group Criteria'!C82 -> zzz | C34: ='Utility Group Criteria'!D82 -> zzz
A35: 33 | B35: ='Utility Group Criteria'!C102 -> zzz | C35: ='Utility Group Criteria'!D102 -> zzz
A36: 34 | B36: ='Utility Group Criteria'!C103 -> zzz | C36: ='Utility Group Criteria'!D103 -> zzz
A37: 35 | B37: ='Utility Group Criteria'!C108 -> zzz | C37: ='Utility Group Criteria'!D108 -> zzz
A38: 36 | B38: ='Utility Group Criteria'!C87 -> zzz | C38: ='Utility Group Criteria'!D87 -> zzz
A39: 37 | B39: ='Utility Group Criteria'!C94 -> zzz | C39: ='Utility Group Criteria'!D94 -> zzz
A40: 38 | B40: ='Utility Group Criteria'!C110 -> zzz | C40: ='Utility Group Criteria'!D110 -> zzz
A41: 39 | B41: ='Utility Group Criteria'!C111 ->  | C41: ='Utility Group Criteria'!D111 -> 
A42: 40 | B42: ='Utility Group Criteria'!C99 ->  | C42: ='Utility Group Criteria'!D99 -> 

Sheet Proxy Group Risk Measures
A1: RISK MEASURES
A3: ELECTRIC GROUP
D4: (a) | G4: (b) | J4: (c) | Q4: (d)
J5: Value Line
D6: Credit Ratings | J6: Safety | L6: Financial | Q6: Market
B7: Company | D7: S&P | G7: Moody's | J7: Rank | L7: Strength | O7: Beta | Q7: Cap
A8: =A7+1 -> 1 | B8: =VLOOKUP('Utility Group'!$B3,vldatabase,2,FALSE) -> Algonquin Pwr & Util | D8: =VLOOKUP('Utility Group'!$B3,vldatabase,26,FALSE) -> BBB | E8: =VLOOKUP(D8,'Ordinal Ratings'!A$8:C$30,2,FALSE) -> 9 | G8: =VLOOKUP('Utility Group'!$B3,vldatabase,27,FALSE) -> NR | H8: =VLOOKUP(G8,'Ordinal Ratings'!I$9:K$28,2,FALSE) ->  | J8: =VLOOKUP('Utility Group'!$B3,vldatabase,22,FALSE) -> n/a | L8: =VLOOKUP('Utility Group'!$B3,vldatabase,24,FALSE) -> n/a | M8: =VLOOKUP(L8,'Ordinal Ratings'!E$8:F$18,2,FALSE) ->  | O8: =VLOOKUP('Utility Group'!$B3,vldatabase,23,FALSE) -> 0.9 | Q8: =VLOOKUP('Utility Group'!$B3,vldatabase,28,FALSE) -> 9094.340522
A9: =A8+1 -> 2 | B9: =VLOOKUP('Utility Group'!$B4,vldatabase,2,FALSE) -> ALLETE | D9: =VLOOKUP('Utility Group'!$B4,vldatabase,26,FALSE) -> BBB | E9: =VLOOKUP(D9,'Ordinal Ratings'!A$8:C$30,2,FALSE) -> 9 | G9: =VLOOKUP('Utility Group'!$B4,vldatabase,27,FALSE) -> Baa1 | H9: =VLOOKUP(G9,'Ordinal Ratings'!I$9:K$28,2,FALSE) -> 8 | J9: =VLOOKUP('Utility Group'!$B4,vldatabase,22,FALSE) -> 2 | L9: =VLOOKUP('Utility Group'!$B4,vldatabase,24,FALSE) -> A | M9: =VLOOKUP(L9,'Ordinal Ratings'!E$8:F$18,2,FALSE) -> 3 | O9: =VLOOKUP('Utility Group'!$B4,vldatabase,23,FALSE) -> 0.85 | Q9: =VLOOKUP('Utility Group'!$B4,vldatabase,28,FALSE) -> 2800
A10: 3 | B10: =VLOOKUP('Utility Group'!$B5,vldatabase,2,FALSE) -> Ameren Corp. | D10: =VLOOKUP('Utility Group'!$B5,vldatabase,26,FALSE) -> BBB+ | E10: =VLOOKUP(D10,'Ordinal Ratings'!A$8:C$30,2,FALSE) -> 8 | G10: =VLOOKUP('Utility Group'!$B5,vldatabase,27,FALSE) -> Baa1 | H10: =VLOOKUP(G10,'Ordinal Ratings'!I$9:K$28,2,FALSE) -> 8 | J10: =VLOOKUP('Utility Group'!$B5,vldatabase,22,FALSE) -> 2 | L10: =VLOOKUP('Utility Group'!$B5,vldatabase,24,FALSE) -> A | M10: =VLOOKUP(L10,'Ordinal Ratings'!E$8:F$18,2,FALSE) -> 3 | O10: =VLOOKUP('Utility Group'!$B5,vldatabase,23,FALSE) -> 0.8 | Q10: =VLOOKUP('Utility Group'!$B5,vldatabase,28,FALSE) -> 20000
A11: 4 | B11: =VLOOKUP('Utility Group'!$B6,vldatabase,2,FALSE) -> Avangrid, Inc. | D11: =VLOOKUP('Utility Group'!$B6,vldatabase,26,FALSE) -> BBB+ | E11: =VLOOKUP(D11,'Ordinal Ratings'!A$8:C$30,2,FALSE) -> 8 | G11: =VLOOKUP('Utility Group'!$B6,vldatabase,27,FALSE) -> Baa1 | H11: =VLOOKUP(G11,'Ordinal Ratings'!I$9:K$28,2,FALSE) -> 8 | J11: =VLOOKUP('Utility Group'!$B6,vldatabase,22,FALSE) -> 2 | L11: =VLOOKUP('Utility Group'!$B6,vldatabase,24,FALSE) -> B++ | M11: =VLOOKUP(L11,'Ordinal Ratings'!E$8:F$18,2,FALSE) -> 4 | O11: =VLOOKUP('Utility Group'!$B6,vldatabase,23,FALSE) -> 0.8 | Q11: =VLOOKUP('Utility Group'!$B6,vldatabase,28,FALSE) -> 15000
A12: 5 | B12: =VLOOKUP('Utility Group'!$B7,vldatabase,2,FALSE) -> Avista Corp. | D12: =VLOOKUP('Utility Group'!$B7,vldatabase,26,FALSE) -> BBB | E12: =VLOOKUP(D12,'Ordinal Ratings'!A$8:C$30,2,FALSE) -> 9 | G12: =VLOOKUP('Utility Group'!$B7,vldatabase,27,FALSE) -> Baa2 | H12: =VLOOKUP(G12,'Ordinal Ratings'!I$9:K$28,2,FALSE) -> 9 | J12: =VLOOKUP('Utility Group'!$B7,vldatabase,22,FALSE) -> 2 | L12: =VLOOKUP('Utility Group'!$B7,vldatabase,24,FALSE) -> B++ | M12: =VLOOKUP(L12,'Ordinal Ratings'!E$8:F$18,2,FALSE) -> 4 | O12: =VLOOKUP('Utility Group'!$B7,vldatabase,23,FALSE) -> 0.9 | Q12: =VLOOKUP('Utility Group'!$B7,vldatabase,28,FALSE) -> 2400
A13: 6 | B13: =VLOOKUP('Utility Group'!$B8,vldatabase,2,FALSE) -> Black Hills Corp. | D13: =VLOOKUP('Utility Group'!$B8,vldatabase,26,FALSE) -> BBB+ | E13: =VLOOKUP(D13,'Ordinal Ratings'!A$8:C$30,2,FALSE) -> 8 | G13: =VLOOKUP('Utility Group'!$B8,vldatabase,27,FALSE) -> Baa2 | H13: =VLOOKUP(G13,'Ordinal Ratings'!I$9:K$28,2,FALSE) -> 9 | J13: =VLOOKUP('Utility Group'!$B8,vldatabase,22,FALSE) -> 2 | L13: =VLOOKUP('Utility Group'!$B8,vldatabase,24,FALSE) -> A | M13: =VLOOKUP(L13,'Ordinal Ratings'!E$8:F$18,2,FALSE) -> 3 | O13: =VLOOKUP('Utility Group'!$B8,vldatabase,23,FALSE) -> 0.95 | Q13: =VLOOKUP('Utility Group'!$B8,vldatabase,28,FALSE) -> 3800
A14: 7 | B14: =VLOOKUP('Utility Group'!$B9,vldatabase,2,FALSE) -> CenterPoint Energy | D14: =VLOOKUP('Utility Group'!$B9,vldatabase,26,FALSE) -> BBB+ | E14: =VLOOKUP(D14,'Ordinal Ratings'!A$8:C$30,2,FALSE) -> 8 | G14: =VLOOKUP('Utility Group'!$B9,vldatabase,27,FALSE) -> Baa2 | H14: =VLOOKUP(G14,'Ordinal Ratings'!I$9:K$28,2,FALSE) -> 9 | J14: =VLOOKUP('Utility Group'!$B9,vldatabase,22,FALSE) -> 3 | L14: =VLOOKUP('Utility Group'!$B9,vldatabase,24,FALSE) -> B+ | M14: =VLOOKUP(L14,'Ordinal Ratings'!E$8:F$18,2,FALSE) -> 5 | O14: =VLOOKUP('Utility Group'!$B9,vldatabase,23,FALSE) -> 1.1 | Q14: =VLOOKUP('Utility Group'!$B9,vldatabase,28,FALSE) -> 11000
A15: 8 | B15: =VLOOKUP('Utility Group'!$B10,vldatabase,2,FALSE) -> CMS Energy Corp. | D15: =VLOOKUP('Utility Group'!$B10,vldatabase,26,FALSE) -> BBB+ | E15: =VLOOKUP(D15,'Ordinal Ratings'!A$8:C$30,2,FALSE) -> 8 | G15: =VLOOKUP('Utility Group'!$B10,vldatabase,27,FALSE) -> Baa1 | H15: =VLOOKUP(G15,'Ordinal Ratings'!I$9:K$28,2,FALSE) -> 8 | J15: =VLOOKUP('Utility Group'!$B10,vldatabase,22,FALSE) -> 2 | L15: =VLOOKUP('Utility Group'!$B10,vldatabase,24,FALSE) -> B++ | M15: =VLOOKUP(L15,'Ordinal Ratings'!E$8:F$18,2,FALSE) -> 4 | O15: =VLOOKUP('Utility Group'!$B10,vldatabase,23,FALSE) -> 0.8 | Q15: =VLOOKUP('Utility Group'!$B10,vldatabase,28,FALSE) -> 17000
A16: 9 | B16: =VLOOKUP('Utility Group'!$B11,vldatabase,2,FALSE) -> DTE Energy Co. | D16: =VLOOKUP('Utility Group'!$B11,vldatabase,26,FALSE) -> BBB+ | E16: =VLOOKUP(D16,'Ordinal Ratings'!A$8:C$30,2,FALSE) -> 8 | G16: =VLOOKUP('Utility Group'!$B11,vldatabase,27,FALSE) -> Baa2 | H16: =VLOOKUP(G16,'Ordinal Ratings'!I$9:K$28,2,FALSE) -> 9 | J16: =VLOOKUP('Utility Group'!$B11,vldatabase,22,FALSE) -> 2 | L16: =VLOOKUP('Utility Group'!$B11,vldatabase,24,FALSE) -> A | M16: =VLOOKUP(L16,'Ordinal Ratings'!E$8:F$18,2,FALSE) -> 3 | O16: =VLOOKUP('Utility Group'!$B11,vldatabase,23,FALSE) -> 0.9 | Q16: =VLOOKUP('Utility Group'!$B11,vldatabase,28,FALSE) -> 23000
A17: 10 | B17: =VLOOKUP('Utility Group'!$B12,vldatabase,2,FALSE) -> Edison International | D17: =VLOOKUP('Utility Group'!$B12,vldatabase,26,FALSE) -> BBB | E17: =VLOOKUP(D17,'Ordinal Ratings'!A$8:C$30,2,FALSE) -> 9 | G17: =VLOOKUP('Utility Group'!$B12,vldatabase,27,FALSE) -> Baa3 | H17: =VLOOKUP(G17,'Ordinal Ratings'!I$9:K$28,2,FALSE) -> 10 | J17: =VLOOKUP('Utility Group'!$B12,vldatabase,22,FALSE) -> 3 | L17: =VLOOKUP('Utility Group'!$B12,vldatabase,24,FALSE) -> B+ | M17: =VLOOKUP(L17,'Ordinal Ratings'!E$8:F$18,2,FALSE) -> 5 | O17: =VLOOKUP('Utility Group'!$B12,vldatabase,23,FALSE) -> 0.9 | Q17: =VLOOKUP('Utility Group'!$B12,vldatabase,28,FALSE) -> 20000
A18: 11 | B18: =VLOOKUP('Utility Group'!$B13,vldatabase,2,FALSE) -> Emera Inc. | D18: =VLOOKUP('Utility Group'!$B13,vldatabase,26,FALSE) -> BBB | E18: =VLOOKUP(D18,'Ordinal Ratings'!A$8:C$30,2,FALSE) -> 9 | G18: =VLOOKUP('Utility Group'!$B13,vldatabase,27,FALSE) -> Baa3 | H18: =VLOOKUP(G18,'Ordinal Ratings'!I$9:K$28,2,FALSE) -> 10 | J18: =VLOOKUP('Utility Group'!$B13,vldatabase,22,FALSE) -> 2 | L18: =VLOOKUP('Utility Group'!$B13,vldatabase,24,FALSE) -> B+ | M18: =VLOOKUP(L18,'Ordinal Ratings'!E$8:F$18,2,FALSE) -> 5 | O18: =VLOOKUP('Utility Group'!$B13,vldatabase,23,FALSE) -> 0.75 | Q18: =VLOOKUP('Utility Group'!$B13,vldatabase,28,FALSE) -> 13100
A19: 12 | B19: =VLOOKUP('Utility Group'!$B14,vldatabase,2,FALSE) -> Entergy Corp. | D19: =VLOOKUP('Utility Group'!$B14,vldatabase,26,FALSE) -> BBB+ | E19: =VLOOKUP(D19,'Ordinal Ratings'!A$8:C$30,2,FALSE) -> 8 | G19: =VLOOKUP('Utility Group'!$B14,vldatabase,27,FALSE) -> Baa2 | H19: =VLOOKUP(G19,'Ordinal Ratings'!I$9:K$28,2,FALSE) -> 9 | J19: =VLOOKUP('Utility Group'!$B14,vldatabase,22,FALSE) -> 2 | L19: =VLOOKUP('Utility Group'!$B14,vldatabase,24,FALSE) -> B++ | M19: =VLOOKUP(L19,'Ordinal Ratings'!E$8:F$18,2,FALSE) -> 4 | O19: =VLOOKUP('Utility Group'!$B14,vldatabase,23,FALSE) -> 0.95 | Q19: =VLOOKUP('Utility Group'!$B14,vldatabase,28,FALSE) -> 20000
A20: 13 | B20: =VLOOKUP('Utility Group'!$B15,vldatabase,2,FALSE) -> Exelon Corp. | D20: =VLOOKUP('Utility Group'!$B15,vldatabase,26,FALSE) -> BBB+ | E20: =VLOOKUP(D20,'Ordinal Ratings'!A$8:C$30,2,FALSE) -> 8 | G20: =VLOOKUP('Utility Group'!$B15,vldatabase,27,FALSE) -> Baa2 | H20: =VLOOKUP(G20,'Ordinal Ratings'!I$9:K$28,2,FALSE) -> 9 | J20: =VLOOKUP('Utility Group'!$B15,vldatabase,22,FALSE) -> 3 | L20: =VLOOKUP('Utility Group'!$B15,vldatabase,24,FALSE) -> B+ | M20: =VLOOKUP(L20,'Ordinal Ratings'!E$8:F$18,2,FALSE) -> 5 | O20: =VLOOKUP('Utility Group'!$B15,vldatabase,23,FALSE) -> 0.95 | Q20: =VLOOKUP('Utility Group'!$B15,vldatabase,28,FALSE) -> 37000
A21: 14 | B21: =VLOOKUP('Utility Group'!$B16,vldatabase,2,FALSE) -> FirstEnergy Corp. | D21: =VLOOKUP('Utility Group'!$B16,vldatabase,26,FALSE) -> BBB | E21: =VLOOKUP(D21,'Ordinal Ratings'!A$8:C$30,2,FALSE) -> 9 | G21: =VLOOKUP('Utility Group'!$B16,vldatabase,27,FALSE) -> Baa3 | H21: =VLOOKUP(G21,'Ordinal Ratings'!I$9:K$28,2,FALSE) -> 10 | J21: =VLOOKUP('Utility Group'!$B16,vldatabase,22,FALSE) -> 3 | L21: =VLOOKUP('Utility Group'!$B16,vldatabase,24,FALSE) -> B+ | M21: =VLOOKUP(L21,'Ordinal Ratings'!E$8:F$18,2,FALSE) -> 5 | O21: =VLOOKUP('Utility Group'!$B16,vldatabase,23,FALSE) -> 0.85 | Q21: =VLOOKUP('Utility Group'!$B16,vldatabase,28,FALSE) -> 16000
A22: 15 | B22: =VLOOKUP('Utility Group'!$B17,vldatabase,2,FALSE) -> Hawaiian Elec. | D22: =VLOOKUP('Utility Group'!$B17,vldatabase,26,FALSE) -> BBB- | E22: =VLOOKUP(D22,'Ordinal Ratings'!A$8:C$30,2,FALSE) -> 10 | G22: =VLOOKUP('Utility Group'!$B17,vldatabase,27,FALSE) -> Baa2 | H22: =VLOOKUP(G22,'Ordinal Ratings'!I$9:K$28,2,FALSE) -> 9 | J22: =VLOOKUP('Utility Group'!$B17,vldatabase,22,FALSE) -> 2 | L22: =VLOOKUP('Utility Group'!$B17,vldatabase,24,FALSE) -> A | M22: =VLOOKUP(L22,'Ordinal Ratings'!E$8:F$18,2,FALSE) -> 3 | O22: =VLOOKUP('Utility Group'!$B17,vldatabase,23,FALSE) -> 0.8 | Q22: =VLOOKUP('Utility Group'!$B17,vldatabase,28,FALSE) -> 4000
A23: 16 | B23: =VLOOKUP('Utility Group'!$B18,vldatabase,2,FALSE) -> IDACORP, Inc. | D23: =VLOOKUP('Utility Group'!$B18,vldatabase,26,FALSE) -> BBB | E23: =VLOOKUP(D23,'Ordinal Ratings'!A$8:C$30,2,FALSE) -> 9 | G23: =VLOOKUP('Utility Group'!$B18,vldatabase,27,FALSE) -> Baa1 | H23: =VLOOKUP(G23,'Ordinal Ratings'!I$9:K$28,2,FALSE) -> 8 | J23: =VLOOKUP('Utility Group'!$B18,vldatabase,22,FALSE) -> 2 | L23: =VLOOKUP('Utility Group'!$B18,vldatabase,24,FALSE) -> A | M23: =VLOOKUP(L23,'Ordinal Ratings'!E$8:F$18,2,FALSE) -> 3 | O23: =VLOOKUP('Utility Group'!$B18,vldatabase,23,FALSE) -> 0.8 | Q23: =VLOOKUP('Utility Group'!$B18,vldatabase,28,FALSE) -> 4600
A24: 17 | B24: =VLOOKUP('Utility Group'!$B19,vldatabase,2,FALSE) -> NorthWestern Corp. | D24: =VLOOKUP('Utility Group'!$B19,vldatabase,26,FALSE) -> BBB | E24: =VLOOKUP(D24,'Ordinal Ratings'!A$8:C$30,2,FALSE) -> 9 | G24: =VLOOKUP('Utility Group'!$B19,vldatabase,27,FALSE) -> Baa2 | H24: =VLOOKUP(G24,'Ordinal Ratings'!I$9:K$28,2,FALSE) -> 9 | J24: =VLOOKUP('Utility Group'!$B19,vldatabase,22,FALSE) -> 2 | L24: =VLOOKUP('Utility Group'!$B19,vldatabase,24,FALSE) -> B++ | M24: =VLOOKUP(L24,'Ordinal Ratings'!E$8:F$18,2,FALSE) -> 4 | O24: =VLOOKUP('Utility Group'!$B19,vldatabase,23,FALSE) -> 0.9 | Q24: =VLOOKUP('Utility Group'!$B19,vldatabase,28,FALSE) -> 2700
A25: 18 | B25: =VLOOKUP('Utility Group'!$B20,vldatabase,2,FALSE) -> OGE Energy Corp. | D25: =VLOOKUP('Utility Group'!$B20,vldatabase,26,FALSE) -> BBB+ | E25: =VLOOKUP(D25,'Ordinal Ratings'!A$8:C$30,2,FALSE) -> 8 | G25: =VLOOKUP('Utility Group'!$B20,vldatabase,27,FALSE) -> Baa1 | H25: =VLOOKUP(G25,'Ordinal Ratings'!I$9:K$28,2,FALSE) -> 8 | J25: =VLOOKUP('Utility Group'!$B20,vldatabase,22,FALSE) -> 2 | L25: =VLOOKUP('Utility Group'!$B20,vldatabase,24,FALSE) -> A | M25: =VLOOKUP(L25,'Ordinal Ratings'!E$8:F$18,2,FALSE) -> 3 | O25: =VLOOKUP('Utility Group'!$B20,vldatabase,23,FALSE) -> 1.05 | Q25: =VLOOKUP('Utility Group'!$B20,vldatabase,28,FALSE) -> 6400
A26: 19 | B26: =VLOOKUP('Utility Group'!$B21,vldatabase,2,FALSE) -> Otter Tail Corp. | D26: =VLOOKUP('Utility Group'!$B21,vldatabase,26,FALSE) -> BBB | E26: =VLOOKUP(D26,'Ordinal Ratings'!A$8:C$30,2,FALSE) -> 9 | G26: =VLOOKUP('Utility Group'!$B21,vldatabase,27,FALSE) -> Baa2 | H26: =VLOOKUP(G26,'Ordinal Ratings'!I$9:K$28,2,FALSE) -> 9 | J26: =VLOOKUP('Utility Group'!$B21,vldatabase,22,FALSE) -> 2 | L26: =VLOOKUP('Utility Group'!$B21,vldatabase,24,FALSE) -> A | M26: =VLOOKUP(L26,'Ordinal Ratings'!E$8:F$18,2,FALSE) -> 3 | O26: =VLOOKUP('Utility Group'!$B21,vldatabase,23,FALSE) -> 0.85 | Q26: =VLOOKUP('Utility Group'!$B21,vldatabase,28,FALSE) -> 1600
A27: 20 | B27: =VLOOKUP('Utility Group'!$B22,vldatabase,2,FALSE) -> PNM Resources | D27: =VLOOKUP('Utility Group'!$B22,vldatabase,26,FALSE) -> BBB | E27: =VLOOKUP(D27,'Ordinal Ratings'!A$8:C$30,2,FALSE) -> 9 | G27: =VLOOKUP('Utility Group'!$B22,vldatabase,27,FALSE) -> Baa3 | H27: =VLOOKUP(G27,'Ordinal Ratings'!I$9:K$28,2,FALSE) -> 10 | J27: =VLOOKUP('Utility Group'!$B22,vldatabase,22,FALSE) -> 3 | L27: =VLOOKUP('Utility Group'!$B22,vldatabase,24,FALSE) -> B+ | M27: =VLOOKUP(L27,'Ordinal Ratings'!E$8:F$18,2,FALSE) -> 5 | O27: =VLOOKUP('Utility Group'!$B22,vldatabase,23,FALSE) -> 0.95 | Q27: =VLOOKUP('Utility Group'!$B22,vldatabase,28,FALSE) -> 3100
A28: 21 | B28: =VLOOKUP('Utility Group'!$B23,vldatabase,2,FALSE) -> Sempra Energy | D28: =VLOOKUP('Utility Group'!$B23,vldatabase,26,FALSE) -> BBB+ | E28: =VLOOKUP(D28,'Ordinal Ratings'!A$8:C$30,2,FALSE) -> 8 | G28: =VLOOKUP('Utility Group'!$B23,vldatabase,27,FALSE) -> Baa2 | H28: =VLOOKUP(G28,'Ordinal Ratings'!I$9:K$28,2,FALSE) -> 9 | J28: =VLOOKUP('Utility Group'!$B23,vldatabase,22,FALSE) -> 2 | L28: =VLOOKUP('Utility Group'!$B23,vldatabase,24,FALSE) -> A | M28: =VLOOKUP(L28,'Ordinal Ratings'!E$8:F$18,2,FALSE) -> 3 | O28: =VLOOKUP('Utility Group'!$B23,vldatabase,23,FALSE) -> 0.95 | Q28: =VLOOKUP('Utility Group'!$B23,vldatabase,28,FALSE) -> 35000
B30: Average | D30: =VLOOKUP(E30,'Ordinal Ratings'!$B$8:$C$28,2,FALSE) -> BBB | E30: =ROUND(AVERAGE(E8:E28),0) -> 9 | G30: =VLOOKUP(H30,'Ordinal Ratings'!$J$8:$K$28,2,FALSE) -> Baa2 | H30: =ROUND(AVERAGE(H8:H28),0) -> 9 | J30: =AVERAGE(J8:J28) -> 2.25 | L30: =VLOOKUP(M30,'Ordinal Ratings'!$F$8:$G$17,2,FALSE) -> B++ | M30: =ROUND(AVERAGE(M8:M28),0) -> 4 | O30: =AVERAGE(O8:O28) -> 0.8904761905 | Q30: =AVERAGE(Q8:Q28) -> 12742.58764
A33: (a) | B33: ='Electric Utility Data'!B51 -> Issuer credit rating from www.standardandpoors.com (retrieved Oct. 5, 2020).
A34: (b) | B34: ='Electric Utility Data'!B52 -> Long-term rating from www.moodys.com (retrieved Oct. 5, 2020).
A35: (c) | B35: ='Utility Group Criteria'!B50 -> The Value Line Investment Survey (Jul. 24, Aug. 14 and Sep. 11, 2020).
A36: (d) | B36: ='Electric Utility Data'!B53 -> www.finance.yahoo.com (retreived Oct. 5, 2020).
A37: RISK MEASURES
A39: NON-UTILITY GROUP
D40: (a) | G40: (b) | J40: (c) | Q40: (c)
J41: Value Line
D42: Credit Ratings | J42: Safety | L42: Financial | Q42: Market
B43: Company | D43: S&P | G43: Moody's | J43: Rank | L43: Strength | O43: Beta | Q43: Cap
A44: 1 | B44: Air Products & Chem. | D44: A | E44: =VLOOKUP(D44,'Ordinal Ratings'!A$8:B$30,2,FALSE) -> 6 | G44: A2 | H44: =VLOOKUP(G44,'Ordinal Ratings'!I$8:J$26,2,FALSE) -> 6 | J44: 1 | L44: A++ | M44: =VLOOKUP(L44,'Ordinal Ratings'!E$8:F$17,2,FALSE) -> 1 | O44: 0.95 | Q44: 64200 | T44: APD
A45: =A44+1 -> 2 | B45: Amdocs Ltd. | D45: BBB | E45: =VLOOKUP(D45,'Ordinal Ratings'!A$8:B$30,2,FALSE) -> 9 | G45: Baa2 | H45: =VLOOKUP(G45,'Ordinal Ratings'!I$8:J$26,2,FALSE) -> 9 | J45: 1 | L45: A | M45: =VLOOKUP(L45,'Ordinal Ratings'!E$8:F$17,2,FALSE) -> 3 | O45: 0.95 | Q45: 8200 | T45: DOX
A46: 3 | B46: Amgen | D46: A- | E46: =VLOOKUP(D46,'Ordinal Ratings'!A$8:B$30,2,FALSE) -> 7 | G46: Baa1 | H46: =VLOOKUP(G46,'Ordinal Ratings'!I$8:J$26,2,FALSE) -> 8 | J46: 1 | L46: A++ | M46: =VLOOKUP(L46,'Ordinal Ratings'!E$8:F$17,2,FALSE) -> 1 | O46: 0.85 | Q46: 145900 | T46: AMGN
A47: 4 | B47: Amphenol Corp. | D47: BBB+ | E47: =VLOOKUP(D47,'Ordinal Ratings'!A$8:B$30,2,FALSE) -> 8 | G47: Baa1 | H47: =VLOOKUP(G47,'Ordinal Ratings'!I$8:J$26,2,FALSE) -> 8 | J47: 1 | L47: A | M47: =VLOOKUP(L47,'Ordinal Ratings'!E$8:F$17,2,FALSE) -> 3 | O47: 0.95 | Q47: 31600 | T47: APH
A48: 5 | B48: Apple Inc. | D48: AA+ | E48: =VLOOKUP(D48,'Ordinal Ratings'!A$8:B$30,2,FALSE) -> 2 | G48: Aa1 | H48: =VLOOKUP(G48,'Ordinal Ratings'!I$8:J$26,2,FALSE) -> 2 | J48: 1 | L48: A++ | M48: =VLOOKUP(L48,'Ordinal Ratings'!E$8:F$17,2,FALSE) -> 1 | O48: 0.95 | Q48: 1643800 | T48: AAPL
A49: 6 | B49: AT&T Inc. | D49: BBB | E49: =VLOOKUP(D49,'Ordinal Ratings'!A$8:B$30,2,FALSE) -> 9 | G49: Baa2 | H49: =VLOOKUP(G49,'Ordinal Ratings'!I$8:J$26,2,FALSE) -> 9 | J49: 1 | L49: A++ | M49: =VLOOKUP(L49,'Ordinal Ratings'!E$8:F$17,2,FALSE) -> 1 | O49: 0.8 | Q49: 210600 | T49: T
A50: 7 | B50: Baxter Int'l Inc. | D50: A- | E50: =VLOOKUP(D50,'Ordinal Ratings'!A$8:B$30,2,FALSE) -> 7 | G50: Baa1 | H50: =VLOOKUP(G50,'Ordinal Ratings'!I$8:J$26,2,FALSE) -> 8 | J50: 1 | L50: A+ | M50: =VLOOKUP(L50,'Ordinal Ratings'!E$8:F$17,2,FALSE) -> 2 | O50: 0.8 | Q50: 42100 | T50: BAX
A51: 8 | B51: Bristol-Myers Squibb | D51: A+ | E51: =VLOOKUP(D51,'Ordinal Ratings'!A$8:B$30,2,FALSE) -> 5 | G51: A2 | H51: =VLOOKUP(G51,'Ordinal Ratings'!I$8:J$26,2,FALSE) -> 6 | J51: 1 | L51: A++ | M51: =VLOOKUP(L51,'Ordinal Ratings'!E$8:F$17,2,FALSE) -> 1 | O51: 0.85 | Q51: 133800 | T51: BMY
A52: 9 | B52: Brown & Brown | D52: BBB- | E52: =VLOOKUP(D52,'Ordinal Ratings'!A$8:B$30,2,FALSE) -> 10 | G52: Baa3 | H52: =VLOOKUP(G52,'Ordinal Ratings'!I$8:J$26,2,FALSE) -> 10 | J52: 1 | L52: A | M52: =VLOOKUP(L52,'Ordinal Ratings'!E$8:F$17,2,FALSE) -> 3 | O52: 0.95 | Q52: 12900 | T52: BRO
A53: 10 | B53: Brown-Forman 'B' | D53: A- | E53: =VLOOKUP(D53,'Ordinal Ratings'!A$8:B$30,2,FALSE) -> 7 | G53: A1 | H53: =VLOOKUP(G53,'Ordinal Ratings'!I$8:J$26,2,FALSE) -> 5 | J53: 1 | L53: A | M53: =VLOOKUP(L53,'Ordinal Ratings'!E$8:F$17,2,FALSE) -> 3 | O53: 0.9 | Q53: 33100 | T53: BF/B
A54: 11 | B54: Church & Dwight | D54: BBB+ | E54: =VLOOKUP(D54,'Ordinal Ratings'!A$8:B$30,2,FALSE) -> 8 | G54: A3 | H54: =VLOOKUP(G54,'Ordinal Ratings'!I$8:J$26,2,FALSE) -> 7 | J54: 1 | L54: A+ | M54: =VLOOKUP(L54,'Ordinal Ratings'!E$8:F$17,2,FALSE) -> 2 | O54: 0.65 | Q54: 21900 | T54: CHD
A55: 12 | B55: Cisco Systems | D55: AA- | E55: =VLOOKUP(D55,'Ordinal Ratings'!A$8:B$30,2,FALSE) -> 4 | G55: A1 | H55: =VLOOKUP(G55,'Ordinal Ratings'!I$8:J$26,2,FALSE) -> 5 | J55: 1 | L55: A++ | M55: =VLOOKUP(L55,'Ordinal Ratings'!E$8:F$17,2,FALSE) -> 1 | O55: 0.95 | Q55: 197100 | T55: CSCO
A56: 13 | B56: Coca-Cola | D56: A+ | E56: =VLOOKUP(D56,'Ordinal Ratings'!A$8:B$30,2,FALSE) -> 5 | G56: A1 | H56: =VLOOKUP(G56,'Ordinal Ratings'!I$8:J$26,2,FALSE) -> 5 | J56: 1 | L56: A++ | M56: =VLOOKUP(L56,'Ordinal Ratings'!E$8:F$17,2,FALSE) -> 1 | O56: 0.9 | Q56: 206200 | T56: KO
A57: 14 | B57: Colgate-Palmolive | D57: AA- | E57: =VLOOKUP(D57,'Ordinal Ratings'!A$8:B$30,2,FALSE) -> 4 | G57: Aa3 | H57: =VLOOKUP(G57,'Ordinal Ratings'!I$8:J$26,2,FALSE) -> 4 | J57: 1 | L57: A+ | M57: =VLOOKUP(L57,'Ordinal Ratings'!E$8:F$17,2,FALSE) -> 2 | O57: 0.75 | Q57: 65300 | T57: CL
A58: 15 | B58: Comcast Corp. | D58: A- | E58: =VLOOKUP(D58,'Ordinal Ratings'!A$8:B$30,2,FALSE) -> 7 | G58: A3 | H58: =VLOOKUP(G58,'Ordinal Ratings'!I$8:J$26,2,FALSE) -> 7 | J58: 1 | L58: A+ | M58: =VLOOKUP(L58,'Ordinal Ratings'!E$8:F$17,2,FALSE) -> 2 | O58: 0.75 | Q58: 199900 | T58: CMCSA
A59: 16 | B59: Commerce Bancshs. | D59: A- | E59: =VLOOKUP(D59,'Ordinal Ratings'!A$8:B$30,2,FALSE) -> 7 | G59: Baa1 | H59: =VLOOKUP(G59,'Ordinal Ratings'!I$8:J$26,2,FALSE) -> 8 | J59: 1 | L59: A | M59: =VLOOKUP(L59,'Ordinal Ratings'!E$8:F$17,2,FALSE) -> 3 | O59: 0.9 | Q59: 6500 | T59: CBSH
A60: 17 | B60: Costco Wholesale | D60: A+ | E60: =VLOOKUP(D60,'Ordinal Ratings'!A$8:B$30,2,FALSE) -> 5 | G60: Aa3 | H60: =VLOOKUP(G60,'Ordinal Ratings'!I$8:J$26,2,FALSE) -> 4 | J60: 1 | L60: A++ | M60: =VLOOKUP(L60,'Ordinal Ratings'!E$8:F$17,2,FALSE) -> 1 | O60: 0.65 | Q60: 144000 | T60: COST
A61: 18 | B61: CVS Health | D61: BBB | E61: =VLOOKUP(D61,'Ordinal Ratings'!A$8:B$30,2,FALSE) -> 9 | G61: Baa2 | H61: =VLOOKUP(G61,'Ordinal Ratings'!I$8:J$26,2,FALSE) -> 9 | J61: 1 | L61: A++ | M61: =VLOOKUP(L61,'Ordinal Ratings'!E$8:F$17,2,FALSE) -> 1 | O61: 0.9 | Q61: 83800 | T61: CVS
A62: 19 | B62: Danaher Corp. | D62: BBB+ | E62: =VLOOKUP(D62,'Ordinal Ratings'!A$8:B$30,2,FALSE) -> 8 | G62: Baa1 | H62: =VLOOKUP(G62,'Ordinal Ratings'!I$8:J$26,2,FALSE) -> 8 | J62: 1 | L62: A+ | M62: =VLOOKUP(L62,'Ordinal Ratings'!E$8:F$17,2,FALSE) -> 2 | O62: 0.85 | Q62: 140900 | T62: DHR
A63: 20 | B63: Gen'l Mills | D63: BBB | E63: =VLOOKUP(D63,'Ordinal Ratings'!A$8:B$30,2,FALSE) -> 9 | G63: Baa2 | H63: =VLOOKUP(G63,'Ordinal Ratings'!I$8:J$26,2,FALSE) -> 9 | J63: 1 | L63: A+ | M63: =VLOOKUP(L63,'Ordinal Ratings'!E$8:F$17,2,FALSE) -> 2 | O63: 0.7 | Q63: 39300 | T63: GIS
A64: 21 | B64: Hormel Foods | D64: A | E64: =VLOOKUP(D64,'Ordinal Ratings'!A$8:B$30,2,FALSE) -> 6 | G64: A1 | H64: =VLOOKUP(G64,'Ordinal Ratings'!I$8:J$26,2,FALSE) -> 5 | J64: 1 | L64: A+ | M64: =VLOOKUP(L64,'Ordinal Ratings'!E$8:F$17,2,FALSE) -> 2 | O64: 0.55 | Q64: 27400 | T64: HRL
A65: 22 | B65: Intel Corp. | D65: A+ | E65: =VLOOKUP(D65,'Ordinal Ratings'!A$8:B$30,2,FALSE) -> 5 | G65: A1 | H65: =VLOOKUP(G65,'Ordinal Ratings'!I$8:J$26,2,FALSE) -> 5 | J65: 1 | L65: A++ | M65: =VLOOKUP(L65,'Ordinal Ratings'!E$8:F$17,2,FALSE) -> 1 | O65: 0.9 | Q65: 204400 | T65: INTC
A66: 23 | B66: Int'l Flavors & Frag. | D66: BBB | E66: =VLOOKUP(D66,'Ordinal Ratings'!A$8:B$30,2,FALSE) -> 9 | G66: Baa3 | H66: =VLOOKUP(G66,'Ordinal Ratings'!I$8:J$26,2,FALSE) -> 10 | J66: 1 | L66: A+ | M66: =VLOOKUP(L66,'Ordinal Ratings'!E$8:F$17,2,FALSE) -> 2 | O66: 0.9 | Q66: 13700 | T66: IFF
A67: 24 | B67: Johnson & Johnson | D67: AAA | E67: =VLOOKUP(D67,'Ordinal Ratings'!A$8:B$30,2,FALSE) -> 1 | G67: Aaa | H67: =VLOOKUP(G67,'Ordinal Ratings'!I$8:J$26,2,FALSE) -> 1 | J67: 1 | L67: A++ | M67: =VLOOKUP(L67,'Ordinal Ratings'!E$8:F$17,2,FALSE) -> 1 | O67: 0.85 | Q67: 388000 | T67: JNJ
A68: 25 | B68: Kellogg | D68: BBB | E68: =VLOOKUP(D68,'Ordinal Ratings'!A$8:B$30,2,FALSE) -> 9 | G68: Baa2 | H68: =VLOOKUP(G68,'Ordinal Ratings'!I$8:J$26,2,FALSE) -> 9 | J68: 1 | L68: A+ | M68: =VLOOKUP(L68,'Ordinal Ratings'!E$8:F$17,2,FALSE) -> 2 | O68: 0.65 | Q68: 24300 | T68: K
A69: 26 | B69: Kimberly-Clark | D69: A | E69: =VLOOKUP(D69,'Ordinal Ratings'!A$8:B$30,2,FALSE) -> 6 | G69: A2 | H69: =VLOOKUP(G69,'Ordinal Ratings'!I$8:J$26,2,FALSE) -> 6 | J69: 1 | L69: A+ | M69: =VLOOKUP(L69,'Ordinal Ratings'!E$8:F$17,2,FALSE) -> 2 | O69: 0.8 | Q69: 51800 | T69: KMB
A70: 27 | B70: Lilly (Eli) | D70: A+ | E70: =VLOOKUP(D70,'Ordinal Ratings'!A$8:B$30,2,FALSE) -> 5 | G70: A2 | H70: =VLOOKUP(G70,'Ordinal Ratings'!I$8:J$26,2,FALSE) -> 6 | J70: 1 | L70: A++ | M70: =VLOOKUP(L70,'Ordinal Ratings'!E$8:F$17,2,FALSE) -> 1 | O70: 0.75 | Q70: 154800 | T70: LLY
A71: 28 | B71: Lockheed Martin | D71: A- | E71: =VLOOKUP(D71,'Ordinal Ratings'!A$8:B$30,2,FALSE) -> 7 | G71: A3 | H71: =VLOOKUP(G71,'Ordinal Ratings'!I$8:J$26,2,FALSE) -> 7 | J71: 1 | L71: A++ | M71: =VLOOKUP(L71,'Ordinal Ratings'!E$8:F$17,2,FALSE) -> 1 | O71: 0.95 | Q71: 108300 | T71: LMT
A72: 29 | B72: Marsh & McLennan | D72: A- | E72: =VLOOKUP(D72,'Ordinal Ratings'!A$8:B$30,2,FALSE) -> 7 | G72: Baa1 | H72: =VLOOKUP(G72,'Ordinal Ratings'!I$8:J$26,2,FALSE) -> 8 | J72: 1 | L72: A | M72: =VLOOKUP(L72,'Ordinal Ratings'!E$8:F$17,2,FALSE) -> 3 | O72: 0.95 | Q72: 58000 | T72: MMC
A73: 30 | B73: McCormick & Co. | D73: BBB | E73: =VLOOKUP(D73,'Ordinal Ratings'!A$8:B$30,2,FALSE) -> 9 | G73: Baa2 | H73: =VLOOKUP(G73,'Ordinal Ratings'!I$8:J$26,2,FALSE) -> 9 | J73: 1 | L73: A+ | M73: =VLOOKUP(L73,'Ordinal Ratings'!E$8:F$17,2,FALSE) -> 2 | O73: 0.85 | Q73: 25900 | T73: MKC
A74: 31 | B74: McDonald's Corp. | D74: BBB+ | E74: =VLOOKUP(D74,'Ordinal Ratings'!A$8:B$30,2,FALSE) -> 8 | G74: Baa1 | H74: =VLOOKUP(G74,'Ordinal Ratings'!I$8:J$26,2,FALSE) -> 8 | J74: 1 | L74: A++ | M74: =VLOOKUP(L74,'Ordinal Ratings'!E$8:F$17,2,FALSE) -> 1 | O74: 0.95 | Q74: 152000 | T74: MCD
A75: 32 | B75: Merck & Co. | D75: AA- | E75: =VLOOKUP(D75,'Ordinal Ratings'!A$8:B$30,2,FALSE) -> 4 | G75: A1 | H75: =VLOOKUP(G75,'Ordinal Ratings'!I$8:J$26,2,FALSE) -> 5 | J75: 1 | L75: A++ | M75: =VLOOKUP(L75,'Ordinal Ratings'!E$8:F$17,2,FALSE) -> 1 | O75: 0.85 | Q75: 200300 | T75: MRK
A76: 33 | B76: Microsoft Corp. | D76: AAA | E76: =VLOOKUP(D76,'Ordinal Ratings'!A$8:B$30,2,FALSE) -> 1 | G76: Aaa | H76: =VLOOKUP(G76,'Ordinal Ratings'!I$8:J$26,2,FALSE) -> 1 | J76: 1 | L76: A++ | M76: =VLOOKUP(L76,'Ordinal Ratings'!E$8:F$17,2,FALSE) -> 1 | O76: 0.95 | Q76: 1543000 | T76: MSFT
A77: 34 | B77: Northrop Grumman | D77: BBB | E77: =VLOOKUP(D77,'Ordinal Ratings'!A$8:B$30,2,FALSE) -> 9 | G77: Baa1 | H77: =VLOOKUP(G77,'Ordinal Ratings'!I$8:J$26,2,FALSE) -> 8 | J77: 1 | L77: A++ | M77: =VLOOKUP(L77,'Ordinal Ratings'!E$8:F$17,2,FALSE) -> 1 | O77: 0.85 | Q77: 52600 | T77: NOC
A78: 35 | B78: Oracle Corp. | D78: A | E78: =VLOOKUP(D78,'Ordinal Ratings'!A$8:B$30,2,FALSE) -> 6 | G78: A3 | H78: =VLOOKUP(G78,'Ordinal Ratings'!I$8:J$26,2,FALSE) -> 7 | J78: 1 | L78: A++ | M78: =VLOOKUP(L78,'Ordinal Ratings'!E$8:F$17,2,FALSE) -> 1 | O78: 0.85 | Q78: 170000 | T78: ORCL
A79: 36 | B79: PepsiCo, Inc. | D79: A+ | E79: =VLOOKUP(D79,'Ordinal Ratings'!A$8:B$30,2,FALSE) -> 5 | G79: A1 | H79: =VLOOKUP(G79,'Ordinal Ratings'!I$8:J$26,2,FALSE) -> 5 | J79: 1 | L79: A++ | M79: =VLOOKUP(L79,'Ordinal Ratings'!E$8:F$17,2,FALSE) -> 1 | O79: 0.85 | Q79: 191000 | T79: PEP
A80: 37 | B80: Pfizer, Inc. | D80: AA- | E80: =VLOOKUP(D80,'Ordinal Ratings'!A$8:B$30,2,FALSE) -> 4 | G80: A1 | H80: =VLOOKUP(G80,'Ordinal Ratings'!I$8:J$26,2,FALSE) -> 5 | J80: 1 | L80: A++ | M80: =VLOOKUP(L80,'Ordinal Ratings'!E$8:F$17,2,FALSE) -> 1 | O80: 0.85 | Q80: 218000 | T80: PFE
A81: 38 | B81: Procter & Gamble | D81: AA- | E81: =VLOOKUP(D81,'Ordinal Ratings'!A$8:B$30,2,FALSE) -> 4 | G81: Aa3 | H81: =VLOOKUP(G81,'Ordinal Ratings'!I$8:J$26,2,FALSE) -> 4 | J81: 1 | L81: A++ | M81: =VLOOKUP(L81,'Ordinal Ratings'!E$8:F$17,2,FALSE) -> 1 | O81: 0.75 | Q81: 317600 | T81: PG
A82: 39 | B82: Public Storage | D82: A | E82: =VLOOKUP(D82,'Ordinal Ratings'!A$8:B$30,2,FALSE) -> 6 | G82: A2 | H82: =VLOOKUP(G82,'Ordinal Ratings'!I$8:J$26,2,FALSE) -> 6 | J82: 1 | L82: A+ | M82: =VLOOKUP(L82,'Ordinal Ratings'!E$8:F$17,2,FALSE) -> 2 | O82: 0.85 | Q82: 34300 | R82: 46176.47 | T82: PSA
A83: 40 | B83: Texas Instruments | D83: A+ | E83: =VLOOKUP(D83,'Ordinal Ratings'!A$8:B$30,2,FALSE) -> 5 | G83: A1 | H83: =VLOOKUP(G83,'Ordinal Ratings'!I$8:J$26,2,FALSE) -> 5 | J83: 1 | L83: A++ | M83: =VLOOKUP(L83,'Ordinal Ratings'!E$8:F$17,2,FALSE) -> 1 | O83: 0.85 | Q83: 120500 | T83: TXN
A84: 41 | B84: Travelers Cos. | D84: A | E84: =VLOOKUP(D84,'Ordinal Ratings'!A$8:B$30,2,FALSE) -> 6 | G84: A2 | H84: =VLOOKUP(G84,'Ordinal Ratings'!I$8:J$26,2,FALSE) -> 6 | J84: 1 | L84: A++ | M84: =VLOOKUP(L84,'Ordinal Ratings'!E$8:F$17,2,FALSE) -> 1 | O84: 0.95 | Q84: 29500 | R84: 140074.2 | T84: TRV
A85: 42 | B85: United Parcel Serv. | D85: A- | E85: =VLOOKUP(D85,'Ordinal Ratings'!A$8:B$30,2,FALSE) -> 7 | G85: A2 | H85: =VLOOKUP(G85,'Ordinal Ratings'!I$8:J$26,2,FALSE) -> 6 | J85: 1 | L85: A+ | M85: =VLOOKUP(L85,'Ordinal Ratings'!E$8:F$17,2,FALSE) -> 2 | O85: 0.8 | Q85: 138000 | T85: UPS
A86: 43 | B86: Verizon Communic. | D86: BBB+ | E86: =VLOOKUP(D86,'Ordinal Ratings'!A$8:B$30,2,FALSE) -> 8 | G86: Baa1 | H86: =VLOOKUP(G86,'Ordinal Ratings'!I$8:J$26,2,FALSE) -> 8 | J86: 1 | L86: A++ | M86: =VLOOKUP(L86,'Ordinal Ratings'!E$8:F$17,2,FALSE) -> 1 | O86: 0.65 | Q86: 237700 | T86: VZ
A87: 44 | B87: Walmart Inc. | D87: AA | E87: =VLOOKUP(D87,'Ordinal Ratings'!A$8:B$30,2,FALSE) -> 3 | G87: Aa2 | H87: =VLOOKUP(G87,'Ordinal Ratings'!I$8:J$26,2,FALSE) -> 3 | J87: 1 | L87: A++ | M87: =VLOOKUP(L87,'Ordinal Ratings'!E$8:F$17,2,FALSE) -> 1 | O87: 0.6 | Q87: 370100 | T87: WMT
A88: 45 | B88: Waste Management | D88: A- | E88: =VLOOKUP(D88,'Ordinal Ratings'!A$8:B$30,2,FALSE) -> 7 | G88: Baa1 | H88: =VLOOKUP(G88,'Ordinal Ratings'!I$8:J$26,2,FALSE) -> 8 | J88: 1 | L88: A | M88: =VLOOKUP(L88,'Ordinal Ratings'!E$8:F$17,2,FALSE) -> 3 | O88: 0.8 | Q88: 47200 | T88: WM
B90: Average | D90: =VLOOKUP(E90,'Ordinal Ratings'!$B$8:$C$28,2,FALSE) -> A | E90: =ROUND(AVERAGE(E44:E88),0) -> 6 | G90: =VLOOKUP(H90,'Ordinal Ratings'!$J$8:$K$28,2,FALSE) -> A2 | H90: =ROUND(AVERAGE(H44:H88),0) -> 6 | J90: =AVERAGE(J44:J88) -> 1 | L90: =VLOOKUP(M90,'Ordinal Ratings'!$F$8:$G$17,2,FALSE) -> A+ | M90: =ROUND(AVERAGE(M44:M88),0) -> 2 | O90: =AVERAGE(O44:O88) -> 0.8333333333 | Q90: =AVERAGE(Q44:Q88) -> 184655.5556
A93: (a) | B93: www.standardandpoors.com (retrieved Aug 21, 2020).
A94: (b) | B94: www.moodys.com (retrieved Aug. 21, 2020).
A95: (c) | B95: The Value Line Investment Survey (various editions as of Aug. 21, 2020).

Sheet Table 1 - Fig. 1
C4: From Exh. AMM-4 | E4: Graph Data
B5: =B4+1 -> 1 | C5: ='4'!F7 -> 0.09258542232 | E5: 1 | F5: 0.08820983433 | H5: 0.099
B6: =B5+1 -> 2 | C6: ='4'!F8 -> 0.09432777849 | E6: =E5+1 -> 2 | F6: 0.08832220454 | H6: 0.099
B7: 3 | C7: ='4'!F9 -> 0.09301042617 | E7: =E6+1 -> 3 | F7: 0.09258542232 | H7: 0.099
B8: 4 | C8: ='4'!F10 -> 0.08820983433 | E8: 4 | F8: 0.0927289 | H8: 0.099
B9: 5 | C9: ='4'!H7 -> 0.1043435757 | E9: 5 | F9: 0.09301042617 | H9: 0.099
B10: 6 | C10: ='4'!H8 -> 0.09779529078 | E10: 6 | F10: 0.09432777849 | H10: 0.099
B11: 7 | C11: ='4'!H9 -> 0.1007628228 | E11: 7 | F11: 0.09779529078 | H11: 0.099
B12: 8 | C12: ='4'!H10 -> 0.08832220454 | E12: 8 | F12: 0.1007628228 | H12: 0.099
B13: 9 | C13: ='4'!F12 -> 0.1117619048 | E13: 9 | F13: 0.1009507 | H13: 0.099
B14: 10 | C14: ='4'!H12 -> 0.1155 | E14: 10 | F14: 0.1030909931 | H14: 0.099
B15: 11 | C15: ='4'!F14 -> 0.1143333333 | E15: 11 | F15: 0.1043435757 | H15: 0.099
B16: 12 | C16: ='4'!H14 -> 0.1175 | E16: 12 | F16: 0.1085757189 | H16: 0.099
B17: 13 | C17: ='4'!G17 -> 0.0927289 | E17: 13 | F17: 0.1117619048 | H17: 0.099
B18: 14 | C18: ='4'!G18 -> 0.1009507 | E18: 14 | F18: 0.1143333333 | H18: 0.099
B19: 15 | C19: ='4'!F20 -> 0.1030909931 | E19: 15 | F19: 0.1155 | H19: 0.099
B20: 16 | C20: ='4'!H20 -> 0.1085757189 | E20: 16 | F20: 0.1175 | H20: 0.099
A32: DCF | D32: Average | F32: Midpoint
B33: Value Line | D33: ='4'!F7 -> 0.09258542232 | E33: 3 | F33: ='4'!H7 -> 0.1043435757 | G33: 11
B34: IBES | D34: ='4'!F8 -> 0.09432777849 | E34: 6 | F34: ='4'!H8 -> 0.09779529078 | G34: 7
B35: Zacks | D35: ='4'!F9 -> 0.09301042617 | E35: 5 | F35: ='4'!H9 -> 0.1007628228 | G35: 8
B36: Internal br + sv | D36: ='4'!F10 -> 0.08820983433 | E36: 1 | F36: ='4'!H10 -> 0.08832220454 | G36: 2
B37: Internal br + sv
A38: CAPM | D38: ='4'!F12 -> 0.1117619048 | E38: 13 | F38: ='4'!H12 -> 0.1155 | G38: 15
B39: Projected Bond Yield | E39: 28
A40: Empirical CAPM | D40: ='4'!F14 -> 0.1143333333 | E40: 14 | F40: ='4'!H14 -> 0.1175 | G40: 16
B41: Projected Bond Yield | D41: 0.1116209375 | E41: 35 | F41: 0.11196375 | G41: 36
A42: Utility Risk Premium
B43: Current Bond Yields | D43: 9.3% 4
B44: Projected Bond Yields | D44: 10.1% 9
A46: Expected Earnings | D46: ='4'!F20 -> 0.1030909931 | E46: 10 | F46: ='4'!H20 -> 0.1085757189 | G46: 12
A48: Cost of Equity Recommendation
B49: Cost of Equity Range | D49: ='4'!F24 -> 0.093 | E49: -- | F49: ='4'!H24 -> 0.107
A51: Flotation Cost Adjustment | D51: ='4'!G29 -> 0.001156714316
A53: Recommended ROE Range | D53: =D49+D51 -> 0.09415671432 | E53: -- | F53: =F49+D51 -> 0.1081567143
A56: Note: Footnotes correspond to rank order in the subsequent figure.

Sheet Tables 2 4
E4: Value Line
B5: Credit Rating | E5: Safety | F5: Financial
B6: S&P | C6: Moody's | E6: Rank | F6: Strength | G6: Beta
A7: Utility Group | B7: ='Proxy Group Risk Measures'!D30 -> BBB | C7: ='Proxy Group Risk Measures'!G30 -> Baa2 | E7: ='Proxy Group Risk Measures'!J30 -> 2.25 | F7: ='Proxy Group Risk Measures'!L30 -> B++ | G7: ='Proxy Group Risk Measures'!O30 -> 0.8904761905
A8: Avista | B8: ='Proxy Group Risk Measures'!D$12 -> BBB | C8: ='Proxy Group Risk Measures'!G$12 -> Baa2 | E8: ='Proxy Group Risk Measures'!J$12 -> 2 | F8: ='Proxy Group Risk Measures'!L$12 -> B++ | G8: ='Proxy Group Risk Measures'!O$12 -> 0.9
E12: Value Line
B13: Credit Rating | E13: Safety | F13: Financial
B14: S&P | C14: Moody's | E14: Rank | F14: Strength | G14: Beta
A15: Non-Utility Group | B15: ='Proxy Group Risk Measures'!D90 -> A | C15: ='Proxy Group Risk Measures'!G90 -> A2 | E15: ='Proxy Group Risk Measures'!J90 -> 1 | F15: ='Proxy Group Risk Measures'!L90 -> A+ | G15: ='Proxy Group Risk Measures'!O90 -> 0.8333333333
A16: Utility Group | B16: =B7 -> BBB | C16: =C7 -> Baa2 | E16: =E7 -> 2.25 | F16: =F7 -> B++ | G16: =G7 -> 0.8904761905
A17: Avista | B17: ='Proxy Group Risk Measures'!D$11 -> BBB+ | C17: ='Proxy Group Risk Measures'!G$11 -> Baa1 | E17: ='Proxy Group Risk Measures'!J$11 -> 2 | F17: ='Proxy Group Risk Measures'!L$11 -> B++ | G17: ='Proxy Group Risk Measures'!O$12 -> 0.9

Sheet Fig. 2
C5: OTTR | D5: =E5/1000 -> 1.6 | E5: 1600
C6: AVA | D6: 2.4 | E6: 2400
C7: MGEE | D7: 2.4 | E7: 2400
C8: NWE | D8: 2.7 | E8: 2700
C9: ALE | D9: 2.8 | E9: 2800
C10: PNM | D10: 3.1 | E10: 3100
C11: BKH | D11: 3.8 | E11: 3800
C12: POR | D12: 3.8 | E12: 3800
C13: HE | D13: 4 | E13: 4000
C14: IDA | D14: 4.6 | E14: 4600
C15: OGE | D15: 6.4 | E15: 6400
C16: PNW | D16: 8.9 | E16: 8900
C17: AQN | D17: 9.094340522 | E17: 9094.340522
C18: CNP | D18: 11 | E18: 11000
C19: EVRG | D19: 12 | E19: 12000
C20: EMA | D20: 13.1 | E20: 13100
C21: LNT | D21: 13.5 | E21: 13500
C22: AGR | D22: 15 | E22: 15000
C23: FE | D23: 16 | E23: 16000
C24: CMS | D24: 17 | E24: 17000
C25: AEE | D25: 20 | E25: 20000
C26: EIX | D26: 20 | E26: 20000
C27: ETR | D27: 20 | E27: 20000
C28: PPL | D28: 20 | E28: 20000
C29: DTE | D29: 23 | E29: 23000
C30: FTS | D30: 24 | E30: 24000
C31: ED | D31: 25 | E31: 25000
C32: PEG | D32: 28 | E32: 28000
C33: ES | D33: 30 | E33: 30000
C34: WEC | D34: 30 | E34: 30000
C35: XEL | D35: 34 | E35: 34000
C36: SRE | D36: 35 | E36: 35000
C37: EXC | D37: 37 | E37: 37000
C38: AEP | D38: 39 | E38: 39000
C39: SO | D39: 57 | E39: 57000
C40: DUK | D40: 62 | E40: 62000
C41: D | D41: 67 | E41: 67000
C42: NEE | D42: 136 | E42: 136000

Sheet Fig. 3
A1: Date | B1: Total Assets
A2: 2007-08-01 | B2: 870261 | C2: =B2/1000 -> 870.261
A3: 2007-08-08 | B3: 865453 | C3: =B3/1000 -> 865.453
A4: 2007-08-15 | B4: 864931 | C4: 864.931
A5: 2007-08-22 | B5: 862775 | C5: 862.775
A6: 2007-08-29 | B6: 872873 | C6: 872.873
A7: 2007-09-05 | B7: 871156 | C7: 871.156
A8: 2007-09-12 | B8: 886314 | C8: 886.314
A9: 2007-09-19 | B9: 867732 | C9: 867.732
A10: 2007-09-26 | B10: 889900 | C10: 889.9
A11: 2007-10-03 | B11: 869051 | C11: 869.051
A12: 2007-10-10 | B12: 886363 | C12: 886.363
A13: 2007-10-17 | B13: 869509 | C13: 869.509
A14: 2007-10-24 | B14: 881395 | C14: 881.395
A15: 2007-10-31 | B15: 883385 | C15: 883.385
A16: 2007-11-07 | B16: 885724 | C16: 885.724
A17: 2007-11-14 | B17: 889537 | C17: 889.537
A18: 2007-11-21 | B18: 891028 | C18: 891.028
A19: 2007-11-28 | B19: 879417 | C19: 879.417
A20: 2007-12-05 | B20: 882764 | C20: 882.764
A21: 2007-12-12 | B21: 881750 | C21: 881.75
A22: 2007-12-19 | B22: 887983 | C22: 887.983
A23: 2007-12-26 | B23: 890662 | C23: 890.662
A24: 2008-01-02 | B24: 922187 | C24: 922.187
A25: 2008-01-09 | B25: 880754 | C25: 880.754 | I25: https://fred.stlouisfed.org/series/WALCL
A26: 2008-01-16 | B26: 893581 | C26: 893.581
A27: 2008-01-23 | B27: 877253 | C27: 877.253
A28: 2008-01-30 | B28: 900264 | C28: 900.264
A29: 2008-02-06 | B29: 871022 | C29: 871.022
A30: 2008-02-13 | B30: 883005 | C30: 883.005
A31: 2008-02-20 | B31: 878949 | C31: 878.949
A32: 2008-02-27 | B32: 893825 | C32: 893.825
A33: 2008-03-05 | B33: 881208 | C33: 881.208
A34: 2008-03-12 | B34: 896565 | C34: 896.565
A35: 2008-03-19 | B35: 888646 | C35: 888.646
A36: 2008-03-26 | B36: 893965 | C36: 893.965
A37: 2008-04-02 | B37: 883708 | C37: 883.708
A38: 2008-04-09 | B38: 893029 | C38: 893.029
A39: 2008-04-16 | B39: 881904 | C39: 881.904
A40: 2008-04-23 | B40: 885781 | C40: 885.781
A41: 2008-04-30 | B41: 888131 | C41: 888.131
A42: 2008-05-07 | B42: 889228 | C42: 889.228
A43: 2008-05-14 | B43: 880175 | C43: 880.175
A44: 2008-05-21 | B44: 898487 | C44: 898.487
A45: 2008-05-28 | B45: 904054 | C45: 904.054
A46: 2008-06-04 | B46: 895939 | C46: 895.939
A47: 2008-06-11 | B47: 890610 | C47: 890.61
A48: 2008-06-18 | B48: 902304 | C48: 902.304
A49: 2008-06-25 | B49: 892713 | C49: 892.713
A50: 2008-07-02 | B50: 902962 | C50: 902.962
A51: 2008-07-09 | B51: 898034 | C51: 898.034
A52: 2008-07-16 | B52: 910681 | C52: 910.681
A53: 2008-07-23 | B53: 899665 | C53: 899.665
A54: 2008-07-30 | B54: 918625 | C54: 918.625
A55: 2008-08-06 | B55: 901710 | C55: 901.71
A56: 2008-08-13 | B56: 914632 | C56: 914.632
A57: 2008-08-20 | B57: 898611 | C57: 898.611
A58: 2008-08-27 | B58: 909982 | C58: 909.982
A59: 2008-09-03 | B59: 905253 | C59: 905.253
A60: 2008-09-10 | B60: 925725 | C60: 925.725
A61: 2008-09-17 | B61: 995093 | C61: 995.093
A62: 2008-09-24 | B62: 1211825 | C62: 1211.825
A63: 2008-10-01 | B63: 1503989 | C63: 1503.989
A64: 2008-10-08 | B64: 1591587 | C64: 1591.587
A65: 2008-10-15 | B65: 1770809 | C65: 1770.809
A66: 2008-10-22 | B66: 1802602 | C66: 1802.602
A67: 2008-10-29 | B67: 1969086 | C67: =B67/1000 -> 1969.086
A68: 2008-11-05 | B68: 2074205 | C68: 2074.205
A69: 2008-11-12 | B69: 2212852 | C69: 2212.852
A70: 2008-11-19 | B70: 2187137 | C70: 2187.137
A71: 2008-11-26 | B71: 2106117 | C71: 2106.117
A72: 2008-12-03 | B72: 2136924 | C72: 2136.924
A73: 2008-12-10 | B73: 2250012 | C73: 2250.012
A74: 2008-12-17 | B74: 2254983 | C74: 2254.983
A75: 2008-12-24 | B75: 2232311 | C75: 2232.311
A76: 2008-12-31 | B76: 2239457 | C76: 2239.457
A77: 2009-01-07 | B77: 2121439 | C77: 2121.439
A78: 2009-01-14 | B78: 2049714 | C78: 2049.714
A79: 2009-01-21 | B79: 2037112 | C79: 2037.112
A80: 2009-01-28 | B80: 1927082 | C80: 1927.082
A81: 2009-02-04 | B81: 1851437 | C81: 1851.437
A82: 2009-02-11 | B82: 1843400 | C82: 1843.4
A83: 2009-02-18 | B83: 1915562 | C83: 1915.562
A84: 2009-02-25 | B84: 1916115 | C84: 1916.115
A85: 2009-03-04 | B85: 1901317 | C85: 1901.317
A86: 2009-03-11 | B86: 1899514 | C86: 1899.514
A87: 2009-03-18 | B87: 2066942 | C87: 2066.942
A88: 2009-03-25 | B88: 2071556 | C88: 2071.556
A89: 2009-04-01 | B89: 2078936 | C89: 2078.936
A90: 2009-04-08 | B90: 2088573 | C90: 2088.573
A91: 2009-04-15 | B91: 2186498 | C91: 2186.498
A92: 2009-04-22 | B92: 2196812 | C92: 2196.812
A93: 2009-04-29 | B93: 2066712 | C93: 2066.712
A94: 2009-05-06 | B94: 2079758 | C94: 2079.758
A95: 2009-05-13 | B95: 2196351 | C95: 2196.351
A96: 2009-05-20 | B96: 2181632 | C96: 2181.632
A97: 2009-05-27 | B97: 2080115 | C97: 2080.115
A98: 2009-06-03 | B98: 2077695 | C98: 2077.695
A99: 2009-06-10 | B99: 2052297 | C99: 2052.297
A100: 2009-06-17 | B100: 2072527 | C100: 2072.527
A101: 2009-06-24 | B101: 2025571 | C101: 2025.571
A102: 2009-07-01 | B102: 2005627 | C102: 2005.627
A103: 2009-07-08 | B103: 1992740 | C103: 1992.74
A104: 2009-07-15 | B104: 2072451 | C104: 2072.451
A105: 2009-07-22 | B105: 2039001 | C105: 2039.001
A106: 2009-07-29 | B106: 2000547 | C106: 2000.547
A107: 2009-08-05 | B107: 1989203 | C107: 1989.203
A108: 2009-08-12 | B108: 2014899 | C108: 2014.899
A109: 2009-08-19 | B109: 2060641 | C109: 2060.641
A110: 2009-08-26 | B110: 2074902 | C110: 2074.902
A111: 2009-09-02 | B111: 2083720 | C111: 2083.72
A112: 2009-09-09 | B112: 2087946 | C112: 2087.946
A113: 2009-09-16 | B113: 2139783 | C113: 2139.783
A114: 2009-09-23 | B114: 2158631 | C114: 2158.631
A115: 2009-09-30 | B115: 2141020 | C115: 2141.02
A116: 2009-10-07 | B116: 2138086 | C116: 2138.086
A117: 2009-10-14 | B117: 2192787 | C117: 2192.787
A118: 2009-10-21 | B118: 2201119 | C118: 2201.119
A119: 2009-10-28 | B119: 2161537 | C119: 2161.537
A120: 2009-11-04 | B120: 2165067 | C120: 2165.067
A121: 2009-11-11 | B121: 2135035 | C121: 2135.035
A122: 2009-11-18 | B122: 2208721 | C122: 2208.721
A123: 2009-11-25 | B123: 2206359 | C123: 2206.359
A124: 2009-12-02 | B124: 2204074 | C124: 2204.074
A125: 2009-12-09 | B125: 2186383 | C125: 2186.383
A126: 2009-12-16 | B126: 2235763 | C126: 2235.763
A127: 2009-12-23 | B127: 2235803 | C127: 2235.803
A128: 2009-12-30 | B128: 2234067 | C128: 2234.067
A129: 2010-01-06 | B129: 2235304 | C129: 2235.304
A130: 2010-01-13 | B130: 2291700 | C130: 2291.7
A131: 2010-01-20 | B131: 2251806 | C131: =B131/1000 -> 2251.806
A132: 2010-01-27 | B132: 2246886 | C132: 2246.886
A133: 2010-02-03 | B133: 2249319 | C133: 2249.319
A134: 2010-02-10 | B134: 2256679 | C134: 2256.679
A135: 2010-02-17 | B135: 2277574 | C135: 2277.574
A136: 2010-02-24 | B136: 2286127 | C136: 2286.127
A137: 2010-03-03 | B137: 2280147 | C137: 2280.147
A138: 2010-03-10 | B138: 2282474 | C138: 2282.474
A139: 2010-03-17 | B139: 2307997 | C139: 2307.997
A140: 2010-03-24 | B140: 2313149 | C140: 2313.149
A141: 2010-03-31 | B141: 2307150 | C141: 2307.15
A142: 2010-04-07 | B142: 2307575 | C142: 2307.575
A143: 2010-04-14 | B143: 2339345 | C143: 2339.345
A144: 2010-04-21 | B144: 2337556 | C144: 2337.556
A145: 2010-04-28 | B145: 2330472 | C145: 2330.472
A146: 2010-05-05 | B146: 2326164 | C146: 2326.164
A147: 2010-05-12 | B147: 2336103 | C147: 2336.103
A148: 2010-05-19 | B148: 2350890 | C148: 2350.89
A149: 2010-05-26 | B149: 2334041 | C149: 2334.041
A150: 2010-06-02 | B150: 2336216 | C150: 2336.216
A151: 2010-06-09 | B151: 2331529 | C151: 2331.529
A152: 2010-06-16 | B152: 2344316 | C152: 2344.316
A153: 2010-06-23 | B153: 2344497 | C153: 2344.497
A154: 2010-06-30 | B154: 2330851 | C154: 2330.851
A155: 2010-07-07 | B155: 2332017 | C155: 2332.017
A156: 2010-07-14 | B156: 2340717 | C156: 2340.717
A157: 2010-07-21 | B157: 2332322 | C157: 2332.322
A158: 2010-07-28 | B158: 2325298 | C158: 2325.298
A159: 2010-08-04 | B159: 2326479 | C159: 2326.479
A160: 2010-08-11 | B160: 2327533 | C160: 2327.533
A161: 2010-08-18 | B161: 2313662 | C161: 2313.662
A162: 2010-08-25 | B162: 2301015 | C162: 2301.015
A163: 2010-09-01 | B163: 2301996 | C163: 2301.996
A164: 2010-09-08 | B164: 2305802 | C164: 2305.802
A165: 2010-09-15 | B165: 2296079 | C165: 2296.079
A166: 2010-09-22 | B166: 2307171 | C166: 2307.171
A167: 2010-09-29 | B167: 2298691 | C167: 2298.691
A168: 2010-10-06 | B168: 2308092 | C168: 2308.092
A169: 2010-10-13 | B169: 2309885 | C169: 2309.885
A170: 2010-10-20 | B170: 2305227 | C170: 2305.227
A171: 2010-10-27 | B171: 2295392 | C171: 2295.392
A172: 2010-11-03 | B172: 2300353 | C172: 2300.353
A173: 2010-11-10 | B173: 2312768 | C173: 2312.768
A174: 2010-11-17 | B174: 2314757 | C174: 2314.757
A175: 2010-11-24 | B175: 2346001 | C175: 2346.001
A176: 2010-12-01 | B176: 2346920 | C176: 2346.92
A177: 2010-12-08 | B177: 2382294 | C177: 2382.294
A178: 2010-12-15 | B178: 2385754 | C178: 2385.754
A179: 2010-12-22 | B179: 2427921 | C179: 2427.921
A180: 2010-12-29 | B180: 2420570 | C180: 2420.57
A181: 2011-01-05 | B181: 2436064 | C181: 2436.064
A182: 2011-01-12 | B182: 2468131 | C182: 2468.131
A183: 2011-01-19 | B183: 2425164 | C183: 2425.164
A184: 2011-01-26 | B184: 2443527 | C184: 2443.527
A185: 2011-02-02 | B185: 2469419 | C185: 2469.419
A186: 2011-02-09 | B186: 2500481 | C186: 2500.481
A187: 2011-02-16 | B187: 2508868 | C187: 2508.868
A188: 2011-02-23 | B188: 2533221 | C188: 2533.221
A189: 2011-03-02 | B189: 2545119 | C189: 2545.119
A190: 2011-03-09 | B190: 2577076 | C190: 2577.076
A191: 2011-03-16 | B191: 2583046 | C191: 2583.046
A192: 2011-03-23 | B192: 2601341 | C192: 2601.341
A193: 2011-03-30 | B193: 2622523 | C193: 2622.523
A194: 2011-04-06 | B194: 2648676 | C194: 2648.676
A195: 2011-04-13 | B195: 2665408 | C195: =B195/1000 -> 2665.408
A196: 2011-04-20 | B196: 2685782 | C196: 2685.782
A197: 2011-04-27 | B197: 2690985 | C197: 2690.985
A198: 2011-05-04 | B198: 2718757 | C198: 2718.757
A199: 2011-05-11 | B199: 2744498 | C199: 2744.498
A200: 2011-05-18 | B200: 2758009 | C200: 2758.009
... 489 more rows

Sheet Exhibit List
A1: Tab | B1: Designation | C1: Title I | D1: Title II
A2: 4 | B2: Exh. AMM-4 | C2: ROE ANALYSIS | D2: SUMMARY OF RESULTS
A3: 5 (1) | B3: Exh. AMM-5 | C3: CAPITAL STRUCTURE | D3: UTILITY GROUP
A4: 5 (2-3) | B4: Exh. AMM-5 | C4: CAPITAL STRUCTURE | D4: ELECTRIC GROUP OPERATING SUBSIDIARIES
A5: 6 (1) | B5: Exh. AMM-6 | C5: DCF MODEL - UTILITY GROUP | D5: DIVIDEND YIELD
A6: 6 (2) | B6: Exh. AMM-6 | C6: DCF MODEL - UTILITY GROUP | D6: GROWTH RATES
A7: 6 (3) | B7: Exh. AMM-6 | C7: DCF MODEL - UTILITY GROUP | D7: DCF COST OF EQUITY ESTIMATES
A8: 6 (4) | B8: Exh. AMM-6 | C8: DCF MODEL - UTILITY GROUP | D8: LOW-END THRESHOLD ADJUSTMENTS
A9: 7 | B9: Exh. AMM-7 | C9: DCF MODEL - UTILITY GROUP | D9: BR+SV GROWTH RATE
A10: 8 | B10: Exh. AMM-8 | C10: CAPM | D10: UTILITY GROUP
A11: 9 | B11: Exh. AMM-9 | C11: EMPIRICAL CAPM | D11: UTILITY GROUP
A12: 10 (1) | B12: Exh. AMM-10 | C12: ELECTRIC UTILITY RISK PREMIUM | D12: CURRENT BOND YIELD
A13: 10 (2) | B13: Exh. AMM-10 | C13: ELECTRIC UTILITY RISK PREMIUM | D13: PROJECTED BOND YIELD
A14: 10 (3) | B14: Exh. AMM-10 | C14: ELECTRIC UTILITY RISK PREMIUM | D14: AUTHORIZED RETURNS
A15: 10 (4) | B15: Exh. AMM-10 | C15: ELECTRIC UTILITY RISK PREMIUM | D15: REGRESSION RESULTS
A16: 11 | B16: Exh. AMM-11 | C16: EXPECTED EARNINGS APPROACH | D16: UTILITY GROUP
A17: 12 (1) | B17: Exh. AMM-12 | C17: DCF MODEL - NON-UTILITY GROUP | D17: DIVIDEND YIELD
A18: 12 (2) | B18: Exh. AMM-12 | C18: DCF MODEL - NON-UTILITY GROUP | D18: GROWTH RATES
A19: 12 (3) | B19: Exh. AMM-12 | C19: DCF MODEL - NON-UTILITY GROUP | D19: DCF COST OF EQUITY ESTIMATES
A20: 13 | B20: Exh. AMM-13 | C20: FLOTATION COST STUDY | D20: ELECTRIC & GAS UTILITIES
A21: 14 (1) | B21: Exh. AMM-14 | C21: REGULATORY MECHANISMS | D21: UTILITY GROUP
A22: 14 (2-4) | B22: Exh. AMM-14 | C22: REGULATORY MECHANISMS | D22: UTILITY GROUP OPERATING COS.

Sheet AMM-3 Fig. 1
C2: Return
C9: Rf
D10: Low beta assets | G10: High beta assets
C12: 0
F13: 1 | I13: Beta

Sheet AMM-3 Fig. 2

Sheet AMM-3 Table 4
F4: Average | G4: Change
E5: ='Bond Yields'!B14 -> Sep. 2020 | F5: ='Bond Yields'!O50 -> 2021-25 | G5: Basis Pts
C6: 10-Yr. Treasury | E6: ='Bond Yields'!M14 -> 0.0068 | F6: ='Bond Yields'!O55 -> 0.01909142869 | G6: =(F6-E6)*10000 -> 122.9142869
C7: 30-Yr. Treasury | E7: ='Bond Yields'!K14 -> 0.0142 | F7: ='Bond Yields'!O60 -> 0.02244219617 | G7: =(F7-E7)*10000 -> 82.42196167
C8: Aaa Corporate | E8: ='Bond Yields'!O14 -> 0.0231 | F8: ='Bond Yields'!O65 -> 0.03033333383 | G8: 72.33333833
C9: Aa Utility | E9: ='Bond Yields'!G14 -> 0.0262 | F9: ='Bond Yields'!O69 -> 0.041225 | G9: 150.25
C11: Sources:
C12: ='Bond Yields'!B20 -> Moody's Investors Service.
C13: ='Bond Yields'!B21 -> https://fred.stlouisfed.org/.
C14: ='Bond Yields'!B72&"." -> Value Line Investment Survey, Forecast for the U.S. Economy (Aug. 28, 2020).
C15: ='Bond Yields'!B73&"." -> IHS Markit, Long-Term Macro Forecast - Baseline (Jun. 29, 2020).
C16: ='Bond Yields'!B74&"." -> Energy Information Administration, Annual Energy Outlook 2020 (Jan. 29, 2020).
C17: ='Bond Yields'!B75&"." -> Wolters Kluwer, Blue Chip Financial Forecasts (Jun. 1, 2020).

Sheet 4
A1: ='Exhibit List'!C2 -> ROE ANALYSIS | J1: ='Exhibit List'!B2 -> Exh. AMM-4
J2: Page 1 of 1
A3: ='Exhibit List'!D2 -> SUMMARY OF RESULTS
B5: Method | F5: Average | H5: Midpoint
B6: DCF
C7: Value Line | F7: ='6 (3)'!E31 -> 0.09258542232 | H7: ='6 (3)'!E32 -> 0.1043435757
C8: IBES | F8: ='6 (3)'!G31 -> 0.09432777849 | H8: ='6 (3)'!G32 -> 0.09779529078
C9: Zacks | F9: ='6 (3)'!I31 -> 0.09301042617 | H9: ='6 (3)'!I32 -> 0.1007628228
C10: Internal br + sv | F10: ='6 (3)'!L31 -> 0.08820983433 | H10: ='6 (3)'!L32 -> 0.08832220454
B12: CAPM | F12: ='8'!N31 -> 0.1117619048 | H12: ='8'!N32 -> 0.1155
B14: Empirical CAPM | F14: ='9'!Q31 -> 0.1143333333 | H14: ='9'!Q32 -> 0.1175
B16: Utility Risk Premium
C17: Current Bond Yield | G17: ='10 (1)'!G22 -> 0.0927289
C18: Projected Bond Yields | G18: ='10 (2)'!G22 -> 0.1009507
B20: Expected Earnings | F20: ='11'!H30 -> 0.1030909931 | H20: ='11'!H31 -> 0.1085757189
B23: ROE Recommendation
C24: Cost of Equity Range | F24: 0.093 | G24: -- | H24: 0.107
C26: Flotation Cost Adjustment
D27: Dividend Yield | G27: ='6 (1)'!H30 -> 0.03988670055
D28: Flotation Cost Percentage | G28: =ROUND('13'!U61,3) -> 0.029
E29: Adjustment | G29: =G27*G28 -> 0.001156714316
C32: Recommended ROE Range | F32: =F24+G29 -> 0.09415671432 | G32: -- | H32: =H24+G29 -> 0.1081567143
E33: Midpoint | G33: =AVERAGE(F32,H32) -> 0.1011567143
N38: UTILITY | T38: NON-UTILITY
N39: Growth Rate | O39: Average | Q39: Midpoint | T39: Growth Rate | U39: Average | W39: Midpoint
N40: Value Line | O40: =F7 -> 0.09258542232 | Q40: =H7 -> 0.1043435757 | T40: Value Line | U40: ='12 (3)'!E54 -> 0.1036781531 | W40: ='12 (3)'!E55 -> 0.1036066181
N41: IBES | O41: =F8 -> 0.09432777849 | Q41: =H8 -> 0.09779529078 | T41: IBES | U41: ='12 (3)'!G54 -> 0.09480797338 | W41: ='12 (3)'!G55 -> 0.09929955158
N42: Zacks | O42: =F9 -> 0.09301042617 | Q42: =H9 -> 0.1007628228 | T42: Zacks | U42: ='12 (3)'!I54 -> 0.09637859576 | W42: ='12 (3)'!I55 -> 0.09892347251
N43: br + sv | O43: =F10 -> 0.08820983433 | Q43: =H10 -> 0.08832220454

Sheet 5 (1)
A1: ='Exhibit List'!C3 -> CAPITAL STRUCTURE | O1: ='Exhibit List'!B3 -> Exh. AMM-5
O2: Page 1 of 3
A3: ='Exhibit List'!D3 -> UTILITY GROUP
D6: At Fiscal Year-End 2019 (a) | J6: Value Line Projected (b) | Q6: At Fiscal Year-End 2019
H7: Common | N7: Common | Q7: Long-term | S7: Common
B8: Company | D8: Debt (c) | F8: Preferred | H8: Equity | J8: Debt (c) | L8: Other | N8: Equity | Q8: Debt | R8: Preferred | S8: Stock | T8: Total
A9: =A8+1 -> 1 | B9: =VLOOKUP('Utility Group'!$B3,vldatabase,2,FALSE) -> Algonquin Pwr & Util | D9: =Q9/T9 -> 0.4715339026 | F9: =R9/T9 -> 0.02210227472 | H9: =S9/T9 -> 0.5063638227 | J9: =VLOOKUP('Utility Group'!$B3,vldatabase,13,FALSE) -> n/a | L9: =IF(J9="n/a","n/a",1-J9-N9) -> n/a | N9: =VLOOKUP('Utility Group'!$B3,vldatabase,15,FALSE) -> n/a | Q9: 3931.868 | R9: 184.299 | S9: 4222.296 | T9: =SUM(Q9:S9) -> 8338.463
A10: =A9+1 -> 2 | B10: =VLOOKUP('Utility Group'!$B4,vldatabase,2,FALSE) -> ALLETE | D10: =Q10/T10 -> 0.4086190307 | F10: =R10/T10 -> 0 | H10: =S10/T10 -> 0.5913809693 | J10: =VLOOKUP('Utility Group'!$B4,vldatabase,13,FALSE) -> 0.41 | L10: =IF(J10="n/a","n/a",1-J10-N10) -> 1.110223025e-16 | N10: =VLOOKUP('Utility Group'!$B4,vldatabase,15,FALSE) -> 0.59 | Q10: 1613.8 | R10: 0 | S10: 2335.6 | T10: =SUM(Q10:S10) -> 3949.4
A11: 3 | B11: =VLOOKUP('Utility Group'!$B5,vldatabase,2,FALSE) -> Ameren Corp. | D11: 0.5329194669 | F11: 0 | H11: 0.4670805331 | J11: =VLOOKUP('Utility Group'!$B5,vldatabase,13,FALSE) -> 0.5 | L11: 0.01 | N11: =VLOOKUP('Utility Group'!$B5,vldatabase,15,FALSE) -> 0.49 | Q11: 9357 | R11: 0 | S11: 8201 | T11: 17558
A12: 4 | B12: =VLOOKUP('Utility Group'!$B6,vldatabase,2,FALSE) -> Avangrid, Inc. | D12: 0.3232893366 | F12: 0 | H12: 0.6767106634 | J12: =VLOOKUP('Utility Group'!$B6,vldatabase,13,FALSE) -> 0.425 | L12: 0 | N12: =VLOOKUP('Utility Group'!$B6,vldatabase,15,FALSE) -> 0.575 | Q12: 7446 | R12: 0 | S12: 15586 | T12: 23032
A13: 5 | B13: =VLOOKUP('Utility Group'!$B7,vldatabase,2,FALSE) -> Avista Corp. | D13: 0.4943265437 | F13: 0 | H13: 0.5056734563 | J13: =VLOOKUP('Utility Group'!$B7,vldatabase,13,FALSE) -> 0.51 | L13: 0 | N13: =VLOOKUP('Utility Group'!$B7,vldatabase,15,FALSE) -> 0.49 | Q13: 1895.768 | R13: 0 | S13: 1939.284 | T13: 3835.052
A14: 6 | B14: =VLOOKUP('Utility Group'!$B8,vldatabase,2,FALSE) -> Black Hills Corp. | D14: 0.5607648111 | F14: 0 | H14: 0.4392351889 | J14: =VLOOKUP('Utility Group'!$B8,vldatabase,13,FALSE) -> 0.52 | L14: 0 | N14: =VLOOKUP('Utility Group'!$B8,vldatabase,15,FALSE) -> 0.48 | Q14: 3145.839 | R14: 0 | S14: 2464.069 | T14: 5609.908
A15: 7 | B15: =VLOOKUP('Utility Group'!$B9,vldatabase,2,FALSE) -> CenterPoint Energy | D15: 0.6435698448 | F15: 0 | H15: 0.3564301552 | J15: =VLOOKUP('Utility Group'!$B9,vldatabase,13,FALSE) -> 0.545 | L15: 0.035 | N15: =VLOOKUP('Utility Group'!$B9,vldatabase,15,FALSE) -> 0.42 | Q15: 15093 | R15: 0 | S15: 8359 | T15: 23452
A16: 8 | B16: =VLOOKUP('Utility Group'!$B10,vldatabase,2,FALSE) -> CMS Energy Corp. | D16: 0.7224357566 | F16: 0 | H16: 0.2775642434 | J16: =VLOOKUP('Utility Group'!$B10,vldatabase,13,FALSE) -> 0.68 | L16: -5.551115123e-17 | N16: =VLOOKUP('Utility Group'!$B10,vldatabase,15,FALSE) -> 0.32 | Q16: 13157 | R16: 0 | S16: 5055 | T16: 18212
A17: 9 | B17: =VLOOKUP('Utility Group'!$B11,vldatabase,2,FALSE) -> DTE Energy Co. | D17: 0.5207902111 | F17: 0 | H17: 0.4792097889 | J17: =VLOOKUP('Utility Group'!$B11,vldatabase,13,FALSE) -> 0.585 | L17: 5.551115123e-17 | N17: =VLOOKUP('Utility Group'!$B11,vldatabase,15,FALSE) -> 0.415 | Q17: 36986 | R17: 0 | S17: 34033 | T17: 71019
A18: 10 | B18: =VLOOKUP('Utility Group'!$B12,vldatabase,2,FALSE) -> Edison International | D18: 0.5840888327 | F18: 0 | H18: 0.4159111673 | J18: =VLOOKUP('Utility Group'!$B12,vldatabase,13,FALSE) -> 0.58 | L18: 0.045 | N18: =VLOOKUP('Utility Group'!$B12,vldatabase,15,FALSE) -> 0.375 | Q18: 16622 | R18: 0 | S18: 11836 | T18: 28458
A19: 11 | B19: =VLOOKUP('Utility Group'!$B13,vldatabase,2,FALSE) -> Emera Inc. | D19: 0.5420668459 | F19: 0 | H19: 0.4579331541 | J19: =VLOOKUP('Utility Group'!$B13,vldatabase,13,FALSE) -> 0.5361256545 | L19: -5.551115123e-17 | N19: =VLOOKUP('Utility Group'!$B13,vldatabase,15,FALSE) -> 0.4638743455 | Q19: 18343 | R19: 0 | S19: 15496 | T19: 33839
A20: 12 | B20: =VLOOKUP('Utility Group'!$B14,vldatabase,2,FALSE) -> Entergy Corp. | D20: 0.6483655181 | F20: 0.0422398923 | H20: 0.3093945896 | J20: =VLOOKUP('Utility Group'!$B14,vldatabase,13,FALSE) -> 0.595 | L20: 0.01 | N20: =VLOOKUP('Utility Group'!$B14,vldatabase,15,FALSE) -> 0.395 | Q20: 15411 | R20: 1004 | S20: 7354 | T20: 23769
A21: 13 | B21: =VLOOKUP('Utility Group'!$B15,vldatabase,2,FALSE) -> Exelon Corp. | D21: 0.6304253284 | F21: 0.007738854829 | H21: 0.3618358168 | J21: =VLOOKUP('Utility Group'!$B15,vldatabase,13,FALSE) -> 0.5 | L21: 0 | N21: =VLOOKUP('Utility Group'!$B15,vldatabase,15,FALSE) -> 0.5 | Q21: 17873.655 | R21: 219.41 | S21: 10258.675 | T21: 28351.74
A22: 14 | B22: =VLOOKUP('Utility Group'!$B16,vldatabase,2,FALSE) -> FirstEnergy Corp. | D22: 0.5130700544 | F22: 0 | H22: 0.4869299456 | J22: =VLOOKUP('Utility Group'!$B16,vldatabase,13,FALSE) -> 0.66 | L22: -5.551115123e-17 | N22: =VLOOKUP('Utility Group'!$B16,vldatabase,15,FALSE) -> 0.34 | Q22: 36429 | R22: 0 | S22: 34573 | T22: 71002
A23: 15 | B23: =VLOOKUP('Utility Group'!$B17,vldatabase,2,FALSE) -> Hawaiian Elec. | D23: 0.7414080747 | F23: 0 | H23: 0.2585919253 | J23: =VLOOKUP('Utility Group'!$B17,vldatabase,13,FALSE) -> 0.48 | L23: 0.005 | N23: =VLOOKUP('Utility Group'!$B17,vldatabase,15,FALSE) -> 0.515 | Q23: 19998 | R23: 0 | S23: 6975 | T23: 26973
A24: 16 | B24: =VLOOKUP('Utility Group'!$B18,vldatabase,2,FALSE) -> IDACORP, Inc. | D24: 0.4732502842 | F24: 0.007804456412 | H24: 0.5189452593 | J24: =VLOOKUP('Utility Group'!$B18,vldatabase,13,FALSE) -> 0.465 | L24: -1.110223025e-16 | N24: =VLOOKUP('Utility Group'!$B18,vldatabase,15,FALSE) -> 0.535 | Q24: 2079.475 | R24: 34.293 | S24: 2280.26 | T24: 4394.028
A25: 17 | B25: =VLOOKUP('Utility Group'!$B19,vldatabase,2,FALSE) -> NorthWestern Corp. | D25: 0.4264148131 | F25: 0 | H25: 0.5735851869 | J25: =VLOOKUP('Utility Group'!$B19,vldatabase,13,FALSE) -> 0.5 | L25: 0 | N25: =VLOOKUP('Utility Group'!$B19,vldatabase,15,FALSE) -> 0.5 | Q25: 1836.659 | R25: 0 | S25: 2470.553 | T25: 4307.212
A26: 18 | B26: =VLOOKUP('Utility Group'!$B20,vldatabase,2,FALSE) -> OGE Energy Corp. | D26: 0.5249402999 | F26: 0 | H26: 0.4750597001 | J26: =VLOOKUP('Utility Group'!$B20,vldatabase,13,FALSE) -> 0.49 | L26: 0 | N26: =VLOOKUP('Utility Group'!$B20,vldatabase,15,FALSE) -> 0.51 | Q26: 2253.196 | R26: 0 | S26: 2039.094 | T26: 4292.29
A27: 19 | B27: =VLOOKUP('Utility Group'!$B21,vldatabase,2,FALSE) -> Otter Tail Corp. | D27: 0.4356279057 | F27: 0 | H27: 0.5643720943 | J27: =VLOOKUP('Utility Group'!$B21,vldatabase,13,FALSE) -> 0.47 | L27: 0 | N27: =VLOOKUP('Utility Group'!$B21,vldatabase,15,FALSE) -> 0.53 | Q27: 3195.2 | R27: 0 | S27: 4139.5 | T27: 7334.7
A28: 20 | B28: =VLOOKUP('Utility Group'!$B22,vldatabase,2,FALSE) -> PNM Resources | D28: 0.4688298218 | F28: 0 | H28: 0.5311701782 | J28: =VLOOKUP('Utility Group'!$B22,vldatabase,13,FALSE) -> 0.505 | L28: 0.005 | N28: =VLOOKUP('Utility Group'!$B22,vldatabase,15,FALSE) -> 0.49 | Q28: 689.764 | R28: 0 | S28: 781.482 | T28: 1471.246
A29: 21 | B29: =VLOOKUP('Utility Group'!$B23,vldatabase,2,FALSE) -> Sempra Energy | D29: 0.6317411315 | F29: 0.002421552129 | H29: 0.3658373164 | J29: =VLOOKUP('Utility Group'!$B23,vldatabase,13,FALSE) -> 0.485 | L29: 0 | N29: =VLOOKUP('Utility Group'!$B23,vldatabase,15,FALSE) -> 0.515 | Q29: 3007.717 | R29: 11.529 | S29: 1741.75 | T29: 4760.996
B31: Average | D31: =AVERAGE(D9:D29) -> 0.5380227531 | F31: =AVERAGE(F9:F29) -> 0.0039193824 | H31: =AVERAGE(H9:H29) -> 0.4580578645 | J31: =AVERAGE(J9:J29) -> 0.5220562827 | L31: =AVERAGE(L9:L29) -> 0.0055 | N31: =AVERAGE(N9:N29) -> 0.4724437173
A34: (a) | B34: Company Form 10-K and Annual Reports.
A35: (b) | B35: ='Utility Group Criteria'!B50 -> The Value Line Investment Survey (Jul. 24, Aug. 14 and Sep. 11, 2020).
A36: (c) | B36: Includes current maturities.
H37: =MIN(H9:H29) -> 0.2585919253 | N37: =MIN(N9:N29) -> 0.32
H38: =MAX(H9:H29) -> 0.6767106634 | N38: =MAX(N9:N29) -> 0.59

Sheet 5 (2-3)
A1: ='Exhibit List'!C4 -> CAPITAL STRUCTURE | F1: ='Exhibit List'!B4 -> Exh. AMM-5 | G1: =A1 -> CAPITAL STRUCTURE | L1: =F1 -> Exh. AMM-5
F2: Page 2 of 3 | L2: Page 3 of 3
A3: ='Exhibit List'!D4 -> ELECTRIC GROUP OPERATING SUBSIDIARIES | G3: =A3 -> ELECTRIC GROUP OPERATING SUBSIDIARIES
C5: At Year-End 2019 (a) | I5: =C5 -> At Year-End 2019 (a)
B6: Operating Company | C6: Debt (b) | D6: Preferred | E6: Common Equity | H6: Operating Company | I6: Debt (b) | J6: Preferred | K6: Common Equity
B7: ALGONQUIN PWR. & UTIL. | H7: EXELON CORP.
B8: Empire District Electric Co. | C8: ='Capital Structure - Op. Cos.'!K11 -> 0.4600741701 | D8: ='Capital Structure - Op. Cos.'!L11 -> 0 | E8: ='Capital Structure - Op. Cos.'!M11 -> 0.5399258299 | H8: Delmarva Power and Light | I8: ='Capital Structure - Op. Cos.'!K45 -> 0.4979345408 | J8: ='Capital Structure - Op. Cos.'!L45 -> 0 | K8: ='Capital Structure - Op. Cos.'!M45 -> 0.5020654592
B9: Liberty Utilities (Granite State Elec.) | C9: ='Capital Structure - Op. Cos.'!K12 -> 0.2294976482 | D9: ='Capital Structure - Op. Cos.'!L12 -> 0 | E9: ='Capital Structure - Op. Cos.'!M12 -> 0.7705023518 | H9: Baltimore Gas & Electric Co. | I9: ='Capital Structure - Op. Cos.'!K46 -> 0.4703005897 | J9: ='Capital Structure - Op. Cos.'!L46 -> 0 | K9: ='Capital Structure - Op. Cos.'!M46 -> 0.5296994103
B10: ALLETE | H10: Commonweath Edison Co. | I10: ='Capital Structure - Op. Cos.'!K47 -> 0.4488721416 | J10: ='Capital Structure - Op. Cos.'!L47 -> 0 | K10: ='Capital Structure - Op. Cos.'!M47 -> 0.5511278584
B11: ALLETE, Inc. (Minnesota Power) | C11: ='Capital Structure - Op. Cos.'!K14 -> 0.4041081197 | D11: ='Capital Structure - Op. Cos.'!L14 -> 0 | E11: ='Capital Structure - Op. Cos.'!M14 -> 0.5958918803 | H11: PECO Energy Co. | I11: ='Capital Structure - Op. Cos.'!K48 -> 0.4620831724 | J11: ='Capital Structure - Op. Cos.'!L48 -> 0 | K11: ='Capital Structure - Op. Cos.'!M48 -> 0.5379168276
B12: AMEREN CORP. | H12: Potomac Electric Power Co. | I12: ='Capital Structure - Op. Cos.'!K49 -> 0.4962744758 | J12: ='Capital Structure - Op. Cos.'!L49 -> 0 | K12: ='Capital Structure - Op. Cos.'!M49 -> 0.5037255242
B13: Ameren Illinois Co. | C13: ='Capital Structure - Op. Cos.'!K16 -> 0.4638640197 | D13: ='Capital Structure - Op. Cos.'!L16 -> 0.008044634748 | E13: ='Capital Structure - Op. Cos.'!M16 -> 0.5280913455 | H13: Atlantic City Electric Co. | I13: ='Capital Structure - Op. Cos.'!K50 -> 0.5097963888 | J13: ='Capital Structure - Op. Cos.'!L50 -> 0 | K13: ='Capital Structure - Op. Cos.'!M50 -> 0.4902036112
B14: Union Electric Co. | C14: ='Capital Structure - Op. Cos.'!K17 -> 0.4906897763 | D14: ='Capital Structure - Op. Cos.'!L17 -> 0.009368778545 | E14: ='Capital Structure - Op. Cos.'!M17 -> 0.4999414451 | H14: FIRSTENERGY CORP.
B15: AVANGRID | H15: Cleve. Elec. Illum./Ohio Ed./Toledo Ed. | I15: ='Capital Structure - Op. Cos.'!K52 -> 0.401955031 | J15: ='Capital Structure - Op. Cos.'!L52 -> 0 | K15: ='Capital Structure - Op. Cos.'!M52 -> 0.598044969
B16: Central Maine Pwr | C16: ='Capital Structure - Op. Cos.'!K19 -> 0.374950325 | D16: ='Capital Structure - Op. Cos.'!L19 -> 0.0001800076644 | E16: ='Capital Structure - Op. Cos.'!M19 -> 0.6248696673 | H16: Jersey Central Power & Light Co. | I16: ='Capital Structure - Op. Cos.'!K53 -> 0.316663895 | J16: ='Capital Structure - Op. Cos.'!L53 -> 0 | K16: ='Capital Structure - Op. Cos.'!M53 -> 0.683336105
B17: NY State E&G | C17: ='Capital Structure - Op. Cos.'!K20 -> 0.5106384947 | D17: ='Capital Structure - Op. Cos.'!L20 -> 0 | E17: ='Capital Structure - Op. Cos.'!M20 -> 0.4893615053 | H17: Metropolitan Edison Co. | I17: ='Capital Structure - Op. Cos.'!K54 -> 0.520047018 | J17: ='Capital Structure - Op. Cos.'!L54 -> 0 | K17: ='Capital Structure - Op. Cos.'!M54 -> 0.479952982
B18: Rochester G&E | C18: ='Capital Structure - Op. Cos.'!K21 -> 0.4878481221 | D18: ='Capital Structure - Op. Cos.'!L21 -> 0 | E18: ='Capital Structure - Op. Cos.'!M21 -> 0.5121518779 | H18: Monongahela Power Co. | I18: ='Capital Structure - Op. Cos.'!K55 -> 0.5364369061 | J18: ='Capital Structure - Op. Cos.'!L55 -> 0 | K18: ='Capital Structure - Op. Cos.'!M55 -> 0.4635630939
B19: United Illuminating | C19: ='Capital Structure - Op. Cos.'!K22 -> 0.4237335524 | D19: ='Capital Structure - Op. Cos.'!L22 -> 0 | E19: ='Capital Structure - Op. Cos.'!M22 -> 0.5762664476 | H19: Pennsylvania Electric Co. | I19: ='Capital Structure - Op. Cos.'!K56 -> 0.4962533669 | J19: ='Capital Structure - Op. Cos.'!L56 -> 0 | K19: ='Capital Structure - Op. Cos.'!M56 -> 0.5037466331
B20: BLACK HILLS CORP. | H20: The Potomac Edison Co. | I20: ='Capital Structure - Op. Cos.'!K57 -> 0.4569339025 | J20: ='Capital Structure - Op. Cos.'!L57 -> 0 | K20: ='Capital Structure - Op. Cos.'!M57 -> 0.5430660975
B21: Black Hills Power | C21: ='Capital Structure - Op. Cos.'!K24 -> 0.4318073884 | D21: ='Capital Structure - Op. Cos.'!L24 -> 0 | E21: ='Capital Structure - Op. Cos.'!M24 -> 0.5681926116 | H21: West Penn Power Co. | I21: ='Capital Structure - Op. Cos.'!K58 -> 0.5231285414 | J21: ='Capital Structure - Op. Cos.'!L58 -> 0 | K21: ='Capital Structure - Op. Cos.'!M58 -> 0.4768714586
B22: Cheyenne Light Fuel & Power | C22: ='Capital Structure - Op. Cos.'!K25 -> 0.5168413879 | D22: ='Capital Structure - Op. Cos.'!L25 -> 0 | E22: ='Capital Structure - Op. Cos.'!M25 -> 0.4831586121 | H22: Pennsylvania Power | I22: ='Capital Structure - Op. Cos.'!K59 -> 0.5120688352 | J22: ='Capital Structure - Op. Cos.'!L59 -> 0 | K22: ='Capital Structure - Op. Cos.'!M59 -> 0.4879311648
B23: Black Hills/Colorado Elec. Util. Co. | C23: ='Capital Structure - Op. Cos.'!K26 -> 0.2701529956 | D23: ='Capital Structure - Op. Cos.'!L26 -> 0 | E23: ='Capital Structure - Op. Cos.'!M26 -> 0.7298470044 | H23: HAWAIIAN ELEC.
B24: CENTERPOINT ENERGY | H24: Hawaiian Electric Co. | I24: ='Capital Structure - Op. Cos.'!K61 -> 0.4184231495 | J24: ='Capital Structure - Op. Cos.'!L61 -> 0.009580891523 | K24: ='Capital Structure - Op. Cos.'!M61 -> 0.571995959
B25: CenterPoint Energy Houston Elect. | C25: ='Capital Structure - Op. Cos.'!K28 -> 0.6035849287 | D25: ='Capital Structure - Op. Cos.'!L28 -> 0 | E25: ='Capital Structure - Op. Cos.'!M28 -> 0.3964150713 | H25: IDACORP
B26: CMS ENERGY | H26: Idaho Power Co. | I26: ='Capital Structure - Op. Cos.'!K63 -> 0.4466346385 | J26: ='Capital Structure - Op. Cos.'!L63 -> 0 | K26: ='Capital Structure - Op. Cos.'!M63 -> 0.5533653615
B27: Consumers Energy Co. | C27: ='Capital Structure - Op. Cos.'!K30 -> 0.4870043761 | D27: ='Capital Structure - Op. Cos.'!L30 -> 0.002453255536 | E27: ='Capital Structure - Op. Cos.'!M30 -> 0.5105423684 | H27: NORTHWESTERN CORP.
B28: DTE ENERGY CO. | H28: NorthWestern Corporation | I28: ='Capital Structure - Op. Cos.'!K65 -> 0.5241023722 | J28: ='Capital Structure - Op. Cos.'!L65 -> 0 | K28: ='Capital Structure - Op. Cos.'!M65 -> 0.4758976278
B29: DTE Electric Co. | C29: ='Capital Structure - Op. Cos.'!K32 -> 0.4997566572 | D29: ='Capital Structure - Op. Cos.'!L32 -> 0 | E29: ='Capital Structure - Op. Cos.'!M32 -> 0.5002433428 | H29: OGE ENERGY CORP.
B30: EDISON INTERNATIONAL | H30: Oklahoma G&E | I30: ='Capital Structure - Op. Cos.'!K67 -> 0.4485325588 | J30: ='Capital Structure - Op. Cos.'!L67 -> 0 | K30: ='Capital Structure - Op. Cos.'!M67 -> 0.5514674412
B31: Southern California Edison Co. | C31: ='Capital Structure - Op. Cos.'!K34 -> 0.4604092257 | D31: ='Capital Structure - Op. Cos.'!L34 -> 0.06795205521 | E31: ='Capital Structure - Op. Cos.'!M34 -> 0.4716387191 | H31: OTTER TAIL CORP.
B32: EMERA INC. | H32: Otter Tail Power Co. | I32: ='Capital Structure - Op. Cos.'!K69 -> 0.4887529649 | J32: ='Capital Structure - Op. Cos.'!L69 -> 0 | K32: ='Capital Structure - Op. Cos.'!M69 -> 0.5112470351
B33: Emera Maine | C33: ='Capital Structure - Op. Cos.'!K36 -> 0.4283234421 | D33: ='Capital Structure - Op. Cos.'!L36 -> 0.0003927087826 | E33: ='Capital Structure - Op. Cos.'!M36 -> 0.5712838491 | H33: PNM RESOURCES
B34: Tampa Electric Co. | C34: ='Capital Structure - Op. Cos.'!K37 -> 0.4470373025 | D34: ='Capital Structure - Op. Cos.'!L37 -> 0 | E34: ='Capital Structure - Op. Cos.'!M37 -> 0.5529626975 | H34: Public Service Company of New Mexico | I34: ='Capital Structure - Op. Cos.'!K71 -> 0.5342392068 | J34: ='Capital Structure - Op. Cos.'!L71 -> 0.003523554545 | K34: ='Capital Structure - Op. Cos.'!M71 -> 0.4622372386
B35: ENTERGY CORP. | H35: Texas-New Mexico Power Co. | I35: ='Capital Structure - Op. Cos.'!K72 -> 0.4705553427 | J35: ='Capital Structure - Op. Cos.'!L72 -> 0 | K35: ='Capital Structure - Op. Cos.'!M72 -> 0.5294446573
B36: Entergy Arkansas Inc. | C36: ='Capital Structure - Op. Cos.'!K39 -> 0.5294492292 | D36: ='Capital Structure - Op. Cos.'!L39 -> 0 | E36: ='Capital Structure - Op. Cos.'!M39 -> 0.4705507708 | H36: SEMPRA ENERGY
B37: Entergy Louisiana LLC | C37: ='Capital Structure - Op. Cos.'!K40 -> 0.5330839024 | D37: ='Capital Structure - Op. Cos.'!L40 -> 0 | E37: ='Capital Structure - Op. Cos.'!M40 -> 0.4669160976 | H37: San Diego Gas & Electric | I37: ='Capital Structure - Op. Cos.'!K74 -> 0.4725895112 | J37: ='Capital Structure - Op. Cos.'!L74 -> 0 | K37: ='Capital Structure - Op. Cos.'!M74 -> 0.5274104888
B38: Entergy Mississippi Inc. | C38: ='Capital Structure - Op. Cos.'!K41 -> 0.5114023471 | D38: ='Capital Structure - Op. Cos.'!L41 -> 0 | E38: ='Capital Structure - Op. Cos.'!M41 -> 0.4885976529 | H38: Oncor Electric Delivery | I38: ='Capital Structure - Op. Cos.'!K75 -> 0.4335998476 | J38: ='Capital Structure - Op. Cos.'!L75 -> 0 | K38: ='Capital Structure - Op. Cos.'!M75 -> 0.5664001524
B39: Entergy New Orleans Inc. | C39: ='Capital Structure - Op. Cos.'!K42 -> 0.5290962829 | D39: ='Capital Structure - Op. Cos.'!L42 -> 0 | E39: ='Capital Structure - Op. Cos.'!M42 -> 0.4709037171
B40: Entergy Texas Inc. | C40: ='Capital Structure - Op. Cos.'!K43 -> 0.5165955067 | D40: ='Capital Structure - Op. Cos.'!L43 -> 0.009402629459 | E40: ='Capital Structure - Op. Cos.'!M43 -> 0.4740018639 | H40: Minimum | I40: =MIN(C8:C43,I8:I39) -> 0.2294976482 | J40: =MIN(D8:D43,J8:J39) -> 0 | K40: =MIN(E8:E43,K8:K39) -> 0.3964150713
H41: Maximum | I41: =MAX(C8:C43,I8:I39) -> 0.6035849287 | J41: =MAX(D8:D43,J8:J39) -> 0.06795205521 | K41: =MAX(E8:E43,K8:K39) -> 0.7705023518
H42: Average | I42: =AVERAGE(C8:C43,I8:I39) -> 0.4673071217 | J42: =AVERAGE(D8:D43,J8:J39) -> 0.002410837305 | K42: =AVERAGE(E8:E43,K8:K39) -> 0.530282041
H44: (a) Data from 2019 Company Form 10-K and FERC Form 1 reports.
H45: (b) Includes current maturities.

Sheet 6 (1)
A1: ='Exhibit List'!C5 -> DCF MODEL - UTILITY GROUP | I1: ='Exhibit List'!B5 -> Exh. AMM-6
I2: Page 1 of 4
A3: ='Exhibit List'!D5 -> DIVIDEND YIELD
D6: (a) | F6: (b)
B7: Company | D7: Price | F7: Dividends | H7: Yield
A8: =A7+1 -> 1 | B8: =VLOOKUP('Utility Group'!$B3,vldatabase,2,FALSE) -> Algonquin Pwr & Util | D8: =HLOOKUP('Utility Group'!$B3,stockprice,33,FALSE) -> 14.06233333 | F8: =VLOOKUP('Utility Group'!$B3,vldatabase,4,FALSE) -> 0.62 | H8: =F8/D8 -> 0.04408941143
A9: =A8+1 -> 2 | B9: =VLOOKUP('Utility Group'!$B4,vldatabase,2,FALSE) -> ALLETE | D9: =HLOOKUP('Utility Group'!$B4,stockprice,33,FALSE) -> 52.70033333 | F9: =VLOOKUP('Utility Group'!$B4,vldatabase,4,FALSE) -> 2.55 | H9: =F9/D9 -> 0.04838679072
A10: 3 | B10: =VLOOKUP('Utility Group'!$B5,vldatabase,2,FALSE) -> Ameren Corp. | D10: =HLOOKUP('Utility Group'!$B5,stockprice,33,FALSE) -> 78.32033333 | F10: =VLOOKUP('Utility Group'!$B5,vldatabase,4,FALSE) -> 2.08 | H10: 0.02655759892
A11: 4 | B11: =VLOOKUP('Utility Group'!$B6,vldatabase,2,FALSE) -> Avangrid, Inc. | D11: =HLOOKUP('Utility Group'!$B6,stockprice,33,FALSE) -> 49.142 | F11: =VLOOKUP('Utility Group'!$B6,vldatabase,4,FALSE) -> 1.76 | H11: 0.03581457816
A12: 5 | B12: =VLOOKUP('Utility Group'!$B7,vldatabase,2,FALSE) -> Avista Corp. | D12: =HLOOKUP('Utility Group'!$B7,stockprice,33,FALSE) -> 35.34533333 | F12: =VLOOKUP('Utility Group'!$B7,vldatabase,4,FALSE) -> 1.64 | H12: 0.04639933607
A13: 6 | B13: =VLOOKUP('Utility Group'!$B8,vldatabase,2,FALSE) -> Black Hills Corp. | D13: =HLOOKUP('Utility Group'!$B8,stockprice,33,FALSE) -> 54.69566667 | F13: =VLOOKUP('Utility Group'!$B8,vldatabase,4,FALSE) -> 2.23 | H13: 0.04077105438
A14: 7 | B14: =VLOOKUP('Utility Group'!$B9,vldatabase,2,FALSE) -> CenterPoint Energy | D14: =HLOOKUP('Utility Group'!$B9,stockprice,33,FALSE) -> 19.516 | F14: =VLOOKUP('Utility Group'!$B9,vldatabase,4,FALSE) -> 0.63 | H14: 0.03228120516
A15: 8 | B15: =VLOOKUP('Utility Group'!$B10,vldatabase,2,FALSE) -> CMS Energy Corp. | D15: =HLOOKUP('Utility Group'!$B10,stockprice,33,FALSE) -> 60.863 | F15: =VLOOKUP('Utility Group'!$B10,vldatabase,4,FALSE) -> 1.71 | H15: 0.02809588749
A16: 9 | B16: =VLOOKUP('Utility Group'!$B11,vldatabase,2,FALSE) -> DTE Energy Co. | D16: =HLOOKUP('Utility Group'!$B11,stockprice,33,FALSE) -> 116.402 | F16: =VLOOKUP('Utility Group'!$B11,vldatabase,4,FALSE) -> 4.34 | H16: 0.03728458274
A17: 10 | B17: =VLOOKUP('Utility Group'!$B12,vldatabase,2,FALSE) -> Edison International | D17: =HLOOKUP('Utility Group'!$B12,stockprice,33,FALSE) -> 51.46933333 | F17: =VLOOKUP('Utility Group'!$B12,vldatabase,4,FALSE) -> 2.6 | H17: 0.05051551733
A18: 11 | B18: =VLOOKUP('Utility Group'!$B13,vldatabase,2,FALSE) -> Emera Inc. | D18: =HLOOKUP('Utility Group'!$B13,stockprice,33,FALSE) -> 54.1106668 | F18: =VLOOKUP('Utility Group'!$B13,vldatabase,4,FALSE) -> 2.45 | H18: 0.04527757917
A19: 12 | B19: =VLOOKUP('Utility Group'!$B14,vldatabase,2,FALSE) -> Entergy Corp. | D19: =HLOOKUP('Utility Group'!$B14,stockprice,33,FALSE) -> 97.567 | F19: =VLOOKUP('Utility Group'!$B14,vldatabase,4,FALSE) -> 3.8 | H19: 0.03894759499
A20: 13 | B20: =VLOOKUP('Utility Group'!$B15,vldatabase,2,FALSE) -> Exelon Corp. | D20: =HLOOKUP('Utility Group'!$B15,stockprice,33,FALSE) -> 36.2 | F20: =VLOOKUP('Utility Group'!$B15,vldatabase,4,FALSE) -> 1.57 | H20: 0.04337016575
A21: 14 | B21: =VLOOKUP('Utility Group'!$B16,vldatabase,2,FALSE) -> FirstEnergy Corp. | D21: =HLOOKUP('Utility Group'!$B16,stockprice,33,FALSE) -> 28.77733333 | F21: =VLOOKUP('Utility Group'!$B16,vldatabase,4,FALSE) -> 1.59 | H21: 0.05525181856
A22: 15 | B22: =VLOOKUP('Utility Group'!$B17,vldatabase,2,FALSE) -> Hawaiian Elec. | D22: =HLOOKUP('Utility Group'!$B17,stockprice,33,FALSE) -> 60.44583333 | F22: =VLOOKUP('Utility Group'!$B17,vldatabase,4,FALSE) -> 1.32 | H22: 0.02183773351
A23: 16 | B23: =VLOOKUP('Utility Group'!$B18,vldatabase,2,FALSE) -> IDACORP, Inc. | D23: =HLOOKUP('Utility Group'!$B18,stockprice,33,FALSE) -> 84.641 | F23: =VLOOKUP('Utility Group'!$B18,vldatabase,4,FALSE) -> 2.83 | H23: 0.03343533276
A24: 17 | B24: =VLOOKUP('Utility Group'!$B19,vldatabase,2,FALSE) -> NorthWestern Corp. | D24: =HLOOKUP('Utility Group'!$B19,stockprice,33,FALSE) -> 50.60733333 | F24: =VLOOKUP('Utility Group'!$B19,vldatabase,4,FALSE) -> 2.45 | H24: 0.04841195611
A25: 18 | B25: =VLOOKUP('Utility Group'!$B20,vldatabase,2,FALSE) -> OGE Energy Corp. | D25: =HLOOKUP('Utility Group'!$B20,stockprice,33,FALSE) -> 30.53333333 | F25: =VLOOKUP('Utility Group'!$B20,vldatabase,4,FALSE) -> 1.64 | H25: 0.05371179039
A26: 19 | B26: =VLOOKUP('Utility Group'!$B21,vldatabase,2,FALSE) -> Otter Tail Corp. | D26: =HLOOKUP('Utility Group'!$B21,stockprice,33,FALSE) -> 37.49233333 | F26: =VLOOKUP('Utility Group'!$B21,vldatabase,4,FALSE) -> 1.54 | H26: 0.04107506424
A27: 20 | B27: =VLOOKUP('Utility Group'!$B22,vldatabase,2,FALSE) -> PNM Resources | D27: =HLOOKUP('Utility Group'!$B22,stockprice,33,FALSE) -> 41.94933333 | F27: =VLOOKUP('Utility Group'!$B22,vldatabase,4,FALSE) -> 1.26 | H27: 0.03003623419
A28: 21 | B28: =VLOOKUP('Utility Group'!$B23,vldatabase,2,FALSE) -> Sempra Energy | D28: =HLOOKUP('Utility Group'!$B23,stockprice,33,FALSE) -> 120.3233333 | F28: =VLOOKUP('Utility Group'!$B23,vldatabase,4,FALSE) -> 4.34 | H28: 0.03606947946
B30: Average | H30: =AVERAGE(H8:H28) -> 0.03988670055
A33: (a) | B33: ='Stock Price (Utility)'!B37 -> Average of closing prices for 30 trading days ended Oct. 2, 2020.
A34: (b) | B34: ='Electric Utility Data'!B49 -> The Value Line Investment Survey, Summary & Index (Oct. 2, 2020).
H35: =MIN(H8:H28) -> 0.02183773351
H36: =MAX(H8:H28) -> 0.05525181856

Sheet 6 (2)
A1: ='Exhibit List'!C6 -> DCF MODEL - UTILITY GROUP | L1: ='Exhibit List'!B6 -> Exh. AMM-6
L2: Page 2 of 4
A3: ='Exhibit List'!D6 -> GROWTH RATES
E5: (a) | G5: (b) | I5: (c) | K5: (d)
D6: Earnings Growth | K6: br+sv
B7: Company | E7: Value Line | G7: IBES | I7: Zacks | K7: Growth
A8: =A7+1 -> 1 | B8: =VLOOKUP('Utility Group'!$B3,vldatabase,2,FALSE) -> Algonquin Pwr & Util | E8: =VLOOKUP('Utility Group'!$B3,vldatabase,19,FALSE) -> n/a | G8: =VLOOKUP('Utility Group'!$B3,vldatabase,30,FALSE) -> 0.057 | I8: =VLOOKUP('Utility Group'!$B3,vldatabase,31,FALSE) -> 0.0787 | K8: ='7'!Q8 -> n/a
A9: =A8+1 -> 2 | B9: =VLOOKUP('Utility Group'!$B4,vldatabase,2,FALSE) -> ALLETE | E9: =VLOOKUP('Utility Group'!$B4,vldatabase,19,FALSE) -> 0.045 | G9: =VLOOKUP('Utility Group'!$B4,vldatabase,30,FALSE) -> 0.07 | I9: =VLOOKUP('Utility Group'!$B4,vldatabase,31,FALSE) -> n/a | K9: ='7'!Q9 -> 0.03151042729
A10: 3 | B10: =VLOOKUP('Utility Group'!$B5,vldatabase,2,FALSE) -> Ameren Corp. | E10: =VLOOKUP('Utility Group'!$B5,vldatabase,19,FALSE) -> 0.06 | G10: =VLOOKUP('Utility Group'!$B5,vldatabase,30,FALSE) -> 0.06 | I10: =VLOOKUP('Utility Group'!$B5,vldatabase,31,FALSE) -> 0.0689 | K10: ='7'!Q10 -> 0.05962118209
A11: 4 | B11: =VLOOKUP('Utility Group'!$B6,vldatabase,2,FALSE) -> Avangrid, Inc. | E11: =VLOOKUP('Utility Group'!$B6,vldatabase,19,FALSE) -> 0.04 | G11: =VLOOKUP('Utility Group'!$B6,vldatabase,30,FALSE) -> 0.046 | I11: =VLOOKUP('Utility Group'!$B6,vldatabase,31,FALSE) -> 0.0531 | K11: ='7'!Q11 -> 0.01359269496
A12: 5 | B12: =VLOOKUP('Utility Group'!$B7,vldatabase,2,FALSE) -> Avista Corp. | E12: =VLOOKUP('Utility Group'!$B7,vldatabase,19,FALSE) -> 0.01 | G12: =VLOOKUP('Utility Group'!$B7,vldatabase,30,FALSE) -> 0.058 | I12: =VLOOKUP('Utility Group'!$B7,vldatabase,31,FALSE) -> 0.0514 | K12: ='7'!Q12 -> 0.03019194781
A13: 6 | B13: =VLOOKUP('Utility Group'!$B8,vldatabase,2,FALSE) -> Black Hills Corp. | E13: =VLOOKUP('Utility Group'!$B8,vldatabase,19,FALSE) -> 0.035 | G13: =VLOOKUP('Utility Group'!$B8,vldatabase,30,FALSE) -> 0.0469 | I13: =VLOOKUP('Utility Group'!$B8,vldatabase,31,FALSE) -> 0.0576 | K13: ='7'!Q13 -> 0.0381347832
A14: 7 | B14: =VLOOKUP('Utility Group'!$B9,vldatabase,2,FALSE) -> CenterPoint Energy | E14: =VLOOKUP('Utility Group'!$B9,vldatabase,19,FALSE) -> 0.04 | G14: =VLOOKUP('Utility Group'!$B9,vldatabase,30,FALSE) -> -0.0665 | I14: =VLOOKUP('Utility Group'!$B9,vldatabase,31,FALSE) -> 0.05 | K14: ='7'!Q14 -> 0.07483174833
A15: 8 | B15: =VLOOKUP('Utility Group'!$B10,vldatabase,2,FALSE) -> CMS Energy Corp. | E15: =VLOOKUP('Utility Group'!$B10,vldatabase,19,FALSE) -> 0.075 | G15: =VLOOKUP('Utility Group'!$B10,vldatabase,30,FALSE) -> 0.0708 | I15: =VLOOKUP('Utility Group'!$B10,vldatabase,31,FALSE) -> 0.0701 | K15: ='7'!Q15 -> 0.07243823919
A16: 9 | B16: =VLOOKUP('Utility Group'!$B11,vldatabase,2,FALSE) -> DTE Energy Co. | E16: =VLOOKUP('Utility Group'!$B11,vldatabase,19,FALSE) -> 0.06 | G16: =VLOOKUP('Utility Group'!$B11,vldatabase,30,FALSE) -> 0.0595 | I16: =VLOOKUP('Utility Group'!$B11,vldatabase,31,FALSE) -> 0.0567 | K16: ='7'!Q16 -> 0.05293953456
A17: 10 | B17: =VLOOKUP('Utility Group'!$B12,vldatabase,2,FALSE) -> Edison International | E17: =VLOOKUP('Utility Group'!$B12,vldatabase,19,FALSE) -> n/a | G17: =VLOOKUP('Utility Group'!$B12,vldatabase,30,FALSE) -> 0.014 | I17: =VLOOKUP('Utility Group'!$B12,vldatabase,31,FALSE) -> 0.0289 | K17: ='7'!Q17 -> 0.05602852332
A18: 11 | B18: =VLOOKUP('Utility Group'!$B13,vldatabase,2,FALSE) -> Emera Inc. | E18: =VLOOKUP('Utility Group'!$B13,vldatabase,19,FALSE) -> 0.06 | G18: =VLOOKUP('Utility Group'!$B13,vldatabase,30,FALSE) -> 0.0574 | I18: =VLOOKUP('Utility Group'!$B13,vldatabase,31,FALSE) -> n/a | K18: ='7'!Q18 -> 0.03785941509
A19: 12 | B19: =VLOOKUP('Utility Group'!$B14,vldatabase,2,FALSE) -> Entergy Corp. | E19: =VLOOKUP('Utility Group'!$B14,vldatabase,19,FALSE) -> 0.03 | G19: =VLOOKUP('Utility Group'!$B14,vldatabase,30,FALSE) -> 0.054 | I19: =VLOOKUP('Utility Group'!$B14,vldatabase,31,FALSE) -> 0.0543 | K19: ='7'!Q19 -> 0.04905237842
A20: 13 | B20: =VLOOKUP('Utility Group'!$B15,vldatabase,2,FALSE) -> Exelon Corp. | E20: =VLOOKUP('Utility Group'!$B15,vldatabase,19,FALSE) -> 0.05 | G20: =VLOOKUP('Utility Group'!$B15,vldatabase,30,FALSE) -> -0.0348 | I20: =VLOOKUP('Utility Group'!$B15,vldatabase,31,FALSE) -> 0.04 | K20: ='7'!Q20 -> 0.04146579101
A21: 14 | B21: =VLOOKUP('Utility Group'!$B16,vldatabase,2,FALSE) -> FirstEnergy Corp. | E21: =VLOOKUP('Utility Group'!$B16,vldatabase,19,FALSE) -> 0.085 | G21: =VLOOKUP('Utility Group'!$B16,vldatabase,30,FALSE) -> -0.024 | I21: =VLOOKUP('Utility Group'!$B16,vldatabase,31,FALSE) -> n/a | K21: ='7'!Q21 -> 0.0897381896
A22: 15 | B22: =VLOOKUP('Utility Group'!$B17,vldatabase,2,FALSE) -> Hawaiian Elec. | E22: =VLOOKUP('Utility Group'!$B17,vldatabase,19,FALSE) -> 0.015 | G22: =VLOOKUP('Utility Group'!$B17,vldatabase,30,FALSE) -> 0.033 | I22: =VLOOKUP('Utility Group'!$B17,vldatabase,31,FALSE) -> 0.0167 | K22: ='7'!Q22 -> 0.02887229744
A23: 16 | B23: =VLOOKUP('Utility Group'!$B18,vldatabase,2,FALSE) -> IDACORP, Inc. | E23: =VLOOKUP('Utility Group'!$B18,vldatabase,19,FALSE) -> 0.035 | G23: =VLOOKUP('Utility Group'!$B18,vldatabase,30,FALSE) -> 0.026 | I23: =VLOOKUP('Utility Group'!$B18,vldatabase,31,FALSE) -> 0.0263 | K23: ='7'!Q23 -> 0.0341262034
A24: 17 | B24: =VLOOKUP('Utility Group'!$B19,vldatabase,2,FALSE) -> NorthWestern Corp. | E24: =VLOOKUP('Utility Group'!$B19,vldatabase,19,FALSE) -> 0.015 | G24: =VLOOKUP('Utility Group'!$B19,vldatabase,30,FALSE) -> 0.038 | I24: =VLOOKUP('Utility Group'!$B19,vldatabase,31,FALSE) -> 0.0339 | K24: ='7'!Q24 -> 0.02745193936
A25: 18 | B25: =VLOOKUP('Utility Group'!$B20,vldatabase,2,FALSE) -> OGE Energy Corp. | E25: =VLOOKUP('Utility Group'!$B20,vldatabase,19,FALSE) -> 0.03 | G25: =VLOOKUP('Utility Group'!$B20,vldatabase,30,FALSE) -> 0.024 | I25: =VLOOKUP('Utility Group'!$B20,vldatabase,31,FALSE) -> 0.0369 | K25: ='7'!Q25 -> 0.02667724258
A26: 19 | B26: =VLOOKUP('Utility Group'!$B21,vldatabase,2,FALSE) -> Otter Tail Corp. | E26: =VLOOKUP('Utility Group'!$B21,vldatabase,19,FALSE) -> 0.05 | G26: =VLOOKUP('Utility Group'!$B21,vldatabase,30,FALSE) -> 0.09 | I26: =VLOOKUP('Utility Group'!$B21,vldatabase,31,FALSE) -> n/a | K26: ='7'!Q26 -> 0.05311120529
A27: 20 | B27: =VLOOKUP('Utility Group'!$B22,vldatabase,2,FALSE) -> PNM Resources | E27: =VLOOKUP('Utility Group'!$B22,vldatabase,19,FALSE) -> 0.06 | G27: =VLOOKUP('Utility Group'!$B22,vldatabase,30,FALSE) -> 0.0495 | I27: =VLOOKUP('Utility Group'!$B22,vldatabase,31,FALSE) -> 0.0487 | K27: ='7'!Q27 -> 0.06048605937
A28: 21 | B28: =VLOOKUP('Utility Group'!$B23,vldatabase,2,FALSE) -> Sempra Energy | E28: =VLOOKUP('Utility Group'!$B23,vldatabase,19,FALSE) -> 0.1 | G28: =VLOOKUP('Utility Group'!$B23,vldatabase,30,FALSE) -> 0.0627 | I28: =VLOOKUP('Utility Group'!$B23,vldatabase,31,FALSE) -> 0.0736 | K28: ='7'!Q28 -> 0.07301339347
A32: (a) | B32: ='Proxy Group Risk Measures'!B35 -> The Value Line Investment Survey (Jul. 24, Aug. 14 and Sep. 11, 2020).
A33: (b) | B33: ='Electric Utility Data'!B53 -> www.finance.yahoo.com (retreived Oct. 5, 2020).
A34: (c) | B34: ='Electric Utility Data'!B54 -> www.zacks.com (retrieved Oct. 5, 2020).
A35: (d) | B35: ="See " & 'Exhibit List'!B9 &"." -> See Exh. AMM-7.

Sheet 6 (3)
A1: ='Exhibit List'!C7 -> DCF MODEL - UTILITY GROUP | M1: ='Exhibit List'!B7 -> Exh. AMM-6
M2: Page 3 of 4
A3: ='Exhibit List'!D7 -> DCF COST OF EQUITY ESTIMATES
E5: (a) | G5: (a) | I5: (a) | L5: (a)
D6: Earnings Growth | L6: br+sv
B7: Company | E7: Value Line | G7: IBES | I7: Zacks | L7: Growth
A9: =A7+1 -> 1 | B9: =VLOOKUP('Utility Group'!$B3,vldatabase,2,FALSE) -> Algonquin Pwr & Util | E9: =IF('6 (2)'!E8="n/a","n/a",'6 (1)'!$H8+'6 (2)'!E8) -> n/a | G9: =IF('6 (2)'!G8="n/a","n/a",'6 (1)'!$H8+'6 (2)'!G8) -> 0.1010894114 | I9: =IF('6 (2)'!I8="n/a","n/a",'6 (1)'!$H8+'6 (2)'!I8) -> 0.1227894114 | L9: =IF('6 (2)'!K8="n/a","n/a",'6 (1)'!$H8+'6 (2)'!K8) -> n/a | P9: =IF(E9="n/a","n/a",IF(E9<$E$42,"nmf",IF(E9>$E$43,"nmf",E9))) -> n/a | Q9: =IF(G9="n/a","n/a",IF(G9<$E$42,"nmf",IF(G9>$E$43,"nmf",G9))) -> 0.1010894114 | R9: =IF(I9="n/a","n/a",IF(I9<$E$42,"nmf",IF(I9>$E$43,"nmf",I9))) -> 0.1227894114 | T9: =IF(L9="n/a","n/a",IF(L9<$E$42,"nmf",IF(L9>$E$43,"nmf",L9))) -> n/a
A10: =A9+1 -> 2 | B10: =VLOOKUP('Utility Group'!$B4,vldatabase,2,FALSE) -> ALLETE | E10: =IF('6 (2)'!E9="n/a","n/a",'6 (1)'!$H9+'6 (2)'!E9) -> 0.09338679072 | G10: =IF('6 (2)'!G9="n/a","n/a",'6 (1)'!$H9+'6 (2)'!G9) -> 0.1183867907 | I10: =IF('6 (2)'!I9="n/a","n/a",'6 (1)'!$H9+'6 (2)'!I9) -> n/a | L10: =IF('6 (2)'!K9="n/a","n/a",'6 (1)'!$H9+'6 (2)'!K9) -> 0.07989721801 | P10: 0.09338679072 | Q10: 0.1183867907 | R10: n/a | T10: 0.07989721801
A11: 3 | B11: =VLOOKUP('Utility Group'!$B5,vldatabase,2,FALSE) -> Ameren Corp. | E11: =IF('6 (2)'!E10="n/a","n/a",'6 (1)'!$H10+'6 (2)'!E10) -> 0.08655759892 | G11: =IF('6 (2)'!G10="n/a","n/a",'6 (1)'!$H10+'6 (2)'!G10) -> 0.08655759892 | I11: =IF('6 (2)'!I10="n/a","n/a",'6 (1)'!$H10+'6 (2)'!I10) -> 0.09545759892 | L11: =IF('6 (2)'!K10="n/a","n/a",'6 (1)'!$H10+'6 (2)'!K10) -> 0.08617878101 | P11: 0.08655759892 | Q11: 0.08655759892 | R11: 0.09545759892 | T11: 0.08617878101
A12: 4 | B12: =VLOOKUP('Utility Group'!$B6,vldatabase,2,FALSE) -> Avangrid, Inc. | E12: =IF('6 (2)'!E11="n/a","n/a",'6 (1)'!$H11+'6 (2)'!E11) -> 0.07581457816 | G12: =IF('6 (2)'!G11="n/a","n/a",'6 (1)'!$H11+'6 (2)'!G11) -> 0.08181457816 | I12: =IF('6 (2)'!I11="n/a","n/a",'6 (1)'!$H11+'6 (2)'!I11) -> 0.08891457816 | L12: =IF('6 (2)'!K11="n/a","n/a",'6 (1)'!$H11+'6 (2)'!K11) -> 0.04940727312 | P12: 0.07581457816 | Q12: 0.08181457816 | R12: 0.08891457816 | T12: nmf
A13: 5 | B13: =VLOOKUP('Utility Group'!$B7,vldatabase,2,FALSE) -> Avista Corp. | E13: =IF('6 (2)'!E12="n/a","n/a",'6 (1)'!$H12+'6 (2)'!E12) -> 0.05639933607 | G13: =IF('6 (2)'!G12="n/a","n/a",'6 (1)'!$H12+'6 (2)'!G12) -> 0.1043993361 | I13: =IF('6 (2)'!I12="n/a","n/a",'6 (1)'!$H12+'6 (2)'!I12) -> 0.09779933607 | L13: =IF('6 (2)'!K12="n/a","n/a",'6 (1)'!$H12+'6 (2)'!K12) -> 0.07659128389 | P13: nmf | Q13: 0.1043993361 | R13: 0.09779933607 | T13: 0.07659128389
A14: 6 | B14: =VLOOKUP('Utility Group'!$B8,vldatabase,2,FALSE) -> Black Hills Corp. | E14: =IF('6 (2)'!E13="n/a","n/a",'6 (1)'!$H13+'6 (2)'!E13) -> 0.07577105438 | G14: =IF('6 (2)'!G13="n/a","n/a",'6 (1)'!$H13+'6 (2)'!G13) -> 0.08767105438 | I14: =IF('6 (2)'!I13="n/a","n/a",'6 (1)'!$H13+'6 (2)'!I13) -> 0.09837105438 | L14: =IF('6 (2)'!K13="n/a","n/a",'6 (1)'!$H13+'6 (2)'!K13) -> 0.07890583758 | P14: 0.07577105438 | Q14: 0.08767105438 | R14: 0.09837105438 | T14: 0.07890583758
A15: 7 | B15: =VLOOKUP('Utility Group'!$B9,vldatabase,2,FALSE) -> CenterPoint Energy | E15: =IF('6 (2)'!E14="n/a","n/a",'6 (1)'!$H14+'6 (2)'!E14) -> 0.07228120516 | G15: =IF('6 (2)'!G14="n/a","n/a",'6 (1)'!$H14+'6 (2)'!G14) -> -0.03421879484 | I15: =IF('6 (2)'!I14="n/a","n/a",'6 (1)'!$H14+'6 (2)'!I14) -> 0.08228120516 | L15: =IF('6 (2)'!K14="n/a","n/a",'6 (1)'!$H14+'6 (2)'!K14) -> 0.1071129535 | P15: 0.07228120516 | Q15: nmf | R15: 0.08228120516 | T15: 0.1071129535
A16: 8 | B16: =VLOOKUP('Utility Group'!$B10,vldatabase,2,FALSE) -> CMS Energy Corp. | E16: =IF('6 (2)'!E15="n/a","n/a",'6 (1)'!$H15+'6 (2)'!E15) -> 0.1030958875 | G16: =IF('6 (2)'!G15="n/a","n/a",'6 (1)'!$H15+'6 (2)'!G15) -> 0.09889588749 | I16: =IF('6 (2)'!I15="n/a","n/a",'6 (1)'!$H15+'6 (2)'!I15) -> 0.09819588749 | L16: =IF('6 (2)'!K15="n/a","n/a",'6 (1)'!$H15+'6 (2)'!K15) -> 0.1005341267 | P16: 0.1030958875 | Q16: 0.09889588749 | R16: 0.09819588749 | T16: 0.1005341267
A17: 9 | B17: =VLOOKUP('Utility Group'!$B11,vldatabase,2,FALSE) -> DTE Energy Co. | E17: =IF('6 (2)'!E16="n/a","n/a",'6 (1)'!$H16+'6 (2)'!E16) -> 0.09728458274 | G17: =IF('6 (2)'!G16="n/a","n/a",'6 (1)'!$H16+'6 (2)'!G16) -> 0.09678458274 | I17: =IF('6 (2)'!I16="n/a","n/a",'6 (1)'!$H16+'6 (2)'!I16) -> 0.09398458274 | L17: =IF('6 (2)'!K16="n/a","n/a",'6 (1)'!$H16+'6 (2)'!K16) -> 0.0902241173 | P17: 0.09728458274 | Q17: 0.09678458274 | R17: 0.09398458274 | T17: 0.0902241173
A18: 10 | B18: =VLOOKUP('Utility Group'!$B12,vldatabase,2,FALSE) -> Edison International | E18: =IF('6 (2)'!E17="n/a","n/a",'6 (1)'!$H17+'6 (2)'!E17) -> n/a | G18: =IF('6 (2)'!G17="n/a","n/a",'6 (1)'!$H17+'6 (2)'!G17) -> 0.06451551733 | I18: =IF('6 (2)'!I17="n/a","n/a",'6 (1)'!$H17+'6 (2)'!I17) -> 0.07941551733 | L18: =IF('6 (2)'!K17="n/a","n/a",'6 (1)'!$H17+'6 (2)'!K17) -> 0.1065440406 | P18: n/a | Q18: 0.06451551733 | R18: 0.07941551733 | T18: 0.1065440406
A19: 11 | B19: =VLOOKUP('Utility Group'!$B13,vldatabase,2,FALSE) -> Emera Inc. | E19: =IF('6 (2)'!E18="n/a","n/a",'6 (1)'!$H18+'6 (2)'!E18) -> 0.1052775792 | G19: =IF('6 (2)'!G18="n/a","n/a",'6 (1)'!$H18+'6 (2)'!G18) -> 0.1026775792 | I19: =IF('6 (2)'!I18="n/a","n/a",'6 (1)'!$H18+'6 (2)'!I18) -> n/a | L19: =IF('6 (2)'!K18="n/a","n/a",'6 (1)'!$H18+'6 (2)'!K18) -> 0.08313699426 | P19: 0.1052775792 | Q19: 0.1026775792 | R19: n/a | T19: 0.08313699426
A20: 12 | B20: =VLOOKUP('Utility Group'!$B14,vldatabase,2,FALSE) -> Entergy Corp. | E20: =IF('6 (2)'!E19="n/a","n/a",'6 (1)'!$H19+'6 (2)'!E19) -> 0.06894759499 | G20: =IF('6 (2)'!G19="n/a","n/a",'6 (1)'!$H19+'6 (2)'!G19) -> 0.09294759499 | I20: =IF('6 (2)'!I19="n/a","n/a",'6 (1)'!$H19+'6 (2)'!I19) -> 0.09324759499 | L20: =IF('6 (2)'!K19="n/a","n/a",'6 (1)'!$H19+'6 (2)'!K19) -> 0.08799997341 | P20: 0.06894759499 | Q20: 0.09294759499 | R20: 0.09324759499 | T20: 0.08799997341
A21: 13 | B21: =VLOOKUP('Utility Group'!$B15,vldatabase,2,FALSE) -> Exelon Corp. | E21: =IF('6 (2)'!E20="n/a","n/a",'6 (1)'!$H20+'6 (2)'!E20) -> 0.09337016575 | G21: =IF('6 (2)'!G20="n/a","n/a",'6 (1)'!$H20+'6 (2)'!G20) -> 0.008570165746 | I21: =IF('6 (2)'!I20="n/a","n/a",'6 (1)'!$H20+'6 (2)'!I20) -> 0.08337016575 | L21: =IF('6 (2)'!K20="n/a","n/a",'6 (1)'!$H20+'6 (2)'!K20) -> 0.08483595675 | P21: 0.09337016575 | Q21: nmf | R21: 0.08337016575 | T21: 0.08483595675
A22: 14 | B22: =VLOOKUP('Utility Group'!$B16,vldatabase,2,FALSE) -> FirstEnergy Corp. | E22: =IF('6 (2)'!E21="n/a","n/a",'6 (1)'!$H21+'6 (2)'!E21) -> 0.1402518186 | G22: =IF('6 (2)'!G21="n/a","n/a",'6 (1)'!$H21+'6 (2)'!G21) -> 0.03125181856 | I22: =IF('6 (2)'!I21="n/a","n/a",'6 (1)'!$H21+'6 (2)'!I21) -> n/a | L22: =IF('6 (2)'!K21="n/a","n/a",'6 (1)'!$H21+'6 (2)'!K21) -> 0.1449900082 | P22: 0.1402518186 | Q22: nmf | R22: n/a | T22: nmf
A23: 15 | B23: =VLOOKUP('Utility Group'!$B17,vldatabase,2,FALSE) -> Hawaiian Elec. | E23: =IF('6 (2)'!E22="n/a","n/a",'6 (1)'!$H22+'6 (2)'!E22) -> 0.03683773351 | G23: =IF('6 (2)'!G22="n/a","n/a",'6 (1)'!$H22+'6 (2)'!G22) -> 0.05483773351 | I23: =IF('6 (2)'!I22="n/a","n/a",'6 (1)'!$H22+'6 (2)'!I22) -> 0.03853773351 | L23: =IF('6 (2)'!K22="n/a","n/a",'6 (1)'!$H22+'6 (2)'!K22) -> 0.05071003094 | P23: nmf | Q23: nmf | R23: nmf | T23: nmf
A24: 16 | B24: =VLOOKUP('Utility Group'!$B18,vldatabase,2,FALSE) -> IDACORP, Inc. | E24: =IF('6 (2)'!E23="n/a","n/a",'6 (1)'!$H23+'6 (2)'!E23) -> 0.06843533276 | G24: =IF('6 (2)'!G23="n/a","n/a",'6 (1)'!$H23+'6 (2)'!G23) -> 0.05943533276 | I24: =IF('6 (2)'!I23="n/a","n/a",'6 (1)'!$H23+'6 (2)'!I23) -> 0.05973533276 | L24: =IF('6 (2)'!K23="n/a","n/a",'6 (1)'!$H23+'6 (2)'!K23) -> 0.06756153616 | P24: 0.06843533276 | Q24: nmf | R24: nmf | T24: 0.06756153616
A25: 17 | B25: =VLOOKUP('Utility Group'!$B19,vldatabase,2,FALSE) -> NorthWestern Corp. | E25: =IF('6 (2)'!E24="n/a","n/a",'6 (1)'!$H24+'6 (2)'!E24) -> 0.06341195611 | G25: =IF('6 (2)'!G24="n/a","n/a",'6 (1)'!$H24+'6 (2)'!G24) -> 0.08641195611 | I25: =IF('6 (2)'!I24="n/a","n/a",'6 (1)'!$H24+'6 (2)'!I24) -> 0.08231195611 | L25: =IF('6 (2)'!K24="n/a","n/a",'6 (1)'!$H24+'6 (2)'!K24) -> 0.07586389547 | P25: nmf | Q25: 0.08641195611 | R25: 0.08231195611 | T25: 0.07586389547
A26: 18 | B26: =VLOOKUP('Utility Group'!$B20,vldatabase,2,FALSE) -> OGE Energy Corp. | E26: =IF('6 (2)'!E25="n/a","n/a",'6 (1)'!$H25+'6 (2)'!E25) -> 0.08371179039 | G26: =IF('6 (2)'!G25="n/a","n/a",'6 (1)'!$H25+'6 (2)'!G25) -> 0.07771179039 | I26: =IF('6 (2)'!I25="n/a","n/a",'6 (1)'!$H25+'6 (2)'!I25) -> 0.09061179039 | L26: =IF('6 (2)'!K25="n/a","n/a",'6 (1)'!$H25+'6 (2)'!K25) -> 0.08038903297 | P26: 0.08371179039 | Q26: 0.07771179039 | R26: 0.09061179039 | T26: 0.08038903297
A27: 19 | B27: =VLOOKUP('Utility Group'!$B21,vldatabase,2,FALSE) -> Otter Tail Corp. | E27: =IF('6 (2)'!E26="n/a","n/a",'6 (1)'!$H26+'6 (2)'!E26) -> 0.09107506424 | G27: =IF('6 (2)'!G26="n/a","n/a",'6 (1)'!$H26+'6 (2)'!G26) -> 0.1310750642 | I27: =IF('6 (2)'!I26="n/a","n/a",'6 (1)'!$H26+'6 (2)'!I26) -> n/a | L27: =IF('6 (2)'!K26="n/a","n/a",'6 (1)'!$H26+'6 (2)'!K26) -> 0.09418626953 | P27: 0.09107506424 | Q27: 0.1310750642 | R27: n/a | T27: 0.09418626953
A28: 20 | B28: =VLOOKUP('Utility Group'!$B22,vldatabase,2,FALSE) -> PNM Resources | E28: =IF('6 (2)'!E27="n/a","n/a",'6 (1)'!$H27+'6 (2)'!E27) -> 0.09003623419 | G28: =IF('6 (2)'!G27="n/a","n/a",'6 (1)'!$H27+'6 (2)'!G27) -> 0.07953623419 | I28: =IF('6 (2)'!I27="n/a","n/a",'6 (1)'!$H27+'6 (2)'!I27) -> 0.07873623419 | L28: =IF('6 (2)'!K27="n/a","n/a",'6 (1)'!$H27+'6 (2)'!K27) -> 0.09052229356 | P28: 0.09003623419 | Q28: 0.07953623419 | R28: 0.07873623419 | T28: 0.09052229356
A29: 21 | B29: =VLOOKUP('Utility Group'!$B23,vldatabase,2,FALSE) -> Sempra Energy | E29: =IF('6 (2)'!E28="n/a","n/a",'6 (1)'!$H28+'6 (2)'!E28) -> 0.1360694795 | G29: =IF('6 (2)'!G28="n/a","n/a",'6 (1)'!$H28+'6 (2)'!G28) -> 0.09876947946 | I29: =IF('6 (2)'!I28="n/a","n/a",'6 (1)'!$H28+'6 (2)'!I28) -> 0.1096694795 | L29: =IF('6 (2)'!K28="n/a","n/a",'6 (1)'!$H28+'6 (2)'!K28) -> 0.1090828729 | P29: 0.1360694795 | Q29: 0.09876947946 | R29: 0.1096694795 | T29: 0.1090828729
B31: Average (b) | E31: =P33 -> 0.09258542232 | G31: =Q33 -> 0.09432777849 | I31: =R33 -> 0.09301042617 | L31: =T33 -> 0.08820983433 | O31: Max | P31: =MAX(P9:P29) -> 0.1402518186 | Q31: =MAX(Q9:Q29) -> 0.1310750642 | R31: =MAX(R9:R29) -> 0.1227894114 | T31: =MAX(T9:T29) -> 0.1090828729
B32: Midpoint (b,c) | E32: =AVERAGE(P31:P32) -> 0.1043435757 | G32: =AVERAGE(Q31:Q32) -> 0.09779529078 | I32: =AVERAGE(R31:R32) -> 0.1007628228 | L32: =AVERAGE(T31:T32) -> 0.08832220454 | O32: Min | P32: =MIN(P9:P29) -> 0.06843533276 | Q32: =MIN(Q9:Q29) -> 0.06451551733 | R32: =MIN(R9:R29) -> 0.07873623419 | T32: =MIN(T9:T29) -> 0.06756153616
O33: Average | P33: =AVERAGE(P9:P29) -> 0.09258542232 | Q33: =AVERAGE(Q9:Q29) -> 0.09432777849 | R33: =AVERAGE(R9:R29) -> 0.09301042617 | T33: =AVERAGE(T9:T29) -> 0.08820983433
A35: (a) | B35: ="Sum of dividend yield (" & M1 & ", p. 1) and respective growth rate (" & M1 & ", p. 2)." -> Sum of dividend yield (Exh. AMM-6, p. 1) and respective growth rate (Exh. AMM-6, p. 2).
A36: (b) | B36: Excludes highlighted figures.
A37: (c) | B37: Average of low and high values.
B42: Min | E42: 0.064
B43: Max | E43: 0.141

Sheet 6 (4)
A1: ='Exhibit List'!C8 -> DCF MODEL - UTILITY GROUP | J1: ='Exhibit List'!B8 -> Exh. AMM-6
J2: Page 4 of 4
A3: ='Exhibit List'!D8 -> LOW-END THRESHOLD ADJUSTMENTS
B6: Atlantic Path 15 / Startrans / So. Cal Edison | G6: Pioneer Transmission
D7: Baa Yield | H7: Baa Yield
C8: 2007-06-19 | D8: 0.0654 | G8: 2008-04-14 | H8: 0.0681
C9: 2007-07-19 | D9: 0.0649 | G9: 2008-05-14 | H9: 0.0679
C10: 2007-08-18 | D10: 0.0651 | G10: 2008-06-13 | H10: 0.0693
C11: 2007-09-17 | D11: 0.0645 | G11: 2008-07-13 | H11: 0.0697
C12: 2007-10-17 | D12: 0.0636 | G12: 2008-08-12 | H12: 0.0698
C13: 2007-11-16 | D13: 0.0627 | G13: 2008-09-11 | H13: 0.0715
G15: Current | I15: Projected
B16: Historical Baa Bond Yield | G16: =I16 -> 0.066875 | H16: (a) | I16: =AVERAGE(D8:D13,H8:H13) -> 0.066875 | J16: (a)
B17: Current Baa Bond Yield | G17: ='Bond Yields'!C16 -> 0.0337 | H17: (b) | I17: ='Bond Yields'!E39 -> 0.0479 | J17: (c)
C18: Change in Bond Yield | G18: =G17-G16 -> -0.033175 | I18: =I17-I16 -> -0.018975
B20: Risk Premium/Interest Rate Relationship | G20: ='10 (4)'!B46 -> -0.4210266906 | H20: (d) | I20: =G20 -> -0.4210266906 | J20: (d)
C21: Adjustment to Low-end Threshold | G21: =G20*G18 -> 0.01396756046 | I21: =I20*I18 -> 0.007988981454
B24: Current Baa Bond Yield | G24: =G17 -> 0.0337 | I24: =I17 -> 0.0479
B25: Original Threshold | G25: 0.01 | I25: 0.01
B26: Adjustment | G26: =G21 -> 0.01396756046 | I26: =I21 -> 0.007988981454
B27: Adjusted Low-end Threshold | G27: =SUM(G24:G26) -> 0.05766756046 | I27: =SUM(I24:I26) -> 0.06588898145 | L27: =AVERAGE(G27:I27) -> 0.06177827096
B29: Low-end Test -- FERC Opinion No. 569-A
B30: =B17 -> Current Baa Bond Yield | G30: =G17 -> 0.0337
B32: CAPM Market Risk Premium (e) | G32: ='8'!I9 -> 0.1017
B33: Risk Premium Factor (f) | G33: 0.2
C34: =C21 -> Adjustment to Low-end Threshold | G34: =G32*G33 -> 0.02034
B36: =B27 -> Adjusted Low-end Threshold | G36: =G30+G34 -> 0.05404
A38: (a) | B38: Average Baa utility bond yield for 6-mo. periods ending Nov. 2007 and Sep. 2008.
A39: (b) | B39: ="Average Baa utility bond yield for 6-months ended "&'Bond Yields'!B14&"." -> Average Baa utility bond yield for 6-months ended Sep. 2020.
A40: (c) | B40: ="Average Baa utility bond yield for 2021-25 based on data from "&'Bond Yields'!B73& "; "&'Bond Yields'!B74&", Moody's Investors Service at www.credittrends.com." -> Average Baa utility bond yield for 2021-25 based on data from IHS Markit, Long-Term Macro Forecast - Baseline (Jun. 29, 2020); Energy Information Administration, Annual Energy Outlook 2020 (Jan. 29, 2020), Moody's Investors Service at www.credittrends.com.
A43: (d) | B43: ='10 (4)'!I1&", page 4." -> Exh. AMM-10, page 4.
A44: (e) | B44: ='8'!O1&", page 1." -> Exh. AMM-8, page 1.
A45: (f) | B45: 171 FERC ¶ 61,154, Docket Nos. EL14-12-004 and EL15-45-013, Opinion No. 569-A, Order on Rehearing (issued May 21, 2020).

Sheet 7
A1: ='Exhibit List'!$C$9 -> DCF MODEL - UTILITY GROUP | Q1: ='Exhibit List'!$B$9 -> Exh. AMM-7 | R1: =A1 -> DCF MODEL - UTILITY GROUP | AH1: =Q1 -> Exh. AMM-7
Q2: Page 1 of 2 | AH2: Page 2 of 2
A3: ='Exhibit List'!$D$9 -> BR+SV GROWTH RATE | R3: =A3 -> BR+SV GROWTH RATE
C5: (a) | D5: (a) | E5: (a) | I5: (b) | J5: (c) | M5: (d) | N5: (e) | T5: (a) | U5: (a) | V5: (f) | X5: (a) | Y5: (a) | Z5: (f) | AA5: (g) | AB5: (a) | AC5: (a) | AE5: (h) | AF5: (a) | AG5: (a) | AH5: (g)
C6: 2024 | I6: Adjustment | M6: "sv" Factor | T6: 2019 | X6: 2024 | AA6: Chg | AB6: 2024 | AF6: Common Shares
B7: Company | C7: EPS | D7: DPS | E7: BVPS | G7: b | H7: r | I7: Factor | J7: Adjusted r | K7: br | M7: s | N7: v | O7: sv | Q7: br + sv | S7: Company | T7: Eq Ratio | U7: Tot Cap | V7: Com Eq | X7: Eq Ratio | Y7: Tot Cap | Z7: Com Eq | AA7: Equity | AB7: High | AC7: Low | AD7: Avg. | AE7: M/B | AF7: 2019 | AG7: 2024 | AH7: Growth
A8: =A7+1 -> 1 | B8: =VLOOKUP('Utility Group'!$B3,vldatabase,2,FALSE) -> Algonquin Pwr & Util | C8: =VLOOKUP('Utility Group'!$B3,vldatabase,7,FALSE) -> n/a | D8: =VLOOKUP('Utility Group'!$B3,vldatabase,8,FALSE) -> n/a | E8: =VLOOKUP('Utility Group'!$B3,vldatabase,9,FALSE) -> n/a | G8: =IF(E8="n/a", "n/a",+(C8-D8)/C8) -> n/a | H8: =IF(E8="n/a","n/a",C8/E8) -> n/a | I8: =IF(AA8="n/a","n/a",2*(1+AA8)/(2+AA8)) -> n/a | J8: =IF(H8="n/a","n/a",H8*I8) -> n/a | K8: =IF(G8="n/a","n/a",G8*J8) -> n/a | M8: =IF(AE8="n/a","n/a",AE8*AH8) -> n/a | N8: =IF(AE8="n/a","n/a",1-1/AE8) -> n/a | O8: =IF(M8="n/a","n/a",M8*N8) -> n/a | Q8: =IF(K8="n/a","n/a",K8+O8) -> n/a | R8: =A8 -> 1 | S8: =B8 -> Algonquin Pwr & Util | T8: =VLOOKUP('Utility Group'!$B3,vldatabase,14,FALSE) -> n/a | U8: =VLOOKUP('Utility Group'!$B3,vldatabase,16,FALSE) -> n/a | V8: =IF(U8="n/a","n/a",T8*U8) -> n/a | X8: =VLOOKUP('Utility Group'!$B3,vldatabase,15,FALSE) -> n/a | Y8: =VLOOKUP('Utility Group'!$B3,vldatabase,17,FALSE) -> n/a | Z8: =IF(Y8="n/a","n/a",X8*Y8) -> n/a | AA8: =IF(V8="n/a","n/a",(+Z8/V8)^(1/5)-1) -> n/a | AB8: =VLOOKUP('Utility Group'!$B3,vldatabase,5,FALSE) -> n/a | AC8: =VLOOKUP('Utility Group'!$B3,vldatabase,6,FALSE) -> n/a | AD8: =IF(AB8="n/a","n/a",AVERAGE(AB8:AC8)) -> n/a | AE8: =IF(AD8="n/a","n/a",AD8/E8) -> n/a | AF8: =VLOOKUP('Utility Group'!$B3,vldatabase,10,FALSE) -> n/a | AG8: =VLOOKUP('Utility Group'!$B3,vldatabase,11,FALSE) -> n/a | AH8: =IF(AF8="n/a","n/a",(+AG8/AF8)^(1/5)-1) -> n/a
A9: =A8+1 -> 2 | B9: =VLOOKUP('Utility Group'!$B4,vldatabase,2,FALSE) -> ALLETE | C9: =VLOOKUP('Utility Group'!$B4,vldatabase,7,FALSE) -> 4.25 | D9: =VLOOKUP('Utility Group'!$B4,vldatabase,8,FALSE) -> 2.9 | E9: =VLOOKUP('Utility Group'!$B4,vldatabase,9,FALSE) -> 51.75 | G9: =IF(E9="n/a", "n/a",+(C9-D9)/C9) -> 0.3176470588 | H9: =IF(E9="n/a","n/a",C9/E9) -> 0.08212560386 | I9: =IF(AA9="n/a","n/a",2*(1+AA9)/(2+AA9)) -> 1.023347544 | J9: =IF(H9="n/a","n/a",H9*I9) -> 0.08404303505 | K9: =IF(G9="n/a","n/a",G9*J9) -> 0.0266960229 | M9: =IF(AE9="n/a","n/a",AE9*AH9) -> 0.01448995495 | N9: =IF(AE9="n/a","n/a",1-1/AE9) -> 0.3322580645 | O9: =IF(M9="n/a","n/a",M9*N9) -> 0.004814404387 | Q9: =IF(K9="n/a","n/a",K9+O9) -> 0.03151042729 | R9: =A9 -> 2 | S9: =B9 -> ALLETE | T9: =VLOOKUP('Utility Group'!$B4,vldatabase,14,FALSE) -> 0.614 | U9: =VLOOKUP('Utility Group'!$B4,vldatabase,16,FALSE) -> 3632.8 | V9: =IF(U9="n/a","n/a",T9*U9) -> 2230.5392 | X9: =VLOOKUP('Utility Group'!$B4,vldatabase,15,FALSE) -> 0.59 | Y9: =VLOOKUP('Utility Group'!$B4,vldatabase,17,FALSE) -> 4775 | Z9: =IF(Y9="n/a","n/a",X9*Y9) -> 2817.25 | AA9: =IF(V9="n/a","n/a",(+Z9/V9)^(1/5)-1) -> 0.047811367 | AB9: =VLOOKUP('Utility Group'!$B4,vldatabase,5,FALSE) -> 90 | AC9: =VLOOKUP('Utility Group'!$B4,vldatabase,6,FALSE) -> 65 | AD9: =IF(AB9="n/a","n/a",AVERAGE(AB9:AC9)) -> 77.5 | AE9: =IF(AD9="n/a","n/a",AD9/E9) -> 1.497584541 | AF9: =VLOOKUP('Utility Group'!$B4,vldatabase,10,FALSE) -> 51.7 | AG9: =VLOOKUP('Utility Group'!$B4,vldatabase,11,FALSE) -> 54.25 | AH9: =IF(AF9="n/a","n/a",(+AG9/AF9)^(1/5)-1) -> 0.009675550565
A10: 3 | B10: =VLOOKUP('Utility Group'!$B5,vldatabase,2,FALSE) -> Ameren Corp. | C10: =VLOOKUP('Utility Group'!$B5,vldatabase,7,FALSE) -> 4.5 | D10: =VLOOKUP('Utility Group'!$B5,vldatabase,8,FALSE) -> 2.45 | E10: =VLOOKUP('Utility Group'!$B5,vldatabase,9,FALSE) -> 44.5 | G10: 0.4555555556 | H10: 0.1011235955 | I10: 1.039799637 | J10: 0.1051482779 | K10: 0.04790088217 | M10: 0.03034720515 | N10: 0.3862068966 | O10: 0.01172029992 | Q10: 0.05962118209 | R10: 3 | S10: Ameren Corp. | T10: =VLOOKUP('Utility Group'!$B5,vldatabase,14,FALSE) -> 0.471 | U10: =VLOOKUP('Utility Group'!$B5,vldatabase,16,FALSE) -> 17116 | V10: 8061.636 | X10: =VLOOKUP('Utility Group'!$B5,vldatabase,15,FALSE) -> 0.49 | Y10: =VLOOKUP('Utility Group'!$B5,vldatabase,17,FALSE) -> 24500 | Z10: 12005 | AA10: 0.08289860909 | AB10: =VLOOKUP('Utility Group'!$B5,vldatabase,5,FALSE) -> 85 | AC10: =VLOOKUP('Utility Group'!$B5,vldatabase,6,FALSE) -> 60 | AD10: 72.5 | AE10: 1.629213483 | AF10: =VLOOKUP('Utility Group'!$B5,vldatabase,10,FALSE) -> 246.2 | AG10: =VLOOKUP('Utility Group'!$B5,vldatabase,11,FALSE) -> 270 | AH10: 0.01862690523
A11: 4 | B11: =VLOOKUP('Utility Group'!$B6,vldatabase,2,FALSE) -> Avangrid, Inc. | C11: =VLOOKUP('Utility Group'!$B6,vldatabase,7,FALSE) -> 2.5 | D11: =VLOOKUP('Utility Group'!$B6,vldatabase,8,FALSE) -> 1.8 | E11: =VLOOKUP('Utility Group'!$B6,vldatabase,9,FALSE) -> 51.75 | G11: 0.28 | H11: 0.04830917874 | I11: 1.004802993 | J11: 0.04854120738 | K11: 0.01359153807 | M11: -5.315469853e-06 | N11: -0.2176470588 | O11: 1.15689638e-06 | Q11: 0.01359269496 | R11: 4 | S11: Avangrid, Inc. | T11: =VLOOKUP('Utility Group'!$B6,vldatabase,14,FALSE) -> 0.694 | U11: =VLOOKUP('Utility Group'!$B6,vldatabase,16,FALSE) -> 21953 | V11: 15235.382 | X11: =VLOOKUP('Utility Group'!$B6,vldatabase,15,FALSE) -> 0.575 | Y11: =VLOOKUP('Utility Group'!$B6,vldatabase,17,FALSE) -> 27800 | Z11: 15985 | AA11: 0.009652345588 | AB11: =VLOOKUP('Utility Group'!$B6,vldatabase,5,FALSE) -> 50 | AC11: =VLOOKUP('Utility Group'!$B6,vldatabase,6,FALSE) -> 35 | AD11: 42.5 | AE11: 0.8212560386 | AF11: =VLOOKUP('Utility Group'!$B6,vldatabase,10,FALSE) -> 309.01 | AG11: =VLOOKUP('Utility Group'!$B6,vldatabase,11,FALSE) -> 309 | AH11: -6.472366233e-06
A12: 5 | B12: =VLOOKUP('Utility Group'!$B7,vldatabase,2,FALSE) -> Avista Corp. | C12: =VLOOKUP('Utility Group'!$B7,vldatabase,7,FALSE) -> 2.5 | D12: =VLOOKUP('Utility Group'!$B7,vldatabase,8,FALSE) -> 1.9 | E12: =VLOOKUP('Utility Group'!$B7,vldatabase,9,FALSE) -> 31.75 | G12: 0.24 | H12: 0.07874015748 | I12: 1.018192814 | J12: 0.0801726625 | K12: 0.019241439 | M12: 0.02770610663 | N12: 0.3952380952 | O12: 0.01095050881 | Q12: 0.03019194781 | R12: 5 | S12: Avista Corp. | T12: =VLOOKUP('Utility Group'!$B7,vldatabase,14,FALSE) -> 0.506 | U12: =VLOOKUP('Utility Group'!$B7,vldatabase,16,FALSE) -> 3834.6 | V12: 1940.3076 | X12: =VLOOKUP('Utility Group'!$B7,vldatabase,15,FALSE) -> 0.49 | Y12: =VLOOKUP('Utility Group'!$B7,vldatabase,17,FALSE) -> 4750 | Z12: 2327.5 | AA12: 0.03705985047 | AB12: =VLOOKUP('Utility Group'!$B7,vldatabase,5,FALSE) -> 60 | AC12: =VLOOKUP('Utility Group'!$B7,vldatabase,6,FALSE) -> 45 | AD12: 52.5 | AE12: 1.653543307 | AF12: =VLOOKUP('Utility Group'!$B7,vldatabase,10,FALSE) -> 67.18 | AG12: =VLOOKUP('Utility Group'!$B7,vldatabase,11,FALSE) -> 73 | AH12: 0.01675559782
A13: 6 | B13: =VLOOKUP('Utility Group'!$B8,vldatabase,2,FALSE) -> Black Hills Corp. | C13: =VLOOKUP('Utility Group'!$B8,vldatabase,7,FALSE) -> 4.25 | D13: =VLOOKUP('Utility Group'!$B8,vldatabase,8,FALSE) -> 2.75 | E13: =VLOOKUP('Utility Group'!$B8,vldatabase,9,FALSE) -> 46.75 | G13: 0.3529411765 | H13: 0.09090909091 | I13: 1.023168899 | J13: 0.0930153545 | K13: 0.03282894865 | M13: 0.01337242855 | N13: 0.3967741935 | O13: 0.005305834553 | Q13: 0.0381347832 | R13: 6 | S13: Black Hills Corp. | T13: =VLOOKUP('Utility Group'!$B8,vldatabase,14,FALSE) -> 0.429 | U13: =VLOOKUP('Utility Group'!$B8,vldatabase,16,FALSE) -> 5502.2 | V13: 2360.4438 | X13: =VLOOKUP('Utility Group'!$B8,vldatabase,15,FALSE) -> 0.48 | Y13: =VLOOKUP('Utility Group'!$B8,vldatabase,17,FALSE) -> 6200 | Z13: 2976 | AA13: 0.04743685875 | AB13: =VLOOKUP('Utility Group'!$B8,vldatabase,5,FALSE) -> 90 | AC13: =VLOOKUP('Utility Group'!$B8,vldatabase,6,FALSE) -> 65 | AD13: 77.5 | AE13: 1.657754011 | AF13: =VLOOKUP('Utility Group'!$B8,vldatabase,10,FALSE) -> 61.48 | AG13: =VLOOKUP('Utility Group'!$B8,vldatabase,11,FALSE) -> 64 | AH13: 0.008066593995
A14: 7 | B14: =VLOOKUP('Utility Group'!$B9,vldatabase,2,FALSE) -> CenterPoint Energy | C14: =VLOOKUP('Utility Group'!$B9,vldatabase,7,FALSE) -> 1.6 | D14: =VLOOKUP('Utility Group'!$B9,vldatabase,8,FALSE) -> 0.8 | E14: =VLOOKUP('Utility Group'!$B9,vldatabase,9,FALSE) -> 15.25 | G14: 0.5 | H14: 0.1049180328 | I14: 1.038415388 | J14: 0.1089484997 | K14: 0.05447424987 | M14: 0.07002979472 | N14: 0.2906976744 | O14: 0.02035749847 | Q14: 0.07483174833 | R14: 7 | S14: CenterPoint Energy | T14: =VLOOKUP('Utility Group'!$B9,vldatabase,14,FALSE) -> 0.291 | U14: =VLOOKUP('Utility Group'!$B9,vldatabase,16,FALSE) -> 22603 | V14: 6577.473 | X14: =VLOOKUP('Utility Group'!$B9,vldatabase,15,FALSE) -> 0.42 | Y14: =VLOOKUP('Utility Group'!$B9,vldatabase,17,FALSE) -> 23000 | Z14: 9660 | AA14: 0.07990017233 | AB14: =VLOOKUP('Utility Group'!$B9,vldatabase,5,FALSE) -> 25 | AC14: =VLOOKUP('Utility Group'!$B9,vldatabase,6,FALSE) -> 18 | AD14: 21.5 | AE14: 1.409836066 | AF14: =VLOOKUP('Utility Group'!$B9,vldatabase,10,FALSE) -> 502.24 | AG14: =VLOOKUP('Utility Group'!$B9,vldatabase,11,FALSE) -> 640 | AH14: 0.04967229626
A15: 8 | B15: =VLOOKUP('Utility Group'!$B10,vldatabase,2,FALSE) -> CMS Energy Corp. | C15: =VLOOKUP('Utility Group'!$B10,vldatabase,7,FALSE) -> 3.5 | D15: =VLOOKUP('Utility Group'!$B10,vldatabase,8,FALSE) -> 2.15 | E15: =VLOOKUP('Utility Group'!$B10,vldatabase,9,FALSE) -> 25.5 | G15: 0.3857142857 | H15: 0.137254902 | I15: 1.042866494 | J15: 0.1431385384 | K15: 0.05521057909 | M15: 0.0283493141 | N15: 0.6076923077 | O15: 0.0172276601 | Q15: 0.07243823919 | R15: 8 | S15: CMS Energy Corp. | T15: =VLOOKUP('Utility Group'!$B10,vldatabase,14,FALSE) -> 0.294 | U15: =VLOOKUP('Utility Group'!$B10,vldatabase,16,FALSE) -> 17082 | V15: 5022.108 | X15: =VLOOKUP('Utility Group'!$B10,vldatabase,15,FALSE) -> 0.32 | Y15: =VLOOKUP('Utility Group'!$B10,vldatabase,17,FALSE) -> 24100 | Z15: 7712 | AA15: 0.08957265342 | AB15: =VLOOKUP('Utility Group'!$B10,vldatabase,5,FALSE) -> 75 | AC15: =VLOOKUP('Utility Group'!$B10,vldatabase,6,FALSE) -> 55 | AD15: 65 | AE15: 2.549019608 | AF15: =VLOOKUP('Utility Group'!$B10,vldatabase,10,FALSE) -> 283.86 | AG15: =VLOOKUP('Utility Group'!$B10,vldatabase,11,FALSE) -> 300 | AH15: 0.01112165399
A16: 9 | B16: =VLOOKUP('Utility Group'!$B11,vldatabase,2,FALSE) -> DTE Energy Co. | C16: =VLOOKUP('Utility Group'!$B11,vldatabase,7,FALSE) -> 8.5 | D16: =VLOOKUP('Utility Group'!$B11,vldatabase,8,FALSE) -> 5.2 | E16: =VLOOKUP('Utility Group'!$B11,vldatabase,9,FALSE) -> 79.25 | G16: 0.3882352941 | H16: 0.1072555205 | I16: 1.032628276 | J16: 0.1107550833 | K16: 0.04299903232 | M16: 0.02290815331 | N16: 0.4339285714 | O16: 0.009940502238 | Q16: 0.05293953456 | R16: 9 | S16: DTE Energy Co. | T16: =VLOOKUP('Utility Group'!$B11,vldatabase,14,FALSE) -> 0.423 | U16: =VLOOKUP('Utility Group'!$B11,vldatabase,16,FALSE) -> 27607 | V16: 11677.761 | X16: =VLOOKUP('Utility Group'!$B11,vldatabase,15,FALSE) -> 0.415 | Y16: =VLOOKUP('Utility Group'!$B11,vldatabase,17,FALSE) -> 39000 | Z16: 16185 | AA16: 0.06745757689 | AB16: =VLOOKUP('Utility Group'!$B11,vldatabase,5,FALSE) -> 160 | AC16: =VLOOKUP('Utility Group'!$B11,vldatabase,6,FALSE) -> 120 | AD16: 140 | AE16: 1.766561514 | AF16: =VLOOKUP('Utility Group'!$B11,vldatabase,10,FALSE) -> 192.21 | AG16: =VLOOKUP('Utility Group'!$B11,vldatabase,11,FALSE) -> 205 | AH16: 0.01296765107
A17: 10 | B17: =VLOOKUP('Utility Group'!$B12,vldatabase,2,FALSE) -> Edison International | C17: =VLOOKUP('Utility Group'!$B12,vldatabase,7,FALSE) -> 5.25 | D17: =VLOOKUP('Utility Group'!$B12,vldatabase,8,FALSE) -> 3 | E17: =VLOOKUP('Utility Group'!$B12,vldatabase,9,FALSE) -> 46.5 | G17: 0.4285714286 | H17: 0.1129032258 | I17: 1.028492378 | J17: 0.1161201072 | K17: 0.04976576025 | M17: 0.0149558521 | N17: 0.41875 | O17: 0.006262763068 | Q17: 0.05602852332 | R17: 10 | S17: Edison International | T17: =VLOOKUP('Utility Group'!$B12,vldatabase,14,FALSE) -> 0.399 | U17: =VLOOKUP('Utility Group'!$B12,vldatabase,16,FALSE) -> 33360 | V17: 13310.64 | X17: =VLOOKUP('Utility Group'!$B12,vldatabase,15,FALSE) -> 0.375 | Y17: =VLOOKUP('Utility Group'!$B12,vldatabase,17,FALSE) -> 47200 | Z17: 17700 | AA17: 0.05865600607 | AB17: =VLOOKUP('Utility Group'!$B12,vldatabase,5,FALSE) -> 95 | AC17: =VLOOKUP('Utility Group'!$B12,vldatabase,6,FALSE) -> 65 | AD17: 80 | AE17: 1.720430108 | AF17: =VLOOKUP('Utility Group'!$B12,vldatabase,10,FALSE) -> 361.99 | AG17: =VLOOKUP('Utility Group'!$B12,vldatabase,11,FALSE) -> 378 | AH17: 0.008693089035
A18: 11 | B18: =VLOOKUP('Utility Group'!$B13,vldatabase,2,FALSE) -> Emera Inc. | C18: =VLOOKUP('Utility Group'!$B13,vldatabase,7,FALSE) -> 4 | D18: =VLOOKUP('Utility Group'!$B13,vldatabase,8,FALSE) -> 2.76 | E18: =VLOOKUP('Utility Group'!$B13,vldatabase,9,FALSE) -> 44.95 | G18: 0.31 | H18: 0.08898776418 | I18: 1.025683294 | J18: 0.09127326312 | K18: 0.02829471157 | M18: 0.02517027243 | N18: 0.38 | O18: 0.009564703525 | Q18: 0.03785941509 | R18: 11 | S18: Emera Inc. | T18: =VLOOKUP('Utility Group'!$B13,vldatabase,14,FALSE) -> 0.3850752978 | U18: =VLOOKUP('Utility Group'!$B13,vldatabase,16,FALSE) -> 22245 | V18: 8566 | X18: =VLOOKUP('Utility Group'!$B13,vldatabase,15,FALSE) -> 0.4638743455 | Y18: =VLOOKUP('Utility Group'!$B13,vldatabase,17,FALSE) -> 23875 | Z18: 11075 | AA18: 0.05272062793 | AB18: =VLOOKUP('Utility Group'!$B13,vldatabase,5,FALSE) -> 85 | AC18: =VLOOKUP('Utility Group'!$B13,vldatabase,6,FALSE) -> 60 | AD18: 72.5 | AE18: 1.612903226 | AF18: =VLOOKUP('Utility Group'!$B13,vldatabase,10,FALSE) -> 242.48 | AG18: =VLOOKUP('Utility Group'!$B13,vldatabase,11,FALSE) -> 262 | AH18: 0.01560556891
A19: 12 | B19: =VLOOKUP('Utility Group'!$B14,vldatabase,2,FALSE) -> Entergy Corp. | C19: =VLOOKUP('Utility Group'!$B14,vldatabase,7,FALSE) -> 7 | D19: =VLOOKUP('Utility Group'!$B14,vldatabase,8,FALSE) -> 4.55 | E19: =VLOOKUP('Utility Group'!$B14,vldatabase,9,FALSE) -> 64 | G19: 0.35 | H19: 0.109375 | I19: 1.026682457 | J19: 0.1122933937 | K19: 0.0393026878 | M19: 0.02041601882 | N19: 0.4775510204 | O19: 0.009749690621 | Q19: 0.04905237842 | R19: 12 | S19: Entergy Corp. | T19: =VLOOKUP('Utility Group'!$B14,vldatabase,14,FALSE) -> 0.371 | U19: =VLOOKUP('Utility Group'!$B14,vldatabase,16,FALSE) -> 27557 | V19: 10223.647 | X19: =VLOOKUP('Utility Group'!$B14,vldatabase,15,FALSE) -> 0.395 | Y19: =VLOOKUP('Utility Group'!$B14,vldatabase,17,FALSE) -> 33800 | Z19: 13351 | AA19: 0.05482785563 | AB19: =VLOOKUP('Utility Group'!$B14,vldatabase,5,FALSE) -> 140 | AC19: =VLOOKUP('Utility Group'!$B14,vldatabase,6,FALSE) -> 105 | AD19: 122.5 | AE19: 1.9140625 | AF19: =VLOOKUP('Utility Group'!$B14,vldatabase,10,FALSE) -> 199.15 | AG19: =VLOOKUP('Utility Group'!$B14,vldatabase,11,FALSE) -> 210 | AH19: 0.0106663282
A20: 13 | B20: =VLOOKUP('Utility Group'!$B15,vldatabase,2,FALSE) -> Exelon Corp. | C20: =VLOOKUP('Utility Group'!$B15,vldatabase,7,FALSE) -> 3.5 | D20: =VLOOKUP('Utility Group'!$B15,vldatabase,8,FALSE) -> 1.9 | E20: =VLOOKUP('Utility Group'!$B15,vldatabase,9,FALSE) -> 40.25 | G20: 0.4571428571 | H20: 0.08695652174 | I20: 1.0219774 | J20: 0.08886759996 | K20: 0.04062518855 | M20: 0.004310781823 | N20: 0.195 | O20: 0.0008406024555 | Q20: 0.04146579101 | R20: 13 | S20: Exelon Corp. | T20: =VLOOKUP('Utility Group'!$B15,vldatabase,14,FALSE) -> 0.504 | U20: =VLOOKUP('Utility Group'!$B15,vldatabase,16,FALSE) -> 63943 | V20: 32227.272 | X20: =VLOOKUP('Utility Group'!$B15,vldatabase,15,FALSE) -> 0.5 | Y20: =VLOOKUP('Utility Group'!$B15,vldatabase,17,FALSE) -> 80300 | Z20: 40150 | AA20: 0.04494251879 | AB20: =VLOOKUP('Utility Group'!$B15,vldatabase,5,FALSE) -> 60 | AC20: =VLOOKUP('Utility Group'!$B15,vldatabase,6,FALSE) -> 40 | AD20: 50 | AE20: 1.242236025 | AF20: =VLOOKUP('Utility Group'!$B15,vldatabase,10,FALSE) -> 973 | AG20: =VLOOKUP('Utility Group'!$B15,vldatabase,11,FALSE) -> 990 | AH20: 0.003470179368
A21: 14 | B21: =VLOOKUP('Utility Group'!$B16,vldatabase,2,FALSE) -> FirstEnergy Corp. | C21: =VLOOKUP('Utility Group'!$B16,vldatabase,7,FALSE) -> 3.25 | D21: =VLOOKUP('Utility Group'!$B16,vldatabase,8,FALSE) -> 1.9 | E21: =VLOOKUP('Utility Group'!$B16,vldatabase,9,FALSE) -> 20.5 | G21: 0.4153846154 | H21: 0.1585365854 | I21: 1.053479044 | J21: 0.1670149704 | K21: 0.06937544924 | M21: 0.03451311925 | N21: 0.59 | O21: 0.02036274036 | Q21: 0.0897381896 | R21: 14 | S21: FirstEnergy Corp. | T21: =VLOOKUP('Utility Group'!$B16,vldatabase,14,FALSE) -> 0.262 | U21: =VLOOKUP('Utility Group'!$B16,vldatabase,16,FALSE) -> 26593 | V21: 6967.366 | X21: =VLOOKUP('Utility Group'!$B16,vldatabase,15,FALSE) -> 0.34 | Y21: =VLOOKUP('Utility Group'!$B16,vldatabase,17,FALSE) -> 35000 | Z21: 11900 | AA21: 0.113001289 | AB21: =VLOOKUP('Utility Group'!$B16,vldatabase,5,FALSE) -> 60 | AC21: =VLOOKUP('Utility Group'!$B16,vldatabase,6,FALSE) -> 40 | AD21: 50 | AE21: 2.43902439 | AF21: =VLOOKUP('Utility Group'!$B16,vldatabase,10,FALSE) -> 540.65 | AG21: =VLOOKUP('Utility Group'!$B16,vldatabase,11,FALSE) -> 580 | AH21: 0.01415037889
A22: 15 | B22: =VLOOKUP('Utility Group'!$B17,vldatabase,2,FALSE) -> Hawaiian Elec. | C22: =VLOOKUP('Utility Group'!$B17,vldatabase,7,FALSE) -> 2 | D22: =VLOOKUP('Utility Group'!$B17,vldatabase,8,FALSE) -> 1.4 | E22: =VLOOKUP('Utility Group'!$B17,vldatabase,9,FALSE) -> 24.5 | G22: 0.3 | H22: 0.08163265306 | I22: 1.02029686 | J22: 0.0832895396 | K22: 0.02498686188 | M22: 0.01295145185 | N22: 0.3 | O22: 0.003885435556 | Q22: 0.02887229744 | R22: 15 | S22: Hawaiian Elec. | T22: =VLOOKUP('Utility Group'!$B17,vldatabase,14,FALSE) -> 0.546 | U22: =VLOOKUP('Utility Group'!$B17,vldatabase,16,FALSE) -> 4176.9 | V22: 2280.5874 | X22: =VLOOKUP('Utility Group'!$B17,vldatabase,15,FALSE) -> 0.515 | Y22: =VLOOKUP('Utility Group'!$B17,vldatabase,17,FALSE) -> 5425 | Z22: 2793.875 | AA22: 0.04143471482 | AB22: =VLOOKUP('Utility Group'!$B17,vldatabase,5,FALSE) -> 40 | AC22: =VLOOKUP('Utility Group'!$B17,vldatabase,6,FALSE) -> 30 | AD22: 35 | AE22: 1.428571429 | AF22: =VLOOKUP('Utility Group'!$B17,vldatabase,10,FALSE) -> 108.97 | AG22: =VLOOKUP('Utility Group'!$B17,vldatabase,11,FALSE) -> 114 | AH22: 0.009066016297
A23: 16 | B23: =VLOOKUP('Utility Group'!$B18,vldatabase,2,FALSE) -> IDACORP, Inc. | C23: =VLOOKUP('Utility Group'!$B18,vldatabase,7,FALSE) -> 5.5 | D23: =VLOOKUP('Utility Group'!$B18,vldatabase,8,FALSE) -> 3.55 | E23: =VLOOKUP('Utility Group'!$B18,vldatabase,9,FALSE) -> 58 | G23: 0.3545454545 | H23: 0.09482758621 | I23: 1.016744788 | J23: 0.09641545405 | K23: 0.03418366098 | M23: -0.0001368037731 | N23: 0.42 | O23: -5.745758471e-05 | Q23: 0.0341262034 | R23: 16 | S23: IDACORP, Inc. | T23: =VLOOKUP('Utility Group'!$B18,vldatabase,14,FALSE) -> 0.587 | U23: =VLOOKUP('Utility Group'!$B18,vldatabase,16,FALSE) -> 4201.3 | V23: 2466.1631 | X23: =VLOOKUP('Utility Group'!$B18,vldatabase,15,FALSE) -> 0.535 | Y23: =VLOOKUP('Utility Group'!$B18,vldatabase,17,FALSE) -> 5450 | Z23: 2915.75 | AA23: 0.0340599022 | AB23: =VLOOKUP('Utility Group'!$B18,vldatabase,5,FALSE) -> 115 | AC23: =VLOOKUP('Utility Group'!$B18,vldatabase,6,FALSE) -> 85 | AD23: 100 | AE23: 1.724137931 | AF23: =VLOOKUP('Utility Group'!$B18,vldatabase,10,FALSE) -> 50.42 | AG23: =VLOOKUP('Utility Group'!$B18,vldatabase,11,FALSE) -> 50.4 | AH23: -7.934618841e-05
A24: 17 | B24: =VLOOKUP('Utility Group'!$B19,vldatabase,2,FALSE) -> NorthWestern Corp. | C24: =VLOOKUP('Utility Group'!$B19,vldatabase,7,FALSE) -> 3.75 | D24: =VLOOKUP('Utility Group'!$B19,vldatabase,8,FALSE) -> 2.8 | E24: =VLOOKUP('Utility Group'!$B19,vldatabase,9,FALSE) -> 45.75 | G24: 0.2533333333 | H24: 0.08196721311 | I24: 1.016884787 | J24: 0.08335121204 | K24: 0.02111564038 | M24: 0.01624692045 | N24: 0.39 | O24: 0.006336298977 | Q24: 0.02745193936 | R24: 17 | S24: NorthWestern Corp. | T24: =VLOOKUP('Utility Group'!$B19,vldatabase,14,FALSE) -> 0.475 | U24: =VLOOKUP('Utility Group'!$B19,vldatabase,16,FALSE) -> 4289.8 | V24: 2037.655 | X24: =VLOOKUP('Utility Group'!$B19,vldatabase,15,FALSE) -> 0.5 | Y24: =VLOOKUP('Utility Group'!$B19,vldatabase,17,FALSE) -> 4825 | Z24: 2412.5 | AA24: 0.03434955871 | AB24: =VLOOKUP('Utility Group'!$B19,vldatabase,5,FALSE) -> 85 | AC24: =VLOOKUP('Utility Group'!$B19,vldatabase,6,FALSE) -> 65 | AD24: 75 | AE24: 1.639344262 | AF24: =VLOOKUP('Utility Group'!$B19,vldatabase,10,FALSE) -> 50.45 | AG24: =VLOOKUP('Utility Group'!$B19,vldatabase,11,FALSE) -> 53 | AH24: 0.009910621477
A25: 18 | B25: =VLOOKUP('Utility Group'!$B20,vldatabase,2,FALSE) -> OGE Energy Corp. | C25: =VLOOKUP('Utility Group'!$B20,vldatabase,7,FALSE) -> 2.5 | D25: =VLOOKUP('Utility Group'!$B20,vldatabase,8,FALSE) -> 1.95 | E25: =VLOOKUP('Utility Group'!$B20,vldatabase,9,FALSE) -> 20.5 | G25: 0.22 | H25: 0.1219512195 | I25: 0.9992412056 | J25: 0.1218586836 | K25: 0.02680891039 | M25: -0.0002316378304 | N25: 0.5684210526 | O25: -0.0001316678194 | Q25: 0.02667724258 | R25: 18 | S25: OGE Energy Corp. | T25: =VLOOKUP('Utility Group'!$B20,vldatabase,14,FALSE) -> 0.564 | U25: =VLOOKUP('Utility Group'!$B20,vldatabase,16,FALSE) -> 7334.7 | V25: 4136.7708 | X25: =VLOOKUP('Utility Group'!$B20,vldatabase,15,FALSE) -> 0.51 | Y25: =VLOOKUP('Utility Group'!$B20,vldatabase,17,FALSE) -> 8050 | Z25: 4105.5 | AA25: -0.001516438106 | AB25: =VLOOKUP('Utility Group'!$B20,vldatabase,5,FALSE) -> 55 | AC25: =VLOOKUP('Utility Group'!$B20,vldatabase,6,FALSE) -> 40 | AD25: 47.5 | AE25: 2.317073171 | AF25: =VLOOKUP('Utility Group'!$B20,vldatabase,10,FALSE) -> 200.1 | AG25: =VLOOKUP('Utility Group'!$B20,vldatabase,11,FALSE) -> 200 | AH25: -9.9970011e-05
A26: 19 | B26: =VLOOKUP('Utility Group'!$B21,vldatabase,2,FALSE) -> Otter Tail Corp. | C26: =VLOOKUP('Utility Group'!$B21,vldatabase,7,FALSE) -> 2.75 | D26: =VLOOKUP('Utility Group'!$B21,vldatabase,8,FALSE) -> 1.8 | E26: =VLOOKUP('Utility Group'!$B21,vldatabase,9,FALSE) -> 23.25 | G26: 0.3454545455 | H26: 0.1182795699 | I26: 1.022725107 | J26: 0.1209674858 | K26: 0.04178876782 | M26: 0.02032232366 | N26: 0.5571428571 | O26: 0.01132243747 | Q26: 0.05311120529 | R26: 19 | S26: Otter Tail Corp. | T26: =VLOOKUP('Utility Group'!$B21,vldatabase,14,FALSE) -> 0.531 | U26: =VLOOKUP('Utility Group'!$B21,vldatabase,16,FALSE) -> 1471.1 | V26: 781.1541 | X26: =VLOOKUP('Utility Group'!$B21,vldatabase,15,FALSE) -> 0.53 | Y26: =VLOOKUP('Utility Group'!$B21,vldatabase,17,FALSE) -> 1850 | Z26: 980.5 | AA26: 0.04650709312 | AB26: =VLOOKUP('Utility Group'!$B21,vldatabase,5,FALSE) -> 60 | AC26: =VLOOKUP('Utility Group'!$B21,vldatabase,6,FALSE) -> 45 | AD26: 52.5 | AE26: 2.258064516 | AF26: =VLOOKUP('Utility Group'!$B21,vldatabase,10,FALSE) -> 40.16 | AG26: =VLOOKUP('Utility Group'!$B21,vldatabase,11,FALSE) -> 42 | AH26: 0.008999886193
A27: 20 | B27: =VLOOKUP('Utility Group'!$B22,vldatabase,2,FALSE) -> PNM Resources | C27: =VLOOKUP('Utility Group'!$B22,vldatabase,7,FALSE) -> 2.75 | D27: =VLOOKUP('Utility Group'!$B22,vldatabase,8,FALSE) -> 1.5 | E27: =VLOOKUP('Utility Group'!$B22,vldatabase,9,FALSE) -> 29.25 | G27: 0.4545454545 | H27: 0.09401709402 | I27: 1.046837711 | J27: 0.09842063954 | K27: 0.04473665433 | M27: 0.04499830011 | N27: 0.35 | O27: 0.01574940504 | Q27: 0.06048605937 | R27: 20 | S27: PNM Resources | T27: =VLOOKUP('Utility Group'!$B22,vldatabase,14,FALSE) -> 0.399 | U27: =VLOOKUP('Utility Group'!$B22,vldatabase,16,FALSE) -> 4207.7 | V27: 1678.8723 | X27: =VLOOKUP('Utility Group'!$B22,vldatabase,15,FALSE) -> 0.49 | Y27: =VLOOKUP('Utility Group'!$B22,vldatabase,17,FALSE) -> 5475 | Z27: 2682.75 | AA27: 0.09827856595 | AB27: =VLOOKUP('Utility Group'!$B22,vldatabase,5,FALSE) -> 55 | AC27: =VLOOKUP('Utility Group'!$B22,vldatabase,6,FALSE) -> 35 | AD27: 45 | AE27: 1.538461538 | AF27: =VLOOKUP('Utility Group'!$B22,vldatabase,10,FALSE) -> 79.65 | AG27: =VLOOKUP('Utility Group'!$B22,vldatabase,11,FALSE) -> 92 | AH27: 0.02924889507
A28: 21 | B28: =VLOOKUP('Utility Group'!$B23,vldatabase,2,FALSE) -> Sempra Energy | C28: =VLOOKUP('Utility Group'!$B23,vldatabase,7,FALSE) -> 9.5 | D28: =VLOOKUP('Utility Group'!$B23,vldatabase,8,FALSE) -> 5.6 | E28: =VLOOKUP('Utility Group'!$B23,vldatabase,9,FALSE) -> 88.75 | G28: 0.4105263158 | H28: 0.1070422535 | I28: 1.053258159 | J28: 0.1127431269 | K28: 0.04628402052 | M28: 0.05784061031 | N28: 0.4621212121 | O28: 0.02672937295 | Q28: 0.07301339347 | R28: 21 | S28: Sempra Energy | T28: =VLOOKUP('Utility Group'!$B23,vldatabase,14,FALSE) -> 0.434 | U28: =VLOOKUP('Utility Group'!$B23,vldatabase,16,FALSE) -> 40734 | V28: 17678.556 | X28: =VLOOKUP('Utility Group'!$B23,vldatabase,15,FALSE) -> 0.515 | Y28: =VLOOKUP('Utility Group'!$B23,vldatabase,17,FALSE) -> 58500 | Z28: 30127.5 | AA28: 0.1125083039 | AB28: =VLOOKUP('Utility Group'!$B23,vldatabase,5,FALSE) -> 190 | AC28: =VLOOKUP('Utility Group'!$B23,vldatabase,6,FALSE) -> 140 | AD28: 165 | AE28: 1.85915493 | AF28: =VLOOKUP('Utility Group'!$B23,vldatabase,10,FALSE) -> 291.71 | AG28: =VLOOKUP('Utility Group'!$B23,vldatabase,11,FALSE) -> 340 | AH28: 0.03111123736
R30: (a) | S30: ='Proxy Group Risk Measures'!B35 -> The Value Line Investment Survey (Jul. 24, Aug. 14 and Sep. 11, 2020).
R31: (h) | S31: Average of High and Low expected market prices divided by 2024 BVPS.
R32: (e) | S32: Computed as 1 - B/M Ratio.
R33: (b) | S33: Computed using the formula 2*(1+5-Yr. Change in Equity)/(2+5 Yr. Change in Equity).
R34: (g) | S34: Five-year compound rate of change.
R35: (c) | S35: Product of average year-end "r" for 2024 and Adjustment Factor.
R36: (d) | S36: Product of change in common shares outstanding and M/B Ratio.
R37: (f) | S37: Product of total capital and equity ratio.

Sheet 8
A1: ='Exhibit List'!C10 -> CAPM | O1: ='Exhibit List'!B10 -> Exh. AMM-8
O2: Page 1 of 1
A3: ='Exhibit List'!D10 -> UTILITY GROUP
C5: (a) | E5: (b) | H5: (c) | J5: (d) | L5: (d) | M5: (e)
C6: Market Return (Rm) | N6: Size
C7: Div | E7: Proj. | G7: Cost of | H7: Risk-Free | I7: Risk | K7: Unadjusted | L7: Market | M7: Size | N7: Adjusted
B8: Company | C8: Yield | E8: Growth | G8: Equity | H8: Rate | I8: Premium | J8: Beta | K8: CAPM | L8: Cap | M8: Adjustment | N8: CAPM
A9: =A8+1 -> 1 | B9: =VLOOKUP('Utility Group'!$B3,vldatabase,2,FALSE) -> Algonquin Pwr & Util | C9: ='2020 10 Market DCF'!$J$385 -> 0.0233 | E9: ='2020 10 Market DCF'!$P$386 -> 0.0924 | G9: =C9+E9 -> 0.1157 | H9: =ROUND('Bond Yields'!$K$16,3) -> 0.014 | I9: =G9-H9 -> 0.1017 | J9: =VLOOKUP('Utility Group'!$B3,vldatabase,23,FALSE) -> 0.9 | K9: =IF(J9="n/a","n/a",J9*I9+H9) -> 0.10553 | L9: =VLOOKUP('Utility Group'!$B3,vldatabase,28,FALSE) -> 9094.340522 | M9: =IF(L9>'Size Premium'!$A$5,'Size Premium'!$B$5,IF(L9>'Size Premium'!$A$6,'Size Premium'!$B$6,IF(L9>'Size Premium'!$A$7,'Size Premium'!$B$7,IF(L9>'Size Premium'!$A$8,'Size Premium'!$B$8,IF(L9>'Size Premium'!$A$9,'Size Premium'!$B$9,IF(L9>'Size Premium'!$A$10,'Size Premium'!$B$10,IF(L9>'Size Premium'!$A$11,'Size Premium'!$B$11,IF(L9>'Size Premium'!$A$12,'Size Premium'!$B$12,"ERROR")))))))) -> 0.0073 | N9: =IF(K9="n/a","n/a",ROUND(K9+M9,3)) -> 0.113
A10: =A9+1 -> 2 | B10: =VLOOKUP('Utility Group'!$B4,vldatabase,2,FALSE) -> ALLETE | C10: ='2020 10 Market DCF'!$J$385 -> 0.0233 | E10: ='2020 10 Market DCF'!$P$386 -> 0.0924 | G10: =C10+E10 -> 0.1157 | H10: =ROUND('Bond Yields'!$K$16,3) -> 0.014 | I10: =G10-H10 -> 0.1017 | J10: =VLOOKUP('Utility Group'!$B4,vldatabase,23,FALSE) -> 0.85 | K10: =IF(J10="n/a","n/a",J10*I10+H10) -> 0.100445 | L10: =VLOOKUP('Utility Group'!$B4,vldatabase,28,FALSE) -> 2800 | M10: =IF(L10>'Size Premium'!$A$5,'Size Premium'!$B$5,IF(L10>'Size Premium'!$A$6,'Size Premium'!$B$6,IF(L10>'Size Premium'!$A$7,'Size Premium'!$B$7,IF(L10>'Size Premium'!$A$8,'Size Premium'!$B$8,IF(L10>'Size Premium'!$A$9,'Size Premium'!$B$9,IF(L10>'Size Premium'!$A$10,'Size Premium'!$B$10,IF(L10>'Size Premium'!$A$11,'Size Premium'!$B$11,IF(L10>'Size Premium'!$A$12,'Size Premium'!$B$12,"ERROR")))))))) -> 0.011 | N10: =IF(K10="n/a","n/a",ROUND(K10+M10,3)) -> 0.111
A11: 3 | B11: =VLOOKUP('Utility Group'!$B5,vldatabase,2,FALSE) -> Ameren Corp. | C11: ='2020 10 Market DCF'!$J$385 -> 0.0233 | E11: ='2020 10 Market DCF'!$P$386 -> 0.0924 | G11: 0.1157 | H11: =ROUND('Bond Yields'!$K$16,3) -> 0.014 | I11: 0.1017 | J11: =VLOOKUP('Utility Group'!$B5,vldatabase,23,FALSE) -> 0.8 | K11: 0.09536 | L11: =VLOOKUP('Utility Group'!$B5,vldatabase,28,FALSE) -> 20000 | M11: =IF(L11>'Size Premium'!$A$5,'Size Premium'!$B$5,IF(L11>'Size Premium'!$A$6,'Size Premium'!$B$6,IF(L11>'Size Premium'!$A$7,'Size Premium'!$B$7,IF(L11>'Size Premium'!$A$8,'Size Premium'!$B$8,IF(L11>'Size Premium'!$A$9,'Size Premium'!$B$9,IF(L11>'Size Premium'!$A$10,'Size Premium'!$B$10,IF(L11>'Size Premium'!$A$11,'Size Premium'!$B$11,IF(L11>'Size Premium'!$A$12,'Size Premium'!$B$12,"ERROR")))))))) -> 0.005 | N11: 0.1
A12: 4 | B12: =VLOOKUP('Utility Group'!$B6,vldatabase,2,FALSE) -> Avangrid, Inc. | C12: ='2020 10 Market DCF'!$J$385 -> 0.0233 | E12: ='2020 10 Market DCF'!$P$386 -> 0.0924 | G12: 0.1157 | H12: =ROUND('Bond Yields'!$K$16,3) -> 0.014 | I12: 0.1017 | J12: =VLOOKUP('Utility Group'!$B6,vldatabase,23,FALSE) -> 0.8 | K12: 0.09536 | L12: =VLOOKUP('Utility Group'!$B6,vldatabase,28,FALSE) -> 15000 | M12: =IF(L12>'Size Premium'!$A$5,'Size Premium'!$B$5,IF(L12>'Size Premium'!$A$6,'Size Premium'!$B$6,IF(L12>'Size Premium'!$A$7,'Size Premium'!$B$7,IF(L12>'Size Premium'!$A$8,'Size Premium'!$B$8,IF(L12>'Size Premium'!$A$9,'Size Premium'!$B$9,IF(L12>'Size Premium'!$A$10,'Size Premium'!$B$10,IF(L12>'Size Premium'!$A$11,'Size Premium'!$B$11,IF(L12>'Size Premium'!$A$12,'Size Premium'!$B$12,"ERROR")))))))) -> 0.005 | N12: 0.1
A13: 5 | B13: =VLOOKUP('Utility Group'!$B7,vldatabase,2,FALSE) -> Avista Corp. | C13: ='2020 10 Market DCF'!$J$385 -> 0.0233 | E13: ='2020 10 Market DCF'!$P$386 -> 0.0924 | G13: 0.1157 | H13: =ROUND('Bond Yields'!$K$16,3) -> 0.014 | I13: 0.1017 | J13: =VLOOKUP('Utility Group'!$B7,vldatabase,23,FALSE) -> 0.9 | K13: 0.10553 | L13: =VLOOKUP('Utility Group'!$B7,vldatabase,28,FALSE) -> 2400 | M13: =IF(L13>'Size Premium'!$A$5,'Size Premium'!$B$5,IF(L13>'Size Premium'!$A$6,'Size Premium'!$B$6,IF(L13>'Size Premium'!$A$7,'Size Premium'!$B$7,IF(L13>'Size Premium'!$A$8,'Size Premium'!$B$8,IF(L13>'Size Premium'!$A$9,'Size Premium'!$B$9,IF(L13>'Size Premium'!$A$10,'Size Premium'!$B$10,IF(L13>'Size Premium'!$A$11,'Size Premium'!$B$11,IF(L13>'Size Premium'!$A$12,'Size Premium'!$B$12,"ERROR")))))))) -> 0.0134 | N13: 0.119
A14: 6 | B14: =VLOOKUP('Utility Group'!$B8,vldatabase,2,FALSE) -> Black Hills Corp. | C14: ='2020 10 Market DCF'!$J$385 -> 0.0233 | E14: ='2020 10 Market DCF'!$P$386 -> 0.0924 | G14: 0.1157 | H14: =ROUND('Bond Yields'!$K$16,3) -> 0.014 | I14: 0.1017 | J14: =VLOOKUP('Utility Group'!$B8,vldatabase,23,FALSE) -> 0.95 | K14: 0.110615 | L14: =VLOOKUP('Utility Group'!$B8,vldatabase,28,FALSE) -> 3800 | M14: =IF(L14>'Size Premium'!$A$5,'Size Premium'!$B$5,IF(L14>'Size Premium'!$A$6,'Size Premium'!$B$6,IF(L14>'Size Premium'!$A$7,'Size Premium'!$B$7,IF(L14>'Size Premium'!$A$8,'Size Premium'!$B$8,IF(L14>'Size Premium'!$A$9,'Size Premium'!$B$9,IF(L14>'Size Premium'!$A$10,'Size Premium'!$B$10,IF(L14>'Size Premium'!$A$11,'Size Premium'!$B$11,IF(L14>'Size Premium'!$A$12,'Size Premium'!$B$12,"ERROR")))))))) -> 0.011 | N14: 0.122
A15: 7 | B15: =VLOOKUP('Utility Group'!$B9,vldatabase,2,FALSE) -> CenterPoint Energy | C15: ='2020 10 Market DCF'!$J$385 -> 0.0233 | E15: ='2020 10 Market DCF'!$P$386 -> 0.0924 | G15: 0.1157 | H15: =ROUND('Bond Yields'!$K$16,3) -> 0.014 | I15: 0.1017 | J15: =VLOOKUP('Utility Group'!$B9,vldatabase,23,FALSE) -> 1.1 | K15: 0.12587 | L15: =VLOOKUP('Utility Group'!$B9,vldatabase,28,FALSE) -> 11000 | M15: =IF(L15>'Size Premium'!$A$5,'Size Premium'!$B$5,IF(L15>'Size Premium'!$A$6,'Size Premium'!$B$6,IF(L15>'Size Premium'!$A$7,'Size Premium'!$B$7,IF(L15>'Size Premium'!$A$8,'Size Premium'!$B$8,IF(L15>'Size Premium'!$A$9,'Size Premium'!$B$9,IF(L15>'Size Premium'!$A$10,'Size Premium'!$B$10,IF(L15>'Size Premium'!$A$11,'Size Premium'!$B$11,IF(L15>'Size Premium'!$A$12,'Size Premium'!$B$12,"ERROR")))))))) -> 0.0073 | N15: 0.133
A16: 8 | B16: =VLOOKUP('Utility Group'!$B10,vldatabase,2,FALSE) -> CMS Energy Corp. | C16: ='2020 10 Market DCF'!$J$385 -> 0.0233 | E16: ='2020 10 Market DCF'!$P$386 -> 0.0924 | G16: 0.1157 | H16: =ROUND('Bond Yields'!$K$16,3) -> 0.014 | I16: 0.1017 | J16: =VLOOKUP('Utility Group'!$B10,vldatabase,23,FALSE) -> 0.8 | K16: 0.09536 | L16: =VLOOKUP('Utility Group'!$B10,vldatabase,28,FALSE) -> 17000 | M16: =IF(L16>'Size Premium'!$A$5,'Size Premium'!$B$5,IF(L16>'Size Premium'!$A$6,'Size Premium'!$B$6,IF(L16>'Size Premium'!$A$7,'Size Premium'!$B$7,IF(L16>'Size Premium'!$A$8,'Size Premium'!$B$8,IF(L16>'Size Premium'!$A$9,'Size Premium'!$B$9,IF(L16>'Size Premium'!$A$10,'Size Premium'!$B$10,IF(L16>'Size Premium'!$A$11,'Size Premium'!$B$11,IF(L16>'Size Premium'!$A$12,'Size Premium'!$B$12,"ERROR")))))))) -> 0.005 | N16: 0.1
A17: 9 | B17: =VLOOKUP('Utility Group'!$B11,vldatabase,2,FALSE) -> DTE Energy Co. | C17: ='2020 10 Market DCF'!$J$385 -> 0.0233 | E17: ='2020 10 Market DCF'!$P$386 -> 0.0924 | G17: 0.1157 | H17: =ROUND('Bond Yields'!$K$16,3) -> 0.014 | I17: 0.1017 | J17: =VLOOKUP('Utility Group'!$B11,vldatabase,23,FALSE) -> 0.9 | K17: 0.10553 | L17: =VLOOKUP('Utility Group'!$B11,vldatabase,28,FALSE) -> 23000 | M17: =IF(L17>'Size Premium'!$A$5,'Size Premium'!$B$5,IF(L17>'Size Premium'!$A$6,'Size Premium'!$B$6,IF(L17>'Size Premium'!$A$7,'Size Premium'!$B$7,IF(L17>'Size Premium'!$A$8,'Size Premium'!$B$8,IF(L17>'Size Premium'!$A$9,'Size Premium'!$B$9,IF(L17>'Size Premium'!$A$10,'Size Premium'!$B$10,IF(L17>'Size Premium'!$A$11,'Size Premium'!$B$11,IF(L17>'Size Premium'!$A$12,'Size Premium'!$B$12,"ERROR")))))))) -> 0.005 | N17: 0.111
A18: 10 | B18: =VLOOKUP('Utility Group'!$B12,vldatabase,2,FALSE) -> Edison International | C18: ='2020 10 Market DCF'!$J$385 -> 0.0233 | E18: ='2020 10 Market DCF'!$P$386 -> 0.0924 | G18: 0.1157 | H18: =ROUND('Bond Yields'!$K$16,3) -> 0.014 | I18: 0.1017 | J18: =VLOOKUP('Utility Group'!$B12,vldatabase,23,FALSE) -> 0.9 | K18: 0.10553 | L18: =VLOOKUP('Utility Group'!$B12,vldatabase,28,FALSE) -> 20000 | M18: =IF(L18>'Size Premium'!$A$5,'Size Premium'!$B$5,IF(L18>'Size Premium'!$A$6,'Size Premium'!$B$6,IF(L18>'Size Premium'!$A$7,'Size Premium'!$B$7,IF(L18>'Size Premium'!$A$8,'Size Premium'!$B$8,IF(L18>'Size Premium'!$A$9,'Size Premium'!$B$9,IF(L18>'Size Premium'!$A$10,'Size Premium'!$B$10,IF(L18>'Size Premium'!$A$11,'Size Premium'!$B$11,IF(L18>'Size Premium'!$A$12,'Size Premium'!$B$12,"ERROR")))))))) -> 0.005 | N18: 0.111
A19: 11 | B19: =VLOOKUP('Utility Group'!$B13,vldatabase,2,FALSE) -> Emera Inc. | C19: ='2020 10 Market DCF'!$J$385 -> 0.0233 | E19: ='2020 10 Market DCF'!$P$386 -> 0.0924 | G19: 0.1157 | H19: =ROUND('Bond Yields'!$K$16,3) -> 0.014 | I19: 0.1017 | J19: =VLOOKUP('Utility Group'!$B13,vldatabase,23,FALSE) -> 0.75 | K19: 0.090275 | L19: =VLOOKUP('Utility Group'!$B13,vldatabase,28,FALSE) -> 13100 | M19: =IF(L19>'Size Premium'!$A$5,'Size Premium'!$B$5,IF(L19>'Size Premium'!$A$6,'Size Premium'!$B$6,IF(L19>'Size Premium'!$A$7,'Size Premium'!$B$7,IF(L19>'Size Premium'!$A$8,'Size Premium'!$B$8,IF(L19>'Size Premium'!$A$9,'Size Premium'!$B$9,IF(L19>'Size Premium'!$A$10,'Size Premium'!$B$10,IF(L19>'Size Premium'!$A$11,'Size Premium'!$B$11,IF(L19>'Size Premium'!$A$12,'Size Premium'!$B$12,"ERROR")))))))) -> 0.0073 | N19: 0.098
A20: 12 | B20: =VLOOKUP('Utility Group'!$B14,vldatabase,2,FALSE) -> Entergy Corp. | C20: ='2020 10 Market DCF'!$J$385 -> 0.0233 | E20: ='2020 10 Market DCF'!$P$386 -> 0.0924 | G20: 0.1157 | H20: =ROUND('Bond Yields'!$K$16,3) -> 0.014 | I20: 0.1017 | J20: =VLOOKUP('Utility Group'!$B14,vldatabase,23,FALSE) -> 0.95 | K20: 0.110615 | L20: =VLOOKUP('Utility Group'!$B14,vldatabase,28,FALSE) -> 20000 | M20: =IF(L20>'Size Premium'!$A$5,'Size Premium'!$B$5,IF(L20>'Size Premium'!$A$6,'Size Premium'!$B$6,IF(L20>'Size Premium'!$A$7,'Size Premium'!$B$7,IF(L20>'Size Premium'!$A$8,'Size Premium'!$B$8,IF(L20>'Size Premium'!$A$9,'Size Premium'!$B$9,IF(L20>'Size Premium'!$A$10,'Size Premium'!$B$10,IF(L20>'Size Premium'!$A$11,'Size Premium'!$B$11,IF(L20>'Size Premium'!$A$12,'Size Premium'!$B$12,"ERROR")))))))) -> 0.005 | N20: 0.116
A21: 13 | B21: =VLOOKUP('Utility Group'!$B15,vldatabase,2,FALSE) -> Exelon Corp. | C21: ='2020 10 Market DCF'!$J$385 -> 0.0233 | E21: ='2020 10 Market DCF'!$P$386 -> 0.0924 | G21: 0.1157 | H21: =ROUND('Bond Yields'!$K$16,3) -> 0.014 | I21: 0.1017 | J21: =VLOOKUP('Utility Group'!$B15,vldatabase,23,FALSE) -> 0.95 | K21: 0.110615 | L21: =VLOOKUP('Utility Group'!$B15,vldatabase,28,FALSE) -> 37000 | M21: =IF(L21>'Size Premium'!$A$5,'Size Premium'!$B$5,IF(L21>'Size Premium'!$A$6,'Size Premium'!$B$6,IF(L21>'Size Premium'!$A$7,'Size Premium'!$B$7,IF(L21>'Size Premium'!$A$8,'Size Premium'!$B$8,IF(L21>'Size Premium'!$A$9,'Size Premium'!$B$9,IF(L21>'Size Premium'!$A$10,'Size Premium'!$B$10,IF(L21>'Size Premium'!$A$11,'Size Premium'!$B$11,IF(L21>'Size Premium'!$A$12,'Size Premium'!$B$12,"ERROR")))))))) -> -0.0028 | N21: 0.108
A22: 14 | B22: =VLOOKUP('Utility Group'!$B16,vldatabase,2,FALSE) -> FirstEnergy Corp. | C22: ='2020 10 Market DCF'!$J$385 -> 0.0233 | E22: ='2020 10 Market DCF'!$P$386 -> 0.0924 | G22: 0.1157 | H22: =ROUND('Bond Yields'!$K$16,3) -> 0.014 | I22: 0.1017 | J22: =VLOOKUP('Utility Group'!$B16,vldatabase,23,FALSE) -> 0.85 | K22: 0.100445 | L22: =VLOOKUP('Utility Group'!$B16,vldatabase,28,FALSE) -> 16000 | M22: =IF(L22>'Size Premium'!$A$5,'Size Premium'!$B$5,IF(L22>'Size Premium'!$A$6,'Size Premium'!$B$6,IF(L22>'Size Premium'!$A$7,'Size Premium'!$B$7,IF(L22>'Size Premium'!$A$8,'Size Premium'!$B$8,IF(L22>'Size Premium'!$A$9,'Size Premium'!$B$9,IF(L22>'Size Premium'!$A$10,'Size Premium'!$B$10,IF(L22>'Size Premium'!$A$11,'Size Premium'!$B$11,IF(L22>'Size Premium'!$A$12,'Size Premium'!$B$12,"ERROR")))))))) -> 0.005 | N22: 0.105
A23: 15 | B23: =VLOOKUP('Utility Group'!$B17,vldatabase,2,FALSE) -> Hawaiian Elec. | C23: ='2020 10 Market DCF'!$J$385 -> 0.0233 | E23: ='2020 10 Market DCF'!$P$386 -> 0.0924 | G23: 0.1157 | H23: =ROUND('Bond Yields'!$K$16,3) -> 0.014 | I23: 0.1017 | J23: =VLOOKUP('Utility Group'!$B17,vldatabase,23,FALSE) -> 0.8 | K23: 0.09536 | L23: =VLOOKUP('Utility Group'!$B17,vldatabase,28,FALSE) -> 4000 | M23: =IF(L23>'Size Premium'!$A$5,'Size Premium'!$B$5,IF(L23>'Size Premium'!$A$6,'Size Premium'!$B$6,IF(L23>'Size Premium'!$A$7,'Size Premium'!$B$7,IF(L23>'Size Premium'!$A$8,'Size Premium'!$B$8,IF(L23>'Size Premium'!$A$9,'Size Premium'!$B$9,IF(L23>'Size Premium'!$A$10,'Size Premium'!$B$10,IF(L23>'Size Premium'!$A$11,'Size Premium'!$B$11,IF(L23>'Size Premium'!$A$12,'Size Premium'!$B$12,"ERROR")))))))) -> 0.011 | N23: 0.106
A24: 16 | B24: =VLOOKUP('Utility Group'!$B18,vldatabase,2,FALSE) -> IDACORP, Inc. | C24: ='2020 10 Market DCF'!$J$385 -> 0.0233 | E24: ='2020 10 Market DCF'!$P$386 -> 0.0924 | G24: 0.1157 | H24: =ROUND('Bond Yields'!$K$16,3) -> 0.014 | I24: 0.1017 | J24: =VLOOKUP('Utility Group'!$B18,vldatabase,23,FALSE) -> 0.8 | K24: 0.09536 | L24: =VLOOKUP('Utility Group'!$B18,vldatabase,28,FALSE) -> 4600 | M24: =IF(L24>'Size Premium'!$A$5,'Size Premium'!$B$5,IF(L24>'Size Premium'!$A$6,'Size Premium'!$B$6,IF(L24>'Size Premium'!$A$7,'Size Premium'!$B$7,IF(L24>'Size Premium'!$A$8,'Size Premium'!$B$8,IF(L24>'Size Premium'!$A$9,'Size Premium'!$B$9,IF(L24>'Size Premium'!$A$10,'Size Premium'!$B$10,IF(L24>'Size Premium'!$A$11,'Size Premium'!$B$11,IF(L24>'Size Premium'!$A$12,'Size Premium'!$B$12,"ERROR")))))))) -> 0.0079 | N24: 0.103
A25: 17 | B25: =VLOOKUP('Utility Group'!$B19,vldatabase,2,FALSE) -> NorthWestern Corp. | C25: ='2020 10 Market DCF'!$J$385 -> 0.0233 | E25: ='2020 10 Market DCF'!$P$386 -> 0.0924 | G25: 0.1157 | H25: =ROUND('Bond Yields'!$K$16,3) -> 0.014 | I25: 0.1017 | J25: =VLOOKUP('Utility Group'!$B19,vldatabase,23,FALSE) -> 0.9 | K25: 0.10553 | L25: =VLOOKUP('Utility Group'!$B19,vldatabase,28,FALSE) -> 2700 | M25: =IF(L25>'Size Premium'!$A$5,'Size Premium'!$B$5,IF(L25>'Size Premium'!$A$6,'Size Premium'!$B$6,IF(L25>'Size Premium'!$A$7,'Size Premium'!$B$7,IF(L25>'Size Premium'!$A$8,'Size Premium'!$B$8,IF(L25>'Size Premium'!$A$9,'Size Premium'!$B$9,IF(L25>'Size Premium'!$A$10,'Size Premium'!$B$10,IF(L25>'Size Premium'!$A$11,'Size Premium'!$B$11,IF(L25>'Size Premium'!$A$12,'Size Premium'!$B$12,"ERROR")))))))) -> 0.011 | N25: 0.117
A26: 18 | B26: =VLOOKUP('Utility Group'!$B20,vldatabase,2,FALSE) -> OGE Energy Corp. | C26: ='2020 10 Market DCF'!$J$385 -> 0.0233 | E26: ='2020 10 Market DCF'!$P$386 -> 0.0924 | G26: 0.1157 | H26: =ROUND('Bond Yields'!$K$16,3) -> 0.014 | I26: 0.1017 | J26: =VLOOKUP('Utility Group'!$B20,vldatabase,23,FALSE) -> 1.05 | K26: 0.120785 | L26: =VLOOKUP('Utility Group'!$B20,vldatabase,28,FALSE) -> 6400 | M26: =IF(L26>'Size Premium'!$A$5,'Size Premium'!$B$5,IF(L26>'Size Premium'!$A$6,'Size Premium'!$B$6,IF(L26>'Size Premium'!$A$7,'Size Premium'!$B$7,IF(L26>'Size Premium'!$A$8,'Size Premium'!$B$8,IF(L26>'Size Premium'!$A$9,'Size Premium'!$B$9,IF(L26>'Size Premium'!$A$10,'Size Premium'!$B$10,IF(L26>'Size Premium'!$A$11,'Size Premium'!$B$11,IF(L26>'Size Premium'!$A$12,'Size Premium'!$B$12,"ERROR")))))))) -> 0.0079 | N26: 0.129
A27: 19 | B27: =VLOOKUP('Utility Group'!$B21,vldatabase,2,FALSE) -> Otter Tail Corp. | C27: ='2020 10 Market DCF'!$J$385 -> 0.0233 | E27: ='2020 10 Market DCF'!$P$386 -> 0.0924 | G27: 0.1157 | H27: =ROUND('Bond Yields'!$K$16,3) -> 0.014 | I27: 0.1017 | J27: =VLOOKUP('Utility Group'!$B21,vldatabase,23,FALSE) -> 0.85 | K27: 0.100445 | L27: =VLOOKUP('Utility Group'!$B21,vldatabase,28,FALSE) -> 1600 | M27: =IF(L27>'Size Premium'!$A$5,'Size Premium'!$B$5,IF(L27>'Size Premium'!$A$6,'Size Premium'!$B$6,IF(L27>'Size Premium'!$A$7,'Size Premium'!$B$7,IF(L27>'Size Premium'!$A$8,'Size Premium'!$B$8,IF(L27>'Size Premium'!$A$9,'Size Premium'!$B$9,IF(L27>'Size Premium'!$A$10,'Size Premium'!$B$10,IF(L27>'Size Premium'!$A$11,'Size Premium'!$B$11,IF(L27>'Size Premium'!$A$12,'Size Premium'!$B$12,"ERROR")))))))) -> 0.0147 | N27: 0.115
A28: 20 | B28: =VLOOKUP('Utility Group'!$B22,vldatabase,2,FALSE) -> PNM Resources | C28: ='2020 10 Market DCF'!$J$385 -> 0.0233 | E28: ='2020 10 Market DCF'!$P$386 -> 0.0924 | G28: 0.1157 | H28: =ROUND('Bond Yields'!$K$16,3) -> 0.014 | I28: 0.1017 | J28: =VLOOKUP('Utility Group'!$B22,vldatabase,23,FALSE) -> 0.95 | K28: 0.110615 | L28: =VLOOKUP('Utility Group'!$B22,vldatabase,28,FALSE) -> 3100 | M28: =IF(L28>'Size Premium'!$A$5,'Size Premium'!$B$5,IF(L28>'Size Premium'!$A$6,'Size Premium'!$B$6,IF(L28>'Size Premium'!$A$7,'Size Premium'!$B$7,IF(L28>'Size Premium'!$A$8,'Size Premium'!$B$8,IF(L28>'Size Premium'!$A$9,'Size Premium'!$B$9,IF(L28>'Size Premium'!$A$10,'Size Premium'!$B$10,IF(L28>'Size Premium'!$A$11,'Size Premium'!$B$11,IF(L28>'Size Premium'!$A$12,'Size Premium'!$B$12,"ERROR")))))))) -> 0.011 | N28: 0.122
A29: 21 | B29: =VLOOKUP('Utility Group'!$B23,vldatabase,2,FALSE) -> Sempra Energy | C29: ='2020 10 Market DCF'!$J$385 -> 0.0233 | E29: ='2020 10 Market DCF'!$P$386 -> 0.0924 | G29: 0.1157 | H29: =ROUND('Bond Yields'!$K$16,3) -> 0.014 | I29: 0.1017 | J29: =VLOOKUP('Utility Group'!$B23,vldatabase,23,FALSE) -> 0.95 | K29: 0.110615 | L29: =VLOOKUP('Utility Group'!$B23,vldatabase,28,FALSE) -> 35000 | M29: =IF(L29>'Size Premium'!$A$5,'Size Premium'!$B$5,IF(L29>'Size Premium'!$A$6,'Size Premium'!$B$6,IF(L29>'Size Premium'!$A$7,'Size Premium'!$B$7,IF(L29>'Size Premium'!$A$8,'Size Premium'!$B$8,IF(L29>'Size Premium'!$A$9,'Size Premium'!$B$9,IF(L29>'Size Premium'!$A$10,'Size Premium'!$B$10,IF(L29>'Size Premium'!$A$11,'Size Premium'!$B$11,IF(L29>'Size Premium'!$A$12,'Size Premium'!$B$12,"ERROR")))))))) -> -0.0028 | N29: 0.108
B31: Average | K31: =AVERAGE(K9:K29) -> 0.1045614286 | N31: =AVERAGE(N9:N29) -> 0.1117619048
B32: Midpoint (f) | K32: =AVERAGE(K42:K43) -> 0.1080725 | N32: =AVERAGE(N42:N43) -> 0.1155
A34: (a) | B34: ="Weighted average for "&'2020 10 Market DCF'!B393 -> Weighted average for dividend paying components of S&P 500 index from zacks.com (retrieved Oct. 1, 2020).
A35: (b) | B35: ="Average of weighted average earnings growth rates from Value Line Investment Survey, IBES, and Zacks Investment Research for dividend-paying stocks in the S&P 500 based on data from "&'2020 10 Market DCF'!B395&", "&'2020 10 Market DCF'!B396&", and "&'2020 10 Market DCF'!B394&"." -> Average of weighted average earnings growth rates from Value Line Investment Survey, IBES, and Zacks Investment Research for dividend-paying stocks in the S&P 500 based on data from http://finance.yahoo.com (retrieved Oct. 2, 2020), www.zacks.com (retrieved Oct. 1, 2020), and www.valueline.com (retrieved Oct. 1, 2020).
A37: (c) | B37: ="Average yield on 30-year Treasury bonds for the six-months ending "&'Bond Yields'!B14&" based on data from the Federal Reserve at "&'Bond Yields'!B21&"." -> Average yield on 30-year Treasury bonds for the six-months ending Sep. 2020 based on data from the Federal Reserve at https://fred.stlouisfed.org/..
A38: (d) | B38: ='Proxy Group Risk Measures'!B35 -> The Value Line Investment Survey (Jul. 24, Aug. 14 and Sep. 11, 2020).
A39: (e) | B39: ='Size Premium'!A18 -> Duff & Phelps, 2020 CRSP Deciles Size Study -- Supplementary Data Exhibits, Cost of Capital Navigator.
A40: (f) | B40: Average of low and high values.
J42: Min | K42: =MIN(K9:K29) -> 0.090275 | N42: =MIN(N9:N29) -> 0.098
J43: Max | K43: =MAX(K9:K29) -> 0.12587 | N43: =MAX(N9:N29) -> 0.133

Sheet 9
A1: ='Exhibit List'!C11 -> EMPIRICAL CAPM | R1: ='Exhibit List'!B11 -> Exh. AMM-9
R2: Page 1 of 1
A3: ='Exhibit List'!D11 -> UTILITY GROUP
C5: (a) | D5: (b) | F5: (c) | H5: (d) | J5: (e) | K5: (d) | O5: (e) | P5: (f)
C6: Market Return (Rm) | Q6: Size
C7: Div | D7: Proj. | E7: Cost of | F7: Risk-Free | G7: Risk | H7: Unadjusted RP | J7: Beta Adjusted RP | M7: Total | N7: Unadjusted | O7: Market | P7: Size | Q7: Adjusted
B8: Company | C8: Yield | D8: Growth | E8: Equity | F8: Rate | G8: Premium | H8: Weight | I8: RP1 | J8: Beta | K8: Weight | L8: RP2 | M8: RP | N8: Ke | O8: Cap | P8: Adjustment | Q8: Ke
A9: =A8+1 -> 1 | B9: =VLOOKUP('Utility Group'!$B3,vldatabase,2,FALSE) -> Algonquin Pwr & Util | C9: ='8'!C9 -> 0.0233 | D9: ='8'!E9 -> 0.0924 | E9: =C9+D9 -> 0.1157 | F9: ='8'!H9 -> 0.014 | G9: =E9-F9 -> 0.1017 | H9: 0.25 | I9: =G9*H9 -> 0.025425 | J9: =VLOOKUP('Utility Group'!$B3,vldatabase,23,FALSE) -> 0.9 | K9: 0.75 | L9: =IF(J9="n/a","n/a",G9*J9*K9) -> 0.0686475 | M9: =IF(L9="n/a","n/a",L9+I9) -> 0.0940725 | N9: =IF(M9="n/a","n/a",M9+F9) -> 0.1080725 | O9: =VLOOKUP('Utility Group'!$B3,vldatabase,28,FALSE) -> 9094.340522 | P9: =IF(O9>'Size Premium'!$A$5,'Size Premium'!$B$5,IF(O9>'Size Premium'!$A$6,'Size Premium'!$B$6,IF(O9>'Size Premium'!$A$7,'Size Premium'!$B$7,IF(O9>'Size Premium'!$A$8,'Size Premium'!$B$8,IF(O9>'Size Premium'!$A$9,'Size Premium'!$B$9,IF(O9>'Size Premium'!$A$10,'Size Premium'!$B$10,IF(O9>'Size Premium'!$A$11,'Size Premium'!$B$11,IF(O9>'Size Premium'!$A$12,'Size Premium'!$B$12,"ERROR")))))))) -> 0.0073 | Q9: =IF(N9="n/a","n/a",ROUND(N9+P9,3)) -> 0.115
A10: =A9+1 -> 2 | B10: =VLOOKUP('Utility Group'!$B4,vldatabase,2,FALSE) -> ALLETE | C10: ='8'!C10 -> 0.0233 | D10: ='8'!E10 -> 0.0924 | E10: =C10+D10 -> 0.1157 | F10: ='8'!H10 -> 0.014 | G10: =E10-F10 -> 0.1017 | H10: 0.25 | I10: =G10*H10 -> 0.025425 | J10: =VLOOKUP('Utility Group'!$B4,vldatabase,23,FALSE) -> 0.85 | K10: 0.75 | L10: 0.06483375 | M10: 0.09025875 | N10: 0.10425875 | O10: =VLOOKUP('Utility Group'!$B4,vldatabase,28,FALSE) -> 2800 | P10: =IF(O10>'Size Premium'!$A$5,'Size Premium'!$B$5,IF(O10>'Size Premium'!$A$6,'Size Premium'!$B$6,IF(O10>'Size Premium'!$A$7,'Size Premium'!$B$7,IF(O10>'Size Premium'!$A$8,'Size Premium'!$B$8,IF(O10>'Size Premium'!$A$9,'Size Premium'!$B$9,IF(O10>'Size Premium'!$A$10,'Size Premium'!$B$10,IF(O10>'Size Premium'!$A$11,'Size Premium'!$B$11,IF(O10>'Size Premium'!$A$12,'Size Premium'!$B$12,"ERROR")))))))) -> 0.011 | Q10: =IF(N10="n/a","n/a",ROUND(N10+P10,3)) -> 0.115
A11: 3 | B11: =VLOOKUP('Utility Group'!$B5,vldatabase,2,FALSE) -> Ameren Corp. | C11: ='8'!C11 -> 0.0233 | D11: ='8'!E11 -> 0.0924 | E11: 0.1157 | F11: ='8'!H11 -> 0.014 | G11: 0.1017 | H11: 0.25 | I11: 0.025425 | J11: =VLOOKUP('Utility Group'!$B5,vldatabase,23,FALSE) -> 0.8 | K11: 0.75 | L11: 0.06102 | M11: 0.086445 | N11: 0.100445 | O11: =VLOOKUP('Utility Group'!$B5,vldatabase,28,FALSE) -> 20000 | P11: =IF(O11>'Size Premium'!$A$5,'Size Premium'!$B$5,IF(O11>'Size Premium'!$A$6,'Size Premium'!$B$6,IF(O11>'Size Premium'!$A$7,'Size Premium'!$B$7,IF(O11>'Size Premium'!$A$8,'Size Premium'!$B$8,IF(O11>'Size Premium'!$A$9,'Size Premium'!$B$9,IF(O11>'Size Premium'!$A$10,'Size Premium'!$B$10,IF(O11>'Size Premium'!$A$11,'Size Premium'!$B$11,IF(O11>'Size Premium'!$A$12,'Size Premium'!$B$12,"ERROR")))))))) -> 0.005 | Q11: 0.105
A12: 4 | B12: =VLOOKUP('Utility Group'!$B6,vldatabase,2,FALSE) -> Avangrid, Inc. | C12: ='8'!C12 -> 0.0233 | D12: ='8'!E12 -> 0.0924 | E12: 0.1157 | F12: ='8'!H12 -> 0.014 | G12: 0.1017 | H12: 0.25 | I12: 0.025425 | J12: =VLOOKUP('Utility Group'!$B6,vldatabase,23,FALSE) -> 0.8 | K12: 0.75 | L12: 0.06102 | M12: 0.086445 | N12: 0.100445 | O12: =VLOOKUP('Utility Group'!$B6,vldatabase,28,FALSE) -> 15000 | P12: =IF(O12>'Size Premium'!$A$5,'Size Premium'!$B$5,IF(O12>'Size Premium'!$A$6,'Size Premium'!$B$6,IF(O12>'Size Premium'!$A$7,'Size Premium'!$B$7,IF(O12>'Size Premium'!$A$8,'Size Premium'!$B$8,IF(O12>'Size Premium'!$A$9,'Size Premium'!$B$9,IF(O12>'Size Premium'!$A$10,'Size Premium'!$B$10,IF(O12>'Size Premium'!$A$11,'Size Premium'!$B$11,IF(O12>'Size Premium'!$A$12,'Size Premium'!$B$12,"ERROR")))))))) -> 0.005 | Q12: 0.105
A13: 5 | B13: =VLOOKUP('Utility Group'!$B7,vldatabase,2,FALSE) -> Avista Corp. | C13: ='8'!C13 -> 0.0233 | D13: ='8'!E13 -> 0.0924 | E13: 0.1157 | F13: ='8'!H13 -> 0.014 | G13: 0.1017 | H13: 0.25 | I13: 0.025425 | J13: =VLOOKUP('Utility Group'!$B7,vldatabase,23,FALSE) -> 0.9 | K13: 0.75 | L13: 0.0686475 | M13: 0.0940725 | N13: 0.1080725 | O13: =VLOOKUP('Utility Group'!$B7,vldatabase,28,FALSE) -> 2400 | P13: =IF(O13>'Size Premium'!$A$5,'Size Premium'!$B$5,IF(O13>'Size Premium'!$A$6,'Size Premium'!$B$6,IF(O13>'Size Premium'!$A$7,'Size Premium'!$B$7,IF(O13>'Size Premium'!$A$8,'Size Premium'!$B$8,IF(O13>'Size Premium'!$A$9,'Size Premium'!$B$9,IF(O13>'Size Premium'!$A$10,'Size Premium'!$B$10,IF(O13>'Size Premium'!$A$11,'Size Premium'!$B$11,IF(O13>'Size Premium'!$A$12,'Size Premium'!$B$12,"ERROR")))))))) -> 0.0134 | Q13: 0.121
A14: 6 | B14: =VLOOKUP('Utility Group'!$B8,vldatabase,2,FALSE) -> Black Hills Corp. | C14: ='8'!C14 -> 0.0233 | D14: ='8'!E14 -> 0.0924 | E14: 0.1157 | F14: ='8'!H14 -> 0.014 | G14: 0.1017 | H14: 0.25 | I14: 0.025425 | J14: =VLOOKUP('Utility Group'!$B8,vldatabase,23,FALSE) -> 0.95 | K14: 0.75 | L14: 0.07246125 | M14: 0.09788625 | N14: 0.11188625 | O14: =VLOOKUP('Utility Group'!$B8,vldatabase,28,FALSE) -> 3800 | P14: =IF(O14>'Size Premium'!$A$5,'Size Premium'!$B$5,IF(O14>'Size Premium'!$A$6,'Size Premium'!$B$6,IF(O14>'Size Premium'!$A$7,'Size Premium'!$B$7,IF(O14>'Size Premium'!$A$8,'Size Premium'!$B$8,IF(O14>'Size Premium'!$A$9,'Size Premium'!$B$9,IF(O14>'Size Premium'!$A$10,'Size Premium'!$B$10,IF(O14>'Size Premium'!$A$11,'Size Premium'!$B$11,IF(O14>'Size Premium'!$A$12,'Size Premium'!$B$12,"ERROR")))))))) -> 0.011 | Q14: 0.123
A15: 7 | B15: =VLOOKUP('Utility Group'!$B9,vldatabase,2,FALSE) -> CenterPoint Energy | C15: ='8'!C15 -> 0.0233 | D15: ='8'!E15 -> 0.0924 | E15: 0.1157 | F15: ='8'!H15 -> 0.014 | G15: 0.1017 | H15: 0.25 | I15: 0.025425 | J15: =VLOOKUP('Utility Group'!$B9,vldatabase,23,FALSE) -> 1.1 | K15: 0.75 | L15: 0.0839025 | M15: 0.1093275 | N15: 0.1233275 | O15: =VLOOKUP('Utility Group'!$B9,vldatabase,28,FALSE) -> 11000 | P15: =IF(O15>'Size Premium'!$A$5,'Size Premium'!$B$5,IF(O15>'Size Premium'!$A$6,'Size Premium'!$B$6,IF(O15>'Size Premium'!$A$7,'Size Premium'!$B$7,IF(O15>'Size Premium'!$A$8,'Size Premium'!$B$8,IF(O15>'Size Premium'!$A$9,'Size Premium'!$B$9,IF(O15>'Size Premium'!$A$10,'Size Premium'!$B$10,IF(O15>'Size Premium'!$A$11,'Size Premium'!$B$11,IF(O15>'Size Premium'!$A$12,'Size Premium'!$B$12,"ERROR")))))))) -> 0.0073 | Q15: 0.131
A16: 8 | B16: =VLOOKUP('Utility Group'!$B10,vldatabase,2,FALSE) -> CMS Energy Corp. | C16: ='8'!C16 -> 0.0233 | D16: ='8'!E16 -> 0.0924 | E16: 0.1157 | F16: ='8'!H16 -> 0.014 | G16: 0.1017 | H16: 0.25 | I16: 0.025425 | J16: =VLOOKUP('Utility Group'!$B10,vldatabase,23,FALSE) -> 0.8 | K16: 0.75 | L16: 0.06102 | M16: 0.086445 | N16: 0.100445 | O16: =VLOOKUP('Utility Group'!$B10,vldatabase,28,FALSE) -> 17000 | P16: =IF(O16>'Size Premium'!$A$5,'Size Premium'!$B$5,IF(O16>'Size Premium'!$A$6,'Size Premium'!$B$6,IF(O16>'Size Premium'!$A$7,'Size Premium'!$B$7,IF(O16>'Size Premium'!$A$8,'Size Premium'!$B$8,IF(O16>'Size Premium'!$A$9,'Size Premium'!$B$9,IF(O16>'Size Premium'!$A$10,'Size Premium'!$B$10,IF(O16>'Size Premium'!$A$11,'Size Premium'!$B$11,IF(O16>'Size Premium'!$A$12,'Size Premium'!$B$12,"ERROR")))))))) -> 0.005 | Q16: 0.105
A17: 9 | B17: =VLOOKUP('Utility Group'!$B11,vldatabase,2,FALSE) -> DTE Energy Co. | C17: ='8'!C17 -> 0.0233 | D17: ='8'!E17 -> 0.0924 | E17: 0.1157 | F17: ='8'!H17 -> 0.014 | G17: 0.1017 | H17: 0.25 | I17: 0.025425 | J17: =VLOOKUP('Utility Group'!$B11,vldatabase,23,FALSE) -> 0.9 | K17: 0.75 | L17: 0.0686475 | M17: 0.0940725 | N17: 0.1080725 | O17: =VLOOKUP('Utility Group'!$B11,vldatabase,28,FALSE) -> 23000 | P17: =IF(O17>'Size Premium'!$A$5,'Size Premium'!$B$5,IF(O17>'Size Premium'!$A$6,'Size Premium'!$B$6,IF(O17>'Size Premium'!$A$7,'Size Premium'!$B$7,IF(O17>'Size Premium'!$A$8,'Size Premium'!$B$8,IF(O17>'Size Premium'!$A$9,'Size Premium'!$B$9,IF(O17>'Size Premium'!$A$10,'Size Premium'!$B$10,IF(O17>'Size Premium'!$A$11,'Size Premium'!$B$11,IF(O17>'Size Premium'!$A$12,'Size Premium'!$B$12,"ERROR")))))))) -> 0.005 | Q17: 0.113
A18: 10 | B18: =VLOOKUP('Utility Group'!$B12,vldatabase,2,FALSE) -> Edison International | C18: ='8'!C18 -> 0.0233 | D18: ='8'!E18 -> 0.0924 | E18: 0.1157 | F18: ='8'!H18 -> 0.014 | G18: 0.1017 | H18: 0.25 | I18: 0.025425 | J18: =VLOOKUP('Utility Group'!$B12,vldatabase,23,FALSE) -> 0.9 | K18: 0.75 | L18: 0.0686475 | M18: 0.0940725 | N18: 0.1080725 | O18: =VLOOKUP('Utility Group'!$B12,vldatabase,28,FALSE) -> 20000 | P18: =IF(O18>'Size Premium'!$A$5,'Size Premium'!$B$5,IF(O18>'Size Premium'!$A$6,'Size Premium'!$B$6,IF(O18>'Size Premium'!$A$7,'Size Premium'!$B$7,IF(O18>'Size Premium'!$A$8,'Size Premium'!$B$8,IF(O18>'Size Premium'!$A$9,'Size Premium'!$B$9,IF(O18>'Size Premium'!$A$10,'Size Premium'!$B$10,IF(O18>'Size Premium'!$A$11,'Size Premium'!$B$11,IF(O18>'Size Premium'!$A$12,'Size Premium'!$B$12,"ERROR")))))))) -> 0.005 | Q18: 0.113
A19: 11 | B19: =VLOOKUP('Utility Group'!$B13,vldatabase,2,FALSE) -> Emera Inc. | C19: ='8'!C19 -> 0.0233 | D19: ='8'!E19 -> 0.0924 | E19: 0.1157 | F19: ='8'!H19 -> 0.014 | G19: 0.1017 | H19: 0.25 | I19: 0.025425 | J19: =VLOOKUP('Utility Group'!$B13,vldatabase,23,FALSE) -> 0.75 | K19: 0.75 | L19: 0.05720625 | M19: 0.08263125 | N19: 0.09663125 | O19: =VLOOKUP('Utility Group'!$B13,vldatabase,28,FALSE) -> 13100 | P19: =IF(O19>'Size Premium'!$A$5,'Size Premium'!$B$5,IF(O19>'Size Premium'!$A$6,'Size Premium'!$B$6,IF(O19>'Size Premium'!$A$7,'Size Premium'!$B$7,IF(O19>'Size Premium'!$A$8,'Size Premium'!$B$8,IF(O19>'Size Premium'!$A$9,'Size Premium'!$B$9,IF(O19>'Size Premium'!$A$10,'Size Premium'!$B$10,IF(O19>'Size Premium'!$A$11,'Size Premium'!$B$11,IF(O19>'Size Premium'!$A$12,'Size Premium'!$B$12,"ERROR")))))))) -> 0.0073 | Q19: 0.104
A20: 12 | B20: =VLOOKUP('Utility Group'!$B14,vldatabase,2,FALSE) -> Entergy Corp. | C20: ='8'!C20 -> 0.0233 | D20: ='8'!E20 -> 0.0924 | E20: 0.1157 | F20: ='8'!H20 -> 0.014 | G20: 0.1017 | H20: 0.25 | I20: 0.025425 | J20: =VLOOKUP('Utility Group'!$B14,vldatabase,23,FALSE) -> 0.95 | K20: 0.75 | L20: 0.07246125 | M20: 0.09788625 | N20: 0.11188625 | O20: =VLOOKUP('Utility Group'!$B14,vldatabase,28,FALSE) -> 20000 | P20: =IF(O20>'Size Premium'!$A$5,'Size Premium'!$B$5,IF(O20>'Size Premium'!$A$6,'Size Premium'!$B$6,IF(O20>'Size Premium'!$A$7,'Size Premium'!$B$7,IF(O20>'Size Premium'!$A$8,'Size Premium'!$B$8,IF(O20>'Size Premium'!$A$9,'Size Premium'!$B$9,IF(O20>'Size Premium'!$A$10,'Size Premium'!$B$10,IF(O20>'Size Premium'!$A$11,'Size Premium'!$B$11,IF(O20>'Size Premium'!$A$12,'Size Premium'!$B$12,"ERROR")))))))) -> 0.005 | Q20: 0.117
A21: 13 | B21: =VLOOKUP('Utility Group'!$B15,vldatabase,2,FALSE) -> Exelon Corp. | C21: ='8'!C21 -> 0.0233 | D21: ='8'!E21 -> 0.0924 | E21: 0.1157 | F21: ='8'!H21 -> 0.014 | G21: 0.1017 | H21: 0.25 | I21: 0.025425 | J21: =VLOOKUP('Utility Group'!$B15,vldatabase,23,FALSE) -> 0.95 | K21: 0.75 | L21: 0.07246125 | M21: 0.09788625 | N21: 0.11188625 | O21: =VLOOKUP('Utility Group'!$B15,vldatabase,28,FALSE) -> 37000 | P21: =IF(O21>'Size Premium'!$A$5,'Size Premium'!$B$5,IF(O21>'Size Premium'!$A$6,'Size Premium'!$B$6,IF(O21>'Size Premium'!$A$7,'Size Premium'!$B$7,IF(O21>'Size Premium'!$A$8,'Size Premium'!$B$8,IF(O21>'Size Premium'!$A$9,'Size Premium'!$B$9,IF(O21>'Size Premium'!$A$10,'Size Premium'!$B$10,IF(O21>'Size Premium'!$A$11,'Size Premium'!$B$11,IF(O21>'Size Premium'!$A$12,'Size Premium'!$B$12,"ERROR")))))))) -> -0.0028 | Q21: 0.109
A22: 14 | B22: =VLOOKUP('Utility Group'!$B16,vldatabase,2,FALSE) -> FirstEnergy Corp. | C22: ='8'!C22 -> 0.0233 | D22: ='8'!E22 -> 0.0924 | E22: 0.1157 | F22: ='8'!H22 -> 0.014 | G22: 0.1017 | H22: 0.25 | I22: 0.025425 | J22: =VLOOKUP('Utility Group'!$B16,vldatabase,23,FALSE) -> 0.85 | K22: 0.75 | L22: 0.06483375 | M22: 0.09025875 | N22: 0.10425875 | O22: =VLOOKUP('Utility Group'!$B16,vldatabase,28,FALSE) -> 16000 | P22: =IF(O22>'Size Premium'!$A$5,'Size Premium'!$B$5,IF(O22>'Size Premium'!$A$6,'Size Premium'!$B$6,IF(O22>'Size Premium'!$A$7,'Size Premium'!$B$7,IF(O22>'Size Premium'!$A$8,'Size Premium'!$B$8,IF(O22>'Size Premium'!$A$9,'Size Premium'!$B$9,IF(O22>'Size Premium'!$A$10,'Size Premium'!$B$10,IF(O22>'Size Premium'!$A$11,'Size Premium'!$B$11,IF(O22>'Size Premium'!$A$12,'Size Premium'!$B$12,"ERROR")))))))) -> 0.005 | Q22: 0.109
A23: 15 | B23: =VLOOKUP('Utility Group'!$B17,vldatabase,2,FALSE) -> Hawaiian Elec. | C23: ='8'!C23 -> 0.0233 | D23: ='8'!E23 -> 0.0924 | E23: 0.1157 | F23: ='8'!H23 -> 0.014 | G23: 0.1017 | H23: 0.25 | I23: 0.025425 | J23: =VLOOKUP('Utility Group'!$B17,vldatabase,23,FALSE) -> 0.8 | K23: 0.75 | L23: 0.06102 | M23: 0.086445 | N23: 0.100445 | O23: =VLOOKUP('Utility Group'!$B17,vldatabase,28,FALSE) -> 4000 | P23: =IF(O23>'Size Premium'!$A$5,'Size Premium'!$B$5,IF(O23>'Size Premium'!$A$6,'Size Premium'!$B$6,IF(O23>'Size Premium'!$A$7,'Size Premium'!$B$7,IF(O23>'Size Premium'!$A$8,'Size Premium'!$B$8,IF(O23>'Size Premium'!$A$9,'Size Premium'!$B$9,IF(O23>'Size Premium'!$A$10,'Size Premium'!$B$10,IF(O23>'Size Premium'!$A$11,'Size Premium'!$B$11,IF(O23>'Size Premium'!$A$12,'Size Premium'!$B$12,"ERROR")))))))) -> 0.011 | Q23: 0.111
A24: 16 | B24: =VLOOKUP('Utility Group'!$B18,vldatabase,2,FALSE) -> IDACORP, Inc. | C24: ='8'!C24 -> 0.0233 | D24: ='8'!E24 -> 0.0924 | E24: 0.1157 | F24: ='8'!H24 -> 0.014 | G24: 0.1017 | H24: 0.25 | I24: 0.025425 | J24: =VLOOKUP('Utility Group'!$B18,vldatabase,23,FALSE) -> 0.8 | K24: 0.75 | L24: 0.06102 | M24: 0.086445 | N24: 0.100445 | O24: =VLOOKUP('Utility Group'!$B18,vldatabase,28,FALSE) -> 4600 | P24: =IF(O24>'Size Premium'!$A$5,'Size Premium'!$B$5,IF(O24>'Size Premium'!$A$6,'Size Premium'!$B$6,IF(O24>'Size Premium'!$A$7,'Size Premium'!$B$7,IF(O24>'Size Premium'!$A$8,'Size Premium'!$B$8,IF(O24>'Size Premium'!$A$9,'Size Premium'!$B$9,IF(O24>'Size Premium'!$A$10,'Size Premium'!$B$10,IF(O24>'Size Premium'!$A$11,'Size Premium'!$B$11,IF(O24>'Size Premium'!$A$12,'Size Premium'!$B$12,"ERROR")))))))) -> 0.0079 | Q24: 0.108
A25: 17 | B25: =VLOOKUP('Utility Group'!$B19,vldatabase,2,FALSE) -> NorthWestern Corp. | C25: ='8'!C25 -> 0.0233 | D25: ='8'!E25 -> 0.0924 | E25: 0.1157 | F25: ='8'!H25 -> 0.014 | G25: 0.1017 | H25: 0.25 | I25: 0.025425 | J25: =VLOOKUP('Utility Group'!$B19,vldatabase,23,FALSE) -> 0.9 | K25: 0.75 | L25: 0.0686475 | M25: 0.0940725 | N25: 0.1080725 | O25: =VLOOKUP('Utility Group'!$B19,vldatabase,28,FALSE) -> 2700 | P25: =IF(O25>'Size Premium'!$A$5,'Size Premium'!$B$5,IF(O25>'Size Premium'!$A$6,'Size Premium'!$B$6,IF(O25>'Size Premium'!$A$7,'Size Premium'!$B$7,IF(O25>'Size Premium'!$A$8,'Size Premium'!$B$8,IF(O25>'Size Premium'!$A$9,'Size Premium'!$B$9,IF(O25>'Size Premium'!$A$10,'Size Premium'!$B$10,IF(O25>'Size Premium'!$A$11,'Size Premium'!$B$11,IF(O25>'Size Premium'!$A$12,'Size Premium'!$B$12,"ERROR")))))))) -> 0.011 | Q25: 0.119
A26: 18 | B26: =VLOOKUP('Utility Group'!$B20,vldatabase,2,FALSE) -> OGE Energy Corp. | C26: ='8'!C26 -> 0.0233 | D26: ='8'!E26 -> 0.0924 | E26: 0.1157 | F26: ='8'!H26 -> 0.014 | G26: 0.1017 | H26: 0.25 | I26: 0.025425 | J26: =VLOOKUP('Utility Group'!$B20,vldatabase,23,FALSE) -> 1.05 | K26: 0.75 | L26: 0.08008875 | M26: 0.10551375 | N26: 0.11951375 | O26: =VLOOKUP('Utility Group'!$B20,vldatabase,28,FALSE) -> 6400 | P26: =IF(O26>'Size Premium'!$A$5,'Size Premium'!$B$5,IF(O26>'Size Premium'!$A$6,'Size Premium'!$B$6,IF(O26>'Size Premium'!$A$7,'Size Premium'!$B$7,IF(O26>'Size Premium'!$A$8,'Size Premium'!$B$8,IF(O26>'Size Premium'!$A$9,'Size Premium'!$B$9,IF(O26>'Size Premium'!$A$10,'Size Premium'!$B$10,IF(O26>'Size Premium'!$A$11,'Size Premium'!$B$11,IF(O26>'Size Premium'!$A$12,'Size Premium'!$B$12,"ERROR")))))))) -> 0.0079 | Q26: 0.127
A27: 19 | B27: =VLOOKUP('Utility Group'!$B21,vldatabase,2,FALSE) -> Otter Tail Corp. | C27: ='8'!C27 -> 0.0233 | D27: ='8'!E27 -> 0.0924 | E27: 0.1157 | F27: ='8'!H27 -> 0.014 | G27: 0.1017 | H27: 0.25 | I27: 0.025425 | J27: =VLOOKUP('Utility Group'!$B21,vldatabase,23,FALSE) -> 0.85 | K27: 0.75 | L27: 0.06483375 | M27: 0.09025875 | N27: 0.10425875 | O27: =VLOOKUP('Utility Group'!$B21,vldatabase,28,FALSE) -> 1600 | P27: =IF(O27>'Size Premium'!$A$5,'Size Premium'!$B$5,IF(O27>'Size Premium'!$A$6,'Size Premium'!$B$6,IF(O27>'Size Premium'!$A$7,'Size Premium'!$B$7,IF(O27>'Size Premium'!$A$8,'Size Premium'!$B$8,IF(O27>'Size Premium'!$A$9,'Size Premium'!$B$9,IF(O27>'Size Premium'!$A$10,'Size Premium'!$B$10,IF(O27>'Size Premium'!$A$11,'Size Premium'!$B$11,IF(O27>'Size Premium'!$A$12,'Size Premium'!$B$12,"ERROR")))))))) -> 0.0147 | Q27: 0.119
A28: 20 | B28: =VLOOKUP('Utility Group'!$B22,vldatabase,2,FALSE) -> PNM Resources | C28: ='8'!C28 -> 0.0233 | D28: ='8'!E28 -> 0.0924 | E28: 0.1157 | F28: ='8'!H28 -> 0.014 | G28: 0.1017 | H28: 0.25 | I28: 0.025425 | J28: =VLOOKUP('Utility Group'!$B22,vldatabase,23,FALSE) -> 0.95 | K28: 0.75 | L28: 0.07246125 | M28: 0.09788625 | N28: 0.11188625 | O28: =VLOOKUP('Utility Group'!$B22,vldatabase,28,FALSE) -> 3100 | P28: =IF(O28>'Size Premium'!$A$5,'Size Premium'!$B$5,IF(O28>'Size Premium'!$A$6,'Size Premium'!$B$6,IF(O28>'Size Premium'!$A$7,'Size Premium'!$B$7,IF(O28>'Size Premium'!$A$8,'Size Premium'!$B$8,IF(O28>'Size Premium'!$A$9,'Size Premium'!$B$9,IF(O28>'Size Premium'!$A$10,'Size Premium'!$B$10,IF(O28>'Size Premium'!$A$11,'Size Premium'!$B$11,IF(O28>'Size Premium'!$A$12,'Size Premium'!$B$12,"ERROR")))))))) -> 0.011 | Q28: 0.123
A29: 21 | B29: =VLOOKUP('Utility Group'!$B23,vldatabase,2,FALSE) -> Sempra Energy | C29: ='8'!C29 -> 0.0233 | D29: ='8'!E29 -> 0.0924 | E29: 0.1157 | F29: ='8'!H29 -> 0.014 | G29: 0.1017 | H29: 0.25 | I29: 0.025425 | J29: =VLOOKUP('Utility Group'!$B23,vldatabase,23,FALSE) -> 0.95 | K29: 0.75 | L29: 0.07246125 | M29: 0.09788625 | N29: 0.11188625 | O29: =VLOOKUP('Utility Group'!$B23,vldatabase,28,FALSE) -> 35000 | P29: =IF(O29>'Size Premium'!$A$5,'Size Premium'!$B$5,IF(O29>'Size Premium'!$A$6,'Size Premium'!$B$6,IF(O29>'Size Premium'!$A$7,'Size Premium'!$B$7,IF(O29>'Size Premium'!$A$8,'Size Premium'!$B$8,IF(O29>'Size Premium'!$A$9,'Size Premium'!$B$9,IF(O29>'Size Premium'!$A$10,'Size Premium'!$B$10,IF(O29>'Size Premium'!$A$11,'Size Premium'!$B$11,IF(O29>'Size Premium'!$A$12,'Size Premium'!$B$12,"ERROR")))))))) -> -0.0028 | Q29: 0.109
K30: 0.75
B31: Average | N31: =AVERAGE(N9:N29) -> 0.1073460714 | Q31: =AVERAGE(Q9:Q29) -> 0.1143333333
B32: Midpoint (g) | N32: =AVERAGE(N42:N43) -> 0.109979375 | Q32: =AVERAGE(Q42:Q43) -> 0.1175
A34: (a) | B34: ='8'!B34 -> Weighted average for dividend paying components of S&P 500 index from zacks.com (retrieved Oct. 1, 2020).
A35: (b) | B35: ='8'!B35 -> Average of weighted average earnings growth rates from Value Line Investment Survey, IBES, and Zacks Investment Research for dividend-paying stocks in the S&P 500 based on data from http://finance.yahoo.com (retrieved Oct. 2, 2020), www.zacks.com (retrieved Oct. 1, 2020), and www.valueline.com (retrieved Oct. 1, 2020).
A37: (c) | B37: ='8'!B37 -> Average yield on 30-year Treasury bonds for the six-months ending Sep. 2020 based on data from the Federal Reserve at https://fred.stlouisfed.org/..
A38: (d) | B38: Roger A. Morin, New Regulatory Finance, Pub. Util. Reports, Inc. (2006) at 190.
A39: (e) | B39: ='8'!B38 -> The Value Line Investment Survey (Jul. 24, Aug. 14 and Sep. 11, 2020).
A40: (f) | B40: ='8'!B39 -> Duff & Phelps, 2020 CRSP Deciles Size Study -- Supplementary Data Exhibits, Cost of Capital Navigator.
A41: (g) | B41: Average of low and high values.
M42: Min | N42: =MIN(N9:N29) -> 0.09663125 | Q42: =MIN(Q9:Q29) -> 0.104
M43: Max | N43: =MAX(N9:N29) -> 0.1233275 | Q43: =MAX(Q9:Q29) -> 0.131

Sheet 10 (1)
A1: ='Exhibit List'!C12 -> ELECTRIC UTILITY RISK PREMIUM | G1: ='Exhibit List'!B12 -> Exh. AMM-10
G2: Page 1 of 4
A3: ='Exhibit List'!D12 -> CURRENT BOND YIELD
A6: Current Equity Risk Premium
A7: (a) | B7: Avg. Yield over Study Period | G7: =ROUND(+'10 (3)'!G53,4) -> 0.081
A8: (b) | B8: Average Utility Bond Yield | G8: ='Bond Yields'!I16 -> 0.0301
C9: Change in Bond Yield | G9: =-G7+G8 -> -0.0509
A11: (c) | B11: Risk Premium/Interest Rate Relationship | G11: =ROUND('10 (4)'!B46,4) -> -0.421
C12: Adjustment to Average Risk Premium | G12: =G9*G11 -> 0.0214289
A14: (a) | B14: Average Risk Premium over Study Period | G14: =ROUND('10 (3)'!J53,4) -> 0.0376
C15: Adjusted Risk Premium | G15: =G12+G14 -> 0.0590289
A18: Implied Cost of Equity
A19: (b) | B19: Baa Utility Bond Yield | G19: ='Bond Yields'!C16 -> 0.0337
B20: Adjusted Equity Risk Premium | G20: =G15 -> 0.0590289
B22: Risk Premium Cost of Equity | G22: =G19+G20 -> 0.0927289
A26: (a) | B26: =G1 & ", page 3." -> Exh. AMM-10, page 3.
A27: (b) | B27: ="Average bond yield on all utility bonds and Baa subset for the six-months ending "&'Bond Yields'!B14&" based on data from Moody's Investors Service at www.credittrends.com." -> Average bond yield on all utility bonds and Baa subset for the six-months ending Sep. 2020 based on data from Moody's Investors Service at www.credittrends.com.
A29: (c) | B29: =G1 & ", page 4." -> Exh. AMM-10, page 4.

Sheet 10 (2)
A1: ='Exhibit List'!C13 -> ELECTRIC UTILITY RISK PREMIUM | G1: ='Exhibit List'!B13 -> Exh. AMM-10
G2: Page 2 of 4
A3: ='Exhibit List'!D13 -> PROJECTED BOND YIELD
A6: Current Equity Risk Premium
A7: (a) | B7: Avg. Yield over Study Period | G7: =ROUND(+'10 (3)'!G53,4) -> 0.081
A8: (b) | B8: Average Utility Bond Yield 2021-2025 | G8: ='Bond Yields'!O39 -> 0.0443
C9: Change in Bond Yield | G9: =-G7+G8 -> -0.0367
A11: (c) | B11: Risk Premium/Interest Rate Relationship | G11: =ROUND('10 (4)'!B46,4) -> -0.421
C12: Adjustment to Average Risk Premium | G12: =G9*G11 -> 0.0154507
A14: (a) | B14: Average Risk Premium over Study Period | G14: =ROUND('10 (3)'!J53,4) -> 0.0376
C15: Adjusted Risk Premium | G15: =G12+G14 -> 0.0530507
A18: Implied Cost of Equity
A19: (b) | B19: Baa Utility Bond Yield 2021-2025 | G19: ='Bond Yields'!E39 -> 0.0479
B20: Adjusted Equity Risk Premium | G20: =G15 -> 0.0530507
B22: Risk Premium Cost of Equity | G22: =G19+G20 -> 0.1009507
A26: (a) | B26: =G1 & ", page 3." -> Exh. AMM-10, page 3.
A27: (b) | B27: ="Yields on all utility bonds and Baa subset based on data from " &'Bond Yields'!B73&"; " & 'Bond Yields'!B74 & "; & Moody's Investors Service at www.credittrends.com." -> Yields on all utility bonds and Baa subset based on data from IHS Markit, Long-Term Macro Forecast - Baseline (Jun. 29, 2020); Energy Information Administration, Annual Energy Outlook 2020 (Jan. 29, 2020); & Moody's Investors Service at www.credittrends.com.
A30: (c) | B30: =G1 & ", page 4." -> Exh. AMM-10, page 4.

Sheet 10 (3)
A1: ='Exhibit List'!C14 -> ELECTRIC UTILITY RISK PREMIUM | K1: ='Exhibit List'!B14 -> Exh. AMM-10
K2: Page 3 of 4
A3: ='Exhibit List'!D14 -> AUTHORIZED RETURNS
D4: (a) | G4: (b)
D5: Allowed | G5: Average Utility | J5: Risk
B6: Year | D6: ROE | G6: Bond Yield | J6: Premium
B7: 1974 | D7: 0.131 | G7: 0.0927 | J7: =D7-G7 -> 0.0383
B8: =B7+1 -> 1975 | D8: 0.132 | G8: 0.0988 | J8: =D8-G8 -> 0.0332
B9: 1976 | D9: 0.131 | G9: 0.0917 | J9: 0.0393 | N9: =AVERAGE(G7:G9) -> 0.0944 | O9: =AVERAGE(J7:J9) -> 0.03693333333
B10: 1977 | D10: 0.133 | G10: 0.0858 | J10: 0.0472 | N10: =AVERAGE(G8:G10) -> 0.0921 | O10: =AVERAGE(J8:J10) -> 0.0399
B11: 1978 | D11: 0.132 | G11: 0.0922 | J11: 0.0398 | N11: 0.0899 | O11: 0.0421
B12: 1979 | D12: 0.135 | G12: 0.1039 | J12: 0.0311 | N12: 0.09396666667 | O12: 0.03936666667
B13: 1980 | D13: 0.1423 | G13: 0.1315 | J13: 0.0108 | N13: 0.1092 | O13: 0.02723333333
B14: 1981 | D14: 0.1522 | G14: 0.1562 | J14: -0.004 | N14: 0.1305333333 | O14: 0.01263333333
B15: 1982 | D15: 0.1578 | G15: 0.1533 | J15: 0.0045 | N15: 0.147 | O15: 0.003766666667
B16: 1983 | D16: 0.1536 | G16: 0.1331 | J16: 0.0205 | N16: 0.1475333333 | O16: 0.007
B17: 1984 | D17: 0.1532 | G17: 0.1403 | J17: 0.0129 | N17: 0.1422333333 | O17: 0.01263333333
B18: 1985 | D18: 0.152 | G18: 0.1229 | J18: 0.0291 | N18: 0.1321 | O18: 0.02083333333
B19: 1986 | D19: 0.1393 | G19: 0.0946 | J19: 0.0447 | N19: 0.1192666667 | O19: 0.0289
B20: 1987 | D20: 0.1299 | G20: 0.0998 | J20: 0.0301 | N20: 0.1057666667 | O20: 0.03463333333
B21: 1988 | D21: 0.1279 | G21: 0.1045 | J21: 0.0234 | N21: 0.09963333333 | O21: 0.03273333333
B22: 1989 | D22: 0.1297 | G22: 0.0966 | J22: 0.0331 | N22: 0.1003 | O22: 0.02886666667
B23: 1990 | D23: 0.127 | G23: 0.0976 | J23: 0.0294 | N23: 0.09956666667 | O23: 0.02863333333
B24: 1991 | D24: 0.1255 | G24: 0.0921 | J24: 0.0334 | N24: 0.09543333333 | O24: 0.03196666667
B25: 1992 | D25: 0.1209 | G25: 0.0857 | J25: 0.0352 | N25: 0.0918 | O25: 0.03266666667
B26: 1993 | D26: 0.1141 | G26: 0.0756 | J26: 0.0385 | N26: 0.08446666667 | O26: 0.0357
B27: 1994 | D27: 0.1134 | G27: 0.083 | J27: 0.0304 | N27: 0.08143333333 | O27: 0.0347
B28: 1995 | D28: 0.1155 | G28: 0.0791 | J28: 0.0364 | N28: 0.07923333333 | O28: 0.0351
B29: 1996 | D29: 0.1139 | G29: 0.0774 | J29: 0.0365 | N29: 0.07983333333 | O29: 0.03443333333
B30: 1997 | D30: 0.114 | G30: 0.0763 | J30: 0.0377 | N30: 0.0776 | O30: 0.03686666667
B31: 1998 | D31: 0.1166 | G31: 0.07 | J31: 0.0466 | N31: 0.07456666667 | O31: 0.04026666667
B32: 1999 | D32: 0.1077 | G32: 0.0755 | J32: 0.0322 | N32: 0.07393333333 | O32: 0.03883333333
B33: 2000 | D33: 0.1143 | G33: 0.0809 | J33: 0.0334 | N33: 0.07546666667 | O33: 0.0374
B34: 2001 | D34: 0.1109 | G34: 0.0772 | J34: 0.0337 | N34: 0.07786666667 | O34: 0.0331
B35: 2002 | D35: 0.1116 | G35: 0.0753 | J35: 0.0363 | N35: 0.0778 | O35: 0.03446666667
B36: 2003 | D36: 0.1097 | G36: 0.0661 | J36: 0.0436 | N36: 0.07286666667 | O36: 0.03786666667
B37: 2004 | D37: 0.1075 | G37: 0.062 | J37: 0.0455 | N37: 0.0678 | O37: 0.0418
B38: 2005 | D38: 0.1054 | G38: 0.0567 | J38: 0.0487 | N38: 0.0616 | O38: 0.04593333333
B39: 2006 | D39: 0.1034 | G39: 0.0608 | J39: 0.0426 | N39: 0.05983333333 | O39: 0.0456
B40: 2007 | D40: 0.1032 | G40: 0.0611 | J40: 0.0421 | N40: 0.05953333333 | O40: 0.04446666667
B41: 2008 | D41: 0.1037 | G41: 0.0665 | J41: 0.0372 | N41: 0.0628 | O41: 0.04063333333
B42: 2009 | D42: 0.1052 | G42: 0.0628 | J42: 0.0424 | N42: 0.06346666667 | O42: 0.04056666667
B43: 2010 | D43: 0.1029 | G43: 0.0556 | J43: 0.0473 | N43: 0.06163333333 | O43: 0.0423
B44: 2011 | D44: 0.1019 | G44: 0.0513 | J44: 0.0506 | N44: 0.05656666667 | O44: 0.04676666667
B45: 2012 | D45: 0.1002 | G45: 0.0426 | J45: 0.0576 | N45: 0.04983333333 | O45: 0.05183333333
B46: 2013 | D46: 0.0982 | G46: 0.0455 | J46: 0.0527 | N46: 0.04646666667 | O46: 0.05363333333
B47: 2014 | D47: 0.0976 | G47: 0.0441 | J47: 0.0535 | N47: 0.04406666667 | O47: 0.0546
B48: 2015 | D48: 0.096 | G48: 0.0437 | J48: 0.0523 | N48: 0.04443333333 | O48: 0.05283333333
B49: 2016 | D49: 0.096 | G49: 0.0411 | J49: 0.0549 | N49: 0.04296666667 | O49: 0.05356666667
B50: 2017 | D50: 0.0968 | G50: 0.0407 | J50: 0.0561 | N50: =AVERAGE(G48:G50) -> 0.04183333333 | O50: =AVERAGE(J48:J50) -> 0.05443333333
B51: 2018 | D51: 0.0956 | G51: 0.0434 | J51: 0.0522 | N51: 0.04173333333 | O51: 0.0544
B52: 2019 | D52: 0.0964 | G52: 0.0386 | J52: 0.0578 | N52: =AVERAGE(G50:G52) -> 0.0409 | O52: =AVERAGE(J50:J52) -> 0.05536666667
B53: Average | D53: =AVERAGE(D7:D52) -> 0.1186304348 | G53: =AVERAGE(G7:G52) -> 0.08100434783 | J53: =AVERAGE(J7:J52) -> 0.03762608696
A55: (a) | B55: Major Rate Case Decisions, Regulatory Focus, Regulatory Research Associates ("RRA"); UtilityScope Regulatory Service, Argus. Data for "general" rate cases (excluding limited-issue rider cases) beginning in 2006 (the first year such data presented by RRA).
A58: (b) | B58: Moody's Investors Service.

Sheet 10 (4)
A1: ='Exhibit List'!C15 -> ELECTRIC UTILITY RISK PREMIUM | I1: ='Exhibit List'!B15 -> Exh. AMM-10
I2: Page 4 of 4
A3: ='Exhibit List'!D15 -> REGRESSION RESULTS
A29: SUMMARY OUTPUT
A31: Regression Statistics
A32: Multiple R | B32: 0.9366297666
A33: R Square | B33: 0.8772753196
A34: Adjusted R Square | B34: 0.8744861223
A35: Standard Error | B35: 0.004786234034
A36: Observations | B36: 46
A38: ANOVA
B39: df | C39: SS | D39: MS | E39: F | F39: Significance F
A40: Regression | B40: 1 | C40: 0.007205175101 | D40: 0.007205175101 | E40: 314.5260916 | F40: 1.151778767e-21
A41: Residual | B41: 44 | C41: 0.001007953594 | D41: 2.290803623e-05
A42: Total | B42: 45 | C42: 0.008213128696
B44: Coefficients | C44: Standard Error | D44: t Stat | E44: P-value | F44: Lower 95% | G44: Upper 95% | H44: Lower 95.0% | I44: Upper 95.0%
A45: Intercept | B45: 0.07173107944 | C45: 0.002048439843 | D45: 35.01742055 | E45: 9.029994426e-34 | F45: 0.06760272021 | G45: 0.07585943868 | H45: 0.06760272021 | I45: 0.07585943868
A46: X Variable 1 | B46: -0.4210266906 | C46: 0.02374003141 | D46: -17.73488347 | E46: 1.151778767e-21 | F46: -0.4688715801 | G46: -0.373181801 | H46: -0.4688715801 | I46: -0.373181801

Sheet 11
A1: ='Exhibit List'!C16 -> EXPECTED EARNINGS APPROACH | J1: ='Exhibit List'!B16 -> Exh. AMM-11
J2: Page 1 of 1
A3: ='Exhibit List'!D16 -> UTILITY GROUP
D5: (a) | F5: (b) | H5: (c)
D6: Expected Return | F6: Adjustment | H6: Adjusted Return
B7: Company | D7: on Common Equity | F7: Factor | H7: on Common Equity
A9: =A8+1 -> 1 | B9: =VLOOKUP('Utility Group'!$B3,vldatabase,2,FALSE) -> Algonquin Pwr & Util | D9: =VLOOKUP('Utility Group'!$B3,vldatabase,18,FALSE) -> n/a | F9: ='7'!I8 -> n/a | H9: =IF(D9="n/a","n/a ",D9*F9) -> n/a | M9: =IF(H9="n/a","n/a",IF(H9<$E$42,"nmf",IF(H9>$E$43,"nmf",H9))) -> nmf
A10: =A9+1 -> 2 | B10: =VLOOKUP('Utility Group'!$B4,vldatabase,2,FALSE) -> ALLETE | D10: =VLOOKUP('Utility Group'!$B4,vldatabase,18,FALSE) -> 0.08 | F10: ='7'!I9 -> 1.023347544 | H10: =IF(D10="n/a","n/a ",D10*F10) -> 0.08186780356 | M10: =IF(H10="n/a","n/a",IF(H10<$E$42,"nmf",IF(H10>$E$43,"nmf",H10))) -> 0.08186780356
A11: 3 | B11: =VLOOKUP('Utility Group'!$B5,vldatabase,2,FALSE) -> Ameren Corp. | D11: =VLOOKUP('Utility Group'!$B5,vldatabase,18,FALSE) -> 0.1 | F11: ='7'!I10 -> 1.039799637 | H11: 0.1039799637 | M11: =IF(H11="n/a","n/a",IF(H11<$E$42,"nmf",IF(H11>$E$43,"nmf",H11))) -> 0.1039799637
A12: 4 | B12: =VLOOKUP('Utility Group'!$B6,vldatabase,2,FALSE) -> Avangrid, Inc. | D12: =VLOOKUP('Utility Group'!$B6,vldatabase,18,FALSE) -> 0.05 | F12: ='7'!I11 -> 1.004802993 | H12: 0.05024014964 | M12: =IF(H12="n/a","n/a",IF(H12<$E$42,"nmf",IF(H12>$E$43,"nmf",H12))) -> nmf
A13: 5 | B13: =VLOOKUP('Utility Group'!$B7,vldatabase,2,FALSE) -> Avista Corp. | D13: =VLOOKUP('Utility Group'!$B7,vldatabase,18,FALSE) -> 0.075 | F13: ='7'!I12 -> 1.018192814 | H13: 0.07636446103 | M13: =IF(H13="n/a","n/a",IF(H13<$E$42,"nmf",IF(H13>$E$43,"nmf",H13))) -> 0.07636446103
A14: 6 | B14: =VLOOKUP('Utility Group'!$B8,vldatabase,2,FALSE) -> Black Hills Corp. | D14: =VLOOKUP('Utility Group'!$B8,vldatabase,18,FALSE) -> 0.09 | F14: ='7'!I13 -> 1.023168899 | H14: 0.09208520095 | M14: =IF(H14="n/a","n/a",IF(H14<$E$42,"nmf",IF(H14>$E$43,"nmf",H14))) -> 0.09208520095
A15: 7 | B15: =VLOOKUP('Utility Group'!$B9,vldatabase,2,FALSE) -> CenterPoint Energy | D15: =VLOOKUP('Utility Group'!$B9,vldatabase,18,FALSE) -> 0.105 | F15: ='7'!I14 -> 1.038415388 | H15: 0.1090336158 | M15: =IF(H15="n/a","n/a",IF(H15<$E$42,"nmf",IF(H15>$E$43,"nmf",H15))) -> 0.1090336158
A16: 8 | B16: =VLOOKUP('Utility Group'!$B10,vldatabase,2,FALSE) -> CMS Energy Corp. | D16: =VLOOKUP('Utility Group'!$B10,vldatabase,18,FALSE) -> 0.135 | F16: ='7'!I15 -> 1.042866494 | H16: 0.1407869767 | M16: =IF(H16="n/a","n/a",IF(H16<$E$42,"nmf",IF(H16>$E$43,"nmf",H16))) -> 0.1407869767
A17: 9 | B17: =VLOOKUP('Utility Group'!$B11,vldatabase,2,FALSE) -> DTE Energy Co. | D17: =VLOOKUP('Utility Group'!$B11,vldatabase,18,FALSE) -> 0.11 | F17: ='7'!I16 -> 1.032628276 | H17: 0.1135891104 | M17: =IF(H17="n/a","n/a",IF(H17<$E$42,"nmf",IF(H17>$E$43,"nmf",H17))) -> 0.1135891104
A18: 10 | B18: =VLOOKUP('Utility Group'!$B12,vldatabase,2,FALSE) -> Edison International | D18: =VLOOKUP('Utility Group'!$B12,vldatabase,18,FALSE) -> 0.11 | F18: ='7'!I17 -> 1.028492378 | H18: 0.1131341616 | M18: =IF(H18="n/a","n/a",IF(H18<$E$42,"nmf",IF(H18>$E$43,"nmf",H18))) -> 0.1131341616
A19: 11 | B19: =VLOOKUP('Utility Group'!$B13,vldatabase,2,FALSE) -> Emera Inc. | D19: =VLOOKUP('Utility Group'!$B13,vldatabase,18,FALSE) -> 0.1 | F19: ='7'!I18 -> 1.025683294 | H19: 0.1025683294 | M19: =IF(H19="n/a","n/a",IF(H19<$E$42,"nmf",IF(H19>$E$43,"nmf",H19))) -> 0.1025683294
A20: 12 | B20: =VLOOKUP('Utility Group'!$B14,vldatabase,2,FALSE) -> Entergy Corp. | D20: =VLOOKUP('Utility Group'!$B14,vldatabase,18,FALSE) -> 0.11 | F20: ='7'!I19 -> 1.026682457 | H20: 0.1129350703 | M20: =IF(H20="n/a","n/a",IF(H20<$E$42,"nmf",IF(H20>$E$43,"nmf",H20))) -> 0.1129350703
A21: 13 | B21: =VLOOKUP('Utility Group'!$B15,vldatabase,2,FALSE) -> Exelon Corp. | D21: =VLOOKUP('Utility Group'!$B15,vldatabase,18,FALSE) -> 0.09 | F21: ='7'!I20 -> 1.0219774 | H21: 0.09197796596 | M21: =IF(H21="n/a","n/a",IF(H21<$E$42,"nmf",IF(H21>$E$43,"nmf",H21))) -> 0.09197796596
A22: 14 | B22: =VLOOKUP('Utility Group'!$B16,vldatabase,2,FALSE) -> FirstEnergy Corp. | D22: =VLOOKUP('Utility Group'!$B16,vldatabase,18,FALSE) -> 0.155 | F22: ='7'!I21 -> 1.053479044 | H22: 0.1632892518 | M22: =IF(H22="n/a","n/a",IF(H22<$E$42,"nmf",IF(H22>$E$43,"nmf",H22))) -> nmf
A23: 15 | B23: =VLOOKUP('Utility Group'!$B17,vldatabase,2,FALSE) -> Hawaiian Elec. | D23: =VLOOKUP('Utility Group'!$B17,vldatabase,18,FALSE) -> 0.085 | F23: ='7'!I22 -> 1.02029686 | H23: 0.08672523311 | M23: =IF(H23="n/a","n/a",IF(H23<$E$42,"nmf",IF(H23>$E$43,"nmf",H23))) -> 0.08672523311
A24: 16 | B24: =VLOOKUP('Utility Group'!$B18,vldatabase,2,FALSE) -> IDACORP, Inc. | D24: =VLOOKUP('Utility Group'!$B18,vldatabase,18,FALSE) -> 0.095 | F24: ='7'!I23 -> 1.016744788 | H24: 0.09659075488 | M24: =IF(H24="n/a","n/a",IF(H24<$E$42,"nmf",IF(H24>$E$43,"nmf",H24))) -> 0.09659075488
A25: 17 | B25: =VLOOKUP('Utility Group'!$B19,vldatabase,2,FALSE) -> NorthWestern Corp. | D25: =VLOOKUP('Utility Group'!$B19,vldatabase,18,FALSE) -> 0.085 | F25: ='7'!I24 -> 1.016884787 | H25: 0.08643520688 | M25: =IF(H25="n/a","n/a",IF(H25<$E$42,"nmf",IF(H25>$E$43,"nmf",H25))) -> 0.08643520688
A26: 18 | B26: =VLOOKUP('Utility Group'!$B20,vldatabase,2,FALSE) -> OGE Energy Corp. | D26: =VLOOKUP('Utility Group'!$B20,vldatabase,18,FALSE) -> 0.12 | F26: ='7'!I25 -> 0.9992412056 | H26: 0.1199089447 | M26: =IF(H26="n/a","n/a",IF(H26<$E$42,"nmf",IF(H26>$E$43,"nmf",H26))) -> 0.1199089447
A27: 19 | B27: =VLOOKUP('Utility Group'!$B21,vldatabase,2,FALSE) -> Otter Tail Corp. | D27: =VLOOKUP('Utility Group'!$B21,vldatabase,18,FALSE) -> 0.115 | F27: ='7'!I26 -> 1.022725107 | H27: 0.1176133873 | M27: =IF(H27="n/a","n/a",IF(H27<$E$42,"nmf",IF(H27>$E$43,"nmf",H27))) -> 0.1176133873
A28: 20 | B28: =VLOOKUP('Utility Group'!$B22,vldatabase,2,FALSE) -> PNM Resources | D28: =VLOOKUP('Utility Group'!$B22,vldatabase,18,FALSE) -> 0.095 | F28: ='7'!I27 -> 1.046837711 | H28: 0.09944958258 | M28: =IF(H28="n/a","n/a",IF(H28<$E$42,"nmf",IF(H28>$E$43,"nmf",H28))) -> 0.09944958258
A29: 21 | B29: =VLOOKUP('Utility Group'!$B23,vldatabase,2,FALSE) -> Sempra Energy | D29: =VLOOKUP('Utility Group'!$B23,vldatabase,18,FALSE) -> 0.105 | F29: ='7'!I28 -> 1.053258159 | H29: 0.1105921067 | M29: =IF(H29="n/a","n/a",IF(H29<$E$42,"nmf",IF(H29>$E$43,"nmf",H29))) -> 0.1105921067
B30: Average (d) | H30: =AVERAGE(M9:M29) -> 0.1030909931 | L30: Max | M30: =MAX(M9:M29) -> 0.1407869767
B31: Midpoint (d,e) | H31: =AVERAGE(M30:M31) -> 0.1085757189 | L31: Min | M31: =MIN(M9:M29) -> 0.07636446103
A34: (a) | B34: ='Proxy Group Risk Measures'!B35 -> The Value Line Investment Survey (Jul. 24, Aug. 14 and Sep. 11, 2020).
A35: (b) | B35: ="Adjustment to convert year-end return to an average rate of return from " & 'Exhibit List'!B9 & "." -> Adjustment to convert year-end return to an average rate of return from Exh. AMM-7.
A36: (c) | B36: (a) x (b).
A37: (d) | B37: Excludes highlighted values.
A38: (e) | B38: Average of low and high values.
B42: Criteria Min | E42: ='6 (3)'!E42 -> 0.064
B43: Criteria Max | E43: ='6 (3)'!E43 -> 0.141

Sheet 12 (1)
A1: ='Exhibit List'!C17 -> DCF MODEL - NON-UTILITY GROUP | J1: ='Exhibit List'!B17 -> Exh. AMM-12
J2: Page 1 of 3
A3: ='Exhibit List'!D17 -> DIVIDEND YIELD
E4: (a) | G4: (b)
B5: Company | C5: Industry Group | E5: Price | G5: Dividends | I5: Yield
A6: =A5+1 -> 1 | B6: ='Proxy Group Risk Measures'!B44 -> Air Products & Chem. | C6: Chemical (Diversified) | E6: =TRANSPOSE('Stock Price (Non-Utility)'!C34:AU34) -> 286.4446667 | G6: 5.36 | I6: =G6/E6 -> 0.01871216547
A7: =A6+1 -> 2 | B7: ='Proxy Group Risk Measures'!B45 -> Amdocs Ltd. | C7: IT Services | E7: 60.7285 | G7: 1.31 | I7: 0.02157142034
A8: 3 | B8: ='Proxy Group Risk Measures'!B46 -> Amgen | C8: Biotechnology | E8: 246.8493333 | G8: 6.7 | I8: 0.02714206236
A9: 4 | B9: ='Proxy Group Risk Measures'!B47 -> Amphenol Corp. | C9: Electronics | E9: 105.6923333 | G9: 1 | I9: 0.009461424197
A10: 5 | B10: ='Proxy Group Risk Measures'!B48 -> Apple Inc. | C10: Computers/Peripherals | E10: 420.5313333 | G10: 3.33 | I10: 0.00791855383
A11: 6 | B11: ='Proxy Group Risk Measures'!B49 -> AT&T Inc. | C11: Telecom. Services | E11: 29.87866667 | G11: 2.1 | I11: 0.07028426079
A12: 7 | B12: ='Proxy Group Risk Measures'!B50 -> Baxter Int'l Inc. | C12: Med Supp Invasive | E12: 85.166 | G12: 0.98 | I12: 0.01150693939
A13: 8 | B13: ='Proxy Group Risk Measures'!B51 -> Bristol-Myers Squibb | C13: Drug | E13: 60.512 | G13: 1.8 | I13: 0.02974616605
A14: 9 | B14: ='Proxy Group Risk Measures'!B52 -> Brown & Brown | C14: Financial Svcs. (Div.) | E14: 44.92366667 | G14: 0.34 | I14: 0.007568393794
A15: 10 | B15: ='Proxy Group Risk Measures'!B53 -> Brown-Forman 'B' | C15: Beverage | E15: 68.98033333 | G15: 0.72 | I15: 0.01043775762
A16: 11 | B16: ='Proxy Group Risk Measures'!B54 -> Church & Dwight | C16: Household Products | E16: 90.85533333 | G16: 0.96 | I16: 0.01056624817
A17: 12 | B17: ='Proxy Group Risk Measures'!B55 -> Cisco Systems | C17: Telecom. Equipment | E17: 45.85466667 | G17: 1.44 | I17: 0.03140356489
A18: 13 | B18: ='Proxy Group Risk Measures'!B56 -> Coca-Cola | C18: Beverage | E18: 47.45666667 | G18: 1.68 | I18: 0.03540071644
A19: 14 | B19: ='Proxy Group Risk Measures'!B57 -> Colgate-Palmolive | C19: Household Products | E19: 75.99966667 | G19: 1.76 | I19: 0.02315799631
A20: 15 | B20: ='Proxy Group Risk Measures'!B58 -> Comcast Corp. | C20: Cable TV | E20: 42.84566667 | G20: 0.92 | I20: 0.0214724165
A21: 16 | B21: ='Proxy Group Risk Measures'!B59 -> Commerce Bancshs. | C21: Bank (Midwest) | E21: 58.375 | G21: 1.08 | I21: 0.01850107066
A22: 17 | B22: ='Proxy Group Risk Measures'!B60 -> Costco Wholesale | C22: Retail Store | E22: 332.5446667 | G22: 2.8 | I22: 0.008419921534
A23: 18 | B23: ='Proxy Group Risk Measures'!B61 -> CVS Health | C23: Pharmacy Services | E23: 64.30866667 | G23: 2 | I23: 0.03110000726
A24: 19 | B24: ='Proxy Group Risk Measures'!B62 -> Danaher Corp. | C24: Diversified Co. | E24: 200.0896667 | G24: 0.72 | I24: 0.003598386723
A25: 20 | B25: ='Proxy Group Risk Measures'!B63 -> Gen'l Mills | C25: Automotive | E25: 64.152 | G25: 1.96 | I25: 0.03055243796
A26: 21 | B26: ='Proxy Group Risk Measures'!B64 -> Hormel Foods | C26: Food Processing | E26: 50.906 | G26: 1 | I26: 0.01964404982
A27: 22 | B27: ='Proxy Group Risk Measures'!B65 -> Intel Corp. | C27: Hotel/Gaming | E27: 52.11933333 | G27: 1.32 | I27: 0.02532649433
A28: 23 | B28: ='Proxy Group Risk Measures'!B66 -> Int'l Flavors & Frag. | C28: Wireless Networking | E28: 126.2053333 | G28: 3.12 | I28: 0.02472161768
A29: 24 | B29: ='Proxy Group Risk Measures'!B67 -> Johnson & Johnson | C29: Med Supp Non-Invasive | E29: 148.463 | G29: 4.04 | I29: 0.02721216734
A30: 25 | B30: ='Proxy Group Risk Measures'!B68 -> Kellogg | C30: Food Processing | E30: 68.97466667 | G30: 2.3 | I30: 0.03334557615
A31: 26 | B31: ='Proxy Group Risk Measures'!B69 -> Kimberly-Clark | C31: Household Products | E31: 151.7206667 | G31: 4.28 | I31: 0.02820973631
A32: 27 | B32: ='Proxy Group Risk Measures'!B70 -> Lilly (Eli) | C32: Drug | E32: 157.03 | G32: 2.96 | I32: 0.01884990129
A33: 28 | B33: ='Proxy Group Risk Measures'!B71 -> Lockheed Martin | C33: Aerospace/Defense | E33: 381.265 | G33: 10 | I33: 0.02622847626
A34: 29 | B34: ='Proxy Group Risk Measures'!B72 -> Marsh & McLennan | C34: Financial Svcs. (Div.) | E34: 115.2703333 | G34: 1.86 | I34: 0.01613598179
A35: 30 | B35: ='Proxy Group Risk Measures'!B73 -> McCormick & Co. | C35: Food Processing | E35: 196.4396667 | G35: 2.5 | I35: 0.01272655387
A36: 31 | B36: ='Proxy Group Risk Measures'!B74 -> McDonald's Corp. | C36: Restaurant | E36: 199.7363333 | G36: 5 | I36: 0.02503300184
A37: 32 | B37: ='Proxy Group Risk Measures'!B75 -> Merck & Co. | C37: Drug | E37: 80.91833333 | G37: 2.44 | I37: 0.03015385883
A38: 33 | B38: ='Proxy Group Risk Measures'!B76 -> Microsoft Corp. | C38: Computer Software | E38: 208.471 | G38: 2.04 | I38: 0.009785533719
A39: 34 | B39: ='Proxy Group Risk Measures'!B77 -> Northrop Grumman | C39: Aerospace/Defense | E39: 321.971 | G39: 5.8 | I39: 0.01801404474
A40: 35 | B40: ='Proxy Group Risk Measures'!B78 -> Oracle Corp. | C40: Drug | E40: 55.426 | G40: 0.96 | I40: 0.01732039115
A41: 36 | B41: ='Proxy Group Risk Measures'!B79 -> PepsiCo, Inc. | C41: Beverage | E41: 136.364 | G41: 4.09 | I41: 0.02999325335
A42: 37 | B42: ='Proxy Group Risk Measures'!B80 -> Pfizer, Inc. | C42: Drug | E42: 37.803 | G42: 1.52 | I42: 0.04020844906
A43: 38 | B43: ='Proxy Group Risk Measures'!B81 -> Procter & Gamble | C43: Household Products | E43: 130.6056667 | G43: 3.16 | I43: 0.02419496857
A44: 39 | B44: ='Proxy Group Risk Measures'!B82 -> Public Storage | C44: R.E.I.T. | E44: 195.484 | G44: 8 | I44: 0.0409240654
A45: 40 | B45: ='Proxy Group Risk Measures'!B83 -> Texas Instruments | C45: Environmental | E45: 133.7876667 | G45: 3.6 | I45: 0.02690830993
A46: 41 | B46: ='Proxy Group Risk Measures'!B84 -> Travelers Cos. | C46: Insurance (Prop/Cas.) | E46: 116.8873333 | G46: 3.4 | I46: 0.02908783957
A47: 42 | B47: ='Proxy Group Risk Measures'!B85 -> United Parcel Serv. | C47: Air Transport | E47: 138.4846667 | G47: 4.04 | I47: 0.02917290482
A48: 43 | B48: ='Proxy Group Risk Measures'!B86 -> Verizon Communic. | C48: Telecom. Services | E48: 57.373 | G48: 2.49 | I48: 0.04340020567
A49: 44 | B49: ='Proxy Group Risk Measures'!B87 -> Walmart Inc. | C49: Retail Store | E49: 131.4466667 | G49: 2.18 | I49: 0.01658467312
A50: 45 | B50: ='Proxy Group Risk Measures'!B88 -> Waste Management | C50: Environmental | E50: 109.213 | G50: 2.18 | I50: 0.01996099365
B52: Average | I52: =AVERAGE(I6:I50) -> 0.02359255464
A54: (a) | B54: ='Stock Price (Non-Utility)'!B37 -> Average of closing prices for 30 trading days ended Aug. 21, 2020.
A55: (b) | B55: The Value Line Investment Survey, Summary & Index (Aug. 21, 2020).

Sheet 12 (2)
A1: ='Exhibit List'!C18 -> DCF MODEL - NON-UTILITY GROUP | I1: ='Exhibit List'!B18 -> Exh. AMM-12
I2: Page 2 of 3
A3: ='Exhibit List'!D18 -> GROWTH RATES
D4: (a) | F4: (b) | H4: (c)
C5: Earnings Growth
B6: Company | D6: Value Line | F6: IBES | H6: Zacks
A7: =A6+1 -> 1 | B7: ='12 (1)'!B6 -> Air Products & Chem. | D7: 0.12 | F7: 0.1033 | H7: 0.0877
A8: 2 | B8: ='12 (1)'!B7 -> Amdocs Ltd. | D8: 0.095 | F8: 0.044 | H8: 0.085
A9: 3 | B9: ='12 (1)'!B8 -> Amgen | D9: 0.065 | F9: 0.0687 | H9: 0.0753
A10: 4 | B10: ='12 (1)'!B9 -> Amphenol Corp. | D10: 0.09 | F10: 0.03 | H10: 0.0751
A11: 5 | B11: ='12 (1)'!B10 -> Apple Inc. | D11: 0.14 | F11: 0.1246 | H11: 0.1067
A12: 6 | B12: ='12 (1)'!B11 -> AT&T Inc. | D12: 0.055 | F12: 0.0029 | H12: 0.0553
A13: 7 | B13: ='12 (1)'!B12 -> Baxter Int'l Inc. | D13: 0.09 | F13: 0.1 | H13: 0.0975
A14: 8 | B14: ='12 (1)'!B13 -> Bristol-Myers Squibb | D14: 0.125 | F14: 0.184 | H14: 0.0863
A15: 9 | B15: ='12 (1)'!B14 -> Brown & Brown | D15: 0.105 | F15: 0.0893 | H15: n/a
A16: 10 | B16: ='12 (1)'!B15 -> Brown-Forman 'B' | D16: 0.11 | F16: 0.0333 | H16: n/a
A17: 11 | B17: ='12 (1)'!B16 -> Church & Dwight | D17: 0.08 | F17: 0.0948 | H17: 0.0886
A18: 12 | B18: ='12 (1)'!B17 -> Cisco Systems | D18: 0.07 | F18: 0.0618 | H18: 0.054
A19: 13 | B19: ='12 (1)'!B18 -> Coca-Cola | D19: 0.065 | F19: 0.0294 | H19: 0.0481
A20: 14 | B20: ='12 (1)'!B19 -> Colgate-Palmolive | D20: 0.05 | F20: 0.0591 | H20: 0.0589
A21: 15 | B21: ='12 (1)'!B20 -> Comcast Corp. | D21: 0.135 | F21: 0.0495 | H21: 0.097
A22: 16 | B22: ='12 (1)'!B21 -> Commerce Bancshs. | D22: 0.05 | F22: -0.087 | H22: n/a
A23: 17 | B23: ='12 (1)'!B22 -> Costco Wholesale | D23: 0.09 | F23: 0.0715 | H23: 0.084
A24: 18 | B24: ='12 (1)'!B23 -> CVS Health | D24: 0.06 | F24: 0.0634 | H24: 0.0559
A25: 19 | B25: ='12 (1)'!B24 -> Danaher Corp. | D25: 0.15 | F25: 0.1302 | H25: 0.1164
A26: 20 | B26: ='12 (1)'!B25 -> Gen'l Mills | D26: 0.03 | F26: 0.049 | H26: 0.075
A27: 21 | B27: ='12 (1)'!B26 -> Hormel Foods | D27: 0.085 | F27: 0.029 | H27: 0.075
A28: 22 | B28: ='12 (1)'!B27 -> Intel Corp. | D28: 0.07 | F28: 0.0862 | H28: 0.075
A29: 23 | B29: ='12 (1)'!B28 -> Int'l Flavors & Frag. | D29: 0.08 | F29: 0.0038 | H29: n/a
A30: 24 | B30: ='12 (1)'!B29 -> Johnson & Johnson | D30: 0.1 | F30: 0.0508 | H30: 0.0575
A31: 25 | B31: ='12 (1)'!B30 -> Kellogg | D31: 0.03 | F31: 0.0175 | H31: 0.06
A32: 26 | B32: ='12 (1)'!B31 -> Kimberly-Clark | D32: 0.07 | F32: 0.062 | H32: 0.0545
A33: 27 | B33: ='12 (1)'!B32 -> Lilly (Eli) | D33: 0.1 | F33: 0.1317 | H33: 0.1565
A34: 28 | B34: ='12 (1)'!B33 -> Lockheed Martin | D34: 0.085 | F34: 0.0911 | H34: 0.0693
A35: 29 | B35: ='12 (1)'!B34 -> Marsh & McLennan | D35: 0.09 | F35: 0.0487 | H35: 0.06
A36: 30 | B36: ='12 (1)'!B35 -> McCormick & Co. | D36: 0.065 | F36: 0.05 | H36: 0.0578
A37: 31 | B37: ='12 (1)'!B36 -> McDonald's Corp. | D37: 0.08 | F37: 0.0388 | H37: 0.0768
A38: 32 | B38: ='12 (1)'!B37 -> Merck & Co. | D38: 0.09 | F38: 0.0625 | H38: 0.0674
A39: 33 | B39: ='12 (1)'!B38 -> Microsoft Corp. | D39: 0.15 | F39: 0.15 | H39: 0.1371
A40: 34 | B40: ='12 (1)'!B39 -> Northrop Grumman | D40: 0.105 | F40: 0.0862 | H40: n/a
A41: 35 | B41: ='12 (1)'!B40 -> Oracle Corp. | D41: 0.105 | F41: 0.0904 | H41: 0.11
A42: 36 | B42: ='12 (1)'!B41 -> PepsiCo, Inc. | D42: 0.06 | F42: 0.0548 | H42: 0.0561
A43: 37 | B43: ='12 (1)'!B42 -> Pfizer, Inc. | D43: 0.085 | F43: 0.0537 | H43: 0.0429
A44: 38 | B44: ='12 (1)'!B43 -> Procter & Gamble | D44: 0.085 | F44: 0.0772 | H44: 0.0741
A45: 39 | B45: ='12 (1)'!B44 -> Public Storage | D45: n/a | F45: 0.17 | H45: 0.0345
A46: 40 | B46: ='12 (1)'!B45 -> Texas Instruments | D46: 0.025 | F46: 0.1 | H46: 0.0933
A47: 41 | B47: ='12 (1)'!B46 -> Travelers Cos. | D47: 0.095 | F47: 0.0305 | H47: 0.0666
A48: 42 | B48: ='12 (1)'!B47 -> United Parcel Serv. | D48: 0.06 | F48: 0.059 | H48: 0.0777
A49: 43 | B49: ='12 (1)'!B48 -> Verizon Communic. | D49: 0.04 | F49: 0.0123 | H49: 0.0341
A50: 44 | B50: ='12 (1)'!B49 -> Walmart Inc. | D50: 0.075 | F50: 0.0641 | H50: 0.0563
A51: 45 | B51: ='12 (1)'!B50 -> Waste Management | D51: 0.055 | F51: -0.0126 | H51: 0.0629
A53: (a) | B53: The Value Line Investment Survey (various editions as of Aug. 21, 2020).
A54: (b) | B54: www.finance.yahoo.com (retrieved Aug. 24, 2020).
A55: (c) | B55: www.zacks.com (retrieved Aug. 24, 2020).

Sheet 12 (3)
A1: ='Exhibit List'!C19 -> DCF MODEL - NON-UTILITY GROUP | J1: ='Exhibit List'!B19 -> Exh. AMM-12
J2: Page 3 of 3
A3: ='Exhibit List'!D19 -> DCF COST OF EQUITY ESTIMATES
E5: (a) | G5: (a) | I5: (a)
D6: Earnings Growth
B7: Company | E7: Value Line | G7: IBES | I7: Zacks
A8: =A7+1 -> 1 | B8: ='12 (1)'!B6 -> Air Products & Chem. | E8: =IF('12 (2)'!D7="n/a","n/a",'12 (1)'!$I6+'12 (2)'!D7) -> 0.1387121655 | G8: =IF('12 (2)'!F7="n/a","n/a",'12 (1)'!$I6+'12 (2)'!F7) -> 0.1220121655 | I8: =IF('12 (2)'!H7="n/a","n/a",'12 (1)'!$I6+'12 (2)'!H7) -> 0.1064121655 | M8: =IF(E8="n/a","n/a",IF(E8<$E$64,"nmf",IF(E8>$E$65,"nmf",E8))) -> 0.1387121655 | N8: =IF(G8="n/a","n/a",IF(G8<$E$64,"nmf",IF(G8>$E$65,"nmf",G8))) -> 0.1220121655 | O8: =IF(I8="n/a","n/a",IF(I8<$E$64,"nmf",IF(I8>$E$65,"nmf",I8))) -> 0.1064121655
A9: 2 | B9: ='12 (1)'!B7 -> Amdocs Ltd. | E9: =IF('12 (2)'!D8="n/a","n/a",'12 (1)'!$I7+'12 (2)'!D8) -> 0.1165714203 | G9: =IF('12 (2)'!F8="n/a","n/a",'12 (1)'!$I7+'12 (2)'!F8) -> 0.06557142034 | I9: =IF('12 (2)'!H8="n/a","n/a",'12 (1)'!$I7+'12 (2)'!H8) -> 0.1065714203 | M9: =IF(E9="n/a","n/a",IF(E9<$E$64,"nmf",IF(E9>$E$65,"nmf",E9))) -> 0.1165714203 | N9: =IF(G9="n/a","n/a",IF(G9<$E$64,"nmf",IF(G9>$E$65,"nmf",G9))) -> 0.06557142034 | O9: =IF(I9="n/a","n/a",IF(I9<$E$64,"nmf",IF(I9>$E$65,"nmf",I9))) -> 0.1065714203
A10: 3 | B10: ='12 (1)'!B8 -> Amgen | E10: =IF('12 (2)'!D9="n/a","n/a",'12 (1)'!$I8+'12 (2)'!D9) -> 0.09214206236 | G10: =IF('12 (2)'!F9="n/a","n/a",'12 (1)'!$I8+'12 (2)'!F9) -> 0.09584206236 | I10: =IF('12 (2)'!H9="n/a","n/a",'12 (1)'!$I8+'12 (2)'!H9) -> 0.1024420624 | M10: =IF(E10="n/a","n/a",IF(E10<$E$64,"nmf",IF(E10>$E$65,"nmf",E10))) -> 0.09214206236 | N10: =IF(G10="n/a","n/a",IF(G10<$E$64,"nmf",IF(G10>$E$65,"nmf",G10))) -> 0.09584206236 | O10: =IF(I10="n/a","n/a",IF(I10<$E$64,"nmf",IF(I10>$E$65,"nmf",I10))) -> 0.1024420624
A11: 4 | B11: ='12 (1)'!B9 -> Amphenol Corp. | E11: =IF('12 (2)'!D10="n/a","n/a",'12 (1)'!$I9+'12 (2)'!D10) -> 0.0994614242 | G11: =IF('12 (2)'!F10="n/a","n/a",'12 (1)'!$I9+'12 (2)'!F10) -> 0.0394614242 | I11: =IF('12 (2)'!H10="n/a","n/a",'12 (1)'!$I9+'12 (2)'!H10) -> 0.0845614242 | M11: 0.0994614242 | N11: nmf | O11: 0.0845614242
A12: 5 | B12: ='12 (1)'!B10 -> Apple Inc. | E12: =IF('12 (2)'!D11="n/a","n/a",'12 (1)'!$I10+'12 (2)'!D11) -> 0.1479185538 | G12: =IF('12 (2)'!F11="n/a","n/a",'12 (1)'!$I10+'12 (2)'!F11) -> 0.1325185538 | I12: =IF('12 (2)'!H11="n/a","n/a",'12 (1)'!$I10+'12 (2)'!H11) -> 0.1146185538 | M12: nmf | N12: 0.1325185538 | O12: 0.1146185538
A13: 6 | B13: ='12 (1)'!B11 -> AT&T Inc. | E13: =IF('12 (2)'!D12="n/a","n/a",'12 (1)'!$I11+'12 (2)'!D12) -> 0.1252842608 | G13: =IF('12 (2)'!F12="n/a","n/a",'12 (1)'!$I11+'12 (2)'!F12) -> 0.07318426079 | I13: =IF('12 (2)'!H12="n/a","n/a",'12 (1)'!$I11+'12 (2)'!H12) -> 0.1255842608 | M13: 0.1252842608 | N13: 0.07318426079 | O13: 0.1255842608
A14: 7 | B14: ='12 (1)'!B12 -> Baxter Int'l Inc. | E14: =IF('12 (2)'!D13="n/a","n/a",'12 (1)'!$I12+'12 (2)'!D13) -> 0.1015069394 | G14: =IF('12 (2)'!F13="n/a","n/a",'12 (1)'!$I12+'12 (2)'!F13) -> 0.1115069394 | I14: =IF('12 (2)'!H13="n/a","n/a",'12 (1)'!$I12+'12 (2)'!H13) -> 0.1090069394 | M14: 0.1015069394 | N14: 0.1115069394 | O14: 0.1090069394
A15: 8 | B15: ='12 (1)'!B13 -> Bristol-Myers Squibb | E15: =IF('12 (2)'!D14="n/a","n/a",'12 (1)'!$I13+'12 (2)'!D14) -> 0.154746166 | G15: =IF('12 (2)'!F14="n/a","n/a",'12 (1)'!$I13+'12 (2)'!F14) -> 0.213746166 | I15: =IF('12 (2)'!H14="n/a","n/a",'12 (1)'!$I13+'12 (2)'!H14) -> 0.116046166 | M15: nmf | N15: nmf | O15: 0.116046166
A16: 9 | B16: ='12 (1)'!B14 -> Brown & Brown | E16: =IF('12 (2)'!D15="n/a","n/a",'12 (1)'!$I14+'12 (2)'!D15) -> 0.1125683938 | G16: =IF('12 (2)'!F15="n/a","n/a",'12 (1)'!$I14+'12 (2)'!F15) -> 0.09686839379 | I16: =IF('12 (2)'!H15="n/a","n/a",'12 (1)'!$I14+'12 (2)'!H15) -> n/a | M16: 0.1125683938 | N16: 0.09686839379 | O16: n/a
A17: 10 | B17: ='12 (1)'!B15 -> Brown-Forman 'B' | E17: =IF('12 (2)'!D16="n/a","n/a",'12 (1)'!$I15+'12 (2)'!D16) -> 0.1204377576 | G17: =IF('12 (2)'!F16="n/a","n/a",'12 (1)'!$I15+'12 (2)'!F16) -> 0.04373775762 | I17: =IF('12 (2)'!H16="n/a","n/a",'12 (1)'!$I15+'12 (2)'!H16) -> n/a | M17: 0.1204377576 | N17: nmf | O17: n/a
A18: 11 | B18: ='12 (1)'!B16 -> Church & Dwight | E18: =IF('12 (2)'!D17="n/a","n/a",'12 (1)'!$I16+'12 (2)'!D17) -> 0.09056624817 | G18: =IF('12 (2)'!F17="n/a","n/a",'12 (1)'!$I16+'12 (2)'!F17) -> 0.1053662482 | I18: =IF('12 (2)'!H17="n/a","n/a",'12 (1)'!$I16+'12 (2)'!H17) -> 0.09916624817 | M18: 0.09056624817 | N18: 0.1053662482 | O18: 0.09916624817
A19: 12 | B19: ='12 (1)'!B17 -> Cisco Systems | E19: =IF('12 (2)'!D18="n/a","n/a",'12 (1)'!$I17+'12 (2)'!D18) -> 0.1014035649 | G19: =IF('12 (2)'!F18="n/a","n/a",'12 (1)'!$I17+'12 (2)'!F18) -> 0.09320356489 | I19: =IF('12 (2)'!H18="n/a","n/a",'12 (1)'!$I17+'12 (2)'!H18) -> 0.08540356489 | M19: 0.1014035649 | N19: 0.09320356489 | O19: 0.08540356489
A20: 13 | B20: ='12 (1)'!B18 -> Coca-Cola | E20: =IF('12 (2)'!D19="n/a","n/a",'12 (1)'!$I18+'12 (2)'!D19) -> 0.1004007164 | G20: =IF('12 (2)'!F19="n/a","n/a",'12 (1)'!$I18+'12 (2)'!F19) -> 0.06480071644 | I20: =IF('12 (2)'!H19="n/a","n/a",'12 (1)'!$I18+'12 (2)'!H19) -> 0.08350071644 | M20: 0.1004007164 | N20: 0.06480071644 | O20: 0.08350071644
A21: 14 | B21: ='12 (1)'!B19 -> Colgate-Palmolive | E21: =IF('12 (2)'!D20="n/a","n/a",'12 (1)'!$I19+'12 (2)'!D20) -> 0.07315799631 | G21: =IF('12 (2)'!F20="n/a","n/a",'12 (1)'!$I19+'12 (2)'!F20) -> 0.08225799631 | I21: =IF('12 (2)'!H20="n/a","n/a",'12 (1)'!$I19+'12 (2)'!H20) -> 0.08205799631 | M21: 0.07315799631 | N21: 0.08225799631 | O21: 0.08205799631
A22: 15 | B22: ='12 (1)'!B20 -> Comcast Corp. | E22: =IF('12 (2)'!D21="n/a","n/a",'12 (1)'!$I20+'12 (2)'!D21) -> 0.1564724165 | G22: =IF('12 (2)'!F21="n/a","n/a",'12 (1)'!$I20+'12 (2)'!F21) -> 0.0709724165 | I22: =IF('12 (2)'!H21="n/a","n/a",'12 (1)'!$I20+'12 (2)'!H21) -> 0.1184724165 | M22: nmf | N22: 0.0709724165 | O22: 0.1184724165
A23: 16 | B23: ='12 (1)'!B21 -> Commerce Bancshs. | E23: =IF('12 (2)'!D22="n/a","n/a",'12 (1)'!$I21+'12 (2)'!D22) -> 0.06850107066 | G23: =IF('12 (2)'!F22="n/a","n/a",'12 (1)'!$I21+'12 (2)'!F22) -> -0.06849892934 | I23: =IF('12 (2)'!H22="n/a","n/a",'12 (1)'!$I21+'12 (2)'!H22) -> n/a | M23: 0.06850107066 | N23: nmf | O23: n/a
A24: 17 | B24: ='12 (1)'!B22 -> Costco Wholesale | E24: =IF('12 (2)'!D23="n/a","n/a",'12 (1)'!$I22+'12 (2)'!D23) -> 0.09841992153 | G24: =IF('12 (2)'!F23="n/a","n/a",'12 (1)'!$I22+'12 (2)'!F23) -> 0.07991992153 | I24: =IF('12 (2)'!H23="n/a","n/a",'12 (1)'!$I22+'12 (2)'!H23) -> 0.09241992153 | M24: 0.09841992153 | N24: 0.07991992153 | O24: 0.09241992153
A25: 18 | B25: ='12 (1)'!B23 -> CVS Health | E25: =IF('12 (2)'!D24="n/a","n/a",'12 (1)'!$I23+'12 (2)'!D24) -> 0.09110000726 | G25: =IF('12 (2)'!F24="n/a","n/a",'12 (1)'!$I23+'12 (2)'!F24) -> 0.09450000726 | I25: =IF('12 (2)'!H24="n/a","n/a",'12 (1)'!$I23+'12 (2)'!H24) -> 0.08700000726 | M25: 0.09110000726 | N25: 0.09450000726 | O25: 0.08700000726
A26: 19 | B26: ='12 (1)'!B24 -> Danaher Corp. | E26: =IF('12 (2)'!D25="n/a","n/a",'12 (1)'!$I24+'12 (2)'!D25) -> 0.1535983867 | G26: =IF('12 (2)'!F25="n/a","n/a",'12 (1)'!$I24+'12 (2)'!F25) -> 0.1337983867 | I26: =IF('12 (2)'!H25="n/a","n/a",'12 (1)'!$I24+'12 (2)'!H25) -> 0.1199983867 | M26: nmf | N26: 0.1337983867 | O26: 0.1199983867
A27: 20 | B27: ='12 (1)'!B25 -> Gen'l Mills | E27: =IF('12 (2)'!D26="n/a","n/a",'12 (1)'!$I25+'12 (2)'!D26) -> 0.06055243796 | G27: =IF('12 (2)'!F26="n/a","n/a",'12 (1)'!$I25+'12 (2)'!F26) -> 0.07955243796 | I27: =IF('12 (2)'!H26="n/a","n/a",'12 (1)'!$I25+'12 (2)'!H26) -> 0.105552438 | M27: nmf | N27: 0.07955243796 | O27: 0.105552438
A28: 21 | B28: ='12 (1)'!B26 -> Hormel Foods | E28: =IF('12 (2)'!D27="n/a","n/a",'12 (1)'!$I26+'12 (2)'!D27) -> 0.1046440498 | G28: =IF('12 (2)'!F27="n/a","n/a",'12 (1)'!$I26+'12 (2)'!F27) -> 0.04864404982 | I28: =IF('12 (2)'!H27="n/a","n/a",'12 (1)'!$I26+'12 (2)'!H27) -> 0.09464404982 | M28: 0.1046440498 | N28: nmf | O28: 0.09464404982
A29: 22 | B29: ='12 (1)'!B27 -> Intel Corp. | E29: =IF('12 (2)'!D28="n/a","n/a",'12 (1)'!$I27+'12 (2)'!D28) -> 0.09532649433 | G29: =IF('12 (2)'!F28="n/a","n/a",'12 (1)'!$I27+'12 (2)'!F28) -> 0.1115264943 | I29: =IF('12 (2)'!H28="n/a","n/a",'12 (1)'!$I27+'12 (2)'!H28) -> 0.1003264943 | M29: 0.09532649433 | N29: 0.1115264943 | O29: 0.1003264943
A30: 23 | B30: ='12 (1)'!B28 -> Int'l Flavors & Frag. | E30: =IF('12 (2)'!D29="n/a","n/a",'12 (1)'!$I28+'12 (2)'!D29) -> 0.1047216177 | G30: =IF('12 (2)'!F29="n/a","n/a",'12 (1)'!$I28+'12 (2)'!F29) -> 0.02852161768 | I30: =IF('12 (2)'!H29="n/a","n/a",'12 (1)'!$I28+'12 (2)'!H29) -> n/a | M30: 0.1047216177 | N30: nmf | O30: n/a
A31: 24 | B31: ='12 (1)'!B29 -> Johnson & Johnson | E31: =IF('12 (2)'!D30="n/a","n/a",'12 (1)'!$I29+'12 (2)'!D30) -> 0.1272121673 | G31: =IF('12 (2)'!F30="n/a","n/a",'12 (1)'!$I29+'12 (2)'!F30) -> 0.07801216734 | I31: =IF('12 (2)'!H30="n/a","n/a",'12 (1)'!$I29+'12 (2)'!H30) -> 0.08471216734 | M31: 0.1272121673 | N31: 0.07801216734 | O31: 0.08471216734
A32: 25 | B32: ='12 (1)'!B30 -> Kellogg | E32: =IF('12 (2)'!D31="n/a","n/a",'12 (1)'!$I30+'12 (2)'!D31) -> 0.06334557615 | G32: =IF('12 (2)'!F31="n/a","n/a",'12 (1)'!$I30+'12 (2)'!F31) -> 0.05084557615 | I32: =IF('12 (2)'!H31="n/a","n/a",'12 (1)'!$I30+'12 (2)'!H31) -> 0.09334557615 | M32: nmf | N32: nmf | O32: 0.09334557615
A33: 26 | B33: ='12 (1)'!B31 -> Kimberly-Clark | E33: =IF('12 (2)'!D32="n/a","n/a",'12 (1)'!$I31+'12 (2)'!D32) -> 0.09820973631 | G33: =IF('12 (2)'!F32="n/a","n/a",'12 (1)'!$I31+'12 (2)'!F32) -> 0.09020973631 | I33: =IF('12 (2)'!H32="n/a","n/a",'12 (1)'!$I31+'12 (2)'!H32) -> 0.08270973631 | M33: 0.09820973631 | N33: 0.09020973631 | O33: 0.08270973631
A34: 27 | B34: ='12 (1)'!B32 -> Lilly (Eli) | E34: =IF('12 (2)'!D33="n/a","n/a",'12 (1)'!$I32+'12 (2)'!D33) -> 0.1188499013 | G34: =IF('12 (2)'!F33="n/a","n/a",'12 (1)'!$I32+'12 (2)'!F33) -> 0.1505499013 | I34: =IF('12 (2)'!H33="n/a","n/a",'12 (1)'!$I32+'12 (2)'!H33) -> 0.1753499013 | M34: 0.1188499013 | N34: nmf | O34: nmf
A35: 28 | B35: ='12 (1)'!B33 -> Lockheed Martin | E35: =IF('12 (2)'!D34="n/a","n/a",'12 (1)'!$I33+'12 (2)'!D34) -> 0.1112284763 | G35: =IF('12 (2)'!F34="n/a","n/a",'12 (1)'!$I33+'12 (2)'!F34) -> 0.1173284763 | I35: =IF('12 (2)'!H34="n/a","n/a",'12 (1)'!$I33+'12 (2)'!H34) -> 0.09552847626 | M35: 0.1112284763 | N35: 0.1173284763 | O35: 0.09552847626
A36: 29 | B36: ='12 (1)'!B34 -> Marsh & McLennan | E36: =IF('12 (2)'!D35="n/a","n/a",'12 (1)'!$I34+'12 (2)'!D35) -> 0.1061359818 | G36: =IF('12 (2)'!F35="n/a","n/a",'12 (1)'!$I34+'12 (2)'!F35) -> 0.06483598179 | I36: =IF('12 (2)'!H35="n/a","n/a",'12 (1)'!$I34+'12 (2)'!H35) -> 0.07613598179 | M36: 0.1061359818 | N36: 0.06483598179 | O36: 0.07613598179
A37: 30 | B37: ='12 (1)'!B35 -> McCormick & Co. | E37: =IF('12 (2)'!D36="n/a","n/a",'12 (1)'!$I35+'12 (2)'!D36) -> 0.07772655387 | G37: =IF('12 (2)'!F36="n/a","n/a",'12 (1)'!$I35+'12 (2)'!F36) -> 0.06272655387 | I37: =IF('12 (2)'!H36="n/a","n/a",'12 (1)'!$I35+'12 (2)'!H36) -> 0.07052655387 | M37: 0.07772655387 | N37: nmf | O37: 0.07052655387
A38: 31 | B38: ='12 (1)'!B36 -> McDonald's Corp. | E38: =IF('12 (2)'!D37="n/a","n/a",'12 (1)'!$I36+'12 (2)'!D37) -> 0.1050330018 | G38: =IF('12 (2)'!F37="n/a","n/a",'12 (1)'!$I36+'12 (2)'!F37) -> 0.06383300184 | I38: =IF('12 (2)'!H37="n/a","n/a",'12 (1)'!$I36+'12 (2)'!H37) -> 0.1018330018 | M38: 0.1050330018 | N38: nmf | O38: 0.1018330018
A39: 32 | B39: ='12 (1)'!B37 -> Merck & Co. | E39: =IF('12 (2)'!D38="n/a","n/a",'12 (1)'!$I37+'12 (2)'!D38) -> 0.1201538588 | G39: =IF('12 (2)'!F38="n/a","n/a",'12 (1)'!$I37+'12 (2)'!F38) -> 0.09265385883 | I39: =IF('12 (2)'!H38="n/a","n/a",'12 (1)'!$I37+'12 (2)'!H38) -> 0.09755385883 | M39: 0.1201538588 | N39: 0.09265385883 | O39: 0.09755385883
A40: 33 | B40: ='12 (1)'!B38 -> Microsoft Corp. | E40: =IF('12 (2)'!D39="n/a","n/a",'12 (1)'!$I38+'12 (2)'!D39) -> 0.1597855337 | G40: =IF('12 (2)'!F39="n/a","n/a",'12 (1)'!$I38+'12 (2)'!F39) -> 0.1597855337 | I40: =IF('12 (2)'!H39="n/a","n/a",'12 (1)'!$I38+'12 (2)'!H39) -> 0.1468855337 | M40: nmf | N40: nmf | O40: nmf
A41: 34 | B41: ='12 (1)'!B39 -> Northrop Grumman | E41: =IF('12 (2)'!D40="n/a","n/a",'12 (1)'!$I39+'12 (2)'!D40) -> 0.1230140447 | G41: =IF('12 (2)'!F40="n/a","n/a",'12 (1)'!$I39+'12 (2)'!F40) -> 0.1042140447 | I41: =IF('12 (2)'!H40="n/a","n/a",'12 (1)'!$I39+'12 (2)'!H40) -> n/a | M41: 0.1230140447 | N41: 0.1042140447 | O41: n/a
A42: 35 | B42: ='12 (1)'!B40 -> Oracle Corp. | E42: =IF('12 (2)'!D41="n/a","n/a",'12 (1)'!$I40+'12 (2)'!D41) -> 0.1223203912 | G42: =IF('12 (2)'!F41="n/a","n/a",'12 (1)'!$I40+'12 (2)'!F41) -> 0.1077203912 | I42: =IF('12 (2)'!H41="n/a","n/a",'12 (1)'!$I40+'12 (2)'!H41) -> 0.1273203912 | M42: 0.1223203912 | N42: 0.1077203912 | O42: 0.1273203912
A43: 36 | B43: ='12 (1)'!B41 -> PepsiCo, Inc. | E43: =IF('12 (2)'!D42="n/a","n/a",'12 (1)'!$I41+'12 (2)'!D42) -> 0.08999325335 | G43: =IF('12 (2)'!F42="n/a","n/a",'12 (1)'!$I41+'12 (2)'!F42) -> 0.08479325335 | I43: =IF('12 (2)'!H42="n/a","n/a",'12 (1)'!$I41+'12 (2)'!H42) -> 0.08609325335 | M43: 0.08999325335 | N43: 0.08479325335 | O43: 0.08609325335
A44: 37 | B44: ='12 (1)'!B42 -> Pfizer, Inc. | E44: =IF('12 (2)'!D43="n/a","n/a",'12 (1)'!$I42+'12 (2)'!D43) -> 0.1252084491 | G44: =IF('12 (2)'!F43="n/a","n/a",'12 (1)'!$I42+'12 (2)'!F43) -> 0.09390844906 | I44: =IF('12 (2)'!H43="n/a","n/a",'12 (1)'!$I42+'12 (2)'!H43) -> 0.08310844906 | M44: 0.1252084491 | N44: 0.09390844906 | O44: 0.08310844906
A45: 38 | B45: ='12 (1)'!B43 -> Procter & Gamble | E45: =IF('12 (2)'!D44="n/a","n/a",'12 (1)'!$I43+'12 (2)'!D44) -> 0.1091949686 | G45: =IF('12 (2)'!F44="n/a","n/a",'12 (1)'!$I43+'12 (2)'!F44) -> 0.1013949686 | I45: =IF('12 (2)'!H44="n/a","n/a",'12 (1)'!$I43+'12 (2)'!H44) -> 0.09829496857 | M45: 0.1091949686 | N45: 0.1013949686 | O45: 0.09829496857
A46: 39 | B46: ='12 (1)'!B44 -> Public Storage | E46: =IF('12 (2)'!D45="n/a","n/a",'12 (1)'!$I44+'12 (2)'!D45) -> n/a | G46: =IF('12 (2)'!F45="n/a","n/a",'12 (1)'!$I44+'12 (2)'!F45) -> 0.2109240654 | I46: =IF('12 (2)'!H45="n/a","n/a",'12 (1)'!$I44+'12 (2)'!H45) -> 0.0754240654 | M46: n/a | N46: nmf | O46: 0.0754240654
A47: 40 | B47: ='12 (1)'!B45 -> Texas Instruments | E47: =IF('12 (2)'!D46="n/a","n/a",'12 (1)'!$I45+'12 (2)'!D46) -> 0.05190830993 | G47: =IF('12 (2)'!F46="n/a","n/a",'12 (1)'!$I45+'12 (2)'!F46) -> 0.1269083099 | I47: =IF('12 (2)'!H46="n/a","n/a",'12 (1)'!$I45+'12 (2)'!H46) -> 0.1202083099 | M47: nmf | N47: 0.1269083099 | O47: 0.1202083099
A48: 41 | B48: ='12 (1)'!B46 -> Travelers Cos. | E48: =IF('12 (2)'!D47="n/a","n/a",'12 (1)'!$I46+'12 (2)'!D47) -> 0.1240878396 | G48: =IF('12 (2)'!F47="n/a","n/a",'12 (1)'!$I46+'12 (2)'!F47) -> 0.05958783957 | I48: =IF('12 (2)'!H47="n/a","n/a",'12 (1)'!$I46+'12 (2)'!H47) -> 0.09568783957 | M48: 0.1240878396 | N48: nmf | O48: 0.09568783957
A49: 42 | B49: ='12 (1)'!B47 -> United Parcel Serv. | E49: =IF('12 (2)'!D48="n/a","n/a",'12 (1)'!$I47+'12 (2)'!D48) -> 0.08917290482 | G49: =IF('12 (2)'!F48="n/a","n/a",'12 (1)'!$I47+'12 (2)'!F48) -> 0.08817290482 | I49: =IF('12 (2)'!H48="n/a","n/a",'12 (1)'!$I47+'12 (2)'!H48) -> 0.1068729048 | M49: 0.08917290482 | N49: 0.08817290482 | O49: 0.1068729048
A50: 43 | B50: ='12 (1)'!B48 -> Verizon Communic. | E50: =IF('12 (2)'!D49="n/a","n/a",'12 (1)'!$I48+'12 (2)'!D49) -> 0.08340020567 | G50: =IF('12 (2)'!F49="n/a","n/a",'12 (1)'!$I48+'12 (2)'!F49) -> 0.05570020567 | I50: =IF('12 (2)'!H49="n/a","n/a",'12 (1)'!$I48+'12 (2)'!H49) -> 0.07750020567 | M50: 0.08340020567 | N50: nmf | O50: 0.07750020567
A51: 44 | B51: ='12 (1)'!B49 -> Walmart Inc. | E51: =IF('12 (2)'!D50="n/a","n/a",'12 (1)'!$I49+'12 (2)'!D50) -> 0.09158467312 | G51: =IF('12 (2)'!F50="n/a","n/a",'12 (1)'!$I49+'12 (2)'!F50) -> 0.08068467312 | I51: =IF('12 (2)'!H50="n/a","n/a",'12 (1)'!$I49+'12 (2)'!H50) -> 0.07288467312 | M51: 0.09158467312 | N51: 0.08068467312 | O51: 0.07288467312
A52: 45 | B52: ='12 (1)'!B50 -> Waste Management | E52: =IF('12 (2)'!D51="n/a","n/a",'12 (1)'!$I50+'12 (2)'!D51) -> 0.07496099365 | G52: =IF('12 (2)'!F51="n/a","n/a",'12 (1)'!$I50+'12 (2)'!F51) -> 0.007360993655 | I52: =IF('12 (2)'!H51="n/a","n/a",'12 (1)'!$I50+'12 (2)'!H51) -> 0.08286099365 | M52: 0.07496099365 | N52: nmf | O52: 0.08286099365
B54: Average (b) | E54: =AVERAGE(M8:M52) -> 0.1036781531 | G54: =AVERAGE(N8:N52) -> 0.09480797338 | I54: =AVERAGE(O8:O52) -> 0.09637859576 | K54: =AVERAGE(E54:I54) -> 0.09828824075 | L54: Min | M54: =MIN(M8:M52) -> 0.06850107066 | N54: =MIN(N8:N52) -> 0.06480071644 | O54: =MIN(O8:O52) -> 0.07052655387
B55: Midpoint (b,c) | E55: =AVERAGE(M54:M55) -> 0.1036066181 | G55: =AVERAGE(N54:N55) -> 0.09929955158 | I55: =AVERAGE(O54:O55) -> 0.09892347251 | K55: =AVERAGE(E55:I55) -> 0.1006098807 | L55: Max | M55: =MAX(M8:M52) -> 0.1387121655 | N55: =MAX(N8:N52) -> 0.1337983867 | O55: =MAX(O8:O52) -> 0.1273203912
A57: (a) | B57: ="Sum of dividend yield (" & '12 (3)'!J1 & ", p. 1) and respective growth rate (" & J1 & ", p. 2)." -> Sum of dividend yield (Exh. AMM-12, p. 1) and respective growth rate (Exh. AMM-12, p. 2).
A58: (b) | B58: Excludes highlighted figures.
A59: (c) | B59: Average of low and high values.
B64: Criteria Min | E64: ='6 (3)'!E42 -> 0.064
B65: Criteria Max | E65: ='6 (3)'!E43 -> 0.141

Sheet 13
A1: ='Exhibit List'!C20 -> FLOTATION COST STUDY | U1: ='Exhibit List'!B20 -> Exh. AMM-13
U2: Page 1 of 1
A3: ='Exhibit List'!D20 -> ELECTRIC & GAS UTILITIES
E5: -1 | G5: =E5-1 -> -2 | I5: =G5-1 -> -3 | K5: =I5-1 -> -4 | M5: =K5-1 -> -5 | O5: =M5-1 -> -6 | Q5: =O5-1 -> -7 | S5: =Q5-1 -> -8 | U5: =S5-1 -> -9
K6: Underwriting | Q6: Total | S6: Gross Proceeds | U6: Flotation
G7: Shares | I7: Offering | K7: Discount | M7: Underwriting | O7: Offering | Q7: Flotation | S7: Before Flot. | U7: Cost | W7: Latest | X7: Net
A8: No. | B8: Sym | C8: Company | E8: Date | G8: Issued | I8: Price | K8: (per share) | M8: Discount | O8: Expense | Q8: Costs | S8: Costs | U8: (%) | W8: Price | X8: Proceeds
A9: 1 | B9: ALE | C9: ALLETE | E9: 2014-02-27 | G9: 3220000 | I9: 49.75 | K9: 1.74125 | M9: =G9*K9 -> 5606825 | O9: 450000 | Q9: =O9+M9 -> 6056825 | S9: =I9*G9 -> 160195000 | U9: =Q9/S9 -> 0.03780907644
A10: =A9+1 -> 2 | B10: LNT | C10: Alliant Energy | E10: 2019-11-14 | G10: 3717502 | I10: 52.63 | K10: 0.395 | M10: =G10*K10 -> 1468413.29 | O10: 500000 | Q10: =O10+M10 -> 1968413.29 | S10: =I10*G10 -> 195652130.3 | U10: =Q10/S10 -> 0.01006078128
A11: 3 | B11: AEE | C11: Ameren Corp. | E11: 2019-08-05 | G11: 7549205 | I11: 74.3 | K11: 0.12 | M11: 905904.6 | O11: 750000 | Q11: 1655904.6 | S11: 560905931.5 | U11: 0.002952196629
A12: 4 | B12: AEP | C12: American Elec Pwr | E12: 2009-04-02 | G12: =60000000+9000000 -> 69000000 | I12: 24.5 | K12: 0.735 | M12: 50715000 | O12: 400000 | Q12: 51115000 | S12: 1690500000 | U12: 0.03023661639
A13: 5 | B13: AGR | C13: Avangrid, Inc. | E13: N/A
A14: 6 | B14: AVA | C14: Avista Corp. | E14: 2006-12-13 | G14: =2750000+412500 -> 3162500 | I14: 25.05 | K14: 0.48 | M14: 1518000 | O14: 300000 | Q14: 1818000 | S14: 79220625 | U14: 0.02294856926
A15: 7 | B15: BKH | C15: Black Hills Corp. | E15: 2015-11-19 | G15: =5500000+825000 -> 6325000 | I15: 40.25 | K15: 1.40875 | M15: 8910343.75 | O15: 1200000 | Q15: 10110343.75 | S15: 254581250 | U15: 0.03971362286
A16: 8 | B16: CNP | C16: CenterPoint Energy | E16: 2018-09-27 | G16: 60550459 | I16: 27.25 | K16: 0.75 | M16: 45412844.25 | O16: 1000000 | Q16: 46412844.25 | S16: 1650000008 | U16: 0.02812899638
A17: 9 | B17: CMS | C17: CMS Energy Corp. | E17: 2005-03-31 | G17: =20000000+3000000 -> 23000000 | I17: 12.25 | K17: 0.4288 | M17: 9862400 | O17: 325000 | Q17: 10187400 | S17: 281750000 | U17: 0.03615758651
A18: 10 | B18: ED | C18: Consolidated Edison (a) | E18: 2019-05-07 | G18: 5800000 | I18: 84.83 | K18: =W18-I18 -> 0.59 | M18: 3422000 | O18: 400000 | Q18: 3822000 | S18: 492014000 | U18: 0.00776807164 | W18: 85.42 | X18: =S18-M18-O18 -> 488192000
A19: 11 | B19: D | C19: Dominion Energy (a) | E19: 2018-03-29 | G19: 20000000 | I19: 67.3258 | K19: =W19-I19 -> 1.8942 | M19: 37884000 | O19: 450000 | Q19: 38334000 | S19: 1346516000 | U19: 0.02846902673 | W19: 69.22 | X19: =S19-M19-O19 -> 1308182000
A20: 12 | B20: DTE | C20: DTE Energy Co. | E20: 2019-10-29 | G20: 2400000 | I20: 126 | K20: 3.15 | M20: 7560000 | O20: 300000 | Q20: 7860000 | S20: 302400000 | U20: 0.02599206349
A21: 13 | B21: DUK | C21: Duke Energy Corp. (a) | E21: 2019-11-18 | G21: 25000000 | I21: 85.99 | K21: =W21-I21 -> 2.66 | M21: 66500000 | O21: 592000 | Q21: 67092000 | S21: 2149750000 | U21: 0.03120921037 | W21: 88.65 | X21: =S21-M21-O21 -> 2082658000
A22: 14 | B22: EIX | C22: Edison International | E22: 2019-07-30 | G22: 28000000 | I22: 68.5 | K22: 1.626875 | M22: 45552500 | O22: 725000 | Q22: 46277500 | S22: 1918000000 | U22: 0.02412799791
A23: 15 | B23: EE | C23: El Paso Electric Co. | E23: N/A
A24: 16 | B24: ETR | C24: Entergy Corp. | E24: 2018-06-08 | G24: 13289037 | I24: 75.25 | K24: 0.8 | M24: =G24*K24 -> 10631229.6 | O24: 650000 | Q24: =O24+M24 -> 11281229.6 | S24: =I24*G24 -> 1000000034 | U24: =Q24/S24 -> 0.01128122921
A25: 17 | B25: EVRG | C25: Evergy Inc. | E25: N/A
A26: 18 | B26: ES | C26: Eversource Energy | E26: 2019-05-30 | G26: 15600000 | I26: 71.48 | K26: =W26-I26 -> 1.69 | M26: 26364000 | O26: 615000 | Q26: 26979000 | S26: 1115088000 | U26: 0.02419450303 | W26: 73.17 | X26: =S26-M26-O26 -> 1088109000
A27: 19 | B27: EXC | C27: Exelon Corp. | E27: 2014-06-13 | G27: =50000000+7500000 -> 57500000 | I27: 35 | K27: 1.05 | M27: 60375000 | O27: 600000 | Q27: 60975000 | S27: 2012500000 | U27: 0.03029813665
A28: 20 | B28: FE | C28: FirstEnergy Corp. | E28: 2003-09-15 | G28: =28000000+4200000 -> 32200000 | I28: 30 | K28: 0.975 | M28: 31395000 | O28: 423000 | Q28: 31818000 | S28: 966000000 | U28: 0.0329378882
A29: 21 | B29: FTS | C29: Fortis Inc. | E29: N/A
A30: 22 | B30: HE | C30: Hawaiian Elec. | E30: 2013-03-20 | G30: =6100000+900000 -> 7000000 | I30: 26.75 | K30: 1.00312 | M30: 7021840 | O30: 450000 | Q30: 7471840 | S30: 187250000 | U30: 0.03990301736
A31: 23 | B31: IDA | C31: IDACORP, Inc. | E31: 2004-12-10 | G31: =3500000+525000 -> 4025000 | I31: 30 | K31: 1.2 | M31: 4830000 | O31: 300000 | Q31: 5130000 | S31: 120750000 | U31: 0.04248447205
A32: 24 | B32: MGEE | C32: MGE Energy | E32: 2004-09-10 | G32: =1100000+165000 -> 1265000 | I32: 31.85 | K32: 1.035 | M32: 1309275 | O32: 125000 | Q32: 1434275 | S32: 40290250 | U32: 0.03559856293
A33: 25 | B33: NEE | C33: NextEra Energy, Inc. (a) | E33: 2016-11-03 | G33: =12000000+1800000 -> 13800000 | I33: 124 | K33: =W33-I33 -> 1.89 | M33: 26082000 | O33: 750000 | Q33: 26832000 | S33: 1711200000 | U33: 0.0156802244 | W33: 125.89 | X33: =S33-M33-O33 -> 1684368000
A34: 26 | B34: NWE | C34: NorthWestern Corp. (a) | E34: 2015-09-30 | G34: 1100000 | I34: 51.81 | K34: =W34-I34 -> 1.33 | M34: 1463000 | O34: 1000000 | Q34: 2463000 | S34: 56991000 | U34: 0.04321735011 | W34: 53.14 | X34: =S34-M34-O34 -> 54528000
A35: 27 | B35: OGE | C35: OGE Energy Corp. | E35: 2003-08-22 | G35: =4650000+674074 -> 5324074 | I35: 21.6 | K35: 0.79 | M35: 4206018.46 | O35: 325000 | Q35: 4531018.46 | S35: 114999998.4 | U35: 0.03940016107
A36: 28 | B36: OTTR | C36: Otter Tail Corp. | E36: N/A
A37: 29 | B37: PNW | C37: Pinnacle West Capital | E37: 2010-04-09 | G37: =6000000+900000 -> 6900000 | I37: 38 | K37: 1.33 | M37: 9177000 | O37: 190000 | Q37: 9367000 | S37: 262200000 | U37: 0.03572463768
A38: 30 | B38: PNM | C38: PNM Resources | E38: 2020-01-07 | G38: 5375000 | I38: 47.21 | K38: =W38-I38 -> 1.99 | M38: 10696250 | O38: 750000 | Q38: 11446250 | S38: 253753750 | U38: 0.04510770777 | W38: 49.2 | X38: =S38-M38-O38 -> 242307500
A39: 31 | B39: POR | C39: Portland General Elec. | E39: 2013-06-13 | G39: =11100000+1665000 -> 12765000 | I39: 29.5 | K39: 0.95875 | M39: 12238443.75 | O39: 600000 | Q39: 12838443.75 | S39: 376567500 | U39: 0.03409333984
A40: 32 | B40: PPL | C40: PPL Corp. | E40: 2018-05-10 | G40: 55000000 | I40: 27 | K40: 0.2943 | M40: 16186500 | O40: 1000000 | Q40: 17186500 | S40: 1485000000 | U40: 0.01157340067
A41: 33 | B41: PEG | C41: Pub Sv Enterprise Grp. | E41: 2003-10-02 | G41: =8250000+1237500 -> 9487500 | I41: 41.75 | K41: 1.2525 | M41: 11883093.75 | O41: 350000 | Q41: 12233093.75 | S41: 396103125 | U41: 0.03088360828
A42: 34 | B42: SRE | C42: Sempra Energy | E42: 2018-01-05 | G42: =23364486+3504672 -> 26869158 | I42: 107 | K42: 1.926 | M42: 51749998.31 | O42: 1500000 | Q42: 53249998.31 | S42: 2874999906 | U42: 0.01852173915
A43: 35 | B43: SO | C43: Southern Company (a) | E43: 2016-08-18 | G43: 32500000 | I43: 49.3 | K43: =W43-I43 -> 1.66 | M43: 53950000 | O43: 557000 | Q43: 54507000 | S43: 1602250000 | U43: 0.03401903573 | W43: 50.96 | X43: =S43-M43-O43 -> 1547743000
A44: 36 | B44: WEC | C44: WEC Energy Group | E44: N/A
A45: 37 | B45: XEL | C45: Xcel Energy Inc. (a) | E45: 2019-10-30 | G45: 10300000 | I45: 62.69 | K45: =W45-I45 -> 0.63 | M45: 6489000 | O45: 650000 | Q45: 7139000 | S45: 645707000 | U45: 0.0110560982 | W45: 63.32 | X45: =S45-M45-O45 -> 638568000
C46: Average | U46: =AVERAGE(U9:U45) -> 0.02779190091
A49: 1 | B49: ATO | C49: Atmos Energy Corp. | E49: 2018-11-30 | G49: 7008087 | I49: 92.75 | K49: 0.9769 | M49: =G49*K49 -> 6846200.19 | O49: 1000000 | Q49: =O49+M49 -> 7846200.19 | S49: =I49*G49 -> 650000069.2 | U49: =Q49/S49 -> 0.01207107593
A50: =A49+1 -> 2 | B50: CPK | C50: Chesapeake Utilities | E50: 2016-09-23 | G50: 960488 | I50: 62.26 | K50: 2.33 | M50: =G50*K50 -> 2237937.04 | O50: =S50-X50-M50 -> 162045.84 | Q50: =O50+M50 -> 2399982.88 | S50: =I50*G50 -> 59799982.88 | U50: 0.04013350447 | X50: 57400000
A51: =A50+1 -> 3 | B51: NJR | C51: New Jersey Resources | E51: 2019-12-04 | G51: 5700000 | I51: 41.25 | K51: 1.2375 | M51: =G51*K51 -> 7053750 | O51: 500000 | Q51: =M51+O51 -> 7553750 | S51: =I51*G51 -> 235125000 | U51: 0.03212652844
A52: 4 | B52: NI | C52: NiSource Inc. | E52: 2017-05-03 | G52: N/A | I52: N/A | K52: N/A | M52: =0.02*S52 -> 10000000 | O52: 57950 | Q52: =M52+O52 -> 10057950 | S52: 500000000 | U52: 0.0201159
A53: 5 | B53: NWN | C53: Northwest Nat. Holding Co. | E53: 2019-06-04 | G53: 1250000 | I53: 67 | K53: 2.1775 | M53: =G53*K53 -> 2721875 | O53: 400000 | Q53: =M53+O53 -> 3121875 | S53: =I53*G53 -> 83750000 | U53: 0.0372761194
A54: 6 | B54: OGS | C54: ONE Gas, Inc. | E54: N/A
A55: 7 | B55: SJI | C55: South Jersey Industries | E55: 2018-04-20 | G55: 11016949 | I55: 29.5 | K55: 1.0325 | M55: =G55*K55 -> 11374999.84 | O55: 700000 | Q55: =M55+O55 -> 12074999.84 | S55: =I55*G55 -> 324999995.5 | U55: 0.03715384618
A56: 8 | B56: SWX | C56: Southwest Gas | E56: 2018-11-28 | G56: 3100000 | I56: 75.5 | K56: 2.5481 | M56: =G56*K56 -> 7899110 | O56: 600000 | Q56: =M56+O56 -> 8499110 | S56: =I56*G56 -> 234050000 | U56: 0.03631322367
A57: 9 | B57: SR | C57: Spire Inc. | E57: 2018-05-09 | G57: 2000000 | H57: 0.6875 | I57: 63.05 | K57: 2.10938 | M57: =G57*K57 -> 4218760 | O57: 325000 | Q57: =M57+O57 -> 4543760 | S57: =I57*G57 -> 126100000 | U57: 0.03603298969
A58: 10 | B58: UGI | C58: UGI Corporation | E58: 2004-03-18 | G58: 8625000 | I58: 32.1 | K58: 1.4044 | M58: =G58*K58 -> 12112950 | O58: =S58-X58-M58 -> 1149550 | Q58: =M58+O58 -> 13262500 | S58: =G58*I58 -> 276862500 | U58: 0.04790283986 | X58: 263600000
C59: Average | U59: =AVERAGE(U49:U58) -> 0.03323622529
C61: Average - Electric & Gas | U61: =AVERAGE(U9:U45,U49:U58) -> 0.0290168739
B63: Column Notes:
B64: (1-4) | C64: SEC Form 424B for each company.
B65: (5) | C65: Column (2) * Column (4)
B66: (6) | C66: SEC Form 424B for each company.
B67: (7) | C67: Column (5) + Column (6)
B68: (8) | C68: Column (2) * Column (3)
B69: (9) | C69: Column (7) / Column (8)
B70: Note (a): | C70: Underwriting discount computed as the difference between the current market price and the price offered to the issuing company by the underwriters.

Sheet 14 (1)
A2: ='Exhibit List'!C21 -> REGULATORY MECHANISMS | O2: ='Exhibit List'!B21 -> Exh. AMM-14
O3: Page 1 of 4
A4: ='Exhibit List'!D21 -> UTILITY GROUP
C6: Type of Adjustment Clause
D7: Conserv. | J7: New Capital | L7: RTO-related | N7: Future | O7: Formula
D8: Program | E8: Decoupling | H8: Renewables | I8: Environ. | J8: Generation | K8: Generic | L8: Trans. | N8: Test | O8: Rates /
B9: Company | C9: Fuel/PPA | D9: Expense | E9: Full | F9: Partial | G9: WNA | H9: Expense | I9: Compliance | J9: Capacity | K9: Infrastructure | L9: Expense | M9: Other* | N9: Year | O9: MRP
A10: =A6+1 -> 1 | B10: Algonquin Pwr & Util | C10: ✓ | D10: ✓ | E10: -- | F10: ✓ | G10: -- | H10: -- | I10: ✓ | J10: -- | K10: ✓ | L10: ✓ | M10: ✓ | N10: P | O10: ✓
A11: =A10+1 -> 2 | B11: ALLETE | C11: ✓ | D11: ✓ | E11: -- | F11: -- | G11: -- | H11: ✓ | I11: ✓ | J11: -- | K11: -- | L11: ✓ | M11: -- | N11: C | O11: ✓
A12: =A11+1 -> 3 | B12: Ameren Corp. | C12: ✓ | D12: ✓ | E12: -- | F12: ✓ | G12: -- | H12: ✓ | I12: ✓ | J12: -- | K12: ✓ | L12: ✓ | M12: ✓ | N12: O,P | O12: ✓
A13: 4 | B13: AVANGRID, Inc. | C13: D | D13: ✓ | E13: ✓ | F13: -- | G13: -- | H13: ✓ | I13: -- | J13: D | K13: -- | L13: ✓ | M13: ✓ | N13: C | O13: ✓
A14: 5 | B14: Black Hills Corp. | C14: ✓ | D14: ✓ | E14: -- | F14: ✓ | G14: -- | H14: ✓ | I14: ✓ | J14: ✓ | K14: ✓ | L14: ✓ | M14: -- | N14: O | O14: ✓
A15: 6 | B15: CenterPoint Energy | C15: ✓ | D15: ✓ | E15: -- | F15: ✓ | G15: -- | H15: -- | I15: ✓ | J15: -- | K15: ✓ | L15: ✓ | M15: ✓ | N15: -- | O15: ✓
A16: 7 | B16: CMS Energy Corp. | C16: ✓ | D16: ✓ | E16: -- | F16: -- | G16: -- | H16: ✓ | I16: -- | J16: -- | K16: -- | L16: ✓ | M16: -- | N16: C | O16: --
A17: 8 | B17: DTE Energy Co. | C17: ✓ | D17: ✓ | E17: -- | F17: -- | G17: -- | H17: ✓ | I17: -- | J17: -- | K17: -- | L17: ✓ | M17: ✓ | N17: C | O17: --
A18: 9 | B18: Edison International | C18: ✓ | D18: -- | E18: ✓ | F18: -- | G18: -- | H18: -- | I18: -- | J18: -- | K18: -- | L18: -- | M18: -- | N18: C | O18: ✓
A19: 10 | B19: Emera Inc. | C19: ✓ | D19: ✓ | E19: -- | F19: -- | G19: -- | H19: -- | I19: ✓ | J19: ✓ | K19: -- | L19: -- | M19: ✓ | N19: C | O19: ✓
A20: 11 | B20: Entergy Corp. | C20: ✓ | D20: ✓ | E20: -- | F20: ✓ | G20: -- | H20: ✓ | I20: ✓ | J20: ✓ | K20: ✓ | L20: ✓ | M20: ✓ | N20: O,P | O20: ✓
A21: 12 | B21: Exelon Corp. | C21: D | D21: ✓ | E21: ✓ | F21: ✓ | G21: ✓ | H21: ✓ | I21: ✓ | J21: D | K21: ✓ | L21: ✓ | M21: ✓ | N21: O,P | O21: ✓
A22: 13 | B22: FirstEnergy Corp. | C22: D | D22: ✓ | E22: -- | F22: ✓ | G22: -- | H22: ✓ | I22: ✓ | J22: -- | K22: ✓ | L22: ✓ | M22: ✓ | N22: O,P | O22: ✓
A23: 14 | B23: Hawaiian Elec. | C23: ✓ | D23: ✓ | E23: ✓ | F23: -- | G23: -- | H23: ✓ | I23: -- | J23: ✓ | K23: ✓ | L23: ✓ | M23: ✓ | N23: C | O23: ✓
A24: 15 | B24: IDACORP, Inc. | C24: ✓ | D24: ✓ | E24: ✓ | F24: -- | G24: -- | H24: ✓ | I24: -- | J24: -- | K24: -- | L24: -- | M24: -- | N24: P,C | O24: --
A25: 16 | B25: NorthWestern Corp. | C25: ✓ | D25: ✓ | E25: -- | F25: -- | G25: -- | H25: ✓ | I25: -- | J25: -- | K25: -- | L25: -- | M25: ✓ | N25: -- | O25: --
A26: 17 | B26: OGE Energy Corp. | C26: ✓ | D26: ✓ | E26: -- | F26: ✓ | G26: -- | H26: ✓ | I26: ✓ | J26: ✓ | K26: ✓ | L26: ✓ | M26: ✓ | N26: P | O26: ✓
A27: 18 | B27: Otter Tail Corp. | C27: ✓ | D27: ✓ | E27: -- | F27: -- | G27: -- | H27: ✓ | I27: ✓ | J27: ✓ | K27: ✓ | L27: ✓ | M27: -- | N27: C,O | O27: ✓
A28: 19 | B28: PNM Resources | C28: ✓ | D28: ✓ | E28: -- | F28: -- | G28: -- | H28: ✓ | I28: ✓ | J28: -- | K28: ✓ | L28: ✓ | M28: ✓ | N28: O | O28: --
A29: 20 | B29: Sempra Energy | C29: ✓ | D29: ✓ | E29: ✓ | F29: -- | G29: -- | H29: -- | I29: -- | J29: -- | K29: ✓ | L29: ✓ | M29: -- | N29: C | O29: ✓
A31: Sources:
A32: =O2 & ", pages 2-4, contain operating company data that are aggregated into the parent company data on this page." -> Exh. AMM-14, pages 2-4, contain operating company data that are aggregated into the parent company data on this page.
A34: Notes:
A35: * Recover mechanisms for other expenses, such as taxes, franchise fees, bad debts, storm costs, pensions, societal benefits, vegetation management, and decommissioning.
A36: D - Delivery-only utility.
A37: C - Fully-forecasted test years commonly used in the state listed for this operating company.
A38: O - Fully-forecasted test years occasionally used in the state listed for this operating company.
A39: P - Partially-forecasted test years commonly or occasionally used in the state listed for this operating company.

Sheet 14 (2-4)
A4: ='Exhibit List'!C22 -> REGULATORY MECHANISMS
A6: ='Exhibit List'!D22 -> UTILITY GROUP OPERATING COS.
C8: Type of Adjustment Clause (a) | O8: (b) | P8: (c)
E10: Conserv. | K10: New Capital | M10: RTO-related | O10: Future | P10: Formula
E11: Program | F11: Decoupling | I11: Renewables | J11: Environ. | K11: Generation | L11: Generic | M11: Trans. | O11: Test | P11: Rates /
B12: Company | C12: State | D12: Fuel/PPA | E12: Expense | F12: Full | G12: Partial | H12: WNA | I12: Expense | J12: Compliance | K12: Capacity | L12: Infrastructure | M12: Expense | N12: Other* | O12: Year | P12: MRP
A13: 1 | B13: ALGONQUIN PWR. & UTIL.
B14: Empire District Electric | C14: KS | D14: ✓ | E14: ✓ | F14: -- | G14: -- | H14: -- | I14: -- | J14: ✓ | K14: -- | L14: -- | M14: ✓ | N14: ✓ | O14: -- | P14: --
B15: Empire District Electric | C15: MO | D15: ✓ | E15: -- | F15: -- | G15: -- | H15: -- | I15: -- | J15: ✓ | K15: -- | L15: -- | M15: ✓ | N15: ✓ | O15: P | P15: --
B16: Liberty Util. (Granite State Electric) | C16: NH | D16: D | E16: -- | F16: -- | G16: ✓ | H16: -- | I16: -- | J16: -- | K16: -- | L16: ✓ | M16: -- | N16: -- | O16: -- | P16: ✓
A17: 2 | B17: ALLETE
B18: Minnesota Power | C18: MN | D18: ✓ | E18: ✓ | F18: -- | G18: -- | H18: -- | I18: ✓ | J18: ✓ | K18: -- | L18: -- | M18: ✓ | N18: ✓ | O18: C | P18: ✓
A19: 3 | B19: AMEREN CORP.
B20: Ameren Illinois | C20: IL | D20: D | E20: ✓ | F20: -- | G20: -- | H20: -- | I20: ✓ | J20: ✓ | K20: -- | L20: -- | M20: ✓ | N20: ✓ | O20: O | P20: ✓
B21: Union Electric | C21: MO | D21: ✓ | E21: ✓ | F21: -- | G21: ✓ | H21: -- | I21: ✓ | J21: ✓ | K21: -- | L21: ✓ | M21: ✓ | N21: ✓ | O21: P | P21: --
A22: 4 | B22: AVANGRID
B23: United Illuminating | C23: CT | D23: D | E23: ✓ | F23: ✓ | G23: -- | H23: -- | I23: -- | J23: -- | K23: -- | L23: -- | M23: ✓ | N23: -- | O23: C | P23: ✓
B24: Central Maine Power | C24: ME | D24: D | E24: -- | F24: ✓ | G24: -- | H24: -- | I24: -- | J24: -- | K24: -- | L24: -- | M24: -- | N24: ✓ | O24: C | P24: ✓
B25: New York State Electric & Gas | C25: NY | D25: D | E25: -- | F25: ✓ | G25: -- | H25: -- | I25: ✓ | J25: -- | K25: -- | L25: -- | M25: -- | N25: ✓ | O25: C | P25: ✓
B26: Rochester Gas & Electric | C26: NY | D26: D | E26: -- | F26: ✓ | G26: -- | H26: -- | I26: ✓ | J26: -- | K26: -- | L26: -- | M26: -- | N26: ✓ | O26: C | P26: ✓
A27: 5 | B27: AVISTA CORP.
B28: Alaska Electric Light & Power | C28: AK | D28: ✓ | E28: -- | F28: -- | G28: -- | H28: -- | I28: -- | J28: -- | K28: -- | L28: -- | M28: -- | N28: -- | O28: -- | P28: --
B29: Avista Corp. | C29: ID | D29: ✓ | E29: ✓ | F29: ✓ | G29: -- | H29: -- | I29: -- | J29: -- | K29: -- | L29: -- | M29: -- | N29: -- | O29: P | P29: --
B30: Avista Corp. | C30: WA | D30: ✓ | E30: ✓ | F30: -- | G30: ✓ | H30: -- | I30: ✓ | J30: -- | K30: -- | L30: -- | M30: -- | N30: -- | O30: -- | P30: ✓
A31: 6 | B31: BLACK HILLS CORP.
B32: Black Hills Colorado Electric | C32: CO | D32: ✓ | E32: ✓ | F32: -- | G32: -- | H32: -- | I32: ✓ | J32: -- | K32: ✓ | L32: ✓ | M32: -- | N32: ✓ | O32: -- | P32: ✓
B33: Black Hills Power | C33: SD | D33: ✓ | E33: ✓ | F33: -- | G33: ✓ | H33: -- | I33: ✓ | J33: ✓ | K33: -- | L33: -- | M33: ✓ | N33: ✓ | O33: -- | P33: --
B34: Cheyenne Light Fuel & Power | C34: WY | D34: ✓ | E34: ✓ | F34: -- | G34: ✓ | H34: -- | I34: ✓ | J34: -- | K34: -- | L34: -- | M34: -- | N34: ✓ | O34: O | P34: --
A35: 7 | B35: CENTERPOINT ENERGY
B36: CenterPoint Energy Houston Electric | C36: TX | D36: D | E36: ✓ | F36: -- | G36: -- | H36: -- | I36: -- | J36: -- | K36: -- | L36: ✓ | M36: ✓ | N36: ✓ | O36: -- | P36: ✓
B37: Southern Indiana Gas & Electric | C37: IN | D37: ✓ | E37: ✓ | F37: -- | G37: ✓ | H37: -- | I37: -- | J37: ✓ | K37: -- | L37: ✓ | M37: ✓ | N37: ✓ | O37: -- | P37: ✓
A38: 8 | B38: CMS ENERGY
B39: Consumers Energy | C39: MI | D39: ✓ | E39: ✓ | F39: -- | G39: -- | H39: -- | I39: ✓ | J39: -- | K39: -- | L39: -- | M39: ✓ | N39: -- | O39: C | P39: --
A40: 9 | B40: DTE ENERGY CO.
B41: DTE Electric | C41: MI | D41: ✓ | E41: ✓ | F41: -- | G41: -- | H41: -- | I41: ✓ | J41: -- | K41: -- | L41: -- | M41: ✓ | N41: -- | O41: C | P41: --
A42: 10 | B42: EDISON INTERNATIONAL
B43: Southern California Edison | C43: CA | D43: ✓ | E43: -- | F43: ✓ | G43: -- | H43: -- | I43: -- | J43: -- | K43: -- | L43: -- | M43: -- | N43: ✓ | O43: C | P43: ✓
A44: 11 | B44: EMERA INC.
B45: Tampa Electric | C45: FL | D45: ✓ | E45: ✓ | F45: -- | G45: -- | H45: -- | I45: -- | J45: ✓ | K45: ✓ | L45: -- | M45: -- | N45: ✓ | O45: C | P45: ✓
B46: Emera Maine | C46: ME | D46: D | E46: -- | F46: -- | G46: -- | H46: -- | I46: -- | J46: -- | K46: -- | L46: -- | M46: -- | N46: -- | O46: C | P46: ✓
A47: 12 | B47: ENTERGY CORP.
B48: Entergy Arkansas | C48: AR | D48: ✓ | E48: ✓ | F48: -- | G48: ✓ | H48: -- | I48: ✓ | J48: -- | K48: ✓ | L48: ✓ | M48: ✓ | N48: ✓ | O48: P | P48: ✓
B49: Entergy New Orleans | C49: LA | D49: ✓ | E49: ✓ | F49: -- | G49: ✓ | H49: -- | I49: -- | J49: ✓ | K49: ✓ | L49: -- | M49: ✓ | N49: ✓ | O49: O | P49: ✓
B50: Entergy Louisiana | C50: LA | D50: ✓ | E50: ✓ | F50: -- | G50: ✓ | H50: -- | I50: -- | J50: ✓ | K50: ✓ | L50: ✓ | M50: ✓ | N50: ✓ | O50: O | P50: ✓
B51: Entergy Mississippi | C51: MS | D51: ✓ | E51: ✓ | F51: -- | G51: ✓ | H51: -- | I51: -- | J51: ✓ | K51: -- | L51: -- | M51: ✓ | N51: ✓ | O51: O | P51: ✓
B52: Entergy Texas | C52: TX | D52: ✓ | E52: ✓ | F52: -- | G52: -- | H52: -- | I52: -- | J52: -- | K52: -- | L52: ✓ | M52: -- | N52: ✓ | O52: -- | P52: ✓
A53: 13 | B53: EXELON CORP.
B54: Delmarva Power & Light | C54: DE | D54: D | E54: -- | F54: -- | G54: -- | H54: -- | I54: -- | J54: -- | K54: -- | L54: ✓ | M54: ✓ | N54: ✓ | O54: P | P54: --
B55: Potomac Electric Power | C55: DC | D55: D | E55: -- | F55: -- | G55: ✓ | H55: WNA | I55: ✓ | J55: -- | K55: -- | L55: ✓ | M55: -- | N55: ✓ | O55: P | P55: --
B56: Commonwealth Edison | C56: IL | D56: D | E56: ✓ | F56: -- | G56: -- | H56: -- | I56: ✓ | J56: ✓ | K56: -- | L56: ✓ | M56: ✓ | N56: ✓ | O56: O | P56: ✓
B57: Baltimore Gas & Electric | C57: MD | D57: D | E57: ✓ | F57: ✓ | G57: -- | H57: -- | I57: -- | J57: -- | K57: -- | L57: -- | M57: -- | N57: ✓ | O57: P | P57: --
B58: Delmarva Power & Light | C58: MD | D58: D | E58: ✓ | F58: ✓ | G58: -- | H58: -- | I58: -- | J58: -- | K58: -- | L58: -- | M58: -- | N58: -- | O58: P | P58: --
B59: Potomac Electric Power | C59: MD | D59: D | E59: ✓ | F59: ✓ | G59: -- | H59: -- | I59: -- | J59: -- | K59: -- | L59: -- | M59: -- | N59: ✓ | O59: P | P59: --
B60: Atlantic City Electric | C60: NJ | D60: D | E60: ✓ | F60: -- | G60: -- | H60: -- | I60: ✓ | J60: -- | K60: -- | L60: ✓ | M60: -- | N60: ✓ | O60: P | P60: --
B61: PECO Energy | C61: PA | D61: D | E61: ✓ | F61: -- | G61: -- | H61: -- | I61: -- | J61: -- | K61: -- | L61: ✓ | M61: -- | N61: ✓ | O61: O | P61: --
A62: 14 | B62: FIRSTENERGY CORP.
B63: Potomac Edison | C63: MD | D63: D | E63: ✓ | F63: -- | G63: -- | H63: -- | I63: -- | J63: -- | K63: -- | L63: ✓ | M63: -- | N63: ✓ | O63: P | P63: --
B64: Jersey Central Power & Light | C64: NJ | D64: D | E64: ✓ | F64: -- | G64: -- | H64: -- | I64: ✓ | J64: ✓ | K64: -- | L64: ✓ | M64: -- | N64: ✓ | O64: P | P64: --
B65: Cleve. Elec. Illum./Ohio Ed./Toledo Ed. | C65: OH | D65: D | E65: ✓ | F65: -- | G65: ✓ | H65: -- | I65: ✓ | J65: -- | K65: -- | L65: ✓ | M65: ✓ | N65: ✓ | O65: P | P65: ✓
B66: Metropolitan Edison | C66: PA | D66: D | E66: ✓ | F66: -- | G66: -- | H66: -- | I66: -- | J66: -- | K66: -- | L66: ✓ | M66: ✓ | N66: ✓ | O66: O | P66: --
B67: Pennsylvania Electric | C67: PA | D67: D | E67: ✓ | F67: -- | G67: -- | H67: -- | I67: -- | J67: -- | K67: -- | L67: ✓ | M67: ✓ | N67: ✓ | O67: O | P67: --
B68: Pennsylvania Power | C68: PA | D68: D | E68: ✓ | F68: -- | G68: -- | H68: -- | I68: -- | J68: -- | K68: -- | L68: ✓ | M68: -- | N68: ✓ | O68: O | P68: --
B69: West Penn Power | C69: PA | D69: D | E69: ✓ | F69: -- | G69: -- | H69: -- | I69: -- | J69: -- | K69: -- | L69: ✓ | M69: -- | N69: ✓ | O69: O | P69: --
B70: Monongahela Power | C70: WV | D70: ✓ | E70: ✓ | F70: -- | G70: -- | H70: -- | I70: -- | J70: -- | K70: -- | L70: ✓ | M70: -- | N70: ✓ | O70: -- | P70: --
B71: Potomac Edison | C71: WV | D71: ✓ | E71: ✓ | F71: -- | G71: -- | H71: -- | I71: -- | J71: -- | K71: -- | L71: ✓ | M71: -- | N71: ✓ | O71: -- | P71: --
A72: 15 | B72: HAWAIIAN ELEC.
B73: Hawaiian Electric | C73: HI | D73: ✓ | E73: ✓ | F73: ✓ | G73: -- | H73: -- | I73: ✓ | J73: -- | K73: ✓ | L73: ✓ | M73: -- | N73: ✓ | O73: C | P73: ✓
B74: Hawaii Electric Light | C74: HI | D74: ✓ | E74: ✓ | F74: ✓ | G74: -- | H74: -- | I74: ✓ | J74: -- | K74: ✓ | L74: ✓ | M74: -- | N74: ✓ | O74: C | P74: ✓
B75: Maui Electric | C75: HI | D75: ✓ | E75: ✓ | F75: ✓ | G75: -- | H75: -- | I75: ✓ | J75: -- | K75: ✓ | L75: ✓ | M75: -- | N75: ✓ | O75: C | P75: ✓
A76: 16 | B76: IDACORP
B77: Idaho Power | C77: ID | D77: ✓ | E77: ✓ | F77: ✓ | G77: -- | H77: -- | I77: -- | J77: -- | K77: -- | L77: -- | M77: -- | N77: -- | O77: P | P77: --
B78: Idaho Power | C78: OR | D78: ✓ | E78: ✓ | F78: -- | G78: -- | H78: -- | I78: ✓ | J78: -- | K78: -- | L78: -- | M78: -- | N78: -- | O78: C | P78: --
A79: 17 | B79: NORTHWESTERN CORP.
B80: NorthWestern Corp. | C80: MT | D80: ✓ | E80: ✓ | F80: -- | G80: -- | H80: -- | I80: ✓ | J80: -- | K80: -- | L80: -- | M80: -- | N80: ✓ | O80: -- | P80: --
B81: NorthWestern Corp. | C81: SD | D81: ✓ | E81: ✓ | F81: -- | G81: -- | H81: -- | I81: -- | J81: -- | K81: -- | L81: -- | M81: -- | N81: -- | O81: -- | P81: --
A82: 18 | B82: OGE ENERGY CORP.
B83: Oklahoma Gas & Electric | C83: AR | D83: ✓ | E83: ✓ | F83: -- | G83: ✓ | H83: -- | I83: ✓ | J83: ✓ | K83: ✓ | L83: -- | M83: ✓ | N83: ✓ | O83: P | P83: --
B84: Oklahoma Gas & Electric | C84: OK | D84: ✓ | E84: ✓ | F84: -- | G84: ✓ | H84: -- | I84: ✓ | J84: ✓ | K84: -- | L84: ✓ | M84: ✓ | N84: ✓ | O84: -- | P84: ✓
A85: 19 | B85: OTTER TAIL CORP.
B86: Otter Tail Power | C86: MN | D86: ✓ | E86: ✓ | F86: -- | G86: -- | H86: -- | I86: ✓ | J86: ✓ | K86: -- | L86: -- | M86: ✓ | N86: -- | O86: C | P86: --
B87: Otter Tail Power | C87: ND | D87: ✓ | E87: -- | F87: -- | G87: -- | H87: -- | I87: -- | J87: ✓ | K87: ✓ | L87: ✓ | M87: -- | N87: ✓ | O87: O | P87: ✓
B88: Otter Tail Power Corp. | C88: SD | D88: ✓ | E88: ✓ | F88: -- | G88: -- | H88: -- | I88: ✓ | J88: ✓ | K88: ✓ | L88: ✓ | M88: -- | N88: -- | O88: -- | P88: --
A89: 20 | B89: PNM RESOURCES
B90: Public Service Co. of New Mexico | C90: NM | D90: ✓ | E90: ✓ | F90: -- | G90: -- | H90: -- | I90: ✓ | J90: ✓ | K90: -- | L90: ✓ | M90: -- | N90: ✓ | O90: O | P90: --
B91: Texas-New Mexico Power | C91: TX | D91: D | E91: ✓ | F91: -- | G91: -- | H91: -- | I91: -- | J91: -- | K91: -- | L91: ✓ | M91: ✓ | N91: ✓ | O91: -- | P91: ✓
A92: 21 | B92: SEMPRA ENERGY
B93: San Diego Gas & Electric | C93: CA | D93: ✓ | E93: -- | F93: ✓ | G93: -- | H93: -- | I93: -- | J93: -- | K93: -- | L93: -- | M93: -- | N93: ✓ | O93: C | P93: ✓
B94: Oncor Electric Delivery | C94: TX | D94: D | E94: ✓ | F94: -- | G94: -- | H94: -- | I94: -- | J94: -- | K94: -- | L94: ✓ | M94: ✓ | N94: -- | O94: -- | P94: ✓
A97: Sources:
A98: (a) S&P Global Market Intelligence, Adjustment Clauses, RRA Regulatory Focus (Nov. 12, 2019).
A99: (b) Edison Electric Institute, Alternative Regulation for Emerging Utility Challenges: 2015 Update (Nov. 11, 2015).
A100: (c) Formula rates and Multiyear Rate plans approved in the state listed for this operating company. See, (b); U.S. Department of Energy, State Performance-Based Regulation Using Multiyear Rate Plans for U.S. Electric Utilities,GRID Modernization Laboratory Consortium (Jul. 2017); The Brattle Group, Exploring the Use of Alternative Regulatory Mechanisms to Establish New Base Rates, Joint Utilities of Maryland (Mar. 29, 2018).
A104: Notes:
A105: * Recover mechanisms for other expenses, such as taxes, franchise fees, bad debts, storm costs, pensions, societal benefits, vegetation management, and decommissioning.
A106: D - Delivery-only utility.
A107: C - Fully-forecasted test years commonly used in the state listed for this operating company.
A108: O - Fully-forecasted test years occasionally used in the state listed for this operating company.
A109: P - Partially-forecasted test years commonly or occasionally used in the state listed for this operating company.
A110: LIR - Limited issue reopeners.

Sheet Stock Price (Utility)
C1: 1 | D1: =C1+1 -> 2 | E1: =D1+1 -> 3 | F1: 4 | G1: 5 | H1: 6 | I1: 7 | J1: 8 | K1: 9 | L1: 10 | M1: 11 | N1: =M1+1 -> 12 | O1: =N1+1 -> 13 | P1: =O1+1 -> 14 | Q1: =P1+1 -> 15 | R1: =Q1+1 -> 16 | S1: =R1+1 -> 17 | T1: =S1+1 -> 18 | U1: =T1+1 -> 19 | V1: =U1+1 -> 20 | W1: =V1+1 -> 21
B2: Date | C2: =TRANSPOSE('Utility Group'!B3:B23) -> AQN | D2: ALE | E2: AEE | F2: AGR | G2: AVA | H2: BKH | I2: CNP | J2: CMS | K2: DTE | L2: EIX | M2: EMA | N2: ETR | O2: EXC | P2: FE | Q2: HE | R2: IDA | S2: NWE | T2: OGE | U2: OTTR | V2: PNM | W2: SRE
A3: =A2+1 -> 1 | B3: 2020-10-02 | C3: 14.76 | D3: 53.12 | E3: 79.81 | F3: 52.38 | G3: 34.61 | H3: 55.34 | I3: 19.93 | J3: 61.66 | K3: 114.16 | L3: 51.5 | M3: 55.25 | N3: 103.65 | O3: 35.94 | P3: 29.52 | Q3: 62.5 | R3: 82.97 | S3: 50.03 | T3: 31.06 | U3: 37.05 | V3: 42.86 | W3: 120.5
A4: =A3+1 -> 2 | B4: 2020-10-01 | C4: 14.66 | D4: 52.1 | E4: 79.86 | F4: 51.21 | G4: 34.41 | H4: 53.95 | I4: 19.4 | J4: 61.68 | K4: 113.44 | L4: 50.44 | M4: 55.049999 | N4: 101.28 | O4: 35.83 | P4: 28.76 | Q4: 62.85 | R4: 81.86 | S4: 49.01 | T4: 30.2 | U4: 36.55 | V4: 41.9 | W4: 119.13
A5: 3 | B5: 2020-09-30 | C5: 14.54 | D5: 51.74 | E5: 79.08 | F5: 50.46 | G5: 34.12 | H5: 53.49 | I5: 19.35 | J5: 61.41 | K5: 115.04 | L5: 50.84 | M5: 54.700001 | N5: 98.53 | O5: 35.76 | P5: 28.71 | Q5: 63.1 | R5: 79.9 | S5: 48.64 | T5: 29.99 | U5: 36.17 | V5: 41.33 | W5: 118.36
A6: 4 | B6: 2020-09-29 | C6: 14.29 | D6: 51.48 | E6: 79.02 | F6: 49.26 | G6: 33.72 | H6: 53.11 | I6: 19 | J6: 61.11 | K6: 114.4 | L6: 51.02 | M6: 55.169998 | N6: 95.78 | O6: 35.32 | P6: 28.6 | Q6: 61.975 | R6: 80.1 | S6: 48.41 | T6: 29.67 | U6: 36.04 | V6: 41.04 | W6: 116.18
A7: 5 | B7: 2020-09-28 | C7: 14.36 | D7: 52 | E7: 78.42 | F7: 49.35 | G7: 34.12 | H7: 53.92 | I7: 19.02 | J7: 61.4 | K7: 114.81 | L7: 51.89 | M7: 55.25 | N7: 96.68 | O7: 35.74 | P7: 28.45 | Q7: 64.025 | R7: 81.23 | S7: 49.15 | T7: 29.66 | U7: 36.54 | V7: 41.45 | W7: 116.71
A8: 6 | B8: 2020-09-25 | C8: 14.2 | D8: 51.53 | E8: 78.21 | F8: 49.15 | G8: 33.9 | H8: 53.31 | I8: 18.99 | J8: 61.34 | K8: 114.72 | L8: 51.65 | M8: 54.490002 | N8: 96.98 | O8: 35.52 | P8: 28.6 | Q8: 64.425 | R8: 80.55 | S8: 48.69 | T8: 29.31 | U8: 36.14 | V8: 40.97 | W8: 117.61
A9: 7 | B9: 2020-09-24 | C9: 13.99 | D9: 50.94 | E9: 76.7 | F9: 48.88 | G9: 33.41 | H9: 52.82 | I9: 18.9 | J9: 59.58 | K9: 112.99 | L9: 50.84 | M9: 54.169998 | N9: 95.78 | O9: 34.81 | P9: 28.16 | Q9: 63.275 | R9: 79.51 | S9: 48.38 | T9: 29.09 | U9: 36.09 | V9: 40.19 | W9: 115.74
A10: 8 | B10: 2020-09-23 | C10: 13.95 | D10: 50.93 | E10: 75.61 | F10: 48.95 | G10: 33.36 | H10: 52.42 | I10: 18.86 | J10: 59.57 | K10: 111.9 | L10: 49.3 | M10: 53.939999 | N10: 95.17 | O10: 34.48 | P10: 27.58 | Q10: 64.35 | R10: 79.57 | S10: 48.01 | T10: 29.06 | U10: 35.8 | V10: 39.45 | W10: 114.5
A11: 9 | B11: 2020-09-22 | C11: 14.28 | D11: 52.3 | E11: 77.06 | F11: 49.47 | G11: 34.6 | H11: 53.34 | I11: 18.91 | J11: 60.69 | K11: 112.01 | L11: 50.42 | M11: 54.27 | N11: 97.28 | O11: 35.21 | P11: 28.57 | Q11: 64.1 | R11: 81.33 | S11: 49.09 | T11: 28.96 | U11: 36.76 | V11: 40.68 | W11: 119.05
A12: 10 | B12: 2020-09-21 | C12: 13.99 | D12: 51.75 | E12: 76.62 | F12: 48.14 | G12: 34.33 | H12: 54 | I12: 18.9 | J12: 59.99 | K12: 111.3 | L12: 49.7 | M12: 53.880001 | N12: 94.83 | O12: 34.75 | P12: 28.63 | Q12: 61.55 | R12: 80.37 | S12: 48.92 | T12: 28.69 | U12: 36.28 | V12: 39.91 | W12: 116.66
A13: 11 | B13: 2020-09-18 | C13: 14.05 | D13: 53.41 | E13: 76.86 | F13: 49.25 | G13: 34.68 | H13: 54.32 | I13: 18.93 | J13: 61.1 | K13: 112.03 | L13: 51.42 | M13: 54.060001 | N13: 95.43 | O13: 35.07 | P13: 28.96 | Q13: 63.525 | R13: 81.98 | S13: 48.69 | T13: 28.85 | U13: 36.34 | V13: 40.04 | W13: 119.98
A14: 12 | B14: 2020-09-17 | C14: 14.2 | D14: 53.22 | E14: 77.62 | F14: 49.43 | G14: 34.57 | H14: 55.36 | I14: 19.29 | J14: 61.34 | K14: 116.86 | L14: 52.63 | M14: 54.040001 | N14: 97.63 | O14: 35.93 | P14: 29.8 | Q14: 63.625 | R14: 83.5 | S14: 49.97 | T14: 29.38 | U14: 36.91 | V14: 40.09 | W14: 121.03
A15: 13 | B15: 2020-09-16 | C15: 14.14 | D15: 52.55 | E15: 77.94 | F15: 50.08 | G15: 35.25 | H15: 54.95 | I15: 19.74 | J15: 61.94 | K15: 119.04 | L15: 52.54 | M15: 53.990002 | N15: 96.84 | O15: 36.26 | P15: 29.76 | Q15: 61.975 | R15: 82.97 | S15: 50.38 | T15: 29.73 | U15: 37.04 | V15: 40.85 | W15: 120.84
A16: 14 | B16: 2020-09-15 | C16: 14.23 | D16: 51.58 | E16: 77.5 | F16: 49.91 | G16: 34.58 | H16: 54.45 | I16: 19.01 | J16: 61.11 | K16: 118.56 | L16: 51.51 | M16: 54.650002 | N16: 96.54 | O16: 36.165 | P16: 29.35 | Q16: 63.05 | R16: 82.14 | S16: 50.05 | T16: 29.48 | U16: 36.74 | V16: 41 | W16: 117.63
A17: 15 | B17: 2020-09-14 | C17: 14.05 | D17: 51.58 | E17: 76.98 | F17: 48.74 | G17: 34.22 | H17: 54.49 | I17: 19.54 | J17: 61.42 | K17: 120.38 | L17: 51.65 | M17: 54.049999 | N17: 96.72 | O17: 36.26 | P17: 29.66 | Q17: 63.575 | R17: 83.51 | S17: 50.04 | T17: 30.23 | U17: 37.15 | V17: 40.69 | W17: 119.15
A18: 16 | B18: 2020-09-11 | C18: 13.92 | D18: 50.75 | E18: 76.6 | F18: 47.94 | G18: 34.44 | H18: 53.22 | I18: 19.45 | J18: 60.91 | K18: 118.44 | L18: 50.63 | M18: 53.799999 | N18: 95.45 | O18: 35.83 | P18: 29.33 | Q18: 66 | R18: 82.91 | S18: 50.23 | T18: 30.16 | U18: 36.77 | V18: 40.84 | W18: 117.8
A19: 17 | B19: 2020-09-10 | C19: 13.79 | D19: 50.36 | E19: 76.46 | F19: 48.12 | G19: 35.5 | H19: 53.33 | I19: 19.45 | J19: 60.8 | K19: 117.92 | L19: 50.5 | M19: 54.16 | N19: 95.85 | O19: 35.84 | P19: 29.05 | Q19: 64.375 | R19: 83.94 | S19: 50.98 | T19: 30.37 | U19: 37.08 | V19: 40.89 | W19: 118.12
A20: 18 | B20: 2020-09-09 | C20: 14.03 | D20: 52.1 | E20: 78.38 | F20: 49.05 | G20: 36.17 | H20: 54.85 | I20: 19.53 | J20: 61.69 | K20: 119.71 | L20: 51.54 | M20: 54.919998 | N20: 98.37 | O20: 36.67 | P20: 29.14 | Q20: 61.375 | R20: 85.93 | S20: 51.52 | T20: 31.08 | U20: 37.89 | V20: 42.16 | W20: 120.95
A21: 19 | B21: 2020-09-08 | C21: 13.74 | D21: 53.1 | E21: 77.4 | F21: 48.45 | G21: 36.31 | H21: 54.6 | I21: 19.37 | J21: 60.5 | K21: 118.08 | L21: 51.37 | M21: 54.209999 | N21: 97.95 | O21: 36.42 | P21: 29.13 | Q21: 59.9 | R21: 86.07 | S21: 50.85 | T21: 30.85 | U21: 37.89 | V21: 41.76 | W21: 119.09
A22: 20 | B22: 2020-09-04 | C22: 13.72 | D22: 53.78 | E22: 78.96 | F22: 48.67 | G22: 37.1 | H22: 55.98 | I22: 19.87 | J22: 61.66 | K22: 118.81 | L22: 52.26 | M22: 53.119999 | N22: 97.9 | O22: 37.09 | P22: 29.4 | Q22: 59.825 | R22: 88.02 | S22: 51.83 | T22: 31.54 | U22: 38.19 | V22: 43.01 | W22: 120.89
A23: 21 | B23: 2020-09-03 | C23: 13.81 | D23: 54.13 | E23: 79.1 | F23: 48.4 | G23: 37.11 | H23: 56.02 | I23: 20.15 | J23: 61.91 | K23: 119.12 | L23: 52.96 | M23: 53.490002 | N23: 98 | O23: 37.29 | P23: 29.39 | Q23: 59.25 | R23: 89.08 | S23: 52.46 | T23: 31.81 | U23: 38.44 | V23: 43.38 | W23: 122.72
A24: 22 | B24: 2020-09-02 | C24: 14.19 | D24: 54.45 | E24: 80.23 | F24: 48.44 | G24: 37.01 | H24: 56.15 | I24: 20.45 | J24: 61.76 | K24: 120.46 | L24: 52.57 | M24: 53.860001 | N24: 100.48 | O24: 38.03 | P24: 29.14 | Q24: 56.4 | R24: 90.21 | S24: 52.27 | T24: 32.33 | U24: 38.79 | V24: 43.98 | W24: 124.55
A25: 23 | B25: 2020-09-01 | C25: 13.93 | D25: 53.27 | E25: 78.48 | F25: 47.52 | G25: 36.52 | H25: 55.13 | I25: 20 | J25: 60.22 | K25: 117.79 | L25: 51.81 | M25: 52.860001 | N25: 97.69 | O25: 36.33 | P25: 28.26 | Q25: 55.025 | R25: 88.33 | S25: 51.5 | T25: 31.39 | U25: 38.04 | V25: 43.11 | W25: 122.25
A26: 24 | B26: 2020-08-31 | C26: 13.83 | D26: 53.96 | E26: 79.11 | F26: 48.04 | G26: 36.86 | H26: 56.08 | I26: 20.07 | J26: 60.49 | K26: 118.67 | L26: 52.48 | M26: 53.25 | N26: 99.14 | O26: 36.91 | P26: 28.59 | Q26: 53.6 | R26: 89.9 | S26: 51.64 | T26: 31.86 | U26: 38.85 | V26: 43.68 | W26: 123.65
A27: 25 | B27: 2020-08-28 | C27: 13.74 | D27: 54.05 | E27: 78.66 | F27: 48.57 | G27: 37.05 | H27: 56.59 | I27: 19.95 | J27: 60.05 | K27: 117.86 | L27: 52.17 | M27: 53.310001 | N27: 98.96 | O27: 37.04 | P27: 28.31 | Q27: 53.65 | R27: 88.54 | S27: 52.22 | T27: 31.79 | U27: 39.085 | V27: 43.73 | W27: 122.32
A28: 26 | B28: 2020-08-27 | C28: 13.84 | D28: 53.79 | E28: 78.93 | F28: 48.81 | G28: 36.75 | H28: 55.21 | I28: 19.76 | J28: 59.72 | K28: 117.02 | L28: 51.75 | M28: 53.459999 | N28: 97.26 | O28: 36.89 | P28: 28.1 | Q28: 55.725 | R28: 88.8 | S28: 52.19 | T28: 31.54 | U28: 39.075 | V28: 43.47 | W28: 123.59
A29: 27 | B29: 2020-08-26 | C29: 13.81 | D29: 53.02 | E29: 78.44 | F29: 48.74 | G29: 36.66 | H29: 54.28 | I29: 19.64 | J29: 59.4 | K29: 115.74 | L29: 51.09 | M29: 53.75 | N29: 96.25 | O29: 37.275 | P29: 28.01 | Q29: 55.55 | R29: 88.45 | S29: 51.61 | T29: 31.27 | U29: 38.66 | V29: 43.17 | W29: 122.34
A30: 28 | B30: 2020-08-25 | C30: 13.88 | D30: 54.71 | E30: 79.6 | F30: 49.48 | G30: 37.06 | H30: 55.98 | I30: 20.01 | J30: 60.21 | K30: 117 | L30: 52 | M30: 53.860001 | N30: 97.82 | O30: 37.13 | P30: 27.94 | Q30: 55.95 | R30: 89.46 | S30: 53.62 | T30: 32.17 | U30: 39.35 | V30: 44.14 | W30: 125.51
A31: 29 | B31: 2020-08-24 | C31: 13.97 | D31: 55.03 | E31: 81.25 | F31: 49.9 | G31: 36.29 | H31: 57.5 | I31: 20.22 | J31: 60.84 | K31: 117.97 | L31: 52.34 | M31: 54.27 | N31: 98.64 | O31: 37.69 | P31: 28.31 | Q31: 54.6 | R31: 89.96 | S31: 54.4 | T31: 32.5 | U31: 39.74 | V31: 44.86 | W31: 127.37
A32: 30 | B32: 2020-08-21 | C32: 13.98 | D32: 54.28 | E32: 80.72 | F32: 49.47 | G32: 35.65 | H32: 56.68 | I32: 19.79 | J32: 60.39 | K32: 115.83 | L32: 51.26 | M32: 54.040001 | N32: 98.13 | O32: 36.52 | P32: 28.11 | Q32: 54.25 | R32: 88.14 | S32: 53.44 | T32: 31.98 | U32: 39.32 | V32: 43.85 | W32: 125.48
B34: Average | C34: =AVERAGE(C3:C32) -> 14.06233333 | D34: =AVERAGE(D3:D32) -> 52.70033333 | E34: 78.32033333 | F34: 49.142 | G34: 35.34533333 | H34: =AVERAGE(H3:H32) -> 54.69566667 | I34: 19.516 | J34: 60.863 | K34: =AVERAGE(K3:K32) -> 116.402 | L34: 51.46933333 | M34: 54.1106668 | N34: 97.567 | O34: 36.2 | P34: 28.77733333 | Q34: 60.44583333 | R34: 84.641 | S34: 50.60733333 | T34: 30.53333333 | U34: 37.49233333 | V34: 41.94933333 | W34: 120.3233333
A37: (a) | B37: Average of closing prices for 30 trading days ended Oct. 2, 2020.
B69: 2019-01-21 | C69: 44.860001 | D69: Emera on MLK Day

Sheet Stock Price (Non-Utility)
C1: 1 | D1: 2 | E1: 3 | F1: 4 | G1: 5 | H1: 6 | I1: 7 | J1: 8 | K1: 9 | L1: 10 | M1: 11 | N1: 12 | O1: 13 | P1: 14 | Q1: 15 | R1: 16 | S1: 17 | T1: 18 | U1: 19 | V1: 20 | W1: 21 | X1: 22 | Y1: 23 | Z1: 24 | AA1: 25 | AB1: 26 | AC1: 27 | AD1: 28 | AE1: 29 | AF1: 30 | AG1: 31 | AH1: 32 | AI1: 33 | AJ1: 34 | AK1: 35 | AL1: 36 | AM1: 37 | AN1: 38 | AO1: 39 | AP1: 40 | AQ1: 41 | AR1: 42 | AS1: 43 | AT1: 44 | AU1: 45
B2: Date | C2: =TRANSPOSE('Proxy Group Risk Measures'!T44:T88) -> APD | D2: DOX | E2: AMGN | F2: APH | G2: AAPL | H2: T | I2: BAX | J2: BMY | K2: BRO | L2: BF/B | M2: CHD | N2: CSCO | O2: KO | P2: CL | Q2: CMCSA | R2: CBSH | S2: COST | T2: CVS | U2: DHR | V2: GIS | W2: HRL | X2: INTC | Y2: IFF | Z2: JNJ | AA2: K | AB2: KMB | AC2: LLY | AD2: LMT | AE2: MMC | AF2: MKC | AG2: MCD | AH2: MRK | AI2: MSFT | AJ2: NOC | AK2: ORCL | AL2: PEP | AM2: PFE | AN2: PG | AO2: PSA | AP2: TXN | AQ2: TRV | AR2: UPS | AS2: VZ | AT2: WMT | AU2: WM
A3: 1 | B3: 2020-08-21 | C3: 286.44 | D3: 59.66 | E3: 237.64 | F3: 108.24 | G3: 497.48 | H3: 29.69 | I3: 83.09 | J3: 62.19 | K3: 45.52 | L3: 72.08 | M3: 96.5 | N3: 42.25 | O3: 47.28 | P3: 78.69 | Q3: 43.07 | R3: 58.49 | S3: 344.61 | T3: 63.94 | U3: 207.8 | V3: 64.02 | W3: 52.68 | X3: 49.28 | Y3: 120.55 | Z3: 152.76 | AA3: 68.89 | AB3: 157.3 | AC3: 149.26 | AD3: 389.57 | AE3: 113.47 | AF3: 203.15 | AG3: 211.57 | AH3: 84.98 | AI3: 213.02 | AJ3: 337.86 | AK3: 55.19 | AL3: 136.46 | AM3: 38.88 | AN3: 137.44 | AO3: 206.55 | AP3: 140.33 | AQ3: 111.83 | AR3: 159.03 | AS3: 58.99 | AT3: 131.63 | AU3: 111.16
A4: 2 | B4: 2020-08-20 | C4: 286.07 | D4: 59.99 | E4: 238.73 | F4: 107.3 | G4: 473.1 | H4: 29.67 | I4: 82.89 | J4: 62.22 | K4: 45.79 | L4: 72.3 | M4: 96.54 | N4: 42.31 | O4: 47.35 | P4: 78.25 | Q4: 43.27 | R4: 58.79 | S4: 340.87 | T4: 63.72 | U4: 205.66 | V4: 64.21 | W4: 52.55 | X4: 49.17 | Y4: 120.69 | Z4: 151.42 | AA4: 68.74 | AB4: 157.57 | AC4: 151.34 | AD4: 387.88 | AE4: 116.05 | AF4: 202.89 | AG4: 209.88 | AH4: 85.03 | AI4: 214.58 | AJ4: 336.67 | AK4: 55.26 | AL4: 136.72 | AM4: 38.72 | AN4: 136.85 | AO4: 203.26 | AP4: 138.57 | AQ4: 112.53 | AR4: 159.55 | AS4: 58.96 | AT4: 130.57 | AU4: 110.15
A5: 3 | B5: 2020-08-19 | C5: 286.95 | D5: 60.65 | E5: 240.49 | F5: 109.14 | G5: 462.83 | H5: 29.73 | I5: 82.89 | J5: 63.09 | K5: 45.96 | L5: 72.73 | M5: 96.29 | N5: 41.87 | O5: 47.37 | P5: 77.95 | Q5: 43.32 | R5: 59.57 | S5: 340.9 | T5: 65.28 | U5: 205.93 | V5: 64.46 | W5: 52.43 | X5: 48.33 | Y5: 121.98 | Z5: 150.39 | AA5: 68.85 | AB5: 157.35 | AC5: 152.29 | AD5: 390.05 | AE5: 116.1 | AF5: 202.52 | AG5: 209.51 | AH5: 85.03 | AI5: 209.7 | AJ5: 337.91 | AK5: 56.2 | AL5: 136.45 | AM5: 38.26 | AN5: 135.77 | AO5: 197.43 | AP5: 138.48 | AQ5: 113.2 | AR5: 160.34 | AS5: 59.05 | AT5: 132.41 | AU5: 110.56
A6: 4 | B6: 2020-08-18 | C6: 286.35 | D6: 60.99 | E6: 241.5 | F6: 109.15 | G6: 462.25 | H6: 29.79 | I6: 84.27 | J6: 63.03 | K6: 46.09 | L6: 72.48 | M6: 96.46 | N6: 41.98 | O6: 48.42 | P6: 77.65 | Q6: 43.54 | R6: 59.52 | S6: 340.75 | T6: 65.18 | U6: 207.68 | V6: 64.63 | W6: 52.71 | X6: 48.65 | Y6: 122.62 | Z6: 150.09 | AA6: 70.11 | AB6: 157.62 | AC6: 153.11 | AD6: 390.26 | AE6: 116.93 | AF6: 202.49 | AG6: 210.32 | AH6: 84.56 | AI6: 211.49 | AJ6: 337.6 | AK6: 55.18 | AL6: 138.11 | AM6: 38.36 | AN6: 136.51 | AO6: 200.94 | AP6: 139.31 | AQ6: 114.93 | AR6: 159.99 | AS6: 59.18 | AT6: 134.71 | AU6: 111.01
A7: 5 | B7: 2020-08-17 | C7: 289.56 | D7: 61.52 | E7: 243.01 | F7: 109.89 | G7: 458.43 | H7: 29.85 | I7: 83.7 | J7: 63.62 | K7: 46 | L7: 72.04 | M7: 95.79 | N7: 42.09 | O7: 48.21 | P7: 77.21 | Q7: 43.53 | R7: 60.79 | S7: 339.96 | T7: 64.9 | U7: 205.57 | V7: 64.28 | W7: 52.42 | X7: 48.93 | Y7: 123.29 | Z7: 148.99 | AA7: 69.68 | AB7: 157.81 | AC7: 151.53 | AD7: 388.96 | AE7: 116.51 | AF7: 202.3 | AG7: 208.67 | AH7: 84.76 | AI7: 210.28 | AJ7: 339.76 | AK7: 53.99 | AL7: 137.92 | AM7: 38.35 | AN7: 135.5 | AO7: 200.02 | AP7: 138.28 | AQ7: 115.91 | AR7: 160.3 | AS7: 58.78 | AT7: 135.6 | AU7: 110.87
A8: 6 | B8: 2020-08-14 | C8: 289.82 | D8: 61.8 | E8: 239.71 | F8: 109.78 | G8: 459.63 | H8: 30.01 | I8: 83.5 | J8: 63.16 | K8: 45.82 | L8: 71.13 | M8: 94.26 | N8: 42.5 | O8: 48.45 | P8: 77.05 | Q8: 43.77 | R8: 60.97 | S8: 336.28 | T8: 65.67 | U8: 204.86 | V8: 63.27 | W8: 52.23 | X8: 48.89 | Y8: 123.17 | Z8: 148.24 | AA8: 69.1 | AB8: 158.23 | AC8: 150.09 | AD8: 391.42 | AE8: 116.61 | AF8: 201.55 | AG8: 207.03 | AH8: 83.48 | AI8: 208.9 | AJ8: 342.06 | AK8: 54.2 | AL8: 137.56 | AM8: 38.06 | AN8: 135.1 | AO8: 200.24 | AP8: 137.35 | AQ8: 118.6 | AR8: 160.74 | AS8: 58.79 | AT8: 132.6 | AU8: 111.47
A9: 7 | B9: 2020-08-13 | C9: 288.31 | D9: 61.005 | E9: 240.46 | F9: 110.57 | G9: 460.04 | H9: 29.91 | I9: 84.64 | J9: 63.24 | K9: 45.82 | L9: 71.48 | M9: 94.75 | N9: 42.72 | O9: 48.38 | P9: 76.98 | Q9: 43.39 | R9: 60.65 | S9: 335.7 | T9: 64.7 | U9: 207.19 | V9: 62.97 | W9: 52.12 | X9: 48.56 | Y9: 123.81 | Z9: 148 | AA9: 69.02 | AB9: 158.46 | AC9: 150.46 | AD9: 389.24 | AE9: 117.15 | AF9: 202.04 | AG9: 206.49 | AH9: 83.54 | AI9: 208.7 | AJ9: 338.62 | AK9: 54.02 | AL9: 138.1 | AM9: 38.17 | AN9: 135.78 | AO9: 197.3 | AP9: 137.15 | AQ9: 119.27 | AR9: 159.29 | AS9: 58.52 | AT9: 131.85 | AU9: 111.34
A10: 8 | B10: 2020-08-12 | C10: 285.4 | D10: 61.12 | E10: 241.72 | F10: 109.79 | G10: 452.04 | H10: 30.18 | I10: 83.48 | J10: 63.64 | K10: 45.8 | L10: 71.21 | M10: 94.83 | N10: 48.1 | O10: 48.43 | P10: 77.24 | Q10: 43.34 | R10: 61.11 | S10: 336.76 | T10: 64.99 | U10: 205.92 | V10: 63.06 | W10: 52.03 | X10: 49.19 | Y10: 127 | Z10: 149.66 | AA10: 69.28 | AB10: 158.84 | AC10: 152.55 | AD10: 392.44 | AE10: 116.65 | AF10: 201.66 | AG10: 206.02 | AH10: 82.68 | AI10: 209.19 | AJ10: 339.4 | AK10: 54.17 | AL10: 137.8 | AM10: 38.33 | AN10: 135.46 | AO10: 198.38 | AP10: 138.64 | AQ10: 118.86 | AR10: 157.79 | AS10: 58.6 | AT10: 131.89 | AU10: 112.25
A11: 9 | B11: 2020-08-11 | C11: 281.6 | D11: 61.29 | E11: 234.65 | F11: 108.81 | G11: 437.5 | H11: 30.2 | I11: 82.94 | J11: 63.13 | K11: 45.66 | L11: 69.61 | M11: 92.71 | N11: 47.19 | O11: 47.93 | P11: 75.96 | Q11: 42.99 | R11: 61.05 | S11: 332.43 | T11: 65.26 | U11: 200.01 | V11: 62.14 | W11: 51.41 | X11: 48.19 | Y11: 125.29 | Z11: 146.97 | AA11: 68.13 | AB11: 155.79 | AC11: 150.63 | AD11: 391.96 | AE11: 116.98 | AF11: 197.77 | AG11: 205 | AH11: 80.91 | AI11: 203.38 | AJ11: 341.85 | AK11: 54.27 | AL11: 135.12 | AM11: 37.79 | AN11: 133.23 | AO11: 198.99 | AP11: 136.04 | AQ11: 119.92 | AR11: 155.85 | AS11: 58.51 | AT11: 130.2 | AU11: 111.59
A12: 10 | B12: 2020-08-10 | C12: 281.24 | D12: 62.45 | E12: 238.17 | F12: 108.12 | G12: 450.91 | H12: 30.2 | I12: 83.1 | J12: 61.82 | K12: 45.93 | L12: 69.4 | M12: 94.78 | N12: 47.73 | O12: 47.72 | P12: 76.65 | Q12: 43.02 | R12: 60.01 | S12: 340 | T12: 65.71 | U12: 202.05 | V12: 63.75 | W12: 51.98 | X12: 49.22 | Y12: 130.55 | Z12: 148.03 | AA12: 69.02 | AB12: 158.09 | AC12: 153 | AD12: 389.26 | AE12: 116.41 | AF12: 201.82 | AG12: 204.12 | AH12: 80.91 | AI12: 208.25 | AJ12: 335.73 | AK12: 54.94 | AL12: 135.98 | AM12: 38.39 | AN12: 134.1 | AO12: 202.49 | AP12: 135.41 | AQ12: 119.12 | AR12: 159.59 | AS12: 58.99 | AT12: 131.88 | AU12: 111.61
A13: 11 | B13: 2020-08-07 | C13: 281.69 | D13: 61.89 | E13: 240.69 | F13: 107.96 | G13: 444.45 | H13: 30.02 | I13: 80.73 | J13: 61.02 | K13: 46.06 | L13: 68.72 | M13: 94.96 | N13: 47.43 | O13: 47.8 | P13: 76.24 | Q13: 42.81 | R13: 59.94 | S13: 340.91 | T13: 64.96 | U13: 205.4 | V13: 64.35 | W13: 51.62 | X13: 48.03 | Y13: 126.8 | Z13: 148.6 | AA13: 69.52 | AB13: 157.26 | AC13: 152.93 | AD13: 385.62 | AE13: 117.74 | AF13: 201.55 | AG13: 204.6 | AH13: 81.02 | AI13: 212.48 | AJ13: 329.27 | AK13: 55.23 | AL13: 136.74 | AM13: 38.45 | AN13: 133.55 | AO13: 199.25 | AP13: 133.56 | AQ13: 117.36 | AR13: 156.9 | AS13: 58.53 | AT13: 129.97 | AU13: 112.72
A14: 12 | B14: 2020-08-06 | C14: 282.99 | D14: 61.88 | E14: 241.55 | F14: 108.35 | G14: 455.61 | H14: 29.84 | I14: 80.37 | J14: 61.33 | K14: 45.62 | L14: 67.63 | M14: 95.12 | N14: 47.77 | O14: 47.48 | P14: 75.86 | Q14: 42.87 | R14: 58.41 | S14: 343.31 | T14: 64.12 | U14: 205.69 | V14: 64.18 | W14: 51.18 | X14: 48.57 | Y14: 125.38 | Z14: 147.55 | AA14: 69.23 | AB14: 156.47 | AC14: 152.88 | AD14: 379.74 | AE14: 118.77 | AF14: 199.05 | AG14: 203.18 | AH14: 81.05 | AI14: 216.35 | AJ14: 326.34 | AK14: 55.28 | AL14: 135.86 | AM14: 38.27 | AN14: 132.71 | AO14: 196.08 | AP14: 133.74 | AQ14: 113.74 | AR14: 145.47 | AS14: 57.83 | AT14: 129.35 | AU14: 110.37
A15: 13 | B15: 2020-08-05 | C15: 284.62 | D15: 61.91 | E15: 241.47 | F15: 108.65 | G15: 440.25 | H15: 29.85 | I15: 80.46 | J15: 59.69 | K15: 45.63 | L15: 67.53 | M15: 95.83 | N15: 47.33 | O15: 47.22 | P15: 76.18 | Q15: 42.29 | R15: 58.86 | S15: 339.97 | T15: 64.4 | U15: 205.54 | V15: 64.42 | W15: 50.86 | X15: 48.92 | Y15: 126.42 | Z15: 148.4 | AA15: 69.26 | AB15: 155.84 | AC15: 154.34 | AD15: 383.5 | AE15: 118.43 | AF15: 197.25 | AG15: 199.26 | AH15: 81.64 | AI15: 212.94 | AJ15: 329.71 | AK15: 55.5 | AL15: 136.25 | AM15: 38.45 | AN15: 133.44 | AO15: 196.97 | AP15: 132.7 | AQ15: 115.08 | AR15: 145.08 | AS15: 57.54 | AT15: 129.81 | AU15: 109.18
A16: 14 | B16: 2020-08-04 | C16: 279.58 | D16: 62.05 | E16: 243.59 | F16: 108.42 | G16: 438.66 | H16: 30.01 | I16: 81.08 | J16: 59.47 | K16: 45.46 | L16: 68.38 | M16: 96.05 | N16: 47.67 | O16: 46.69 | P16: 76.77 | Q16: 43.21 | R16: 57.45 | S16: 339.79 | T16: 64.98 | U16: 206.07 | V16: 65.74 | W16: 51.13 | X16: 49.13 | Y16: 125.89 | Z16: 147.22 | AA16: 69.71 | AB16: 156.3 | AC16: 154.85 | AD16: 377.99 | AE16: 117.39 | AF16: 198.26 | AG16: 199.36 | AH16: 81.67 | AI16: 213.29 | AJ16: 325.01 | AK16: 56 | AL16: 137.47 | AM16: 38.39 | AN16: 133.79 | AO16: 201.38 | AP16: 132.23 | AQ16: 113.1 | AR16: 144.72 | AS16: 57.91 | AT16: 131.64 | AU16: 108.82
A17: 15 | B17: 2020-08-03 | C17: 278.41 | D17: 62.58 | E17: 247.36 | F17: 107.39 | G17: 435.75 | H17: 29.62 | I17: 83.16 | J17: 59.1 | K17: 45.53 | L17: 69.06 | M17: 93.41 | N17: 47.16 | O17: 46.3 | P17: 76.57 | Q17: 42.88 | R17: 57.51 | S17: 329.32 | T17: 63.86 | U17: 206.83 | V17: 64.6 | W17: 50.8 | X17: 48.3 | Y17: 124.54 | Z17: 147.35 | AA17: 69.35 | AB17: 151.6 | AC17: 152.84 | AD17: 377.1 | AE17: 115.82 | AF17: 196.29 | AG17: 194.4 | AH17: 82.54 | AI17: 216.54 | AJ17: 323.59 | AK17: 55.98 | AL17: 136.7 | AM17: 38.35 | AN17: 131.29 | AO17: 195.84 | AP17: 129.32 | AQ17: 114.4 | AR17: 142.18 | AS17: 57.24 | AT17: 129.3 | AU17: 108.98
A18: 16 | B18: 2020-07-31 | C18: 286.63 | D18: 62.1 | E18: 244.67 | F18: 105.76 | G18: 425.04 | H18: 29.58 | I18: 86.38 | J18: 58.66 | K18: 45.47 | L18: 69.34 | M18: 96.33 | N18: 47.1 | O18: 47.24 | P18: 77.2 | Q18: 42.8 | R18: 57.26 | S18: 325.53 | T18: 62.94 | U18: 203.8 | V18: 63.27 | W18: 50.86 | X18: 47.73 | Y18: 125.95 | Z18: 145.76 | AA18: 68.99 | AB18: 152.04 | AC18: 150.29 | AD18: 378.97 | AE18: 116.6 | AF18: 194.9 | AG18: 194.28 | AH18: 80.24 | AI18: 205.01 | AJ18: 325.01 | AK18: 55.45 | AL18: 137.66 | AM18: 38.48 | AN18: 131.12 | AO18: 199.88 | AP18: 127.55 | AQ18: 114.42 | AR18: 142.76 | AS18: 57.48 | AT18: 129.4 | AU18: 109.6
A19: 17 | B19: 2020-07-30 | C19: 284.81 | D19: 60.87 | E19: 246.14 | F19: 105.17 | G19: 384.76 | H19: 29.57 | I19: 86.01 | J19: 58.87 | K19: 44.76 | L19: 69.21 | M19: 90.06 | N19: 46.44 | O19: 47.69 | P19: 76.87 | Q19: 43.67 | R19: 57.33 | S19: 324.82 | T19: 64 | U19: 202.14 | V19: 63.48 | W19: 50.75 | X19: 47.99 | Y19: 124.49 | Z19: 146.84 | AA19: 70.59 | AB19: 151.96 | AC19: 153 | AD19: 381.72 | AE19: 116.71 | AF19: 193.84 | AG19: 195.41 | AH19: 78.99 | AI19: 203.9 | AJ19: 326.01 | AK19: 55.25 | AL19: 137.69 | AM19: 38.74 | AN19: 131.42 | AO19: 197.71 | AP19: 128.89 | AQ19: 115.93 | AR19: 141.46 | AS19: 57.3 | AT19: 130.12 | AU19: 109.38
A20: 18 | B20: 2020-07-29 | C20: 288.85 | D20: 61.25 | E20: 248.85 | F20: 105.83 | G20: 380.16 | H20: 29.56 | I20: 90.73 | J20: 59.15 | K20: 44.96 | L20: 69.21 | M20: 89.31 | N20: 46.71 | O20: 48.02 | P20: 76.2 | Q20: 43.9 | R20: 58.12 | S20: 326.14 | T20: 64.22 | U20: 202.13 | V20: 64.37 | W20: 50.84 | X20: 48.07 | Y20: 128.24 | Z20: 146.54 | AA20: 70.94 | AB20: 152.04 | AC20: 161.75 | AD20: 387.3 | AE20: 115.58 | AF20: 194.34 | AG20: 196.21 | AH20: 79.35 | AI20: 204.06 | AJ20: 315.26 | AK20: 55.7 | AL20: 137.93 | AM20: 39.26 | AN20: 128.31 | AO20: 196.84 | AP20: 131.64 | AQ20: 116.85 | AR20: 123.68 | AS20: 57.45 | AT20: 130.69 | AU20: 109.65
A21: 19 | B21: 2020-07-28 | C21: 289.27 | D21: 60.02 | E21: 255.27 | F21: 104.21 | G21: 373.01 | H21: 29.69 | I21: 89.26 | J21: 59.43 | K21: 44.48 | L21: 68.31 | M21: 88.21 | N21: 46.28 | O21: 48.18 | P21: 75.71 | Q21: 43.21 | R21: 56.7 | S21: 327.57 | T21: 63.27 | U21: 199.01 | V21: 64.54 | W21: 50.56 | X21: 49.24 | Y21: 128.34 | Z21: 146.83 | AA21: 70.91 | AB21: 150.78 | AC21: 162.65 | AD21: 386.66 | AE21: 114.21 | AF21: 192.99 | AG21: 196.24 | AH21: 79.69 | AI21: 202.02 | AJ21: 312.87 | AK21: 55.35 | AL21: 137.38 | AM21: 39.02 | AN21: 127.88 | AO21: 193.87 | AP21: 130.13 | AQ21: 115.03 | AR21: 119.62 | AS21: 57.48 | AT21: 131.76 | AU21: 107.52
A22: 20 | B22: 2020-07-27 | C22: 294.71 | D22: 61.26 | E22: 253.65 | F22: 106.17 | G22: 379.24 | H22: 29.29 | I22: 89.29 | J22: 58.05 | K22: 45.49 | L22: 68.9 | M22: 87.17 | N22: 47.19 | O22: 48.48 | P22: 74.65 | Q22: 43.56 | R22: 56.89 | S22: 327.6 | T22: 62.57 | U22: 198.98 | V22: 64.08 | W22: 50.55 | X22: 49.57 | Y22: 128.79 | Z22: 147.18 | AA22: 69.97 | AB22: 147.38 | AC22: 160.5 | AD22: 382.09 | AE22: 114.61 | AF22: 196.02 | AG22: 201.25 | AH22: 78.93 | AI22: 203.85 | AJ22: 308.02 | AK22: 55.34 | AL22: 137.67 | AM22: 37.54 | AN22: 126.32 | AO22: 185.57 | AP22: 132.12 | AQ22: 116.63 | AR22: 121.01 | AS22: 56.87 | AT22: 131.21 | AU22: 107.07
A23: 21 | B23: 2020-07-24 | C23: 291.52 | D23: 60.52 | E23: 247.98 | F23: 104.39 | G23: 370.46 | H23: 29.57 | I23: 89.26 | J23: 57.85 | K23: 45.4 | L23: 68 | M23: 85.87 | N23: 46.4 | O23: 48.49 | P23: 74.32 | Q23: 43.35 | R23: 58.36 | S23: 325.78 | T23: 63.34 | U23: 195.27 | V23: 64.23 | W23: 50.27 | X23: 50.59 | Y23: 126.82 | Z23: 148.12 | AA23: 68.68 | AB23: 147.34 | AC23: 159.54 | AD23: 386.21 | AE23: 114.62 | AF23: 193.52 | AG23: 198.72 | AH23: 77.1 | AI23: 201.3 | AJ23: 312.69 | AK23: 55.65 | AL23: 136.06 | AM23: 37.66 | AN23: 125.96 | AO23: 185.36 | AP23: 129.63 | AQ23: 118.28 | AR23: 118.35 | AS23: 56.85 | AT23: 131.24 | AU23: 107.28
A24: 22 | B24: 2020-07-23 | C24: 293.25 | D24: 60.61 | E24: 252.24 | F24: 105.6 | G24: 371.38 | H24: 29.9 | I24: 89.49 | J24: 59.87 | K24: 45.11 | L24: 68.46 | M24: 86.22 | N24: 47.41 | O24: 48.28 | P24: 74.23 | Q24: 42.49 | R24: 58.85 | S24: 326.11 | T24: 63.79 | U24: 199.22 | V24: 64.99 | W24: 50.55 | X24: 60.4 | Y24: 128.49 | Z24: 149.61 | AA24: 68.41 | AB24: 147.33 | AC24: 161.52 | AD24: 387.62 | AE24: 115.28 | AF24: 195.89 | AG24: 197.55 | AH24: 78.06 | AI24: 202.54 | AJ24: 313.06 | AK24: 55.76 | AL24: 137.08 | AM24: 38.41 | AN24: 126.16 | AO24: 187.02 | AP24: 129.04 | AQ24: 118.61 | AR24: 118.14 | AS24: 55.85 | AT24: 131.64 | AU24: 108.03
A25: 23 | B25: 2020-07-22 | C25: 295.51 | D25: 59.89 | E25: 256.98 | F25: 103.27 | G25: 389.09 | H25: 30.16 | I25: 89.2 | J25: 59.85 | K25: 44.96 | L25: 67.54 | M25: 85.14 | N25: 46.9 | O25: 48.48 | P25: 74.14 | Q25: 42.57 | R25: 57.23 | S25: 328.3 | T25: 63.78 | U25: 195.61 | V25: 64.72 | W25: 49.78 | X25: 61.05 | Y25: 128.55 | Z25: 150.01 | AA25: 67.46 | AB25: 144.3 | AC25: 164.84 | AD25: 394.08 | AE25: 115.51 | AF25: 193.82 | AG25: 198.62 | AH25: 78.78 | AI25: 211.75 | AJ25: 316 | AK25: 56.01 | AL25: 136.01 | AM25: 38.56 | AN25: 126.14 | AO25: 188.31 | AP25: 132.53 | AQ25: 122.24 | AR25: 118.72 | AS25: 55.75 | AT25: 132.66 | AU25: 108.21
A26: 24 | B26: 2020-07-21 | C26: 290.39 | D26: 59.14 | E26: 257.91 | F26: 102.1 | G26: 388 | H26: 30.25 | I26: 88.67 | J26: 59.8 | K26: 44.29 | L26: 67.11 | M26: 84.5 | N26: 47.02 | O26: 47.2 | P26: 74.04 | Q26: 42.57 | R26: 58.36 | S26: 327.74 | T26: 64.52 | U26: 195 | V26: 64.5 | W26: 49.75 | X26: 60.7 | Y26: 127.94 | Z26: 149.74 | AA26: 67.67 | AB26: 143.8 | AC26: 165.3 | AD26: 375.12 | AE26: 114.4 | AF26: 193.58 | AG26: 192.98 | AH26: 78.89 | AI26: 208.75 | AJ26: 308.19 | AK26: 55.91 | AL26: 134.43 | AM26: 36.69 | AN26: 125.07 | AO26: 186.84 | AP26: 135.48 | AQ26: 120.42 | AR26: 119.04 | AS26: 55.84 | AT26: 132.33 | AU26: 107.52
A27: 25 | B27: 2020-07-20 | C27: 290.87 | D27: 59.99 | E27: 260.95 | F27: 101.48 | G27: 393.43 | H27: 29.85 | I27: 87.82 | J27: 59.46 | K27: 43.76 | L27: 66.22 | M27: 84.29 | N27: 46.97 | O27: 46.12 | P27: 74.2 | Q27: 41.95 | R27: 55.99 | S27: 326.51 | T27: 63.91 | U27: 193.37 | V27: 63.64 | W27: 49.7 | X27: 61.15 | Y27: 128.72 | Z27: 149.6 | AA27: 67.42 | AB27: 142.69 | AC27: 167.04 | AD27: 365.53 | AE27: 113.48 | AF27: 191.56 | AG27: 191.61 | AH27: 79.41 | AI27: 211.6 | AJ27: 301.49 | AK27: 55.4 | AL27: 133.11 | AM27: 36.5 | AN27: 125.24 | AO27: 187.79 | AP27: 136.58 | AQ27: 118.77 | AR27: 118.35 | AS27: 55.87 | AT27: 131.47 | AU27: 106.57
A28: 26 | B28: 2020-07-17 | C28: 294 | D28: 59.57 | E28: 258.46 | F28: 102.02 | G28: 385.31 | H28: 30.25 | I28: 87.56 | J28: 60.39 | K28: 43.7 | L28: 67.45 | M28: 84.87 | N28: 46.75 | O28: 46.82 | P28: 75.2 | Q28: 42.18 | R28: 56.46 | S28: 324.79 | T28: 65.36 | U28: 190.95 | V28: 64.64 | W28: 49.92 | X28: 60 | Y28: 130.99 | Z28: 149.35 | AA28: 68.63 | AB28: 144.37 | AC28: 165.96 | AD28: 368.5 | AE28: 113.69 | AF28: 190.89 | AG28: 191.48 | AH28: 79.87 | AI28: 202.88 | AJ28: 306.84 | AK28: 54.9 | AL28: 134.66 | AM28: 36.25 | AN28: 125.63 | AO28: 192.3 | AP28: 133.89 | AQ28: 119.16 | AR28: 118.55 | AS28: 56.3 | AT28: 131.74 | AU28: 108.7
A29: 27 | B29: 2020-07-16 | C29: 287.19 | D29: 59.23 | E29: 255.2 | F29: 100.91 | G29: 386.09 | H29: 30.39 | I29: 85.81 | J29: 59.32 | K29: 43.43 | L29: 66.72 | M29: 84.2 | N29: 45.78 | O29: 46.15 | P29: 74.98 | Q29: 42.14 | R29: 57.84 | S29: 326.27 | T29: 64.99 | U29: 188.81 | V29: 64.69 | W29: 49.53 | X29: 59.14 | Y29: 129.61 | Z29: 149.25 | AA29: 68.24 | AB29: 143.68 | AC29: 165 | AD29: 365.88 | AE29: 111.83 | AF29: 189.72 | AG29: 190.92 | AH29: 79.4 | AI29: 203.92 | AJ29: 303.65 | AK29: 55.82 | AL29: 133.88 | AM29: 35.6 | AN29: 124.76 | AO29: 188.38 | AP29: 132.18 | AQ29: 120.5 | AR29: 119.74 | AS29: 55.78 | AT29: 132.2 | AU29: 107.46
A30: 28 | B30: 2020-07-15 | C30: 281.97 | D30: 59.1 | E30: 253.31 | F30: 100.44 | G30: 390.9 | H30: 30.01 | I30: 87.09 | J30: 59.27 | K30: 42.31 | L30: 66.26 | M30: 84.6 | N30: 46.4 | O30: 46.4 | P30: 74.69 | Q30: 41.96 | R30: 57.17 | S30: 326.7 | T30: 64.58 | U30: 188.34 | V30: 64.6 | W30: 48.82 | X30: 59.03 | Y30: 129.72 | Z30: 148.26 | AA30: 68.09 | AB30: 143.28 | AC30: 165.45 | AD30: 364.56 | AE30: 111.58 | AF30: 189.2 | AG30: 191.77 | AH30: 79.44 | AI30: 208.04 | AJ30: 300.76 | AK30: 56.62 | AL30: 133.69 | AM30: 35.72 | AN30: 124.5 | AO30: 192.8 | AP30: 132.15 | AQ30: 119.14 | AR30: 119.21 | AS30: 55.06 | AT30: 132 | AU30: 106.79
A31: 29 | B31: 2020-07-14 | C31: 280.99 | D31: 58.85 | E31: 253.09 | F31: 97.4 | G31: 388.23 | H31: 29.96 | I31: 84.65 | J31: 57.89 | K31: 41.95 | L31: 66.22 | M31: 84.48 | N31: 46.26 | O31: 45.87 | P31: 74.85 | Q31: 41.18 | R31: 55.46 | S31: 328 | T31: 63.7 | U31: 185.45 | V31: 65.17 | W31: 49.09 | X31: 58.98 | Y31: 127.01 | Z31: 147.92 | AA31: 68.4 | AB31: 143.96 | AC31: 163.88 | AD31: 355.66 | AE31: 110.24 | AF31: 189.42 | AG31: 190.72 | AH31: 78.25 | AI31: 208.35 | AJ31: 295.55 | AK31: 57.2 | AL31: 135.52 | AM31: 35.23 | AN31: 125.09 | AO31: 193.84 | AP31: 131.89 | AQ31: 118.55 | AR31: 115.33 | AS31: 55.44 | AT31: 132.01 | AU31: 106.2
A32: 30 | B32: 2020-07-13 | C32: 274.35 | D32: 58.67 | E32: 250.04 | F32: 94.46 | G32: 381.91 | H32: 29.76 | I32: 83.46 | J32: 57.75 | K32: 40.95 | L32: 64.68 | M32: 82.13 | N32: 45.93 | O32: 45.25 | P32: 73.46 | Q32: 40.54 | R32: 56.11 | S32: 322.92 | T32: 62.62 | U32: 182.41 | V32: 63.56 | W32: 48.06 | X32: 58.58 | Y32: 124.52 | Z32: 145.21 | AA32: 66.95 | AB32: 142.14 | AC32: 162.08 | AD32: 353.06 | AE32: 108.76 | AF32: 182.91 | AG32: 184.92 | AH32: 77.35 | AI32: 207.07 | AJ32: 292.35 | AK32: 57.01 | AL32: 134.91 | AM32: 35.21 | AN32: 124.05 | AO32: 192.89 | AP32: 128.82 | AQ32: 114.24 | AR32: 113.76 | AS32: 54.45 | AT32: 129.52 | AU32: 104.33
B34: Average | C34: =AVERAGE(C3:C32) -> 286.4446667 | D34: =AVERAGE(D3:D32) -> 60.7285 | E34: 246.8493333 | F34: 105.6923333 | G34: 420.5313333 | H34: 29.87866667 | I34: 85.166 | J34: 60.512 | K34: 44.92366667 | L34: 68.98033333 | M34: 90.85533333 | N34: 45.85466667 | O34: 47.45666667 | P34: 75.99966667 | Q34: 42.84566667 | R34: 58.375 | S34: 332.5446667 | T34: 64.30866667 | U34: 200.0896667 | V34: 64.152 | W34: 50.906 | X34: 52.11933333 | Y34: 126.2053333 | Z34: 148.463 | AA34: 68.97466667 | AB34: 151.7206667 | AC34: 157.03 | AD34: 381.265 | AE34: 115.2703333 | AF34: 196.4396667 | AG34: 199.7363333 | AH34: 80.91833333 | AI34: 208.471 | AJ34: 321.971 | AK34: 55.426 | AL34: 136.364 | AM34: 37.803 | AN34: 130.6056667 | AO34: 195.484 | AP34: 133.7876667 | AQ34: 116.8873333 | AR34: 138.4846667 | AS34: 57.373 | AT34: 131.4466667 | AU34: 109.213
A37: (a) | B37: Average of closing prices for 30 trading days ended Aug. 21, 2020.

Sheet 2020 10 Market DCF
E1: EPS Growth Rates | H1: Market | I1: Weighted | K1: Weighted | N1: Weighted | Q1: Weighted
D2: Dividend | E2: IBES | F2: Zacks | G2: VL | H2: Cap | I2: Dividend Yield | K2: IBES | N2: Zacks | Q2: Value Line | U2: IBES | W2: Value
B3: Company | C3: Ticker | D3: Yield | E3: Screened | F3: Screened | G3: Screened | H3: ($Millions) | I3: Weight | J3: Product | K3: Mkt. Cap. | L3: Weight | M3: Product | N3: Mkt. Cap. | O3: Weight | P3: Product | Q3: Mkt. Cap. | R3: Weight | S3: Product | U3: Yahoo | V3: Zacks | W3: Line
B4: (a) | D4: (b) | E4: (c) | F4: (d) | G4: (b) | H4: (b) | U4: (c) | V4: (d) | W4: (b)
A5: 1 | B5: Agilent Technologies, Inc. | C5: A | D5: 0.0074 | E5: =IF(AND(U5>=$D$399,U5<=$D$400),U5,"NMF") -> 0.094 | F5: =IF(AND(V5>=$D$399,V5<=$D$400),V5,"NMF") -> 0.1 | G5: 0.1 | H5: 29.90429 | I5: =H5/H$384 -> 0.001427222503 | J5: =D5*I5 -> 1.056144653e-05 | K5: =IF(E5="n/a","--",IF(E5="NMF","--",$H5)) -> 29.90429 | L5: =IF(K5="--","--",K5/K$384) -> 0.001651494947 | M5: =IF(L5="--","--",E5*L5) -> 0.000155240525 | N5: =IF(F5="n/a","--",IF(F5="NMF","--",$H5)) -> 29.90429 | O5: =IF(N5="--","--",N5/N$384) -> 0.001513124662 | P5: =IF(O5="--","--",F5*O5) -> 0.0001513124662 | Q5: =IF(G5="n/a","--",IF(G5="NMF","--",$H5)) -> 29.90429 | R5: =IF(Q5="--","--",Q5/Q$384) -> 0.001493799127 | S5: =IF(R5="--","--",G5*R5) -> 0.0001493799127 | U5: 0.094 | V5: 0.1 | W5: 0.1
A6: 2 | B6: Advance Auto Parts, Inc. | C6: AAP | D6: 0.0068 | E6: =IF(AND(U6>=$D$399,U6<=$D$400),U6,"NMF") -> 0.119 | F6: =IF(AND(V6>=$D$399,V6<=$D$400),V6,"NMF") -> 0.1293 | G6: =IF(AND(W6>=$D$399,W6<=$D$400),W6,"NMF") -> 0.11 | H6: 10.12541 | I6: 0.0004832488251 | J6: 3.286092011e-06 | K6: 10.12541 | L6: 0.000559186105 | M6: 6.654314649e-05 | N6: =IF(F6="n/a","--",IF(F6="NMF","--",$H6)) -> 10.12541 | O6: 0.0005123347715 | P6: 6.624488596e-05 | Q6: =IF(G6="n/a","--",IF(G6="NMF","--",$H6)) -> 10.12541 | R6: 0.0005057912633 | S6: =IF(R6="--","--",G6*R6) -> 5.563703896e-05 | U6: 0.119 | V6: 0.1293 | W6: 0.11
A7: 3 | B7: Apple Inc. | C7: AAPL | D7: 0.0079 | E7: 0.1246 | F7: 0.11 | G7: 0.155 | H7: 1835.582 | I7: 0.08760562238 | J7: 0.0006920844168 | K7: 1835.582 | L7: 0.10137189 | M7: 0.0126309375 | N7: 1835.582 | O7: 0.0928784597 | P7: 0.01021663057 | Q7: 1835.582 | R7: 0.09169222171 | S7: 0.01421229437 | U7: 0.1246 | V7: 0.11 | W7: 0.155
A8: 4 | B8: AbbVie Inc. | C8: ABBV | D8: 0.0542 | E8: 0.0795 | F8: 0.0596 | G8: 0.105 | H8: 153.7396 | I8: 0.007337429405 | J8: 0.0003976886738 | K8: 153.7396 | L8: 0.008490426373 | M8: 0.0006749888967 | N8: 153.7396 | O8: 0.007779057129 | P8: 0.0004636318049 | Q8: 153.7396 | R8: 0.007679703489 | S8: 0.0008063688663 | U8: 0.0795 | V8: 0.0596 | W8: 0.105
A9: 5 | B9: AmerisourceBergen Corporation | C9: ABC | D9: 0.0179 | E9: 0.0817 | F9: 0.0748 | G9: 0.07 | H9: 19.20089 | I9: 0.0009163883273 | J9: 1.640335106e-05 | K9: 19.20089 | L9: 0.001060388754 | M9: 8.663376118e-05 | N9: 19.20089 | O9: 0.000971544223 | P9: 7.267150788e-05 | Q9: 19.20089 | R9: 0.0009591357199 | S9: 6.713950039e-05 | U9: 0.0817 | V9: 0.0748 | W9: 0.07
A10: 6 | B10: Abbott Laboratories | C10: ABT | D10: 0.014 | E10: 0.149 | F10: 0.1098 | G10: 0.105 | H10: 181.8865 | I10: 0.008680778105 | J10: 0.0001215308935 | K10: 181.8865 | L10: 0.01004486766 | M10: 0.001496685282 | N10: 181.8865 | O10: 0.009203259762 | P10: 0.001010517922 | Q10: 181.8865 | R10: 0.009085716293 | S10: 0.0009540002108 | U10: 0.149 | V10: 0.1098 | W10: 0.105
A11: 7 | B11: Accenture PLC | C11: ACN | D11: 0.0143 | E11: 0.0951 | F11: 0.1 | G11: 0.075 | H11: 146.8207 | I11: 0.007007215587 | J11: 0.0001002031829 | K11: 146.8207 | L11: 0.008108323057 | M11: 0.0007711015227 | N11: 146.8207 | O11: 0.007428968288 | P11: 0.0007428968288 | Q11: 146.8207 | R11: 0.007334085961 | S11: 0.0005500564471 | U11: 0.0951 | V11: 0.1 | W11: 0.075
A12: 8 | B12: Analog Devices, Inc. | C12: ADI | D12: 0.022 | E12: 0.0844 | F12: 0.1 | G12: 0.07 | H12: 41.53118 | I12: 0.001982131483 | J12: 4.360689263e-05 | K12: 41.53118 | L12: 0.002293601818 | M12: 0.0001935799934 | N12: 41.53118 | O12: 0.002101432694 | P12: 0.0002101432694 | Q12: 41.53118 | R12: 0.002074593325 | S12: 0.0001452215327 | U12: 0.0844 | V12: 0.1 | W12: 0.07
A13: 9 | B13: Archer Daniels Midland Company | C13: ADM | D13: 0.0319 | E13: NMF | F13: NMF | G13: 0.09 | H13: 25.10896 | I13: 0.001198358923 | J13: 3.822764963e-05 | K13: -- | L13: -- | M13: -- | N13: -- | O13: -- | P13: -- | Q13: 25.10896 | R13: 0.00125425959 | S13: 0.0001128833631 | U13: -0.088 | V13: n/a | W13: 0.09
A14: 10 | B14: Automatic Data Processing, Inc. | C14: ADP | D14: 0.0287 | E14: 0.1057 | F14: 0.12 | G14: 0.11 | H14: 55.32386 | I14: 0.002640405707 | J14: 7.577964378e-05 | K14: 55.32386 | L14: 0.003055316652 | M14: 0.0003229469702 | N14: 55.32386 | O14: 0.002799327353 | P14: 0.0003359192824 | Q14: 55.32386 | R14: 0.002763574516 | S14: 0.0003039931968 | U14: 0.1057 | V14: 0.12 | W14: 0.11
A15: 11 | B15: Ameren Corporation | C15: AEE | D15: 0.0275 | E15: 0.06 | F15: 0.0689 | G15: 0.06 | H15: 18.68323 | I15: 0.0008916823069 | J15: 2.452126344e-05 | K15: 18.68323 | L15: 0.001031800452 | M15: 6.19080271e-05 | N15: 18.68323 | O15: 0.0009453511881 | P15: 6.513469686e-05 | Q15: 18.68323 | R15: 0.0009332772208 | S15: 5.599663325e-05 | U15: 0.06 | V15: 0.0689 | W15: 0.06
A16: 12 | B16: American Electric Power Company, Inc. | C16: AEP | D16: 0.0374 | E16: 0.0563 | F16: 0.0559 | G16: 0.06 | H16: 39.27415 | I16: 0.001874411687 | J16: 7.010299711e-05 | K16: 39.27415 | L16: 0.002168955031 | M16: 0.0001221121683 | N16: 39.27415 | O16: 0.001987229423 | P16: 0.0001110861247 | Q16: 39.27415 | R16: 0.00196184865 | S16: 0.000117710919 | U16: 0.0563 | V16: 0.0559 | W16: 0.06
A17: 13 | B17: The AES Corporation | C17: AES | D17: 0.0321 | E17: 0.0765 | F17: 0.0801 | G17: NMF | H17: 11.80926 | I17: 0.0005636128335 | J17: 1.809197195e-05 | K17: 11.80926 | L17: 0.0006521784404 | M17: 4.989165069e-05 | N17: 11.80926 | O17: 0.0005975357565 | P17: 4.786261409e-05 | Q17: -- | R17: -- | S17: -- | U17: 0.0765 | V17: 0.0801 | W17: 0.24
A18: 14 | B18: Aflac Incorporated | C18: AFL | D18: 0.0323 | E18: 0.016 | F18: 0.05 | G18: 0.085 | H18: 25.4294 | I18: 0.001213652353 | J18: 3.920097101e-05 | K18: 25.4294 | L18: 0.001404364578 | M18: 2.246983324e-05 | N18: 25.4294 | O18: 0.001286700078 | P18: 6.433500391e-05 | Q18: 25.4294 | R18: 0.001270266424 | S18: 0.000107972646 | U18: 0.016 | V18: 0.05 | W18: 0.085
A19: 15 | B19: American International Group, Inc. | C19: AIG | D19: 0.0484 | E19: 0.0396 | F19: 0.1 | G19: NMF | H19: 22.7677 | I19: 0.001086619137 | J19: 5.259236623e-05 | K19: 22.7677 | L19: 0.001257369478 | M19: 4.979183131e-05 | N19: 22.7677 | O19: 0.001152020943 | P19: 0.0001152020943 | Q19: -- | R19: -- | S19: -- | U19: 0.0396 | V19: 0.1 | W19: 0.285
A20: 16 | B20: Apartment Investment and Management Company | C20: AIV | D20: 0.049 | E20: 0.071 | F20: NMF | G20: NMF | H20: 5.10444 | I20: 0.0002436162716 | J20: 1.193719731e-05 | K20: 5.10444 | L20: 0.0002818979105 | M20: 2.001475164e-05 | N20: -- | O20: -- | P20: -- | Q20: -- | R20: -- | S20: -- | U20: 0.071 | V20: n/a | W20: -0.015
A21: 17 | B21: Assurant, Inc. | C21: AIZ | D21: 0.0212 | E21: 0.194 | F21: NMF | G21: 0.115 | H21: 7.07298 | I21: 0.0003375674936 | J21: 7.156430863e-06 | K21: 7.07298 | L21: 0.0003906125418 | M21: 7.577883311e-05 | N21: -- | O21: -- | P21: -- | Q21: 7.07298 | R21: 0.0003533142351 | S21: 4.063113704e-05 | U21: 0.194 | V21: n/a | W21: 0.115
A22: 18 | B22: Arthur J. Gallagher Co. | C22: AJG | D22: 0.0176 | E22: 0.1152 | F22: 0.0841 | G22: 0.13 | H22: 19.60194 | I22: 0.0009355289786 | J22: 1.646531002e-05 | K22: 19.60194 | L22: 0.001082537149 | M22: 0.0001247082796 | N22: 19.60194 | O22: 0.0009918369183 | P22: 8.341348483e-05 | Q22: 19.60194 | R22: 0.0009791692381 | S22: 0.000127292001 | U22: 0.1152 | V22: 0.0841 | W22: 0.13
A23: 19 | B23: Albemarle Corporation | C23: ALB | D23: 0.0192 | E23: 0.15 | F23: 0.0866 | G23: 0.04 | H23: 8.55162 | I23: 0.0004081375784 | J23: 7.836241505e-06 | K23: 8.55162 | L23: 0.0004722719454 | M23: 7.084079181e-05 | N23: 8.55162 | O23: 0.0004327027033 | P23: 3.74720541e-05 | Q23: 8.55162 | R23: 0.0004271762509 | S23: 1.708705004e-05 | U23: 0.15 | V23: 0.0866 | W23: 0.04
